Workbook

Sheet Instructions
B2: USAID Clean Energy Emission Reduction (CLEER) Building Energy Efficiency Improvement or Replacement
B3: Purpose: | D3: This tool assists USAID operating units in estimating GHG emissions reduced or avoided from building efficiency measures.
B4: Version Number: | D4: Version 2.8
B5: Version Date: | D5: 2023-10-01
B6: Activity Type: | D6: Increase End-Use Energy Efficiency: Building Energy Efficiency Improvement or Replacement
B9: Instructions:
B10: If your building efficiency measures involve multiple actions, each action may have to be estimated separately using this calculator.
B11: Note: Please enable macros before beginning.
B13: Step 1: Enter program information in the "Action Information" section of the "Data Input" page.
B15: Step 2: Enter the energy efficiency data on the "Energy Information and Data" section of the "Data Input" page.
B17: Step 3: List any assumptions on the data from the action at the bottom of the "Data Input" page.
B19: Step 4: Click on the "Review Calculations" arrow to proceed to the "Calculations" page.
B21: Step 5: Review calculations and enter alternate values if desired.
B23: Step 6: List any assumptions made about the alternate values at the bottom of the "Calculations" page.
B25: Step 7: Click on the "View Results" arrow to review the final calculation of annual emission reductions.
B27: Step 8: Report emission reductions to the Global Climate Change Office through the FACTS Info database.
B29: Note: Data from multiple actions will have to be aggregated in order to report on an entire activity.
B31: Legend:
C32: Cell Color Legend:
D33: Yellow cells are Input Fields.
D34: Blue cells are input fields for Alternate Values.
D35: Green cells are GHG Estimates.
D36: White cells are calculations fields and are not editable.

Sheet Data Input
B2: Action Information and Data Input
B4: Use this form to enter information about the action and its energy use.
B9: Section 1 - Action Information
B10: *required fields
D12: About the Action | H12: Reporting Details and Worksheet Status
D14: Implementing Mechanism Number* | H14: Point of Contact (Name)
D15: Implementing Mechanism Name* | H15: Contact Email
D16: Action Name* | H16: Contact Phone (Including Country Code)
D17: Fiscal Year Reported* | H17: Worksheet Status
D18: Operating Unit | H18: Worksheet Date
D19: Implementing Partner | H19: Description of the Action
D21: Location of the Action
D22: Country*
D23: Subnational Region, State, or Province
D24: City
D25: Geographic Coordinates
B33: Section 2 - Energy Information and Data
B34: *Use the calculator for up to 10 measures at a time. Use a second calculator if you have more than 10 measures.
C36: Select the measures that have been installed
D37: Sector | F37: Category | H37: Measure | J37: Enter the Number of Units | L37: Units | N37: Is the measure weather sensitive?
C38: 1 | L38: =IF(D38="","",IFERROR(INDEX(dUnits,MATCH($D38&$F38&$H38,dSector&dCategory&dMeasure,0))," - ")) ->  | N38: =IF(D38="","",IFERROR(INDEX(dWeatherSensitive,MATCH('Data Input'!$D38&'Data Input'!$F38&'Data Input'!$H38,dSector&dCategory&dMeasure,0))," - ")) -> 
C39: =C38+1 -> 2 | L39: =IF(D39="","",IFERROR(INDEX(dUnits,MATCH($D39&$F39&$H39,dSector&dCategory&dMeasure,0))," - ")) ->  | N39: =IF(D39="","",IFERROR(INDEX(dWeatherSensitive,MATCH('Data Input'!$D39&'Data Input'!$F39&'Data Input'!$H39,dSector&dCategory&dMeasure,0))," - ")) -> 
C40: =C39+1 -> 3 | L40: =IF(D40="","",IFERROR(INDEX(dUnits,MATCH($D40&$F40&$H40,dSector&dCategory&dMeasure,0))," - ")) ->  | N40: =IF(D40="","",IFERROR(INDEX(dWeatherSensitive,MATCH('Data Input'!$D40&'Data Input'!$F40&'Data Input'!$H40,dSector&dCategory&dMeasure,0))," - ")) -> 
C41: 4 | L41: =IF(D41="","",IFERROR(INDEX(dUnits,MATCH($D41&$F41&$H41,dSector&dCategory&dMeasure,0))," - ")) ->  | N41: =IF(D41="","",IFERROR(INDEX(dWeatherSensitive,MATCH('Data Input'!$D41&'Data Input'!$F41&'Data Input'!$H41,dSector&dCategory&dMeasure,0))," - ")) -> 
C42: 5 | L42: =IF(D42="","",IFERROR(INDEX(dUnits,MATCH($D42&$F42&$H42,dSector&dCategory&dMeasure,0))," - ")) ->  | N42: =IF(D42="","",IFERROR(INDEX(dWeatherSensitive,MATCH('Data Input'!$D42&'Data Input'!$F42&'Data Input'!$H42,dSector&dCategory&dMeasure,0))," - ")) -> 
C43: =C42+1 -> 6 | L43: =IF(D43="","",IFERROR(INDEX(dUnits,MATCH($D43&$F43&$H43,dSector&dCategory&dMeasure,0))," - ")) ->  | N43: =IF(D43="","",IFERROR(INDEX(dWeatherSensitive,MATCH('Data Input'!$D43&'Data Input'!$F43&'Data Input'!$H43,dSector&dCategory&dMeasure,0))," - ")) -> 
C44: 7 | L44: =IF(D44="","",IFERROR(INDEX(dUnits,MATCH($D44&$F44&$H44,dSector&dCategory&dMeasure,0))," - ")) ->  | N44: =IF(D44="","",IFERROR(INDEX(dWeatherSensitive,MATCH('Data Input'!$D44&'Data Input'!$F44&'Data Input'!$H44,dSector&dCategory&dMeasure,0))," - ")) -> 
C45: 8 | L45: =IF(D45="","",IFERROR(INDEX(dUnits,MATCH($D45&$F45&$H45,dSector&dCategory&dMeasure,0))," - ")) ->  | N45: =IF(D45="","",IFERROR(INDEX(dWeatherSensitive,MATCH('Data Input'!$D45&'Data Input'!$F45&'Data Input'!$H45,dSector&dCategory&dMeasure,0))," - ")) -> 
C46: 9 | L46: =IF(D46="","",IFERROR(INDEX(dUnits,MATCH($D46&$F46&$H46,dSector&dCategory&dMeasure,0))," - ")) ->  | N46: =IF(D46="","",IFERROR(INDEX(dWeatherSensitive,MATCH('Data Input'!$D46&'Data Input'!$F46&'Data Input'!$H46,dSector&dCategory&dMeasure,0))," - ")) -> 
C47: 10 | L47: =IF(D47="","",IFERROR(INDEX(dUnits,MATCH($D47&$F47&$H47,dSector&dCategory&dMeasure,0))," - ")) ->  | N47: =IF(D47="","",IFERROR(INDEX(dWeatherSensitive,MATCH('Data Input'!$D47&'Data Input'!$F47&'Data Input'!$H47,dSector&dCategory&dMeasure,0))," - ")) -> 
C50: If any measure is weather sensitive, select the closest:
D51: Country | F51: City
D53: Heating Degree Days | F53: =WeatherData!C3 -> 705
D54: Cooling Degree Days | F54: =WeatherData!D3 -> 30
B56: Assumptions
B57: Document all assumptions or comments regarding the action or any of the data used for the estimation.

Sheet Calculations
B2: Calculations
B4: Review the emission reduction calculations. Enter alternate values in the blue fields, if desired.
B7: Emission Reductions Calculations
C8: NA = Not Applicable due to the options selected.
C11: Building Energy Efficiency
D13: Default Values | F13: Alternate Values
C15: Country | D15: =IF(CountryInput="","",CountryInput) -> 
C16: Grid Emission Factor (gCO2e/kWh) | D16: =IF(D15="","",VLOOKUP(D15,'Country Parameters'!$B$4:$K$198,10,FALSE)) -> 
C17: Grid Line Loss Rate | D17: =IF(D15="","",VLOOKUP(D15,'Country Parameters'!$B$4:$R$198,17,FALSE)) -> 
C18: Fossil Fuel (Natural Gas) Emission Factor (gCO2e/GJ) | D18: =IF(D15="","",'Fuel EFs'!M42) -> 
C21: Calculations
I23: Consumption Per Unit | O23: Total Consumption
C24: Baseline Description | D24: Action Description | F24: Units of Consumption | H24: Baseline Energy Consumption (or savings only) | I24: Action Energy Consumption | J24: Annual Energy Savings | L24: Number of Units | N24: Baseline Energy Consumption | O24: Action Energy Consumption | P24: Total Annual Energy Savings
C26: =IF('Data Input'!D38="","",IFERROR(INDEX(dBaselineDesc,MATCH('Data Input'!$D38&'Data Input'!$F38&'Data Input'!$H38,dSector&dCategory&dMeasure,0))," - ")) ->  | D26: =IF('Data Input'!D38="","",IFERROR(INDEX(dUpgradeDesc,MATCH('Data Input'!$D38&'Data Input'!$F38&'Data Input'!$H38,dSector&dCategory&dMeasure,0))," - ")) ->  | F26: =IF(D26="","",IF(INDEX(bBaselineTherms,MATCH('Data Input'!$D38&'Data Input'!$F38&'Data Input'!$H38,dSector&dCategory&dMeasure,0))=0,"kWh per Unit", "Therms per Unit")) ->  | H26: =IF(C26="","",IFERROR(INDEX(bBaselinekWh,MATCH('Data Input'!$D38&'Data Input'!$F38&'Data Input'!$H38,dSector&dCategory&dMeasure,0))*IF('Data Input'!$N38="Yes",INDEX(dCoolingRatio,MATCH('Data Input'!$D38&'Data Input'!$F38&'Data Input'!$H38,dSector&dCategory&dMeasure,0)),1)," - ")+IFERROR(INDEX(bBaselineTherms,MATCH('Data Input'!$D38&'Data Input'!$F38&'Data Input'!$H38,dSector&dCategory&dMeasure,0))," - ")) ->  | I26: =IF(C26="","",IFERROR(INDEX(bUpgradekWh,MATCH('Data Input'!$D38&'Data Input'!$F38&'Data Input'!$H38,dSector&dCategory&dMeasure,0))*IF('Data Input'!$N38="Yes",INDEX(dCoolingRatio,MATCH('Data Input'!$D38&'Data Input'!$F38&'Data Input'!$H38,dSector&dCategory&dMeasure,0)),1)," - ")+IFERROR(INDEX(bUpgradeTherms,MATCH('Data Input'!$D38&'Data Input'!$F38&'Data Input'!$H38,dSector&dCategory&dMeasure,0))," - ")) ->  | J26: =IF(C26="","",IFERROR(INDEX(IF('Data Input'!$N38="No",dAnnualkWh,dAdjAnnualkWh),MATCH('Data Input'!$D38&'Data Input'!$F38&'Data Input'!$H38,dSector&dCategory&dMeasure,0))," - ")+IFERROR(INDEX(dAnnualFF,MATCH('Data Input'!$D38&'Data Input'!$F38&'Data Input'!$H38,dSector&dCategory&dMeasure,0))," - ")) ->  | L26: =IF(C26="","",'Data Input'!J38) ->  | N26: =IF(C26="","",L26*H26) ->  | O26: =IF(C26="","",L26*I26) ->  | P26: =IF(C26="","",L26*J26) ->  | W26: P
C27: =IF('Data Input'!D39="","",IFERROR(INDEX(dBaselineDesc,MATCH('Data Input'!$D39&'Data Input'!$F39&'Data Input'!$H39,dSector&dCategory&dMeasure,0))," - ")) ->  | D27: =IF('Data Input'!D39="","",IFERROR(INDEX(dUpgradeDesc,MATCH('Data Input'!$D39&'Data Input'!$F39&'Data Input'!$H39,dSector&dCategory&dMeasure,0))," - ")) ->  | F27: =IF(D27="","",IF(INDEX(bBaselineTherms,MATCH('Data Input'!$D39&'Data Input'!$F39&'Data Input'!$H39,dSector&dCategory&dMeasure,0))=0,"kWh per Unit", "Therms per Unit")) ->  | H27: =IF(C27="","",IFERROR(INDEX(bBaselinekWh,MATCH('Data Input'!$D39&'Data Input'!$F39&'Data Input'!$H39,dSector&dCategory&dMeasure,0))*IF('Data Input'!$N39="Yes",INDEX(dCoolingRatio,MATCH('Data Input'!$D39&'Data Input'!$F39&'Data Input'!$H39,dSector&dCategory&dMeasure,0)),1)," - ")+IFERROR(INDEX(bBaselineTherms,MATCH('Data Input'!$D39&'Data Input'!$F39&'Data Input'!$H39,dSector&dCategory&dMeasure,0))," - ")) ->  | I27: =IF(C27="","",IFERROR(INDEX(bUpgradekWh,MATCH('Data Input'!$D39&'Data Input'!$F39&'Data Input'!$H39,dSector&dCategory&dMeasure,0))*IF('Data Input'!$N39="Yes",INDEX(dCoolingRatio,MATCH('Data Input'!$D39&'Data Input'!$F39&'Data Input'!$H39,dSector&dCategory&dMeasure,0)),1)," - ")+IFERROR(INDEX(bUpgradeTherms,MATCH('Data Input'!$D39&'Data Input'!$F39&'Data Input'!$H39,dSector&dCategory&dMeasure,0))," - ")) ->  | J27: =IF(C27="","",IFERROR(INDEX(IF('Data Input'!$N39="No",dAnnualkWh,dAdjAnnualkWh),MATCH('Data Input'!$D39&'Data Input'!$F39&'Data Input'!$H39,dSector&dCategory&dMeasure,0))," - ")+IFERROR(INDEX(dAnnualFF,MATCH('Data Input'!$D39&'Data Input'!$F39&'Data Input'!$H39,dSector&dCategory&dMeasure,0))," - ")) ->  | L27: =IF(C27="","",'Data Input'!J39) ->  | N27: =IF(C27="","",L27*H27) ->  | O27: =IF(C27="","",L27*I27) ->  | P27: =IF(C27="","",L27*J27) ->  | W27: Q
C28: =IF('Data Input'!D40="","",IFERROR(INDEX(dBaselineDesc,MATCH('Data Input'!$D40&'Data Input'!$F40&'Data Input'!$H40,dSector&dCategory&dMeasure,0))," - ")) ->  | D28: =IF('Data Input'!D40="","",IFERROR(INDEX(dUpgradeDesc,MATCH('Data Input'!$D40&'Data Input'!$F40&'Data Input'!$H40,dSector&dCategory&dMeasure,0))," - ")) ->  | F28: =IF(D28="","",IF(INDEX(bBaselineTherms,MATCH('Data Input'!$D40&'Data Input'!$F40&'Data Input'!$H40,dSector&dCategory&dMeasure,0))=0,"kWh per Unit", "Therms per Unit")) ->  | H28: =IF(C28="","",IFERROR(INDEX(bBaselinekWh,MATCH('Data Input'!$D40&'Data Input'!$F40&'Data Input'!$H40,dSector&dCategory&dMeasure,0))*IF('Data Input'!$N40="Yes",INDEX(dCoolingRatio,MATCH('Data Input'!$D40&'Data Input'!$F40&'Data Input'!$H40,dSector&dCategory&dMeasure,0)),1)," - ")+IFERROR(INDEX(bBaselineTherms,MATCH('Data Input'!$D40&'Data Input'!$F40&'Data Input'!$H40,dSector&dCategory&dMeasure,0))," - ")) ->  | I28: =IF(C28="","",IFERROR(INDEX(bUpgradekWh,MATCH('Data Input'!$D40&'Data Input'!$F40&'Data Input'!$H40,dSector&dCategory&dMeasure,0))*IF('Data Input'!$N40="Yes",INDEX(dCoolingRatio,MATCH('Data Input'!$D40&'Data Input'!$F40&'Data Input'!$H40,dSector&dCategory&dMeasure,0)),1)," - ")+IFERROR(INDEX(bUpgradeTherms,MATCH('Data Input'!$D40&'Data Input'!$F40&'Data Input'!$H40,dSector&dCategory&dMeasure,0))," - ")) ->  | J28: =IF(C28="","",IFERROR(INDEX(IF('Data Input'!$N40="No",dAnnualkWh,dAdjAnnualkWh),MATCH('Data Input'!$D40&'Data Input'!$F40&'Data Input'!$H40,dSector&dCategory&dMeasure,0))," - ")+IFERROR(INDEX(dAnnualFF,MATCH('Data Input'!$D40&'Data Input'!$F40&'Data Input'!$H40,dSector&dCategory&dMeasure,0))," - ")) ->  | L28: =IF(C28="","",'Data Input'!J40) ->  | W28: R
C29: =IF('Data Input'!D41="","",IFERROR(INDEX(dBaselineDesc,MATCH('Data Input'!$D41&'Data Input'!$F41&'Data Input'!$H41,dSector&dCategory&dMeasure,0))," - ")) ->  | D29: =IF('Data Input'!D41="","",IFERROR(INDEX(dUpgradeDesc,MATCH('Data Input'!$D41&'Data Input'!$F41&'Data Input'!$H41,dSector&dCategory&dMeasure,0))," - ")) ->  | F29: =IF(D29="","",IF(INDEX(bBaselineTherms,MATCH('Data Input'!$D41&'Data Input'!$F41&'Data Input'!$H41,dSector&dCategory&dMeasure,0))=0,"kWh per Unit", "Therms per Unit")) ->  | H29: =IF(C29="","",IFERROR(INDEX(bBaselinekWh,MATCH('Data Input'!$D41&'Data Input'!$F41&'Data Input'!$H41,dSector&dCategory&dMeasure,0))*IF('Data Input'!$N41="Yes",INDEX(dCoolingRatio,MATCH('Data Input'!$D41&'Data Input'!$F41&'Data Input'!$H41,dSector&dCategory&dMeasure,0)),1)," - ")+IFERROR(INDEX(bBaselineTherms,MATCH('Data Input'!$D41&'Data Input'!$F41&'Data Input'!$H41,dSector&dCategory&dMeasure,0))," - ")) ->  | I29: =IF(C29="","",IFERROR(INDEX(bUpgradekWh,MATCH('Data Input'!$D41&'Data Input'!$F41&'Data Input'!$H41,dSector&dCategory&dMeasure,0))*IF('Data Input'!$N41="Yes",INDEX(dCoolingRatio,MATCH('Data Input'!$D41&'Data Input'!$F41&'Data Input'!$H41,dSector&dCategory&dMeasure,0)),1)," - ")+IFERROR(INDEX(bUpgradeTherms,MATCH('Data Input'!$D41&'Data Input'!$F41&'Data Input'!$H41,dSector&dCategory&dMeasure,0))," - ")) ->  | J29: =IF(C29="","",IFERROR(INDEX(IF('Data Input'!$N41="No",dAnnualkWh,dAdjAnnualkWh),MATCH('Data Input'!$D41&'Data Input'!$F41&'Data Input'!$H41,dSector&dCategory&dMeasure,0))," - ")+IFERROR(INDEX(dAnnualFF,MATCH('Data Input'!$D41&'Data Input'!$F41&'Data Input'!$H41,dSector&dCategory&dMeasure,0))," - ")) ->  | L29: =IF(C29="","",'Data Input'!J41) ->  | W29: S
C30: =IF('Data Input'!D42="","",IFERROR(INDEX(dBaselineDesc,MATCH('Data Input'!$D42&'Data Input'!$F42&'Data Input'!$H42,dSector&dCategory&dMeasure,0))," - ")) ->  | D30: =IF('Data Input'!D42="","",IFERROR(INDEX(dUpgradeDesc,MATCH('Data Input'!$D42&'Data Input'!$F42&'Data Input'!$H42,dSector&dCategory&dMeasure,0))," - ")) ->  | F30: =IF(D30="","",IF(INDEX(bBaselineTherms,MATCH('Data Input'!$D42&'Data Input'!$F42&'Data Input'!$H42,dSector&dCategory&dMeasure,0))=0,"kWh per Unit", "Therms per Unit")) ->  | H30: =IF(C30="","",IFERROR(INDEX(bBaselinekWh,MATCH('Data Input'!$D42&'Data Input'!$F42&'Data Input'!$H42,dSector&dCategory&dMeasure,0))*IF('Data Input'!$N42="Yes",INDEX(dCoolingRatio,MATCH('Data Input'!$D42&'Data Input'!$F42&'Data Input'!$H42,dSector&dCategory&dMeasure,0)),1)," - ")+IFERROR(INDEX(bBaselineTherms,MATCH('Data Input'!$D42&'Data Input'!$F42&'Data Input'!$H42,dSector&dCategory&dMeasure,0))," - ")) ->  | I30: =IF(C30="","",IFERROR(INDEX(bUpgradekWh,MATCH('Data Input'!$D42&'Data Input'!$F42&'Data Input'!$H42,dSector&dCategory&dMeasure,0))*IF('Data Input'!$N42="Yes",INDEX(dCoolingRatio,MATCH('Data Input'!$D42&'Data Input'!$F42&'Data Input'!$H42,dSector&dCategory&dMeasure,0)),1)," - ")+IFERROR(INDEX(bUpgradeTherms,MATCH('Data Input'!$D42&'Data Input'!$F42&'Data Input'!$H42,dSector&dCategory&dMeasure,0))," - ")) ->  | J30: =IF(C30="","",IFERROR(INDEX(IF('Data Input'!$N42="No",dAnnualkWh,dAdjAnnualkWh),MATCH('Data Input'!$D42&'Data Input'!$F42&'Data Input'!$H42,dSector&dCategory&dMeasure,0))," - ")+IFERROR(INDEX(dAnnualFF,MATCH('Data Input'!$D42&'Data Input'!$F42&'Data Input'!$H42,dSector&dCategory&dMeasure,0))," - ")) ->  | L30: =IF(C30="","",'Data Input'!J42) ->  | W30: T
C31: =IF('Data Input'!D43="","",IFERROR(INDEX(dBaselineDesc,MATCH('Data Input'!$D43&'Data Input'!$F43&'Data Input'!$H43,dSector&dCategory&dMeasure,0))," - ")) ->  | D31: =IF('Data Input'!D43="","",IFERROR(INDEX(dUpgradeDesc,MATCH('Data Input'!$D43&'Data Input'!$F43&'Data Input'!$H43,dSector&dCategory&dMeasure,0))," - ")) ->  | F31: =IF(D31="","",IF(INDEX(bBaselineTherms,MATCH('Data Input'!$D43&'Data Input'!$F43&'Data Input'!$H43,dSector&dCategory&dMeasure,0))=0,"kWh per Unit", "Therms per Unit")) ->  | H31: =IF(C31="","",IFERROR(INDEX(bBaselinekWh,MATCH('Data Input'!$D43&'Data Input'!$F43&'Data Input'!$H43,dSector&dCategory&dMeasure,0))*IF('Data Input'!$N43="Yes",INDEX(dCoolingRatio,MATCH('Data Input'!$D43&'Data Input'!$F43&'Data Input'!$H43,dSector&dCategory&dMeasure,0)),1)," - ")+IFERROR(INDEX(bBaselineTherms,MATCH('Data Input'!$D43&'Data Input'!$F43&'Data Input'!$H43,dSector&dCategory&dMeasure,0))," - ")) ->  | I31: =IF(C31="","",IFERROR(INDEX(bUpgradekWh,MATCH('Data Input'!$D43&'Data Input'!$F43&'Data Input'!$H43,dSector&dCategory&dMeasure,0))*IF('Data Input'!$N43="Yes",INDEX(dCoolingRatio,MATCH('Data Input'!$D43&'Data Input'!$F43&'Data Input'!$H43,dSector&dCategory&dMeasure,0)),1)," - ")+IFERROR(INDEX(bUpgradeTherms,MATCH('Data Input'!$D43&'Data Input'!$F43&'Data Input'!$H43,dSector&dCategory&dMeasure,0))," - ")) ->  | J31: =IF(C31="","",IFERROR(INDEX(IF('Data Input'!$N43="No",dAnnualkWh,dAdjAnnualkWh),MATCH('Data Input'!$D43&'Data Input'!$F43&'Data Input'!$H43,dSector&dCategory&dMeasure,0))," - ")+IFERROR(INDEX(dAnnualFF,MATCH('Data Input'!$D43&'Data Input'!$F43&'Data Input'!$H43,dSector&dCategory&dMeasure,0))," - ")) ->  | L31: =IF(C31="","",'Data Input'!J43) ->  | W31: U
C32: =IF('Data Input'!D44="","",IFERROR(INDEX(dBaselineDesc,MATCH('Data Input'!$D44&'Data Input'!$F44&'Data Input'!$H44,dSector&dCategory&dMeasure,0))," - ")) ->  | D32: =IF('Data Input'!D44="","",IFERROR(INDEX(dUpgradeDesc,MATCH('Data Input'!$D44&'Data Input'!$F44&'Data Input'!$H44,dSector&dCategory&dMeasure,0))," - ")) ->  | F32: =IF(D32="","",IF(INDEX(bBaselineTherms,MATCH('Data Input'!$D44&'Data Input'!$F44&'Data Input'!$H44,dSector&dCategory&dMeasure,0))=0,"kWh per Unit", "Therms per Unit")) ->  | H32: =IF(C32="","",IFERROR(INDEX(bBaselinekWh,MATCH('Data Input'!$D44&'Data Input'!$F44&'Data Input'!$H44,dSector&dCategory&dMeasure,0))*IF('Data Input'!$N44="Yes",INDEX(dCoolingRatio,MATCH('Data Input'!$D44&'Data Input'!$F44&'Data Input'!$H44,dSector&dCategory&dMeasure,0)),1)," - ")+IFERROR(INDEX(bBaselineTherms,MATCH('Data Input'!$D44&'Data Input'!$F44&'Data Input'!$H44,dSector&dCategory&dMeasure,0))," - ")) ->  | I32: =IF(C32="","",IFERROR(INDEX(bUpgradekWh,MATCH('Data Input'!$D44&'Data Input'!$F44&'Data Input'!$H44,dSector&dCategory&dMeasure,0))*IF('Data Input'!$N44="Yes",INDEX(dCoolingRatio,MATCH('Data Input'!$D44&'Data Input'!$F44&'Data Input'!$H44,dSector&dCategory&dMeasure,0)),1)," - ")+IFERROR(INDEX(bUpgradeTherms,MATCH('Data Input'!$D44&'Data Input'!$F44&'Data Input'!$H44,dSector&dCategory&dMeasure,0))," - ")) ->  | J32: =IF(C32="","",IFERROR(INDEX(IF('Data Input'!$N44="No",dAnnualkWh,dAdjAnnualkWh),MATCH('Data Input'!$D44&'Data Input'!$F44&'Data Input'!$H44,dSector&dCategory&dMeasure,0))," - ")+IFERROR(INDEX(dAnnualFF,MATCH('Data Input'!$D44&'Data Input'!$F44&'Data Input'!$H44,dSector&dCategory&dMeasure,0))," - ")) ->  | L32: =IF(C32="","",'Data Input'!J44) ->  | W32: V
C33: =IF('Data Input'!D45="","",IFERROR(INDEX(dBaselineDesc,MATCH('Data Input'!$D45&'Data Input'!$F45&'Data Input'!$H45,dSector&dCategory&dMeasure,0))," - ")) ->  | D33: =IF('Data Input'!D45="","",IFERROR(INDEX(dUpgradeDesc,MATCH('Data Input'!$D45&'Data Input'!$F45&'Data Input'!$H45,dSector&dCategory&dMeasure,0))," - ")) ->  | F33: =IF(D33="","",IF(INDEX(bBaselineTherms,MATCH('Data Input'!$D45&'Data Input'!$F45&'Data Input'!$H45,dSector&dCategory&dMeasure,0))=0,"kWh per Unit", "Therms per Unit")) ->  | H33: =IF(C33="","",IFERROR(INDEX(bBaselinekWh,MATCH('Data Input'!$D45&'Data Input'!$F45&'Data Input'!$H45,dSector&dCategory&dMeasure,0))*IF('Data Input'!$N45="Yes",INDEX(dCoolingRatio,MATCH('Data Input'!$D45&'Data Input'!$F45&'Data Input'!$H45,dSector&dCategory&dMeasure,0)),1)," - ")+IFERROR(INDEX(bBaselineTherms,MATCH('Data Input'!$D45&'Data Input'!$F45&'Data Input'!$H45,dSector&dCategory&dMeasure,0))," - ")) ->  | I33: =IF(C33="","",IFERROR(INDEX(bUpgradekWh,MATCH('Data Input'!$D45&'Data Input'!$F45&'Data Input'!$H45,dSector&dCategory&dMeasure,0))*IF('Data Input'!$N45="Yes",INDEX(dCoolingRatio,MATCH('Data Input'!$D45&'Data Input'!$F45&'Data Input'!$H45,dSector&dCategory&dMeasure,0)),1)," - ")+IFERROR(INDEX(bUpgradeTherms,MATCH('Data Input'!$D45&'Data Input'!$F45&'Data Input'!$H45,dSector&dCategory&dMeasure,0))," - ")) ->  | J33: =IF(C33="","",IFERROR(INDEX(IF('Data Input'!$N45="No",dAnnualkWh,dAdjAnnualkWh),MATCH('Data Input'!$D45&'Data Input'!$F45&'Data Input'!$H45,dSector&dCategory&dMeasure,0))," - ")+IFERROR(INDEX(dAnnualFF,MATCH('Data Input'!$D45&'Data Input'!$F45&'Data Input'!$H45,dSector&dCategory&dMeasure,0))," - ")) ->  | L33: =IF(C33="","",'Data Input'!J45) ->  | W33: W
C34: =IF('Data Input'!D46="","",IFERROR(INDEX(dBaselineDesc,MATCH('Data Input'!$D46&'Data Input'!$F46&'Data Input'!$H46,dSector&dCategory&dMeasure,0))," - ")) ->  | D34: =IF('Data Input'!D46="","",IFERROR(INDEX(dUpgradeDesc,MATCH('Data Input'!$D46&'Data Input'!$F46&'Data Input'!$H46,dSector&dCategory&dMeasure,0))," - ")) ->  | F34: =IF(D34="","",IF(INDEX(bBaselineTherms,MATCH('Data Input'!$D46&'Data Input'!$F46&'Data Input'!$H46,dSector&dCategory&dMeasure,0))=0,"kWh per Unit", "Therms per Unit")) ->  | H34: =IF(C34="","",IFERROR(INDEX(bBaselinekWh,MATCH('Data Input'!$D46&'Data Input'!$F46&'Data Input'!$H46,dSector&dCategory&dMeasure,0))*IF('Data Input'!$N46="Yes",INDEX(dCoolingRatio,MATCH('Data Input'!$D46&'Data Input'!$F46&'Data Input'!$H46,dSector&dCategory&dMeasure,0)),1)," - ")+IFERROR(INDEX(bBaselineTherms,MATCH('Data Input'!$D46&'Data Input'!$F46&'Data Input'!$H46,dSector&dCategory&dMeasure,0))," - ")) ->  | I34: =IF(C34="","",IFERROR(INDEX(bUpgradekWh,MATCH('Data Input'!$D46&'Data Input'!$F46&'Data Input'!$H46,dSector&dCategory&dMeasure,0))*IF('Data Input'!$N46="Yes",INDEX(dCoolingRatio,MATCH('Data Input'!$D46&'Data Input'!$F46&'Data Input'!$H46,dSector&dCategory&dMeasure,0)),1)," - ")+IFERROR(INDEX(bUpgradeTherms,MATCH('Data Input'!$D46&'Data Input'!$F46&'Data Input'!$H46,dSector&dCategory&dMeasure,0))," - ")) ->  | J34: =IF(C34="","",IFERROR(INDEX(IF('Data Input'!$N46="No",dAnnualkWh,dAdjAnnualkWh),MATCH('Data Input'!$D46&'Data Input'!$F46&'Data Input'!$H46,dSector&dCategory&dMeasure,0))," - ")+IFERROR(INDEX(dAnnualFF,MATCH('Data Input'!$D46&'Data Input'!$F46&'Data Input'!$H46,dSector&dCategory&dMeasure,0))," - ")) ->  | L34: =IF(C34="","",'Data Input'!J46) ->  | W34: X
C35: =IF('Data Input'!D47="","",IFERROR(INDEX(dBaselineDesc,MATCH('Data Input'!$D47&'Data Input'!$F47&'Data Input'!$H47,dSector&dCategory&dMeasure,0))," - ")) ->  | D35: =IF('Data Input'!D47="","",IFERROR(INDEX(dUpgradeDesc,MATCH('Data Input'!$D47&'Data Input'!$F47&'Data Input'!$H47,dSector&dCategory&dMeasure,0))," - ")) ->  | F35: =IF(D35="","",IF(INDEX(bBaselineTherms,MATCH('Data Input'!$D47&'Data Input'!$F47&'Data Input'!$H47,dSector&dCategory&dMeasure,0))=0,"kWh per Unit", "Therms per Unit")) ->  | H35: =IF(C35="","",IFERROR(INDEX(bBaselinekWh,MATCH('Data Input'!$D47&'Data Input'!$F47&'Data Input'!$H47,dSector&dCategory&dMeasure,0))*IF('Data Input'!$N47="Yes",INDEX(dCoolingRatio,MATCH('Data Input'!$D47&'Data Input'!$F47&'Data Input'!$H47,dSector&dCategory&dMeasure,0)),1)," - ")+IFERROR(INDEX(bBaselineTherms,MATCH('Data Input'!$D47&'Data Input'!$F47&'Data Input'!$H47,dSector&dCategory&dMeasure,0))," - ")) ->  | I35: =IF(C35="","",IFERROR(INDEX(bUpgradekWh,MATCH('Data Input'!$D47&'Data Input'!$F47&'Data Input'!$H47,dSector&dCategory&dMeasure,0))*IF('Data Input'!$N47="Yes",INDEX(dCoolingRatio,MATCH('Data Input'!$D47&'Data Input'!$F47&'Data Input'!$H47,dSector&dCategory&dMeasure,0)),1)," - ")+IFERROR(INDEX(bUpgradeTherms,MATCH('Data Input'!$D47&'Data Input'!$F47&'Data Input'!$H47,dSector&dCategory&dMeasure,0))," - ")) ->  | J35: =IF(C35="","",IFERROR(INDEX(IF('Data Input'!$N47="No",dAnnualkWh,dAdjAnnualkWh),MATCH('Data Input'!$D47&'Data Input'!$F47&'Data Input'!$H47,dSector&dCategory&dMeasure,0))," - ")+IFERROR(INDEX(dAnnualFF,MATCH('Data Input'!$D47&'Data Input'!$F47&'Data Input'!$H47,dSector&dCategory&dMeasure,0))," - ")) ->  | L35: =IF(C35="","",'Data Input'!J47) ->  | W35: Y
D37: Total kWh | H37: =IF(SUM(H26:H35)=0,"",SUMIF(F26:F35,"kWh per Unit",H26:H35)) ->  | I37: =IF(SUM(I26:I35)=0,"",SUMIF(G26:G35,"kWh per Unit",I26:I35)) ->  | J37: =IF(SUM(J26:J35)=0,"",SUMIF(F26:F35,"kWh per Unit",J26:J35)) ->  | N37: =IF(SUM(N26:N35)=0,"",SUMIF(F26:F35,"kWh per Unit",N26:N35)) ->  | O37: =IF(SUM(O26:O35)=0,"",SUMIF(G26:G35,"kWh per Unit",O26:O35)) ->  | P37: =IF(SUM(P26:P35)=0,"",SUMIF(F26:F35,"kWh per Unit",P26:P35)) -> 
D38: Total Therms | H38: =IF(SUM(H26:H35)=0,"",SUMIF(F26:F35,"Therms per Unit",H26:H35)) ->  | I38: =IF(SUM(I26:I35)=0,"",SUMIF(G26:G35,"Therms per Unit",I26:I35)) ->  | J38: =IF(SUM(J26:J35)=0,"",SUMIF(F26:F35,"Therms per Unit",J26:J35)) ->  | N38: =IF(SUM(N26:N35)=0,"",SUMIF(F26:F35,"Therms per Unit",N26:N35)) ->  | O38: =IF(SUM(O26:O35)=0,"",SUMIF(G26:G35,"Therms per Unit",O26:O35)) ->  | P38: =IF(SUM(P26:P35)=0,"",SUMIF(F26:F35,"Therms per Unit",P26:P35)) -> 
D39: Total (GJ) | H39: =IF(H37="","",H37*Conversions!$K$50+H38*Conversions!$K$59) ->  | I39: =IF(I37="","",I37*Conversions!$K$50+I38*Conversions!$K$59) ->  | J39: =IF(J37="","",J37*Conversions!$K$50+J38*Conversions!$K$59) ->  | N39: =IF(N37="","",N37*Conversions!$K$50+N38*Conversions!$K$59) ->  | O39: =IF(O37="","",O37*Conversions!$K$50+O38*Conversions!$K$59) ->  | P39: =IF(P37="","",P37*Conversions!$K$50+P38*Conversions!$K$59) -> 
D40: Total Emissions (gCO2e) | H40: =IF(H37="","",H37/(1-(IF($F$17="",$D$17,$F$17)))*(IF($F$16="",$D$16,$F$16))+H38*Conversions!$K$59*(IF($F$18="",$D$18,$F$18))) ->  | I40: =IF(I37="","",I37/(1-(IF($F$17="",$D$17,$F$17)))*(IF($F$16="",$D$16,$F$16))+I38*Conversions!$K$59*(IF($F$18="",$D$18,$F$18))) ->  | J40: =IF(J37="","",J37/(1-(IF($F$17="",$D$17,$F$17)))*(IF($F$16="",$D$16,$F$16))+J38*Conversions!$K$59*(IF($F$18="",$D$18,$F$18))) ->  | N40: =IF(N37="","",N37/(1-(IF($F$17="",$D$17,$F$17)))*(IF($F$16="",$D$16,$F$16))+N38*Conversions!$K$59*(IF($F$18="",$D$18,$F$18))) ->  | O40: =IF(O37="","",O37/(1-(IF($F$17="",$D$17,$F$17)))*(IF($F$16="",$D$16,$F$16))+O38*Conversions!$K$59*(IF($F$18="",$D$18,$F$18))) ->  | P40: =IF(P37="","",P37/(1-(IF($F$17="",$D$17,$F$17)))*(IF($F$16="",$D$16,$F$16))+P38*Conversions!$K$59*(IF($F$18="",$D$18,$F$18))) -> 
D41: Total Emissions (tCO2e) | H41: =IF(H40="","",H40/Conversions!$D$81) ->  | I41: =IF(I40="","",I40/Conversions!$D$81) ->  | J41: =IF(J40="","",J40/Conversions!$D$81) ->  | N41: =IF(N40="","",N40/Conversions!$D$81) ->  | O41: =IF(O40="","",O40/Conversions!$D$81) ->  | P41: =IF(P40="","",P40/Conversions!$D$81) -> 
B44: Assumptions
B45: Document all assumptions or comments regarding the alternate values used for the estimation.

Sheet Results
B2: Results
B5: This page summarizes total FY emissions reduced or avoided (tCO2e). Report Total FY Emission Reductions in the green field for Indicator 4.8-7.
B7: Results and Summary
B9: Action Information Summary
C10: Implementing Mechanism Number | F10: =IF('Data Input'!F14="","",'Data Input'!F14) -> 
C11: Implementing Mechanism Name | F11: =IF('Data Input'!F15="","",'Data Input'!F15) -> 
C12: Action Name | F12: =IF('Data Input'!F16="","",'Data Input'!F16) -> 
C13: Operating Unit | F13: =IF('Data Input'!F18="","",'Data Input'!F18) -> 
C14: Implementing Partner | F14: =IF('Data Input'!F19="","",'Data Input'!F19) -> 
C15: Country | F15: =IF('Data Input'!F22="","",'Data Input'!F22) -> 
C16: Fiscal Year Reported | F16: =IF('Data Input'!F17="","",'Data Input'!F17) -> 
C17: Clean Energy Result | F17: Increase End-Use Energy Efficiency
B20: Total Fiscal Year Emission Reductions
D22: Baseline Emissions (tCO2e) | F22: Activity Emissions (tCO2e) | H22: Total FY Emission Reductions (tCO2e)
D23: =Calculations!N41 ->  | E23: - | F23: =Calculations!O41 ->  | G23: = | H23: =IF(D23="","",D23-F23) -> 
D25: (kgCO2e) | F25: (kgCO2e) | H25: (kgCO2e)
D26: =IF(D23="","",TEXT(ROUND(IF(D23="","",D23*Conversions!$E$81),1),"#,##0")) ->  | E26: - | F26: =IF(F23="","",TEXT(ROUND(IF(F23="","",F23*Conversions!$E$81),1),"#,##0")) ->  | G26: = | H26: =IF(H23="","",TEXT(ROUND(IF(H23="","",H23*Conversions!$E$81),1),"#,##0")) -> 
B28: Total Fiscal Year Energy Consumption Comparison
D30: Baseline Energy Consumption (GJ) | F30: Activity Energy Consumption (GJ) | H30: Total FY Energy Savings (GJ)
D31: =Calculations!N39 ->  | E31: - | F31: =Calculations!O39 ->  | G31: = | H31: =IF(D31="","",D31-F31) -> 
B33: Summary of Assumptions
B34: Summary of all assumptions and comments.
C36: ='Data Input'!C59&CHAR(10)&Calculations!C47 -> 

Sheet DataCollectionNeeds
B2: Data Collection Needs
B5: This page lists the necessary data the user should collect for estimating GHG emission reductions, which will vary by action.
B7: Building Energy Efficiency Calculator Pathways
B9: Instructions: This calculator is capable of estimating emissions using different sets of inputs. Follow the diagram below to understand how sets of inputs are grouped together to complete the calculations. The diagram will also be helpful in determining information you may need to collect in the future. The diagram is color-coded to differentiate the type of input. Highlighted data inputs are further explained in the table below the diagram. Blue shapes are questions asked in the calculator, which determine the set of inputs necessary. Grey shapes indicate a user-selected answer which are chosen from a drop down menu. Yellow shapes indicate a user-input that is manually entered. Green shapes indicate the option of entering an alternative value for a specific input.
B43: Building Energy Efficiency Calculator Data Collection Needs
B45: Source | C45: Parameter | D45: Definition | E45: Typical Value/Units
B46: User-Provided | C46: Sector | D46: The sector in which the energy efficiency measure was implemented | E46: Residential Commercial
B47: User-Provided | C47: Category | D47: The category of the energy efficiency measures | E47: Sector-specific
B48: User-Provided | C48: Measure | D48: The energy efficiency measures which are specific to the category chosen | E48: Category-specific
B49: User-Provided | C49: Number of Units | D49: The total number of units of efficiency installed under the measure | E49: Measure-specific
B50: User-Selected | C50: Nameplate Power | D50: Nameplate Power rating of the equipment | E50: Kilowatt (kW)
B51: Default: IEESAG (2012) | C51: Operational Hours | D51: Total number of hours the equipment is operational in the reporting year | E51: Hours (h)
B52: Default: IEESAG (2012) | C52: Full Load Hours | D52: The total number of hours that the HVAC equipment is assumed to run at full load in the reporting year | E52: Hours (h)
B53: User-Selected | C53: Nameplate Capacity | D53: Nameplate capacity of the HVAC equipment | E53: Kilowatt (kW)
B54: User-Selected | C54: Coefficient of Performance | D54: The amount of heat delivered per unit electricity consumed by the HVAC system | E54: Measure-specific
B55: Default: DOE EnergyPlus | C55: Cooling Degree Days (CDD) | D55: The cooling degree days of the selected city | E55: Location-specific
B56: Default: Based on Confidential Data | C56: Constants | D56: Constants are determined after a curve fit of office cooling electricity as a function of CDD | E56: Unitless
B57: Default: IEA (2009) | C57: Line Loss Rate | D57: Average grid line loss due to transmission and distribution (%), country specific | E57: Percent (0-99%)
B58: Default: IGES (2015) IEA (2014) | C58: Grid Electricity Emission Factor | D58: Average combined marginal GHG emission factor for grid electricity, by country | E58: tCO2e/kWh of electricity

Sheet Data (hidden)
A1: Sector | B1: Category | C1: Measure | D1: Upgrade Description | E1: Baseline Description | F1: Units (plural) | G1: Lifetime (years) | H1: Degradation Rate | I1: Baseline (or savings only) kWh per unit | J1: Upgrade kWh per unit | K1: Baseline fossil fuels per unit (therms) | L1: Upgrade fossil fuels per unit | M1: Annual kWh Savings per unit | N1: Annual fossil fuel savings per unit | O1: Weather Sensitive? | P1: Base HDD | Q1: Base CDD | R1: Base Reference Cooling Energy | S1: Selected City Reference Cooling Energy | T1: Ratio of Selected City and Base City Cooling Energy | U1: Weather Adjusted kWh | V1: Weather Adjusted fossil fuel | W1: Ratio HDD | X1: Ratio CDD | Y1: Notes | Z1: Calculations (including subsequent rows/columns)
A2: Residential | B2: Lighting Upgrade | C2: 11W CFL replaces 40W Incandescent | D2: Mini Spiral CFL - 11 W | E2: Incandescent 40 W | F2: bulbs | G2: =10000/(AE2*AG2) -> 10.66041256 | H2: 0 | I2: =AA2*$AE2*$AG2/1000 -> 37.522 | J2: =AC2*$AE2*$AG2/1000 -> 10.31855 | M2: =I2-J2 -> 27.20345 | N2: =K2-L2 -> 0 | O2: No | W2: =IF(ISBLANK(P2),1,sHDD/P2) -> 1 | X2: =IF(ISBLANK(Q2),1,sCDD/Q2) -> 1 | Z2: Base Watt | AA2: 40 | AB2: Upgrade Watt | AC2: 11 | AD2: Residential hours per day | AE2: 2.57 | AF2: Days per year | AG2: 365
A3: Residential | B3: Lighting Upgrade | C3: 15W CFL replaces 60W Incandescent | D3: Mini Spiral CFL - 15 W | E3: Incandescent 60 W | F3: bulbs | G3: =10000/(AE3*AG3) -> 10.66041256 | H3: 0 | I3: 56.283 | J3: 14.07075 | M3: 42.21225 | N3: 0 | O3: No | W3: =IF(ISBLANK(P3),1,sHDD/P3) -> 1 | X3: =IF(ISBLANK(Q3),1,sCDD/Q3) -> 1 | Z3: Base Watt | AA3: 60 | AB3: Upgrade Watt | AC3: 15 | AD3: Residential hours per day | AE3: 2.57 | AF3: Days per year | AG3: 365
A4: Residential | B4: Lighting Upgrade | C4: 20W CFL replaces 100W Incandescent | D4: Mini Spiral CFL - 20 W | E4: Incandescent 100 W | F4: bulbs | G4: =10000/(AE4*AG4) -> 10.66041256 | H4: 0 | I4: 93.805 | J4: 18.761 | M4: 75.044 | N4: 0 | O4: No | W4: =IF(ISBLANK(P4),1,sHDD/P4) -> 1 | X4: =IF(ISBLANK(Q4),1,sCDD/Q4) -> 1 | Z4: Base Watt | AA4: 100 | AB4: Upgrade Watt | AC4: 20 | AD4: Residential hours per day | AE4: 2.57 | AF4: Days per year | AG4: 365
A5: Residential | B5: Water Heating | C5: Condensing Gas Storage water heater (0.8 Energy Factor) | D5: Condensing gas water heater with energy factor of 0.80 | E5: Conventional water heater with Energy Factor of 0.6 | F5: water heater | G5: 13 | H5: 0.005 | K5: =AE5*AG5*(AI5-AK5)*AM5/100000/AA5 -> 180.0165063 | L5: =AE5*AG5*(AI5-AK5)*AM5/100000/AC5 -> 135.0123797 | M5: 0 | N5: 45.00412656 | O5: No | W5: =IF(ISBLANK(P5),1,sHDD/P5) -> 1 | X5: =IF(ISBLANK(Q5),1,sCDD/Q5) -> 1 | Z5: EF base | AA5: 0.6 | AB5: EF upgrade | AC5: 0.8 | AD5: gallons per year | AE5: =50*365.25 -> 18262.5 | AF5: specific heat of water | AG5: 8.33 | AH5: tank temp (degF) | AI5: 125 | AJ5: inlet temp | AK5: 54 | AL5: heat capacity of water | AM5: 1
A6: Residential | B6: Water Heating | C6: Heat pump water heater (2 Energy Factor) | D6: Heat Pump Water Heater - Estar EF2.0 | E6: Electric Water Heater | F6: 50 gallon water heater | G6: 13 | H6: 0.005 | I6: 1918.963369 | M6: 1918.963369 | N6: =K6-L6 -> 0 | O6: No | W6: 1 | X6: 1 | Y6: From ComEd Residential. Assumes not heating/cooling impacts
A7: Residential | B7: Water Heating | C7: Heat pump water heater (2.35 Energy Factor) | D7: Heat Pump Water Heater - EF2.35 | E7: Electric Water Heater | F7: 50 gallon water heater | G7: 13 | H7: 0.005 | I7: 2154.698735 | M7: 2154.698735 | N7: 0 | O7: No | W7: 1 | X7: 1 | Y7: From ComEd Residential. Assumes not heating/cooling impacts
A8: Residential | B8: Water Heating | C8: Kitchen Low Flow Aerators (direct install, electric water heater) | D8: 2.2 GPM or less | E8: 2.75 GPM or more | F8: faucet | G8: 9 | H8: 0 | I8: 44.97675228 | M8: 44.97675228 | N8: 0 | O8: No | W8: 1 | X8: 1 | Y8: From ComEd Residential. Assumes not heating/cooling impacts
A9: Residential | B9: Water Heating | C9: Kitchen Low Flow Aerators (direct install, gas water heater) | D9: 2.2 GPM or less | E9: 2.75 GPM or more | F9: faucet | G9: 9 | H9: 0 | K9: 1.89 | M9: 0 | N9: 1.89 | O9: No | W9: =IF(ISBLANK(P9),1,sHDD/P9) -> 1 | X9: 1 | Y9: Illinois TRM
A10: Residential | B10: Water Heating | C10: Low flow shower head (direct install, electric water heater) | D10: 1.5 GPM | E10: 2.5 GPM | F10: Showerhead | G10: 10 | H10: 0 | I10: 468 | M10: 468 | N10: 0 | O10: No | W10: 1 | X10: 1 | Y10: Illinois TRM
A11: Residential | B11: Water Heating | C11: Low flow shower head (direct install, gas water heater) | D11: 1.5 GPM | E11: 2.5 GPM | F11: Showerhead | G11: 10 | H11: 0 | I11: 0 | K11: 19.9 | M11: 0 | N11: 19.9 | O11: No | W11: 1 | X11: 1 | Y11: Illinois TRM
A12: Residential | B12: Water Heating | C12: Water Heater Temp Setback (electric) | D12: 120 degrees | E12: ≥ 130 degrees | F12: Water heater | G12: 2 | H12: 0.005 | I12: 86.4 | M12: 86.4 | N12: 0 | O12: No | W12: 1 | X12: 1 | Y12: Illinois TRM. Assumes dishwasher supplemental heating
A13: Residential | B13: Water Heating | C13: Water Heater Temp Setback (gas) | D13: 120 degrees | E13: ≥ 130 degrees | F13: Water heater | G13: 2 | H13: 0.005 | K13: =6.4-34.2*Conversions!N50 -> 5.233052224 | M13: 0 | N13: =K13-L13 -> 5.233052224 | O13: No | W13: 1 | X13: 1 | Y13: Illinois TRM. Assumes dishwasher supplemental heating
A14: Residential | B14: HVAC | C14: ="Efficient Room AC COP = "&AC14&" to "&AE14 -> Efficient Room AC COP = 2.4 to 2.8 | D14: ="Room AC with coefficient of performance = "&$AE14 -> Room AC with coefficient of performance = 2.8 | E14: ="Room AC with coefficient of performance = "&$AC14 -> Room AC with coefficient of performance = 2.4 | F14: kW of cooling capacity | G14: 12 | H14: 0.005 | I14: =$AA14*$AG14/AC14 -> 87.5 | J14: =$AA14*$AG14/AE14 -> 75 | M14: 12.5 | N14: 0 | O14: Yes | P14: 3474 | Q14: 464 | R14: ='CDD-energy curve fit'!$D$3*Data!Q14+'CDD-energy curve fit'!$E$3 -> 3183.9536 | S14: ='CDD-energy curve fit'!$D$3*sCDD+'CDD-energy curve fit'!$E$3 -> 1279.822 | T14: =S14/R14 -> 0.4019600034 | U14: =M14*T14 -> 5.024500043 | V14: =N14 -> 0 | W14: =IF(ISBLANK(P14),1,sHDD/P14) -> 0.2029360967 | X14: =IF(ISBLANK(Q14),1,sCDD/Q14) -> 0.06465517241 | Y14: Full load hours from Illinois TRM. COP ranges based on professional judgement | Z14: Full Load Hours (Chicago) | AA14: 210 | AB14: Base COP | AC14: 2.4 | AD14: Upgrade COP | AE14: 2.8 | AF14: Capacity (kW) | AG14: 1
A15: Residential | B15: HVAC | C15: ="Efficient Room AC COP = "&AC15&" to "&AE15 -> Efficient Room AC COP = 2.4 to 3.2 | D15: ="Room AC with coefficient of performance = "&$AE15 -> Room AC with coefficient of performance = 3.2 | E15: ="Room AC with coefficient of performance = "&$AC15 -> Room AC with coefficient of performance = 2.4 | F15: kW of cooling capacity | G15: 12 | H15: 0.005 | I15: =$AA15*$AG15/AC15 -> 87.5 | J15: =$AA15*$AG15/AE15 -> 65.625 | M15: 21.875 | N15: 0 | O15: Yes | P15: 3474 | Q15: 464 | R15: ='CDD-energy curve fit'!$D$3*Data!Q15+'CDD-energy curve fit'!$E$3 -> 3183.9536 | S15: ='CDD-energy curve fit'!$D$3*sCDD+'CDD-energy curve fit'!$E$3 -> 1279.822 | T15: =S15/R15 -> 0.4019600034 | U15: =M15*T15 -> 8.792875075 | V15: 0 | W15: 0.2029360967 | X15: =IF(ISBLANK(Q15),1,sCDD/Q15) -> 0.06465517241 | Y15: Full load hours from Illinois TRM. COP ranges based on professional judgement | Z15: Full Load Hours (Chicago) | AA15: 210 | AB15: Base COP | AC15: 2.4 | AD15: Upgrade COP | AE15: 3.2 | AF15: Capacity (kW) | AG15: 1
A16: Residential | B16: HVAC | C16: ="Efficient Room AC COP = "&AC16&" to "&AE16 -> Efficient Room AC COP = 2.4 to 3.6 | D16: Room AC with coefficient of performance = 3.6 | E16: Room AC with coefficient of performance = 2.4 | F16: kW of cooling capacity | G16: 12 | H16: 0.005 | I16: 87.5 | J16: 58.33333333 | M16: 29.16666667 | N16: 0 | O16: Yes | P16: 3474 | Q16: 464 | R16: ='CDD-energy curve fit'!$D$3*Data!Q16+'CDD-energy curve fit'!$E$3 -> 3183.9536 | S16: ='CDD-energy curve fit'!$D$3*sCDD+'CDD-energy curve fit'!$E$3 -> 1279.822 | T16: 0.4019600034 | U16: 11.72383343 | V16: 0 | W16: 0.2029360967 | X16: =IF(ISBLANK(Q16),1,sCDD/Q16) -> 0.06465517241 | Y16: Full load hours from Illinois TRM. COP ranges based on professional judgement | Z16: Full Load Hours (Chicago) | AA16: 210 | AB16: Base COP | AC16: 2.4 | AD16: Upgrade COP | AE16: 3.6 | AF16: Capacity (kW) | AG16: 1
A17: Residential | B17: HVAC | C17: Efficient Room AC COP = 2.4 to 4 | D17: Room AC with coefficient of performance = 4 | E17: Room AC with coefficient of performance = 2.4 | F17: kW of cooling capacity | G17: 12 | H17: 0.005 | I17: 87.5 | J17: 52.5 | M17: 35 | N17: 0 | O17: Yes | P17: 3474 | Q17: 464 | R17: ='CDD-energy curve fit'!$D$3*Data!Q17+'CDD-energy curve fit'!$E$3 -> 3183.9536 | S17: ='CDD-energy curve fit'!$D$3*sCDD+'CDD-energy curve fit'!$E$3 -> 1279.822 | T17: 0.4019600034 | U17: 14.06860012 | V17: 0 | W17: 0.2029360967 | X17: 0.06465517241 | Y17: Full load hours from Illinois TRM. COP ranges based on professional judgement | Z17: Full Load Hours (Chicago) | AA17: 210 | AB17: Base COP | AC17: 2.4 | AD17: Upgrade COP | AE17: 4 | AF17: Capacity (kW) | AG17: 1
A18: Residential | B18: HVAC | C18: ="Efficient Room AC COP = "&AC18&" to "&AE18 -> Efficient Room AC COP = 2.4 to 4.4 | D18: Room AC with coefficient of performance = 4.4 | E18: Room AC with coefficient of performance = 2.4 | F18: kW of cooling capacity | G18: 12 | H18: 0.005 | I18: 87.5 | J18: 47.72727273 | M18: 39.77272727 | N18: 0 | O18: Yes | P18: 3474 | Q18: 464 | R18: ='CDD-energy curve fit'!$D$3*Data!Q18+'CDD-energy curve fit'!$E$3 -> 3183.9536 | S18: ='CDD-energy curve fit'!$D$3*sCDD+'CDD-energy curve fit'!$E$3 -> 1279.822 | T18: 0.4019600034 | U18: 15.98704559 | V18: 0 | W18: 0.2029360967 | X18: 0.06465517241 | Y18: Full load hours from Illinois TRM. COP ranges based on professional judgement | Z18: Full Load Hours (Chicago) | AA18: 210 | AB18: Base COP | AC18: 2.4 | AD18: Upgrade COP | AE18: 4.4 | AF18: Capacity (kW) | AG18: 1
A19: Residential | B19: HVAC | C19: ="Efficient Room AC COP = "&AC19&" to "&AE19 -> Efficient Room AC COP = 2.8 to 3.2 | D19: Room AC with coefficient of performance = 3.2 | E19: Room AC with coefficient of performance = 2.8 | F19: kW of cooling capacity | G19: 12 | H19: 0.005 | I19: 75 | J19: 65.625 | M19: 9.375 | N19: 0 | O19: Yes | P19: 3474 | Q19: 464 | R19: ='CDD-energy curve fit'!$D$3*Data!Q19+'CDD-energy curve fit'!$E$3 -> 3183.9536 | S19: ='CDD-energy curve fit'!$D$3*sCDD+'CDD-energy curve fit'!$E$3 -> 1279.822 | T19: 0.4019600034 | U19: 3.768375032 | V19: 0 | W19: 0.2029360967 | X19: 0.06465517241 | Y19: Full load hours from Illinois TRM. COP ranges based on professional judgement | Z19: Full Load Hours (Chicago) | AA19: 210 | AB19: Base COP | AC19: 2.8 | AD19: Upgrade COP | AE19: 3.2 | AF19: Capacity (kW) | AG19: 1
A20: Residential | B20: HVAC | C20: ="Efficient Room AC COP = "&AC20&" to "&AE20 -> Efficient Room AC COP = 2.8 to 3.6 | D20: Room AC with coefficient of performance = 3.6 | E20: Room AC with coefficient of performance = 2.8 | F20: kW of cooling capacity | G20: 12 | H20: 0.005 | I20: =$AA20*$AG20/AC20 -> 75 | J20: =$AA20*$AG20/AE20 -> 58.33333333 | M20: 16.66666667 | N20: 0 | O20: Yes | P20: 3474 | Q20: 464 | R20: ='CDD-energy curve fit'!$D$3*Data!Q20+'CDD-energy curve fit'!$E$3 -> 3183.9536 | S20: ='CDD-energy curve fit'!$D$3*sCDD+'CDD-energy curve fit'!$E$3 -> 1279.822 | T20: 0.4019600034 | U20: 6.699333391 | V20: 0 | W20: 0.2029360967 | X20: 0.06465517241 | Y20: Full load hours from Illinois TRM. COP ranges based on professional judgement | Z20: Full Load Hours (Chicago) | AA20: 210 | AB20: Base COP | AC20: 2.8 | AD20: Upgrade COP | AE20: 3.6 | AF20: Capacity (kW) | AG20: 1
A21: Residential | B21: HVAC | C21: Efficient Room AC COP = 2.8 to 4 | D21: Room AC with coefficient of performance = 4 | E21: Room AC with coefficient of performance = 2.8 | F21: kW of cooling capacity | G21: 12 | H21: 0.005 | I21: 75 | J21: 52.5 | M21: 22.5 | N21: 0 | O21: Yes | P21: 3474 | Q21: 464 | R21: ='CDD-energy curve fit'!$D$3*Data!Q21+'CDD-energy curve fit'!$E$3 -> 3183.9536 | S21: ='CDD-energy curve fit'!$D$3*sCDD+'CDD-energy curve fit'!$E$3 -> 1279.822 | T21: 0.4019600034 | U21: 9.044100077 | V21: 0 | W21: 0.2029360967 | X21: 0.06465517241 | Y21: Full load hours from Illinois TRM. COP ranges based on professional judgement | Z21: Full Load Hours (Chicago) | AA21: 210 | AB21: Base COP | AC21: 2.8 | AD21: Upgrade COP | AE21: 4 | AF21: Capacity (kW) | AG21: 1
A22: Residential | B22: HVAC | C22: ="Efficient Room AC COP = "&AC22&" to "&AE22 -> Efficient Room AC COP = 2.8 to 4.4 | D22: Room AC with coefficient of performance = 4.4 | E22: Room AC with coefficient of performance = 2.8 | F22: kW of cooling capacity | G22: 12 | H22: 0.005 | I22: =$AA22*$AG22/AC22 -> 75 | J22: =$AA22*$AG22/AE22 -> 47.72727273 | M22: 27.27272727 | N22: 0 | O22: Yes | P22: 3474 | Q22: 464 | R22: ='CDD-energy curve fit'!$D$3*Data!Q22+'CDD-energy curve fit'!$E$3 -> 3183.9536 | S22: ='CDD-energy curve fit'!$D$3*sCDD+'CDD-energy curve fit'!$E$3 -> 1279.822 | T22: 0.4019600034 | U22: 10.96254555 | V22: 0 | W22: 0.2029360967 | X22: 0.06465517241 | Y22: Full load hours from Illinois TRM. COP ranges based on professional judgement | Z22: Full Load Hours (Chicago) | AA22: 210 | AB22: Base COP | AC22: 2.8 | AD22: Upgrade COP | AE22: 4.4 | AF22: Capacity (kW) | AG22: 1
A23: Residential | B23: HVAC | C23: ="Efficient Room AC COP = "&AC23&" to "&AE23 -> Efficient Room AC COP = 3 to 3.2 | D23: Room AC with coefficient of performance = 3.2 | E23: Room AC with coefficient of performance = 3 | F23: kW of cooling capacity | G23: 12 | H23: 0.005 | I23: =$AA23*$AG23/AC23 -> 70 | J23: =$AA23*$AG23/AE23 -> 65.625 | M23: 4.375 | N23: 0 | O23: Yes | P23: 3474 | Q23: 464 | R23: ='CDD-energy curve fit'!$D$3*Data!Q23+'CDD-energy curve fit'!$E$3 -> 3183.9536 | S23: ='CDD-energy curve fit'!$D$3*sCDD+'CDD-energy curve fit'!$E$3 -> 1279.822 | T23: 0.4019600034 | U23: 1.758575015 | V23: 0 | W23: 0.2029360967 | X23: 0.06465517241 | Y23: Full load hours from Illinois TRM. COP ranges based on professional judgement | Z23: Full Load Hours (Chicago) | AA23: 210 | AB23: Base COP | AC23: 3 | AD23: Upgrade COP | AE23: 3.2 | AF23: Capacity (kW) | AG23: 1
A24: Residential | B24: HVAC | C24: Efficient Room AC COP = 3 to 3.6 | D24: Room AC with coefficient of performance = 3.6 | E24: Room AC with coefficient of performance = 3 | F24: kW of cooling capacity | G24: 12 | H24: 0.005 | I24: 70 | J24: 58.33333333 | M24: 11.66666667 | N24: 0 | O24: Yes | P24: 3474 | Q24: 464 | R24: ='CDD-energy curve fit'!$D$3*Data!Q24+'CDD-energy curve fit'!$E$3 -> 3183.9536 | S24: ='CDD-energy curve fit'!$D$3*sCDD+'CDD-energy curve fit'!$E$3 -> 1279.822 | T24: 0.4019600034 | U24: 4.689533373 | V24: 0 | W24: 0.2029360967 | X24: 0.06465517241 | Y24: Full load hours from Illinois TRM. COP ranges based on professional judgement | Z24: Full Load Hours (Chicago) | AA24: 210 | AB24: Base COP | AC24: 3 | AD24: Upgrade COP | AE24: 3.6 | AF24: Capacity (kW) | AG24: 1
A25: Residential | B25: HVAC | C25: ="Efficient Room AC COP = "&AC25&" to "&AE25 -> Efficient Room AC COP = 3 to 4 | D25: Room AC with coefficient of performance = 4 | E25: Room AC with coefficient of performance = 3 | F25: kW of cooling capacity | G25: 12 | H25: 0.005 | I25: =$AA25*$AG25/AC25 -> 70 | J25: =$AA25*$AG25/AE25 -> 52.5 | M25: 17.5 | N25: 0 | O25: Yes | P25: 3474 | Q25: 464 | R25: ='CDD-energy curve fit'!$D$3*Data!Q25+'CDD-energy curve fit'!$E$3 -> 3183.9536 | S25: ='CDD-energy curve fit'!$D$3*sCDD+'CDD-energy curve fit'!$E$3 -> 1279.822 | T25: 0.4019600034 | U25: 7.03430006 | V25: 0 | W25: 0.2029360967 | X25: 0.06465517241 | Y25: Full load hours from Illinois TRM. COP ranges based on professional judgement | Z25: Full Load Hours (Chicago) | AA25: 210 | AB25: Base COP | AC25: 3 | AD25: Upgrade COP | AE25: 4 | AF25: Capacity (kW) | AG25: 1
A26: Residential | B26: HVAC | C26: ="Efficient Room AC COP = "&AC26&" to "&AE26 -> Efficient Room AC COP = 3 to 4.4 | D26: Room AC with coefficient of performance = 4.4 | E26: Room AC with coefficient of performance = 3 | F26: kW of cooling capacity | G26: 12 | H26: 0.005 | I26: =$AA26*$AG26/AC26 -> 70 | J26: =$AA26*$AG26/AE26 -> 47.72727273 | M26: 22.27272727 | N26: 0 | O26: Yes | P26: 3474 | Q26: 464 | R26: ='CDD-energy curve fit'!$D$3*Data!Q26+'CDD-energy curve fit'!$E$3 -> 3183.9536 | S26: ='CDD-energy curve fit'!$D$3*sCDD+'CDD-energy curve fit'!$E$3 -> 1279.822 | T26: 0.4019600034 | U26: 8.952745531 | V26: 0 | W26: 0.2029360967 | X26: 0.06465517241 | Y26: Full load hours from Illinois TRM. COP ranges based on professional judgement | Z26: Full Load Hours (Chicago) | AA26: 210 | AB26: Base COP | AC26: 3 | AD26: Upgrade COP | AE26: 4.4 | AF26: Capacity (kW) | AG26: 1
A27: Residential | B27: HVAC | C27: Efficient Room AC COP = 3.2 to 3.6 | D27: Room AC with coefficient of performance = 3.6 | E27: Room AC with coefficient of performance = 3.2 | F27: kW of cooling capacity | G27: 12 | H27: 0.005 | I27: 65.625 | J27: 58.33333333 | M27: 7.291666667 | N27: 0 | O27: Yes | P27: 3474 | Q27: 464 | R27: ='CDD-energy curve fit'!$D$3*Data!Q27+'CDD-energy curve fit'!$E$3 -> 3183.9536 | S27: ='CDD-energy curve fit'!$D$3*sCDD+'CDD-energy curve fit'!$E$3 -> 1279.822 | T27: 0.4019600034 | U27: 2.930958358 | V27: 0 | W27: 0.2029360967 | X27: 0.06465517241 | Y27: Full load hours from Illinois TRM. COP ranges based on professional judgement | Z27: Full Load Hours (Chicago) | AA27: 210 | AB27: Base COP | AC27: 3.2 | AD27: Upgrade COP | AE27: 3.6 | AF27: Capacity (kW) | AG27: 1
A28: Residential | B28: HVAC | C28: Efficient Room AC COP = 3.2 to 4 | D28: Room AC with coefficient of performance = 4 | E28: Room AC with coefficient of performance = 3.2 | F28: kW of cooling capacity | G28: 12 | H28: 0.005 | I28: 65.625 | J28: 52.5 | M28: 13.125 | N28: 0 | O28: Yes | P28: 3474 | Q28: 464 | R28: ='CDD-energy curve fit'!$D$3*Data!Q28+'CDD-energy curve fit'!$E$3 -> 3183.9536 | S28: ='CDD-energy curve fit'!$D$3*sCDD+'CDD-energy curve fit'!$E$3 -> 1279.822 | T28: 0.4019600034 | U28: 5.275725045 | V28: 0 | W28: 0.2029360967 | X28: 0.06465517241 | Y28: Full load hours from Illinois TRM. COP ranges based on professional judgement | Z28: Full Load Hours (Chicago) | AA28: 210 | AB28: Base COP | AC28: 3.2 | AD28: Upgrade COP | AE28: 4 | AF28: Capacity (kW) | AG28: 1
A29: Residential | B29: HVAC | C29: ="Efficient Room AC COP = "&AC29&" to "&AE29 -> Efficient Room AC COP = 3.2 to 4.4 | D29: Room AC with coefficient of performance = 4.4 | E29: Room AC with coefficient of performance = 3.2 | F29: kW of cooling capacity | G29: 12 | H29: 0.005 | I29: =$AA29*$AG29/AC29 -> 65.625 | J29: =$AA29*$AG29/AE29 -> 47.72727273 | M29: 17.89772727 | N29: 0 | O29: Yes | P29: 3474 | Q29: 464 | R29: ='CDD-energy curve fit'!$D$3*Data!Q29+'CDD-energy curve fit'!$E$3 -> 3183.9536 | S29: ='CDD-energy curve fit'!$D$3*sCDD+'CDD-energy curve fit'!$E$3 -> 1279.822 | T29: 0.4019600034 | U29: 7.194170516 | V29: 0 | W29: 0.2029360967 | X29: 0.06465517241 | Y29: Full load hours from Illinois TRM. COP ranges based on professional judgement | Z29: Full Load Hours (Chicago) | AA29: 210 | AB29: Base COP | AC29: 3.2 | AD29: Upgrade COP | AE29: 4.4 | AF29: Capacity (kW) | AG29: 1
A30: Residential | B30: HVAC | C30: ="Efficient Central AC COP = "&AC30&" to "&AE30 -> Efficient Central AC COP = 2.4 to 2.8 | D30: ="Central AC with coefficient of performance = "&$AE30 -> Central AC with coefficient of performance = 2.8 | E30: ="Central AC with coefficient of performance = "&$AC30 -> Central AC with coefficient of performance = 2.4 | F30: kW of cooling capacity | G30: 18 | H30: 0.005 | I30: 237.5 | J30: 203.5714286 | M30: 33.92857143 | N30: 0 | O30: Yes | P30: 3474 | Q30: 464 | R30: ='CDD-energy curve fit'!$D$3*Data!Q30+'CDD-energy curve fit'!$E$3 -> 3183.9536 | S30: ='CDD-energy curve fit'!$D$3*sCDD+'CDD-energy curve fit'!$E$3 -> 1279.822 | T30: 0.4019600034 | U30: 13.63792869 | V30: 0 | W30: 0.2029360967 | X30: 0.06465517241 | Y30: Full load hours from Illinois TRM. COP ranges based on professional judgement | Z30: Full Load Hours (Chicago) | AA30: 570 | AB30: Base COP | AC30: 2.4 | AD30: Upgrade COP | AE30: 2.8 | AF30: Capacity (kW) | AG30: 1
A31: Residential | B31: HVAC | C31: ="Efficient Central AC COP = "&AC31&" to "&AE31 -> Efficient Central AC COP = 2.4 to 3.2 | D31: ="Central AC with coefficient of performance = "&$AE31 -> Central AC with coefficient of performance = 3.2 | E31: ="Central AC with coefficient of performance = "&$AC31 -> Central AC with coefficient of performance = 2.4 | F31: kW of cooling capacity | G31: 18 | H31: 0.005 | I31: 237.5 | J31: 178.125 | M31: 59.375 | N31: 0 | O31: Yes | P31: 3474 | Q31: 464 | R31: ='CDD-energy curve fit'!$D$3*Data!Q31+'CDD-energy curve fit'!$E$3 -> 3183.9536 | S31: ='CDD-energy curve fit'!$D$3*sCDD+'CDD-energy curve fit'!$E$3 -> 1279.822 | T31: 0.4019600034 | U31: 23.8663752 | V31: 0 | W31: 0.2029360967 | X31: 0.06465517241 | Y31: Full load hours from Illinois TRM. COP ranges based on professional judgement | Z31: Full Load Hours (Chicago) | AA31: 570 | AB31: Base COP | AC31: 2.4 | AD31: Upgrade COP | AE31: 3.2 | AF31: Capacity (kW) | AG31: 1
A32: Residential | B32: HVAC | C32: Efficient Central AC COP = 2.4 to 3.6 | D32: Central AC with coefficient of performance = 3.6 | E32: Central AC with coefficient of performance = 2.4 | F32: kW of cooling capacity | G32: 18 | H32: 0.005 | I32: 237.5 | J32: 158.3333333 | M32: 79.16666667 | N32: 0 | O32: Yes | P32: 3474 | Q32: 464 | R32: ='CDD-energy curve fit'!$D$3*Data!Q32+'CDD-energy curve fit'!$E$3 -> 3183.9536 | S32: ='CDD-energy curve fit'!$D$3*sCDD+'CDD-energy curve fit'!$E$3 -> 1279.822 | T32: 0.4019600034 | U32: 31.82183361 | V32: 0 | W32: 0.2029360967 | X32: 0.06465517241 | Y32: Full load hours from Illinois TRM. COP ranges based on professional judgement | Z32: Full Load Hours (Chicago) | AA32: 570 | AB32: Base COP | AC32: 2.4 | AD32: Upgrade COP | AE32: 3.6 | AF32: Capacity (kW) | AG32: 1
A33: Residential | B33: HVAC | C33: Efficient Central AC COP = 2.4 to 4 | D33: Central AC with coefficient of performance = 4 | E33: Central AC with coefficient of performance = 2.4 | F33: kW of cooling capacity | G33: 18 | H33: 0.005 | I33: 237.5 | J33: 142.5 | M33: 95 | N33: 0 | O33: Yes | P33: 3474 | Q33: 464 | R33: ='CDD-energy curve fit'!$D$3*Data!Q33+'CDD-energy curve fit'!$E$3 -> 3183.9536 | S33: ='CDD-energy curve fit'!$D$3*sCDD+'CDD-energy curve fit'!$E$3 -> 1279.822 | T33: 0.4019600034 | U33: 38.18620033 | V33: 0 | W33: 0.2029360967 | X33: 0.06465517241 | Y33: Full load hours from Illinois TRM. COP ranges based on professional judgement | Z33: Full Load Hours (Chicago) | AA33: 570 | AB33: Base COP | AC33: 2.4 | AD33: Upgrade COP | AE33: 4 | AF33: Capacity (kW) | AG33: 1
A34: Residential | B34: HVAC | C34: Efficient Central AC COP = 2.4 to 4.4 | D34: Central AC with coefficient of performance = 4.4 | E34: Central AC with coefficient of performance = 2.4 | F34: kW of cooling capacity | G34: 18 | H34: 0.005 | I34: 237.5 | J34: 129.5454545 | M34: =I34-J34 -> 107.9545455 | N34: 0 | O34: Yes | P34: 3474 | Q34: 464 | R34: ='CDD-energy curve fit'!$D$3*Data!Q34+'CDD-energy curve fit'!$E$3 -> 3183.9536 | S34: ='CDD-energy curve fit'!$D$3*sCDD+'CDD-energy curve fit'!$E$3 -> 1279.822 | T34: 0.4019600034 | U34: 43.39340946 | V34: 0 | W34: 0.2029360967 | X34: 0.06465517241 | Y34: Full load hours from Illinois TRM. COP ranges based on professional judgement | Z34: Full Load Hours (Chicago) | AA34: 570 | AB34: Base COP | AC34: 2.4 | AD34: Upgrade COP | AE34: 4.4 | AF34: Capacity (kW) | AG34: 1
A35: Residential | B35: HVAC | C35: Efficient Central AC COP = 2.8 to 3.2 | D35: Central AC with coefficient of performance = 3.2 | E35: Central AC with coefficient of performance = 2.8 | F35: kW of cooling capacity | G35: 18 | H35: 0.005 | I35: 203.5714286 | J35: 178.125 | M35: 25.44642857 | N35: 0 | O35: Yes | P35: 3474 | Q35: 464 | R35: ='CDD-energy curve fit'!$D$3*Data!Q35+'CDD-energy curve fit'!$E$3 -> 3183.9536 | S35: ='CDD-energy curve fit'!$D$3*sCDD+'CDD-energy curve fit'!$E$3 -> 1279.822 | T35: 0.4019600034 | U35: 10.22844652 | V35: 0 | W35: 0.2029360967 | X35: 0.06465517241 | Y35: Full load hours from Illinois TRM. COP ranges based on professional judgement | Z35: Full Load Hours (Chicago) | AA35: 570 | AB35: Base COP | AC35: 2.8 | AD35: Upgrade COP | AE35: 3.2 | AF35: Capacity (kW) | AG35: 1
A36: Residential | B36: HVAC | C36: Efficient Central AC COP = 2.8 to 3.6 | D36: Central AC with coefficient of performance = 3.6 | E36: Central AC with coefficient of performance = 2.8 | F36: kW of cooling capacity | G36: 18 | H36: 0.005 | I36: =$AA36*$AG36/AC36 -> 203.5714286 | J36: =$AA36*$AG36/AE36 -> 158.3333333 | M36: 45.23809524 | N36: 0 | O36: Yes | P36: 3474 | Q36: 464 | R36: ='CDD-energy curve fit'!$D$3*Data!Q36+'CDD-energy curve fit'!$E$3 -> 3183.9536 | S36: ='CDD-energy curve fit'!$D$3*sCDD+'CDD-energy curve fit'!$E$3 -> 1279.822 | T36: 0.4019600034 | U36: 18.18390492 | V36: 0 | W36: 0.2029360967 | X36: 0.06465517241 | Y36: Full load hours from Illinois TRM. COP ranges based on professional judgement | Z36: Full Load Hours (Chicago) | AA36: 570 | AB36: Base COP | AC36: 2.8 | AD36: Upgrade COP | AE36: 3.6 | AF36: Capacity (kW) | AG36: 1
A37: Residential | B37: HVAC | C37: Efficient Central AC COP = 2.8 to 4 | D37: Central AC with coefficient of performance = 4 | E37: Central AC with coefficient of performance = 2.8 | F37: kW of cooling capacity | G37: 18 | H37: 0.005 | I37: 203.5714286 | J37: 142.5 | M37: 61.07142857 | N37: 0 | O37: Yes | P37: 3474 | Q37: 464 | R37: ='CDD-energy curve fit'!$D$3*Data!Q37+'CDD-energy curve fit'!$E$3 -> 3183.9536 | S37: ='CDD-energy curve fit'!$D$3*sCDD+'CDD-energy curve fit'!$E$3 -> 1279.822 | T37: 0.4019600034 | U37: 24.54827164 | V37: 0 | W37: 0.2029360967 | X37: 0.06465517241 | Y37: Full load hours from Illinois TRM. COP ranges based on professional judgement | Z37: Full Load Hours (Chicago) | AA37: 570 | AB37: Base COP | AC37: 2.8 | AD37: Upgrade COP | AE37: 4 | AF37: Capacity (kW) | AG37: 1
A38: Residential | B38: HVAC | C38: Efficient Central AC COP = 2.8 to 4.4 | D38: Central AC with coefficient of performance = 4.4 | E38: Central AC with coefficient of performance = 2.8 | F38: kW of cooling capacity | G38: 18 | H38: 0.005 | I38: =$AA38*$AG38/AC38 -> 203.5714286 | J38: =$AA38*$AG38/AE38 -> 129.5454545 | M38: 74.02597403 | N38: 0 | O38: Yes | P38: 3474 | Q38: 464 | R38: ='CDD-energy curve fit'!$D$3*Data!Q38+'CDD-energy curve fit'!$E$3 -> 3183.9536 | S38: ='CDD-energy curve fit'!$D$3*sCDD+'CDD-energy curve fit'!$E$3 -> 1279.822 | T38: 0.4019600034 | U38: 29.75548077 | V38: 0 | W38: 0.2029360967 | X38: 0.06465517241 | Y38: Full load hours from Illinois TRM. COP ranges based on professional judgement | Z38: Full Load Hours (Chicago) | AA38: 570 | AB38: Base COP | AC38: 2.8 | AD38: Upgrade COP | AE38: 4.4 | AF38: Capacity (kW) | AG38: 1
A39: Residential | B39: HVAC | C39: Efficient Central AC COP = 3 to 3.2 | D39: Central AC with coefficient of performance = 3.2 | E39: Central AC with coefficient of performance = 3 | F39: kW of cooling capacity | G39: 18 | H39: 0.005 | I39: =$AA39*$AG39/AC39 -> 190 | J39: =$AA39*$AG39/AE39 -> 178.125 | M39: 11.875 | N39: 0 | O39: Yes | P39: 3474 | Q39: 464 | R39: ='CDD-energy curve fit'!$D$3*Data!Q39+'CDD-energy curve fit'!$E$3 -> 3183.9536 | S39: ='CDD-energy curve fit'!$D$3*sCDD+'CDD-energy curve fit'!$E$3 -> 1279.822 | T39: 0.4019600034 | U39: 4.773275041 | V39: 0 | W39: 0.2029360967 | X39: 0.06465517241 | Y39: Full load hours from Illinois TRM. COP ranges based on professional judgement | Z39: Full Load Hours (Chicago) | AA39: 570 | AB39: Base COP | AC39: 3 | AD39: Upgrade COP | AE39: 3.2 | AF39: Capacity (kW) | AG39: 1
A40: Residential | B40: HVAC | C40: Efficient Central AC COP = 3 to 3.6 | D40: Central AC with coefficient of performance = 3.6 | E40: Central AC with coefficient of performance = 3 | F40: kW of cooling capacity | G40: 18 | H40: 0.005 | I40: 190 | J40: 158.3333333 | M40: 31.66666667 | N40: 0 | O40: Yes | P40: 3474 | Q40: 464 | R40: ='CDD-energy curve fit'!$D$3*Data!Q40+'CDD-energy curve fit'!$E$3 -> 3183.9536 | S40: ='CDD-energy curve fit'!$D$3*sCDD+'CDD-energy curve fit'!$E$3 -> 1279.822 | T40: 0.4019600034 | U40: 12.72873344 | V40: 0 | W40: 0.2029360967 | X40: 0.06465517241 | Y40: Full load hours from Illinois TRM. COP ranges based on professional judgement | Z40: Full Load Hours (Chicago) | AA40: 570 | AB40: Base COP | AC40: 3 | AD40: Upgrade COP | AE40: 3.6 | AF40: Capacity (kW) | AG40: 1
A41: Residential | B41: HVAC | C41: Efficient Central AC COP = 3 to 4 | D41: Central AC with coefficient of performance = 4 | E41: Central AC with coefficient of performance = 3 | F41: kW of cooling capacity | G41: 18 | H41: 0.005 | I41: =$AA41*$AG41/AC41 -> 190 | J41: =$AA41*$AG41/AE41 -> 142.5 | M41: 47.5 | N41: 0 | O41: Yes | P41: 3474 | Q41: 464 | R41: ='CDD-energy curve fit'!$D$3*Data!Q41+'CDD-energy curve fit'!$E$3 -> 3183.9536 | S41: ='CDD-energy curve fit'!$D$3*sCDD+'CDD-energy curve fit'!$E$3 -> 1279.822 | T41: 0.4019600034 | U41: 19.09310016 | V41: 0 | W41: 0.2029360967 | X41: 0.06465517241 | Y41: Full load hours from Illinois TRM. COP ranges based on professional judgement | Z41: Full Load Hours (Chicago) | AA41: 570 | AB41: Base COP | AC41: 3 | AD41: Upgrade COP | AE41: 4 | AF41: Capacity (kW) | AG41: 1
A42: Residential | B42: HVAC | C42: Efficient Central AC COP = 3 to 4.4 | D42: Central AC with coefficient of performance = 4.4 | E42: Central AC with coefficient of performance = 3 | F42: kW of cooling capacity | G42: 18 | H42: 0.005 | I42: =$AA42*$AG42/AC42 -> 190 | J42: =$AA42*$AG42/AE42 -> 129.5454545 | M42: 60.45454545 | N42: 0 | O42: Yes | P42: 3474 | Q42: 464 | R42: ='CDD-energy curve fit'!$D$3*Data!Q42+'CDD-energy curve fit'!$E$3 -> 3183.9536 | S42: ='CDD-energy curve fit'!$D$3*sCDD+'CDD-energy curve fit'!$E$3 -> 1279.822 | T42: 0.4019600034 | U42: 24.3003093 | V42: 0 | W42: 0.2029360967 | X42: 0.06465517241 | Y42: Full load hours from Illinois TRM. COP ranges based on professional judgement | Z42: Full Load Hours (Chicago) | AA42: 570 | AB42: Base COP | AC42: 3 | AD42: Upgrade COP | AE42: 4.4 | AF42: Capacity (kW) | AG42: 1
A43: Residential | B43: HVAC | C43: Efficient Central AC COP = 3.2 to 3.6 | D43: Central AC with coefficient of performance = 3.6 | E43: Central AC with coefficient of performance = 3.2 | F43: kW of cooling capacity | G43: 18 | H43: 0.005 | I43: 178.125 | J43: 158.3333333 | M43: 19.79166667 | N43: 0 | O43: Yes | P43: 3474 | Q43: 464 | R43: ='CDD-energy curve fit'!$D$3*Data!Q43+'CDD-energy curve fit'!$E$3 -> 3183.9536 | S43: ='CDD-energy curve fit'!$D$3*sCDD+'CDD-energy curve fit'!$E$3 -> 1279.822 | T43: 0.4019600034 | U43: 7.955458401 | V43: 0 | W43: 0.2029360967 | X43: 0.06465517241 | Y43: Full load hours from Illinois TRM. COP ranges based on professional judgement | Z43: Full Load Hours (Chicago) | AA43: 570 | AB43: Base COP | AC43: 3.2 | AD43: Upgrade COP | AE43: 3.6 | AF43: Capacity (kW) | AG43: 1
A44: Residential | B44: HVAC | C44: Efficient Central AC COP = 3.2 to 4 | D44: Central AC with coefficient of performance = 4 | E44: Central AC with coefficient of performance = 3.2 | F44: kW of cooling capacity | G44: 18 | H44: 0.005 | I44: 178.125 | J44: 142.5 | M44: 35.625 | N44: 0 | O44: Yes | P44: 3474 | Q44: 464 | R44: ='CDD-energy curve fit'!$D$3*Data!Q44+'CDD-energy curve fit'!$E$3 -> 3183.9536 | S44: ='CDD-energy curve fit'!$D$3*sCDD+'CDD-energy curve fit'!$E$3 -> 1279.822 | T44: 0.4019600034 | U44: 14.31982512 | V44: 0 | W44: 0.2029360967 | X44: 0.06465517241 | Y44: Full load hours from Illinois TRM. COP ranges based on professional judgement | Z44: Full Load Hours (Chicago) | AA44: 570 | AB44: Base COP | AC44: 3.2 | AD44: Upgrade COP | AE44: 4 | AF44: Capacity (kW) | AG44: 1
A45: Residential | B45: HVAC | C45: Efficient Central AC COP = 3.2 to 4.4 | D45: Central AC with coefficient of performance = 4.4 | E45: Central AC with coefficient of performance = 3.2 | F45: kW of cooling capacity | G45: 18 | H45: 0.005 | I45: =$AA45*$AG45/AC45 -> 178.125 | J45: =$AA45*$AG45/AE45 -> 129.5454545 | M45: 48.57954545 | N45: 0 | O45: Yes | P45: 3474 | Q45: 464 | R45: ='CDD-energy curve fit'!$D$3*Data!Q45+'CDD-energy curve fit'!$E$3 -> 3183.9536 | S45: ='CDD-energy curve fit'!$D$3*sCDD+'CDD-energy curve fit'!$E$3 -> 1279.822 | T45: 0.4019600034 | U45: 19.52703426 | V45: 0 | W45: 0.2029360967 | X45: 0.06465517241 | Y45: Full load hours from Illinois TRM. COP ranges based on professional judgement | Z45: Full Load Hours (Chicago) | AA45: 570 | AB45: Base COP | AC45: 3.2 | AD45: Upgrade COP | AE45: 4.4 | AF45: Capacity (kW) | AG45: 1
A46: Commercial | B46: Lighting Upgrade | C46: 11W CFL replaces 40W Incandescent | D46: Mini Spiral CFL - 11 W | E46: Incandescent 40 W | F46: bulbs | G46: =10000/(AE46) -> 3.126954346 | H46: 0 | I46: =AA46*$AE46/1000 -> 127.92 | J46: =AC46*$AE46/1000 -> 35.178 | K46: 0 | L46: 0 | M46: 92.742 | N46: 0 | O46: No | W46: =IF(ISBLANK(P46),1,sHDD/P46) -> 1 | X46: =IF(ISBLANK(Q46),1,sCDD/Q46) -> 1 | Y46: Illinois TRM. Miscellaneous operating hours; interactive effects excluded | Z46: Base Watt | AA46: 40 | AB46: Upgrade Watt | AC46: 11 | AD46: Commercial screw-based hours per hear | AE46: 3198
A47: Commercial | B47: Lighting Upgrade | C47: 15W CFL replaces 60W Incandescent | D47: Mini Spiral CFL - 15 W | E47: Incandescent 60 W | F47: bulbs | G47: =10000/(AE47) -> 3.126954346 | H47: 0 | I47: =AA47*$AE47/1000 -> 191.88 | J47: =AC47*$AE47/1000 -> 47.97 | K47: 0 | L47: 0 | M47: 143.91 | N47: 0 | O47: No | W47: 1 | X47: 1 | Y47: Illinois TRM. Miscellaneous operating hours; interactive effects excluded | Z47: Base Watt | AA47: 60 | AB47: Upgrade Watt | AC47: 15 | AD47: Commercial screw-based hours per hear | AE47: 3198
A48: Commercial | B48: Lighting Upgrade | C48: 20W CFL replaces 100W Incandescent | D48: Mini Spiral CFL - 20 W | E48: Incandescent 100 W | F48: bulbs | G48: 3.126954346 | H48: 0 | I48: 319.8 | J48: 63.96 | K48: 0 | L48: 0 | M48: 255.84 | N48: 0 | O48: No | W48: 1 | X48: 1 | Y48: Illinois TRM. Miscellaneous operating hours; interactive effects excluded | Z48: Base Watt | AA48: 100 | AB48: Upgrade Watt | AC48: 20 | AD48: Commercial screw-based hours per hear | AE48: 3198
A49: Commercial | B49: Lighting Upgrade | C49: T8 Upgrade | D49: 32 W T8 Lamp | E49: 36 W 4 Feet Lamp | F49: lamps | G49: 15 | H49: 0 | I49: 164.736 | J49: 146.432 | K49: 0 | L49: 0 | M49: 18.304 | N49: 0 | O49: No | W49: 1 | X49: 1 | Y49: Illinois TRM. Miscellaneous operating hours; interactive effects excluded; in service rate excluded | Z49: Base Watt | AA49: 36 | AB49: Upgrade Watt | AC49: 32 | AD49: Commercial lamp-based hours per year | AE49: 4576
A50: Commercial | B50: Lighting Upgrade | C50: High bay 200 Watt MH to HPT8 | D50: 4-lamp high performance T8 w/ high ballast factor ballast | E50: 200 watt pulse start Metal-Halide | F50: fixture | G50: 15 | H50: 0 | I50: =AA50*$AE50/1000 -> 1061.632 | J50: =AC50*$AE50/1000 -> 668.096 | K50: 0 | L50: 0 | M50: 393.536 | N50: 0 | O50: No | W50: 1 | X50: 1 | Y50: Illinois TRM. Miscellaneous operating hours; interactive effects excluded; in service rate excluded | Z50: Base Watt | AA50: 232 | AB50: Upgrade Watt | AC50: 146 | AD50: Commercial lamp-based hours per year | AE50: 4576
A51: Commercial | B51: Lighting Upgrade | C51: High bay 250 watt MH to HPT8 | D51: 4-lamp high performance T8 w/ high ballast factor ballast | E51: 250 watt metal halide | F51: fixture | G51: 15 | H51: 0 | I51: 1349.92 | J51: 668.096 | K51: 0 | L51: 0 | M51: 681.824 | N51: 0 | O51: No | W51: 1 | X51: 1 | Y51: Illinois TRM. Miscellaneous operating hours; interactive effects excluded; in service rate excluded | Z51: Base Watt | AA51: 295 | AB51: Upgrade Watt | AC51: 146 | AD51: Commercial lamp-based hours per year | AE51: 4576
A52: Commercial | B52: Lighting Upgrade | C52: High bay 320 watt MH to HPT8 | D52: 6-lamp high performance T8 w/ high ballast factor ballast | E52: 320 watt pulse start metal-halide | F52: fixture | G52: 15 | H52: 0 | I52: 1601.6 | J52: 942.656 | K52: 0 | L52: 0 | M52: 658.944 | N52: 0 | O52: No | W52: 1 | X52: 1 | Y52: Illinois TRM. Miscellaneous operating hours; interactive effects excluded; in service rate excluded | Z52: Base Watt | AA52: 350 | AB52: Upgrade Watt | AC52: 206 | AD52: Commercial lamp-based hours per year | AE52: 4576
A53: Commercial | B53: Lighting Upgrade | C53: High bay 400 watt MH to HPT8 | D53: 6-lamp high performance T8 w/ high ballast factor ballast | E53: 400 watt pulse start metal-halide | F53: fixture | G53: 15 | H53: 0 | I53: 2082.08 | J53: 942.656 | K53: 0 | L53: 0 | M53: 1139.424 | N53: 0 | O53: No | W53: 1 | X53: 1 | Y53: Illinois TRM. Miscellaneous operating hours; interactive effects excluded; in service rate excluded | Z53: Base Watt | AA53: 455 | AB53: Upgrade Watt | AC53: 206 | AD53: Commercial lamp-based hours per year | AE53: 4576
A54: Commercial | B54: Lighting Upgrade | C54: T12 linear fluorscent to HPT8 - 34W T12 (1-lamp) | D54: 1-lamp high performance T8 | E54: F34T12 w/ efficient magnetic ballast | F54: fixture | G54: 15 | H54: 0 | I54: 183.04 | J54: 114.4 | K54: 0 | L54: 0 | M54: 68.64 | N54: 0 | O54: No | W54: 1 | X54: 1 | Y54: Illinois TRM. Miscellaneous operating hours; interactive effects excluded; in service rate excluded | Z54: Base Watt | AA54: 40 | AB54: Upgrade Watt | AC54: 25 | AD54: Commercial lamp-based hours per year | AE54: 4576
A55: Commercial | B55: Lighting Upgrade | C55: T12 linear fluorscent to HPT8 - 34W T12 (2-lamp) | D55: 2-lamp high performance T8 | E55: F34T12 w/ efficient magnetic ballast | F55: fixture | G55: 15 | H55: 0 | I55: 311.168 | J55: 224.224 | K55: 0 | L55: 0 | M55: 86.944 | N55: 0 | O55: No | W55: 1 | X55: 1 | Y55: Illinois TRM. Miscellaneous operating hours; interactive effects excluded; in service rate excluded | Z55: Base Watt | AA55: 68 | AB55: Upgrade Watt | AC55: 49 | AD55: Commercial lamp-based hours per year | AE55: 4576
A56: Commercial | B56: Lighting Upgrade | C56: T12 linear fluorscent to HPT8 - 34W T12 (3-lamp) | D56: 3-lamp high performance T8 | E56: F34T12 w/ efficient magnetic ballast | F56: fixture | G56: 15 | H56: 0 | I56: 503.36 | J56: 329.472 | K56: 0 | L56: 0 | M56: 173.888 | N56: 0 | O56: No | W56: 1 | X56: 1 | Y56: Illinois TRM. Miscellaneous operating hours; interactive effects excluded; in service rate excluded | Z56: Base Watt | AA56: 110 | AB56: Upgrade Watt | AC56: 72 | AD56: Commercial lamp-based hours per year | AE56: 4576
A57: Commercial | B57: Lighting Upgrade | C57: T12 linear fluorscent to HPT8 - 34W T12 (4-lamp) | D57: 4-lamp high performance T8 | E57: F34T12 w/ efficient magnetic ballast | F57: fixture | G57: 15 | H57: 0 | I57: 636.064 | J57: 430.144 | K57: 0 | L57: 0 | M57: 205.92 | N57: 0 | O57: No | W57: 1 | X57: 1 | Y57: Illinois TRM. Miscellaneous operating hours; interactive effects excluded; in service rate excluded | Z57: Base Watt | AA57: 139 | AB57: Upgrade Watt | AC57: 94 | AD57: Commercial lamp-based hours per year | AE57: 4576
A58: Commercial | B58: Lighting Upgrade | C58: T12 linear fluorscent to HPT8 - 40W T12 (1-lamp) | D58: 1-lamp high performance T8 | E58: F40T12 w/ efficient magnetic ballast | F58: fixture | G58: 15 | H58: 0 | I58: 219.648 | J58: 114.4 | K58: 0 | L58: 0 | M58: 105.248 | N58: 0 | O58: No | W58: 1 | X58: 1 | Y58: Illinois TRM. Miscellaneous operating hours; interactive effects excluded; in service rate excluded | Z58: Base Watt | AA58: 48 | AB58: Upgrade Watt | AC58: 25 | AD58: Commercial lamp-based hours per year | AE58: 4576
A59: Commercial | B59: Lighting Upgrade | C59: T12 linear fluorscent to HPT8 - 40W T12 (2-lamp) | D59: 2-lamp high performance T8 | E59: F40T12 w/ efficient magnetic ballast | F59: fixture | G59: 15 | H59: 0 | I59: 375.232 | J59: 224.224 | K59: 0 | L59: 0 | M59: 151.008 | N59: 0 | O59: No | W59: 1 | X59: 1 | Y59: Illinois TRM. Miscellaneous operating hours; interactive effects excluded; in service rate excluded | Z59: Base Watt | AA59: 82 | AB59: Upgrade Watt | AC59: 49 | AD59: Commercial lamp-based hours per year | AE59: 4576
A60: Commercial | B60: Lighting Upgrade | C60: T12 linear fluorscent to HPT8 - 40W T12 (3-lamp) | D60: 3-lamp high performance T8 | E60: F40T12 w/ efficient magnetic ballast | F60: fixture | G60: 15 | H60: 0 | I60: 558.272 | J60: 329.472 | K60: 0 | L60: 0 | M60: 228.8 | N60: 0 | O60: No | W60: 1 | X60: 1 | Y60: Illinois TRM. Miscellaneous operating hours; interactive effects excluded; in service rate excluded | Z60: Base Watt | AA60: 122 | AB60: Upgrade Watt | AC60: 72 | AD60: Commercial lamp-based hours per year | AE60: 4576
A61: Commercial | B61: Lighting Upgrade | C61: T12 linear fluorscent to HPT8 - 40W T12 (4-lamp) | D61: 4-lamp high performance T8 | E61: F40T12 w/ efficient magnetic ballast | F61: fixture | G61: 15 | H61: 0 | I61: 750.464 | J61: 430.144 | K61: 0 | L61: 0 | M61: 320.32 | N61: 0 | O61: No | W61: 1 | X61: 1 | Y61: Illinois TRM. Miscellaneous operating hours; interactive effects excluded; in service rate excluded | Z61: Base Watt | AA61: 164 | AB61: Upgrade Watt | AC61: 94 | AD61: Commercial lamp-based hours per year | AE61: 4576
A62: Commercial | B62: Lighting Upgrade | C62: T12 linear fluorscent to HPT8 - 40W T12/standard ballast (1-lamp) | D62: 1-lamp high performance T8 | E62: F40T12 w/ standard magnetic ballast | F62: fixture | G62: 15 | H62: 0 | I62: 260.832 | J62: 114.4 | K62: 0 | L62: 0 | M62: 146.432 | N62: 0 | O62: No | W62: 1 | X62: 1 | Y62: Illinois TRM. Miscellaneous operating hours; interactive effects excluded; in service rate excluded | Z62: Base Watt | AA62: 57 | AB62: Upgrade Watt | AC62: 25 | AD62: Commercial lamp-based hours per year | AE62: 4576
A63: Commercial | B63: Lighting Upgrade | C63: T12 linear fluorscent to HPT8 - 40W T12/standard ballast (2-lamp) | D63: 2-lamp high performance T8 | E63: F40T12 w/ standard magnetic ballast | F63: fixture | G63: 15 | H63: 0 | I63: 430.144 | J63: 224.224 | K63: 0 | L63: 0 | M63: 205.92 | N63: 0 | O63: No | W63: 1 | X63: 1 | Y63: Illinois TRM. Miscellaneous operating hours; interactive effects excluded; in service rate excluded | Z63: Base Watt | AA63: 94 | AB63: Upgrade Watt | AC63: 49 | AD63: Commercial lamp-based hours per year | AE63: 4576
A64: Commercial | B64: Lighting Upgrade | C64: T12 linear fluorscent to HPT8 - 40W T12/standard ballast (3-lamp) | D64: 3-lamp high performance T8 | E64: F40T12 w/ standard magnetic ballast | F64: fixture | G64: 15 | H64: 0 | I64: 672.672 | J64: 329.472 | K64: 0 | L64: 0 | M64: 343.2 | N64: 0 | O64: No | W64: 1 | X64: 1 | Y64: Illinois TRM. Miscellaneous operating hours; interactive effects excluded; in service rate excluded | Z64: Base Watt | AA64: 147 | AB64: Upgrade Watt | AC64: 72 | AD64: Commercial lamp-based hours per year | AE64: 4576
A65: Commercial | B65: Lighting Upgrade | C65: T12 linear fluorscent to HPT8 - 40W T12/standard ballast (4-lamp) | D65: 4-lamp high performance T8 | E65: F40T12 w/ standard magnetic ballast | F65: fixture | G65: 15 | H65: 0 | I65: 832.832 | J65: 430.144 | K65: 0 | L65: 0 | M65: 402.688 | N65: 0 | O65: No | W65: 1 | X65: 1 | Y65: Illinois TRM. Miscellaneous operating hours; interactive effects excluded; in service rate excluded | Z65: Base Watt | AA65: 182 | AB65: Upgrade Watt | AC65: 94 | AD65: Commercial lamp-based hours per year | AE65: 4576
A66: Commercial | B66: Lighting Upgrade | C66: T8 to HPT8 upgrade (1-lamp) | D66: 1-lamp high performance T8 | E66: Standard T8 (1-lamp) | F66: fixture | G66: =24000/AE66 -> 5.244755245 | H66: 0 | I66: 146.432 | J66: 114.4 | K66: 0 | L66: 0 | M66: =I66-J66 -> 32.032 | N66: 0 | O66: No | W66: 1 | X66: 1 | Y66: Illinois TRM. Miscellaneous operating hours; interactive effects excluded; in service rate excluded | Z66: Base Watt | AA66: 32 | AB66: Upgrade Watt | AC66: 25 | AD66: Commercial lamp-based hours per year | AE66: 4576
A67: Commercial | B67: Lighting Upgrade | C67: T8 to HPT8 upgrade (2-lamp) | D67: 2-lamp high performance T8 | E67: Standard T8 (2-lamp) | F67: fixture | G67: =24000/AE67 -> 5.244755245 | H67: 0 | I67: 269.984 | J67: 224.224 | K67: 0 | L67: 0 | M67: 45.76 | N67: 0 | O67: No | W67: 1 | X67: 1 | Y67: Illinois TRM. Miscellaneous operating hours; interactive effects excluded; in service rate excluded | Z67: Base Watt | AA67: 59 | AB67: Upgrade Watt | AC67: 49 | AD67: Commercial lamp-based hours per year | AE67: 4576
A68: Commercial | B68: Lighting Upgrade | C68: T8 to HPT8 upgrade (3-lamp) | D68: 3-lamp high performance T8 | E68: Standard T8 (3-lamp) | F68: fixture | G68: 5.244755245 | H68: 0 | I68: 402.688 | J68: 329.472 | K68: 0 | L68: 0 | M68: 73.216 | N68: 0 | O68: No | W68: 1 | X68: 1 | Y68: Illinois TRM. Miscellaneous operating hours; interactive effects excluded; in service rate excluded | Z68: Base Watt | AA68: 88 | AB68: Upgrade Watt | AC68: 72 | AD68: Commercial lamp-based hours per year | AE68: 4576
A69: Commercial | B69: Lighting Upgrade | C69: T8 to HPT8 upgrade (4-lamp) | D69: 4-lamp high performance T8 | E69: Standard T8 (4-lamp) | F69: fixture | G69: 5.244755245 | H69: 0 | I69: 521.664 | J69: 430.144 | K69: 0 | L69: 0 | M69: 91.52 | N69: 0 | O69: No | W69: 1 | X69: 1 | Y69: Illinois TRM. Miscellaneous operating hours; interactive effects excluded; in service rate excluded | Z69: Base Watt | AA69: 114 | AB69: Upgrade Watt | AC69: 94 | AD69: Commercial lamp-based hours per year | AE69: 4576
A70: Commercial | B70: Lighting Upgrade | C70: Wall mounted occupancy sensor | D70: Occupancy sensor controlling 350 watts of lighting | E70: Lighting without controls | F70: sensor | G70: 8 | H70: 0 | I70: =AC70*AE70 -> 1601.6 | J70: =(1-AA70)*AC70*AE70 -> 944.944 | K70: 0 | L70: 0 | M70: 656.656 | N70: 0 | O70: No | W70: 1 | X70: 1 | Z70: Energy Savings Factor | AA70: 0.41 | AB70: kW controlled | AC70: 0.35 | AD70: Commercial lamp-based hours per year | AE70: 4576
A71: Commercial | B71: Lighting Upgrade | C71: Fixture mounted occupancy sensor | D71: Occupancy sensor controlling 73 watts of lighting | E71: Lighting without controls | F71: sensor | G71: 8 | H71: 0 | I71: =AC71*AE71 -> 334.048 | J71: =(1-AA71)*AC71*AE71 -> 233.8336 | K71: 0 | L71: 0 | M71: 100.2144 | N71: 0 | O71: No | W71: 1 | X71: 1 | Z71: Energy Savings Factor | AA71: 0.3 | AB71: kW controlled | AC71: 0.073 | AD71: Commercial lamp-based hours per year | AE71: 4576
A72: Commercial | B72: Refrigeration | C72: Automatic Door Closer - Walk-in Refrigerator | D72: Automatic hydraulic door closer | E72: No automatic closer | F72: Refrigerator door | G72: 8 | H72: 0 | I72: 943 | M72: 943 | O72: No | W72: 1 | X72: 1
A73: Commercial | B73: Refrigeration | C73: Automatic Door Closer - Walk-in Freezer | D73: Automatic hydraulic door closer | E73: No automatic closer | F73: Freezer door | G73: 8 | H73: 0 | I73: 2307 | M73: 2307 | O73: No | W73: 1 | X73: 1
A74: Commercial | B74: Refrigeration | C74: Door heater controls - Reach-in Refrigerator | D74: Controls turn off door heaters when humidity is low | E74: Door heaters (to prevent condensation) constantly on | F74: Refrigerator door | G74: 12 | H74: 0 | I74: =AA74*AC74*AE74*8760 -> 540.77232 | M74: 540.77232 | O74: No | W74: 1 | X74: 1 | Z74: kWbase | AA74: 0.092 | AB74: Energy Savings Factor (assume humidity sensor) | AC74: 0.55 | AD74: Bonus Factor (medium temp) | AE74: 1.22
A75: Commercial | B75: Refrigeration | C75: Door heater controls - Reach-in Freezer | D75: Controls turn off door heaters when humidity is low | E75: Door heaters (to prevent condensation) constantly on | F75: Freezer door | G75: 12 | H75: 0 | I75: =AA75*AC75*AE75*8760 -> 1277.7336 | M75: 1277.7336 | O75: No | W75: 1 | X75: 1 | Z75: kWbase | AA75: 0.195 | AB75: Energy Savings Factor (assume humidity sensor) | AC75: 0.55 | AD75: Bonus Factor (low temp) | AE75: 1.36
A76: Commercial | B76: Refrigeration | C76: ECM motors for walk-in and reach-in Refrigerator | D76: Electronically Commutated Motor installed on the evaporator | E76: Shaded pole evaporator motor | F76: motor | G76: 15 | H76: 0.005 | I76: 348 | M76: 348 | O76: No | W76: =IF(ISBLANK(P76),1,sHDD/P76) -> 1 | X76: =IF(ISBLANK(Q76),1,sCDD/Q76) -> 1 | Y76: Average of restaurant/grocery walk-in and grocery reach-in, Illinois TRM
A77: Commercial | B77: Refrigeration | C77: ECM motors for walk-in and reach-in Freezer | D77: Electronically Commutated Motor installed on the evaporator | E77: Shaded pole evaporator motor | F77: motor | G77: 15 | H77: 0.005 | I77: 522 | M77: 522 | O77: No | W77: 1 | X77: 1 | Y77: Average of restaurant/grocery walk-in and grocery reach-in, Illinois TRM
A78: Commercial | B78: Refrigeration | C78: Efficient Refrigerated Vending Machine with efficient compressor and lighting | D78: Vending machine with efficient compressor and lighting (ENERGY STAR or equivalent) | E78: Conventional vending machine | F78: machine | G78: 14 | H78: 0.005 | I78: 1310 | M78: 1310 | O78: No | W78: 1 | X78: 1
A79: Commercial | B79: Refrigeration | C79: Efficient Refrigerated Vending Machine with control software, efficient compressor and lighting | D79: Vending machine with control software, efficient compressor and lighting (ENERGY STAR or equivalent) | E79: Conventional vending machine | F79: machine | G79: 14 | H79: 0.005 | I79: 1842 | M79: 1842 | O79: No | W79: 1 | X79: 1
A80: Commercial | B80: Refrigeration | C80: Evaporator Fan Control for walk-in cooler | D80: Controls to reduce evaporator fan airflow when there is no refrigerant flow | E80: Walk-in cooler without controls | F80: motor | G80: 16 | H80: 0.005 | I80: 478 | M80: 478 | O80: No | W80: 1 | X80: 1
A81: Commercial | B81: Refrigeration | C81: Strip Curtain for Walk-in Cooler | D81: Plastic strip curtain added to walk-in cooler or freezer | E81: Walk-in cooler with conventional door only | F81: Refrigerator door | G81: 6 | H81: 0 | I81: 422 | M81: 422 | O81: No | W81: 1 | X81: 1
A82: Commercial | B82: Refrigeration | C82: Strip Curtain for Walk-in Freezer | D82: Plastic strip curtain added to walk-in cooler or freezer | E82: Walk-in cooler with conventional door only | F82: Freezer door | G82: 6 | H82: 0 | I82: 2974 | M82: 2974 | O82: No | W82: 1 | X82: 1
A83: Commercial | B83: HVAC | C83: ="Efficient Room AC COP = "&AC83&" to "&AE83 -> Efficient Room AC COP = 2.4 to 2.8 | D83: ="Room AC with coefficient of performance = "&$AE83 -> Room AC with coefficient of performance = 2.8 | E83: ="Room AC with coefficient of performance = "&$AC83 -> Room AC with coefficient of performance = 2.4 | F83: kW of cooling capacity | G83: 9 | H83: 0.005 | I83: =$AA83*$AG83/AC83 -> 105.8333333 | J83: =$AA83*$AG83/AE83 -> 90.71428571 | M83: 15.11904762 | N83: 0 | O83: Yes | P83: 3474 | Q83: 464 | R83: ='CDD-energy curve fit'!$D$3*Data!Q83+'CDD-energy curve fit'!$E$3 -> 3183.9536 | S83: ='CDD-energy curve fit'!$D$3*sCDD+'CDD-energy curve fit'!$E$3 -> 1279.822 | T83: =S83/R83 -> 0.4019600034 | U83: =M83*T83 -> 6.077252433 | V83: =N83 -> 0 | W83: 0.2029360967 | X83: 0.06465517241 | Y83: Full load hours from Illinois TRM. COP ranges based on professional judgement | Z83: Full Load Hours (Chicago) | AA83: 254 | AB83: Base COP | AC83: 2.4 | AD83: Upgrade COP | AE83: 2.8 | AF83: Capacity (kW) | AG83: 1
A84: Commercial | B84: HVAC | C84: ="Efficient Room AC COP = "&AC84&" to "&AE84 -> Efficient Room AC COP = 2.4 to 3.2 | D84: ="Room AC with coefficient of performance = "&$AE84 -> Room AC with coefficient of performance = 3.2 | E84: ="Room AC with coefficient of performance = "&$AC84 -> Room AC with coefficient of performance = 2.4 | F84: kW of cooling capacity | G84: 9 | H84: 0.005 | I84: 105.8333333 | J84: 79.375 | M84: 26.45833333 | N84: 0 | O84: Yes | P84: 3474 | Q84: 464 | R84: ='CDD-energy curve fit'!$D$3*Data!Q84+'CDD-energy curve fit'!$E$3 -> 3183.9536 | S84: ='CDD-energy curve fit'!$D$3*sCDD+'CDD-energy curve fit'!$E$3 -> 1279.822 | T84: 0.4019600034 | U84: 10.63519176 | V84: 0 | W84: 0.2029360967 | X84: 0.06465517241 | Y84: Full load hours from Illinois TRM. COP ranges based on professional judgement | Z84: Full Load Hours (Chicago) | AA84: 254 | AB84: Base COP | AC84: 2.4 | AD84: Upgrade COP | AE84: 3.2 | AF84: Capacity (kW) | AG84: 1
A85: Commercial | B85: HVAC | C85: ="Efficient Room AC COP = "&AC85&" to "&AE85 -> Efficient Room AC COP = 2.4 to 3.6 | D85: Room AC with coefficient of performance = 3.6 | E85: Room AC with coefficient of performance = 2.4 | F85: kW of cooling capacity | G85: 9 | H85: 0.005 | I85: 105.8333333 | J85: 70.55555556 | M85: 35.27777778 | N85: 0 | O85: Yes | P85: 3474 | Q85: 464 | R85: ='CDD-energy curve fit'!$D$3*Data!Q85+'CDD-energy curve fit'!$E$3 -> 3183.9536 | S85: ='CDD-energy curve fit'!$D$3*sCDD+'CDD-energy curve fit'!$E$3 -> 1279.822 | T85: 0.4019600034 | U85: 14.18025568 | V85: 0 | W85: 0.2029360967 | X85: 0.06465517241 | Y85: Full load hours from Illinois TRM. COP ranges based on professional judgement | Z85: Full Load Hours (Chicago) | AA85: 254 | AB85: Base COP | AC85: 2.4 | AD85: Upgrade COP | AE85: 3.6 | AF85: Capacity (kW) | AG85: 1
A86: Commercial | B86: HVAC | C86: Efficient Room AC COP = 2.4 to 4 | D86: Room AC with coefficient of performance = 4 | E86: Room AC with coefficient of performance = 2.4 | F86: kW of cooling capacity | G86: 9 | H86: 0.005 | I86: 105.8333333 | J86: 63.5 | M86: 42.33333333 | N86: 0 | O86: Yes | P86: 3474 | Q86: 464 | R86: ='CDD-energy curve fit'!$D$3*Data!Q86+'CDD-energy curve fit'!$E$3 -> 3183.9536 | S86: ='CDD-energy curve fit'!$D$3*sCDD+'CDD-energy curve fit'!$E$3 -> 1279.822 | T86: 0.4019600034 | U86: 17.01630681 | V86: 0 | W86: 0.2029360967 | X86: 0.06465517241 | Y86: Full load hours from Illinois TRM. COP ranges based on professional judgement | Z86: Full Load Hours (Chicago) | AA86: 254 | AB86: Base COP | AC86: 2.4 | AD86: Upgrade COP | AE86: 4 | AF86: Capacity (kW) | AG86: 1
A87: Commercial | B87: HVAC | C87: ="Efficient Room AC COP = "&AC87&" to "&AE87 -> Efficient Room AC COP = 2.4 to 4.4 | D87: Room AC with coefficient of performance = 4.4 | E87: Room AC with coefficient of performance = 2.4 | F87: kW of cooling capacity | G87: 9 | H87: 0.005 | I87: 105.8333333 | J87: 57.72727273 | M87: 48.10606061 | N87: 0 | O87: Yes | P87: 3474 | Q87: 464 | R87: ='CDD-energy curve fit'!$D$3*Data!Q87+'CDD-energy curve fit'!$E$3 -> 3183.9536 | S87: ='CDD-energy curve fit'!$D$3*sCDD+'CDD-energy curve fit'!$E$3 -> 1279.822 | T87: 0.4019600034 | U87: 19.33671229 | V87: 0 | W87: 0.2029360967 | X87: 0.06465517241 | Y87: Full load hours from Illinois TRM. COP ranges based on professional judgement | Z87: Full Load Hours (Chicago) | AA87: 254 | AB87: Base COP | AC87: 2.4 | AD87: Upgrade COP | AE87: 4.4 | AF87: Capacity (kW) | AG87: 1
A88: Commercial | B88: HVAC | C88: ="Efficient Room AC COP = "&AC88&" to "&AE88 -> Efficient Room AC COP = 2.8 to 3.2 | D88: Room AC with coefficient of performance = 3.2 | E88: Room AC with coefficient of performance = 2.8 | F88: kW of cooling capacity | G88: 9 | H88: 0.005 | I88: 90.71428571 | J88: 79.375 | M88: 11.33928571 | N88: 0 | O88: Yes | P88: 3474 | Q88: 464 | R88: ='CDD-energy curve fit'!$D$3*Data!Q88+'CDD-energy curve fit'!$E$3 -> 3183.9536 | S88: ='CDD-energy curve fit'!$D$3*sCDD+'CDD-energy curve fit'!$E$3 -> 1279.822 | T88: 0.4019600034 | U88: 4.557939325 | V88: 0 | W88: 0.2029360967 | X88: 0.06465517241 | Y88: Full load hours from Illinois TRM. COP ranges based on professional judgement | Z88: Full Load Hours (Chicago) | AA88: 254 | AB88: Base COP | AC88: 2.8 | AD88: Upgrade COP | AE88: 3.2 | AF88: Capacity (kW) | AG88: 1
A89: Commercial | B89: HVAC | C89: ="Efficient Room AC COP = "&AC89&" to "&AE89 -> Efficient Room AC COP = 2.8 to 3.6 | D89: Room AC with coefficient of performance = 3.6 | E89: Room AC with coefficient of performance = 2.8 | F89: kW of cooling capacity | G89: 9 | H89: 0.005 | I89: =$AA89*$AG89/AC89 -> 90.71428571 | J89: =$AA89*$AG89/AE89 -> 70.55555556 | M89: 20.15873016 | N89: 0 | O89: Yes | P89: 3474 | Q89: 464 | R89: ='CDD-energy curve fit'!$D$3*Data!Q89+'CDD-energy curve fit'!$E$3 -> 3183.9536 | S89: ='CDD-energy curve fit'!$D$3*sCDD+'CDD-energy curve fit'!$E$3 -> 1279.822 | T89: 0.4019600034 | U89: 8.103003244 | V89: 0 | W89: 0.2029360967 | X89: 0.06465517241 | Y89: Full load hours from Illinois TRM. COP ranges based on professional judgement | Z89: Full Load Hours (Chicago) | AA89: 254 | AB89: Base COP | AC89: 2.8 | AD89: Upgrade COP | AE89: 3.6 | AF89: Capacity (kW) | AG89: 1
A90: Commercial | B90: HVAC | C90: Efficient Room AC COP = 2.8 to 4 | D90: Room AC with coefficient of performance = 4 | E90: Room AC with coefficient of performance = 2.8 | F90: kW of cooling capacity | G90: 9 | H90: 0.005 | I90: 90.71428571 | J90: 63.5 | M90: 27.21428571 | N90: 0 | O90: Yes | P90: 3474 | Q90: 464 | R90: ='CDD-energy curve fit'!$D$3*Data!Q90+'CDD-energy curve fit'!$E$3 -> 3183.9536 | S90: ='CDD-energy curve fit'!$D$3*sCDD+'CDD-energy curve fit'!$E$3 -> 1279.822 | T90: 0.4019600034 | U90: 10.93905438 | V90: 0 | W90: 0.2029360967 | X90: 0.06465517241 | Y90: Full load hours from Illinois TRM. COP ranges based on professional judgement | Z90: Full Load Hours (Chicago) | AA90: 254 | AB90: Base COP | AC90: 2.8 | AD90: Upgrade COP | AE90: 4 | AF90: Capacity (kW) | AG90: 1
A91: Commercial | B91: HVAC | C91: ="Efficient Room AC COP = "&AC91&" to "&AE91 -> Efficient Room AC COP = 2.8 to 4.4 | D91: Room AC with coefficient of performance = 4.4 | E91: Room AC with coefficient of performance = 2.8 | F91: kW of cooling capacity | G91: 9 | H91: 0.005 | I91: =$AA91*$AG91/AC91 -> 90.71428571 | J91: =$AA91*$AG91/AE91 -> 57.72727273 | M91: 32.98701299 | N91: 0 | O91: Yes | P91: 3474 | Q91: 464 | R91: ='CDD-energy curve fit'!$D$3*Data!Q91+'CDD-energy curve fit'!$E$3 -> 3183.9536 | S91: ='CDD-energy curve fit'!$D$3*sCDD+'CDD-energy curve fit'!$E$3 -> 1279.822 | T91: 0.4019600034 | U91: 13.25945985 | V91: 0 | W91: 0.2029360967 | X91: 0.06465517241 | Y91: Full load hours from Illinois TRM. COP ranges based on professional judgement | Z91: Full Load Hours (Chicago) | AA91: 254 | AB91: Base COP | AC91: 2.8 | AD91: Upgrade COP | AE91: 4.4 | AF91: Capacity (kW) | AG91: 1
A92: Commercial | B92: HVAC | C92: ="Efficient Room AC COP = "&AC92&" to "&AE92 -> Efficient Room AC COP = 3 to 3.2 | D92: Room AC with coefficient of performance = 3.2 | E92: Room AC with coefficient of performance = 3 | F92: kW of cooling capacity | G92: 9 | H92: 0.005 | I92: =$AA92*$AG92/AC92 -> 84.66666667 | J92: =$AA92*$AG92/AE92 -> 79.375 | M92: 5.291666667 | N92: 0 | O92: Yes | P92: 3474 | Q92: 464 | R92: ='CDD-energy curve fit'!$D$3*Data!Q92+'CDD-energy curve fit'!$E$3 -> 3183.9536 | S92: ='CDD-energy curve fit'!$D$3*sCDD+'CDD-energy curve fit'!$E$3 -> 1279.822 | T92: 0.4019600034 | U92: 2.127038352 | V92: 0 | W92: 0.2029360967 | X92: 0.06465517241 | Y92: Full load hours from Illinois TRM. COP ranges based on professional judgement | Z92: Full Load Hours (Chicago) | AA92: 254 | AB92: Base COP | AC92: 3 | AD92: Upgrade COP | AE92: 3.2 | AF92: Capacity (kW) | AG92: 1
A93: Commercial | B93: HVAC | C93: Efficient Room AC COP = 3 to 3.6 | D93: Room AC with coefficient of performance = 3.6 | E93: Room AC with coefficient of performance = 3 | F93: kW of cooling capacity | G93: 9 | H93: 0.005 | I93: 84.66666667 | J93: 70.55555556 | M93: 14.11111111 | N93: 0 | O93: Yes | P93: 3474 | Q93: 464 | R93: ='CDD-energy curve fit'!$D$3*Data!Q93+'CDD-energy curve fit'!$E$3 -> 3183.9536 | S93: ='CDD-energy curve fit'!$D$3*sCDD+'CDD-energy curve fit'!$E$3 -> 1279.822 | T93: 0.4019600034 | U93: 5.672102271 | V93: 0 | W93: 0.2029360967 | X93: 0.06465517241 | Y93: Full load hours from Illinois TRM. COP ranges based on professional judgement | Z93: Full Load Hours (Chicago) | AA93: 254 | AB93: Base COP | AC93: 3 | AD93: Upgrade COP | AE93: 3.6 | AF93: Capacity (kW) | AG93: 1
A94: Commercial | B94: HVAC | C94: ="Efficient Room AC COP = "&AC94&" to "&AE94 -> Efficient Room AC COP = 3 to 4 | D94: Room AC with coefficient of performance = 4 | E94: Room AC with coefficient of performance = 3 | F94: kW of cooling capacity | G94: 9 | H94: 0.005 | I94: =$AA94*$AG94/AC94 -> 84.66666667 | J94: =$AA94*$AG94/AE94 -> 63.5 | M94: 21.16666667 | N94: 0 | O94: Yes | P94: 3474 | Q94: 464 | R94: ='CDD-energy curve fit'!$D$3*Data!Q94+'CDD-energy curve fit'!$E$3 -> 3183.9536 | S94: ='CDD-energy curve fit'!$D$3*sCDD+'CDD-energy curve fit'!$E$3 -> 1279.822 | T94: 0.4019600034 | U94: 8.508153406 | V94: 0 | W94: 0.2029360967 | X94: 0.06465517241 | Y94: Full load hours from Illinois TRM. COP ranges based on professional judgement | Z94: Full Load Hours (Chicago) | AA94: 254 | AB94: Base COP | AC94: 3 | AD94: Upgrade COP | AE94: 4 | AF94: Capacity (kW) | AG94: 1
A95: Commercial | B95: HVAC | C95: ="Efficient Room AC COP = "&AC95&" to "&AE95 -> Efficient Room AC COP = 3 to 4.4 | D95: Room AC with coefficient of performance = 4.4 | E95: Room AC with coefficient of performance = 3 | F95: kW of cooling capacity | G95: 9 | H95: 0.005 | I95: =$AA95*$AG95/AC95 -> 84.66666667 | J95: =$AA95*$AG95/AE95 -> 57.72727273 | M95: 26.93939394 | N95: 0 | O95: Yes | P95: 3474 | Q95: 464 | R95: ='CDD-energy curve fit'!$D$3*Data!Q95+'CDD-energy curve fit'!$E$3 -> 3183.9536 | S95: ='CDD-energy curve fit'!$D$3*sCDD+'CDD-energy curve fit'!$E$3 -> 1279.822 | T95: 0.4019600034 | U95: 10.82855888 | V95: 0 | W95: 0.2029360967 | X95: 0.06465517241 | Y95: Full load hours from Illinois TRM. COP ranges based on professional judgement | Z95: Full Load Hours (Chicago) | AA95: 254 | AB95: Base COP | AC95: 3 | AD95: Upgrade COP | AE95: 4.4 | AF95: Capacity (kW) | AG95: 1
A96: Commercial | B96: HVAC | C96: ="Efficient Room AC COP = "&AC96&" to "&AE96 -> Efficient Room AC COP = 3.2 to 3.6 | D96: Room AC with coefficient of performance = 3.6 | E96: Room AC with coefficient of performance = 3.2 | F96: kW of cooling capacity | G96: 9 | H96: 0.005 | I96: =$AA96*$AG96/AC96 -> 79.375 | J96: =$AA96*$AG96/AE96 -> 70.55555556 | M96: 8.819444444 | N96: 0 | O96: Yes | P96: 3474 | Q96: 464 | R96: ='CDD-energy curve fit'!$D$3*Data!Q96+'CDD-energy curve fit'!$E$3 -> 3183.9536 | S96: ='CDD-energy curve fit'!$D$3*sCDD+'CDD-energy curve fit'!$E$3 -> 1279.822 | T96: 0.4019600034 | U96: 3.545063919 | V96: 0 | W96: 0.2029360967 | X96: 0.06465517241 | Y96: Full load hours from Illinois TRM. COP ranges based on professional judgement | Z96: Full Load Hours (Chicago) | AA96: 254 | AB96: Base COP | AC96: 3.2 | AD96: Upgrade COP | AE96: 3.6 | AF96: Capacity (kW) | AG96: 1
A97: Commercial | B97: HVAC | C97: Efficient Room AC COP = 3.2 to 4 | D97: Room AC with coefficient of performance = 4 | E97: Room AC with coefficient of performance = 3.2 | F97: kW of cooling capacity | G97: 9 | H97: 0.005 | I97: 79.375 | J97: 63.5 | M97: 15.875 | N97: 0 | O97: Yes | P97: 3474 | Q97: 464 | R97: ='CDD-energy curve fit'!$D$3*Data!Q97+'CDD-energy curve fit'!$E$3 -> 3183.9536 | S97: ='CDD-energy curve fit'!$D$3*sCDD+'CDD-energy curve fit'!$E$3 -> 1279.822 | T97: 0.4019600034 | U97: 6.381115055 | V97: 0 | W97: 0.2029360967 | X97: 0.06465517241 | Y97: Full load hours from Illinois TRM. COP ranges based on professional judgement | Z97: Full Load Hours (Chicago) | AA97: 254 | AB97: Base COP | AC97: 3.2 | AD97: Upgrade COP | AE97: 4 | AF97: Capacity (kW) | AG97: 1
A98: Commercial | B98: HVAC | C98: ="Efficient Room AC COP = "&AC98&" to "&AE98 -> Efficient Room AC COP = 3.2 to 4.4 | D98: Room AC with coefficient of performance = 4.4 | E98: Room AC with coefficient of performance = 3.2 | F98: kW of cooling capacity | G98: 9 | H98: 0.005 | I98: =$AA98*$AG98/AC98 -> 79.375 | J98: =$AA98*$AG98/AE98 -> 57.72727273 | M98: =I98-J98 -> 21.64772727 | N98: 0 | O98: Yes | P98: 3474 | Q98: 464 | R98: ='CDD-energy curve fit'!$D$3*Data!Q98+'CDD-energy curve fit'!$E$3 -> 3183.9536 | S98: ='CDD-energy curve fit'!$D$3*sCDD+'CDD-energy curve fit'!$E$3 -> 1279.822 | T98: 0.4019600034 | U98: 8.701520529 | V98: 0 | W98: 0.2029360967 | X98: 0.06465517241 | Y98: Full load hours from Illinois TRM. COP ranges based on professional judgement | Z98: Full Load Hours (Chicago) | AA98: 254 | AB98: Base COP | AC98: 3.2 | AD98: Upgrade COP | AE98: 4.4 | AF98: Capacity (kW) | AG98: 1
A99: Commercial | B99: HVAC | C99: ="Efficient Unitary AC COP = "&AC99&" to "&AE99 -> Efficient Unitary AC COP = 2.4 to 2.8 | D99: ="Unitary AC with coefficient of performance = "&$AE99 -> Unitary AC with coefficient of performance = 2.8 | E99: ="Unitary AC with coefficient of performance = "&$AC99 -> Unitary AC with coefficient of performance = 2.4 | F99: kW of cooling capacity | G99: 15 | H99: 0.005 | I99: 341.25 | J99: 292.5 | M99: 48.75 | N99: 0 | O99: Yes | P99: 3474 | Q99: 464 | R99: ='CDD-energy curve fit'!$D$3*Data!Q99+'CDD-energy curve fit'!$E$3 -> 3183.9536 | S99: ='CDD-energy curve fit'!$D$3*sCDD+'CDD-energy curve fit'!$E$3 -> 1279.822 | T99: 0.4019600034 | U99: 19.59555017 | V99: 0 | W99: 0.2029360967 | X99: 0.06465517241 | Y99: Full load hours from Illinois TRM. COP ranges based on professional judgement | Z99: Full Load Hours (Chicago) | AA99: 819 | AB99: Base COP | AC99: 2.4 | AD99: Upgrade COP | AE99: 2.8 | AF99: Capacity (kW) | AG99: 1
A100: Commercial | B100: HVAC | C100: ="Efficient Unitary AC COP = "&AC100&" to "&AE100 -> Efficient Unitary AC COP = 2.4 to 3.2 | D100: ="Unitary AC with coefficient of performance = "&$AE100 -> Unitary AC with coefficient of performance = 3.2 | E100: ="Unitary AC with coefficient of performance = "&$AC100 -> Unitary AC with coefficient of performance = 2.4 | F100: kW of cooling capacity | G100: 15 | H100: 0.005 | I100: 341.25 | J100: 255.9375 | M100: 85.3125 | N100: 0 | O100: Yes | P100: 3474 | Q100: 464 | R100: ='CDD-energy curve fit'!$D$3*Data!Q100+'CDD-energy curve fit'!$E$3 -> 3183.9536 | S100: ='CDD-energy curve fit'!$D$3*sCDD+'CDD-energy curve fit'!$E$3 -> 1279.822 | T100: 0.4019600034 | U100: 34.29221279 | V100: 0 | W100: 0.2029360967 | X100: 0.06465517241 | Y100: Full load hours from Illinois TRM. COP ranges based on professional judgement | Z100: Full Load Hours (Chicago) | AA100: 819 | AB100: Base COP | AC100: 2.4 | AD100: Upgrade COP | AE100: 3.2 | AF100: Capacity (kW) | AG100: 1
A101: Commercial | B101: HVAC | C101: Efficient Unitary AC COP = 2.4 to 3.6 | D101: Unitary AC with coefficient of performance = 3.6 | E101: Unitary AC with coefficient of performance = 2.4 | F101: kW of cooling capacity | G101: 15 | H101: 0.005 | I101: 341.25 | J101: 227.5 | M101: 113.75 | N101: 0 | O101: Yes | P101: 3474 | Q101: 464 | R101: ='CDD-energy curve fit'!$D$3*Data!Q101+'CDD-energy curve fit'!$E$3 -> 3183.9536 | S101: ='CDD-energy curve fit'!$D$3*sCDD+'CDD-energy curve fit'!$E$3 -> 1279.822 | T101: 0.4019600034 | U101: 45.72295039 | V101: 0 | W101: 0.2029360967 | X101: 0.06465517241 | Y101: Full load hours from Illinois TRM. COP ranges based on professional judgement | Z101: Full Load Hours (Chicago) | AA101: 819 | AB101: Base COP | AC101: 2.4 | AD101: Upgrade COP | AE101: 3.6 | AF101: Capacity (kW) | AG101: 1
A102: Commercial | B102: HVAC | C102: Efficient Unitary AC COP = 2.4 to 4 | D102: Unitary AC with coefficient of performance = 4 | E102: Unitary AC with coefficient of performance = 2.4 | F102: kW of cooling capacity | G102: 15 | H102: 0.005 | I102: 341.25 | J102: 204.75 | M102: 136.5 | N102: 0 | O102: Yes | P102: 3474 | Q102: 464 | R102: ='CDD-energy curve fit'!$D$3*Data!Q102+'CDD-energy curve fit'!$E$3 -> 3183.9536 | S102: ='CDD-energy curve fit'!$D$3*sCDD+'CDD-energy curve fit'!$E$3 -> 1279.822 | T102: 0.4019600034 | U102: 54.86754047 | V102: 0 | W102: 0.2029360967 | X102: 0.06465517241 | Y102: Full load hours from Illinois TRM. COP ranges based on professional judgement | Z102: Full Load Hours (Chicago) | AA102: 819 | AB102: Base COP | AC102: 2.4 | AD102: Upgrade COP | AE102: 4 | AF102: Capacity (kW) | AG102: 1
A103: Commercial | B103: HVAC | C103: Efficient Unitary AC COP = 2.4 to 4.4 | D103: Unitary AC with coefficient of performance = 4.4 | E103: Unitary AC with coefficient of performance = 2.4 | F103: kW of cooling capacity | G103: 15 | H103: 0.005 | I103: 341.25 | J103: 186.1363636 | M103: 155.1136364 | N103: 0 | O103: Yes | P103: 3474 | Q103: 464 | R103: ='CDD-energy curve fit'!$D$3*Data!Q103+'CDD-energy curve fit'!$E$3 -> 3183.9536 | S103: ='CDD-energy curve fit'!$D$3*sCDD+'CDD-energy curve fit'!$E$3 -> 1279.822 | T103: 0.4019600034 | U103: 62.34947781 | V103: 0 | W103: 0.2029360967 | X103: 0.06465517241 | Y103: Full load hours from Illinois TRM. COP ranges based on professional judgement | Z103: Full Load Hours (Chicago) | AA103: 819 | AB103: Base COP | AC103: 2.4 | AD103: Upgrade COP | AE103: 4.4 | AF103: Capacity (kW) | AG103: 1
A104: Commercial | B104: HVAC | C104: Efficient Unitary AC COP = 2.8 to 3.2 | D104: Unitary AC with coefficient of performance = 3.2 | E104: Unitary AC with coefficient of performance = 2.8 | F104: kW of cooling capacity | G104: 15 | H104: 0.005 | I104: 292.5 | J104: 255.9375 | M104: 36.5625 | N104: 0 | O104: Yes | P104: 3474 | Q104: 464 | R104: ='CDD-energy curve fit'!$D$3*Data!Q104+'CDD-energy curve fit'!$E$3 -> 3183.9536 | S104: ='CDD-energy curve fit'!$D$3*sCDD+'CDD-energy curve fit'!$E$3 -> 1279.822 | T104: 0.4019600034 | U104: 14.69666263 | V104: 0 | W104: 0.2029360967 | X104: 0.06465517241 | Y104: Full load hours from Illinois TRM. COP ranges based on professional judgement | Z104: Full Load Hours (Chicago) | AA104: 819 | AB104: Base COP | AC104: 2.8 | AD104: Upgrade COP | AE104: 3.2 | AF104: Capacity (kW) | AG104: 1
A105: Commercial | B105: HVAC | C105: Efficient Unitary AC COP = 2.8 to 3.6 | D105: Unitary AC with coefficient of performance = 3.6 | E105: Unitary AC with coefficient of performance = 2.8 | F105: kW of cooling capacity | G105: 15 | H105: 0.005 | I105: =$AA105*$AG105/AC105 -> 292.5 | J105: =$AA105*$AG105/AE105 -> 227.5 | M105: 65 | N105: 0 | O105: Yes | P105: 3474 | Q105: 464 | R105: ='CDD-energy curve fit'!$D$3*Data!Q105+'CDD-energy curve fit'!$E$3 -> 3183.9536 | S105: ='CDD-energy curve fit'!$D$3*sCDD+'CDD-energy curve fit'!$E$3 -> 1279.822 | T105: 0.4019600034 | U105: 26.12740022 | V105: 0 | W105: 0.2029360967 | X105: 0.06465517241 | Y105: Full load hours from Illinois TRM. COP ranges based on professional judgement | Z105: Full Load Hours (Chicago) | AA105: 819 | AB105: Base COP | AC105: 2.8 | AD105: Upgrade COP | AE105: 3.6 | AF105: Capacity (kW) | AG105: 1
A106: Commercial | B106: HVAC | C106: Efficient Unitary AC COP = 2.8 to 4 | D106: Unitary AC with coefficient of performance = 4 | E106: Unitary AC with coefficient of performance = 2.8 | F106: kW of cooling capacity | G106: 15 | H106: 0.005 | I106: 292.5 | J106: 204.75 | M106: 87.75 | N106: 0 | O106: Yes | P106: 3474 | Q106: 464 | R106: ='CDD-energy curve fit'!$D$3*Data!Q106+'CDD-energy curve fit'!$E$3 -> 3183.9536 | S106: ='CDD-energy curve fit'!$D$3*sCDD+'CDD-energy curve fit'!$E$3 -> 1279.822 | T106: 0.4019600034 | U106: 35.2719903 | V106: 0 | W106: 0.2029360967 | X106: 0.06465517241 | Y106: Full load hours from Illinois TRM. COP ranges based on professional judgement | Z106: Full Load Hours (Chicago) | AA106: 819 | AB106: Base COP | AC106: 2.8 | AD106: Upgrade COP | AE106: 4 | AF106: Capacity (kW) | AG106: 1
A107: Commercial | B107: HVAC | C107: Efficient Unitary AC COP = 2.8 to 4.4 | D107: Unitary AC with coefficient of performance = 4.4 | E107: Unitary AC with coefficient of performance = 2.8 | F107: kW of cooling capacity | G107: 15 | H107: 0.005 | I107: =$AA107*$AG107/AC107 -> 292.5 | J107: =$AA107*$AG107/AE107 -> 186.1363636 | M107: 106.3636364 | N107: 0 | O107: Yes | P107: 3474 | Q107: 464 | R107: ='CDD-energy curve fit'!$D$3*Data!Q107+'CDD-energy curve fit'!$E$3 -> 3183.9536 | S107: ='CDD-energy curve fit'!$D$3*sCDD+'CDD-energy curve fit'!$E$3 -> 1279.822 | T107: 0.4019600034 | U107: 42.75392764 | V107: 0 | W107: =IF(ISBLANK(P107),1,sHDD/P107) -> 0.2029360967 | X107: =IF(ISBLANK(Q107),1,sCDD/Q107) -> 0.06465517241 | Y107: Full load hours from Illinois TRM. COP ranges based on professional judgement | Z107: Full Load Hours (Chicago) | AA107: 819 | AB107: Base COP | AC107: 2.8 | AD107: Upgrade COP | AE107: 4.4 | AF107: Capacity (kW) | AG107: 1
A108: Commercial | B108: HVAC | C108: Efficient Unitary AC COP = 3 to 3.2 | D108: Unitary AC with coefficient of performance = 3.2 | E108: Unitary AC with coefficient of performance = 3 | F108: kW of cooling capacity | G108: 15 | H108: 0.005 | I108: =$AA108*$AG108/AC108 -> 273 | J108: =$AA108*$AG108/AE108 -> 255.9375 | M108: 17.0625 | N108: 0 | O108: Yes | P108: 3474 | Q108: 464 | R108: ='CDD-energy curve fit'!$D$3*Data!Q108+'CDD-energy curve fit'!$E$3 -> 3183.9536 | S108: ='CDD-energy curve fit'!$D$3*sCDD+'CDD-energy curve fit'!$E$3 -> 1279.822 | T108: 0.4019600034 | U108: 6.858442559 | V108: 0 | W108: 0.2029360967 | X108: 0.06465517241 | Y108: Full load hours from Illinois TRM. COP ranges based on professional judgement | Z108: Full Load Hours (Chicago) | AA108: 819 | AB108: Base COP | AC108: 3 | AD108: Upgrade COP | AE108: 3.2 | AF108: Capacity (kW) | AG108: 1
A109: Commercial | B109: HVAC | C109: Efficient Unitary AC COP = 3 to 3.6 | D109: Unitary AC with coefficient of performance = 3.6 | E109: Unitary AC with coefficient of performance = 3 | F109: kW of cooling capacity | G109: 15 | H109: 0.005 | I109: 273 | J109: 227.5 | M109: 45.5 | N109: 0 | O109: Yes | P109: 3474 | Q109: 464 | R109: ='CDD-energy curve fit'!$D$3*Data!Q109+'CDD-energy curve fit'!$E$3 -> 3183.9536 | S109: ='CDD-energy curve fit'!$D$3*sCDD+'CDD-energy curve fit'!$E$3 -> 1279.822 | T109: 0.4019600034 | U109: 18.28918016 | V109: 0 | W109: 0.2029360967 | X109: 0.06465517241 | Y109: Full load hours from Illinois TRM. COP ranges based on professional judgement | Z109: Full Load Hours (Chicago) | AA109: 819 | AB109: Base COP | AC109: 3 | AD109: Upgrade COP | AE109: 3.6 | AF109: Capacity (kW) | AG109: 1
A110: Commercial | B110: HVAC | C110: Efficient Unitary AC COP = 3 to 4 | D110: Unitary AC with coefficient of performance = 4 | E110: Unitary AC with coefficient of performance = 3 | F110: kW of cooling capacity | G110: 15 | H110: 0.005 | I110: =$AA110*$AG110/AC110 -> 273 | J110: =$AA110*$AG110/AE110 -> 204.75 | M110: 68.25 | N110: 0 | O110: Yes | P110: 3474 | Q110: 464 | R110: ='CDD-energy curve fit'!$D$3*Data!Q110+'CDD-energy curve fit'!$E$3 -> 3183.9536 | S110: ='CDD-energy curve fit'!$D$3*sCDD+'CDD-energy curve fit'!$E$3 -> 1279.822 | T110: 0.4019600034 | U110: 27.43377023 | V110: 0 | W110: 0.2029360967 | X110: 0.06465517241 | Y110: Full load hours from Illinois TRM. COP ranges based on professional judgement | Z110: Full Load Hours (Chicago) | AA110: 819 | AB110: Base COP | AC110: 3 | AD110: Upgrade COP | AE110: 4 | AF110: Capacity (kW) | AG110: 1
A111: Commercial | B111: HVAC | C111: Efficient Unitary AC COP = 3 to 4.4 | D111: Unitary AC with coefficient of performance = 4.4 | E111: Unitary AC with coefficient of performance = 3 | F111: kW of cooling capacity | G111: 15 | H111: 0.005 | I111: =$AA111*$AG111/AC111 -> 273 | J111: =$AA111*$AG111/AE111 -> 186.1363636 | M111: 86.86363636 | N111: 0 | O111: Yes | P111: 3474 | Q111: 464 | R111: ='CDD-energy curve fit'!$D$3*Data!Q111+'CDD-energy curve fit'!$E$3 -> 3183.9536 | S111: ='CDD-energy curve fit'!$D$3*sCDD+'CDD-energy curve fit'!$E$3 -> 1279.822 | T111: 0.4019600034 | U111: 34.91570757 | V111: 0 | W111: 0.2029360967 | X111: 0.06465517241 | Y111: Full load hours from Illinois TRM. COP ranges based on professional judgement | Z111: Full Load Hours (Chicago) | AA111: 819 | AB111: Base COP | AC111: 3 | AD111: Upgrade COP | AE111: 4.4 | AF111: Capacity (kW) | AG111: 1
A112: Commercial | B112: HVAC | C112: Efficient Unitary AC COP = 3.2 to 3.6 | D112: Unitary AC with coefficient of performance = 3.6 | E112: Unitary AC with coefficient of performance = 3.2 | F112: kW of cooling capacity | G112: 15 | H112: 0.005 | I112: 255.9375 | J112: 227.5 | M112: 28.4375 | N112: 0 | O112: Yes | P112: 3474 | Q112: 464 | R112: ='CDD-energy curve fit'!$D$3*Data!Q112+'CDD-energy curve fit'!$E$3 -> 3183.9536 | S112: ='CDD-energy curve fit'!$D$3*sCDD+'CDD-energy curve fit'!$E$3 -> 1279.822 | T112: 0.4019600034 | U112: 11.4307376 | V112: 0 | W112: 0.2029360967 | X112: 0.06465517241 | Y112: Full load hours from Illinois TRM. COP ranges based on professional judgement | Z112: Full Load Hours (Chicago) | AA112: 819 | AB112: Base COP | AC112: 3.2 | AD112: Upgrade COP | AE112: 3.6 | AF112: Capacity (kW) | AG112: 1
A113: Commercial | B113: HVAC | C113: Efficient Unitary AC COP = 3.2 to 4 | D113: Unitary AC with coefficient of performance = 4 | E113: Unitary AC with coefficient of performance = 3.2 | F113: kW of cooling capacity | G113: 15 | H113: 0.005 | I113: 255.9375 | J113: 204.75 | M113: 51.1875 | N113: 0 | O113: Yes | P113: 3474 | Q113: 464 | R113: ='CDD-energy curve fit'!$D$3*Data!Q113+'CDD-energy curve fit'!$E$3 -> 3183.9536 | S113: ='CDD-energy curve fit'!$D$3*sCDD+'CDD-energy curve fit'!$E$3 -> 1279.822 | T113: 0.4019600034 | U113: 20.57532768 | V113: 0 | W113: 0.2029360967 | X113: 0.06465517241 | Y113: Full load hours from Illinois TRM. COP ranges based on professional judgement | Z113: Full Load Hours (Chicago) | AA113: 819 | AB113: Base COP | AC113: 3.2 | AD113: Upgrade COP | AE113: 4 | AF113: Capacity (kW) | AG113: 1
A114: Commercial | B114: HVAC | C114: Efficient Unitary AC COP = 3.2 to 4.4 | D114: Unitary AC with coefficient of performance = 4.4 | E114: Unitary AC with coefficient of performance = 3.2 | F114: kW of cooling capacity | G114: 15 | H114: 0.005 | I114: =$AA114*$AG114/AC114 -> 255.9375 | J114: =$AA114*$AG114/AE114 -> 186.1363636 | M114: 69.80113636 | N114: 0 | O114: Yes | P114: 3474 | Q114: 464 | R114: ='CDD-energy curve fit'!$D$3*Data!Q114+'CDD-energy curve fit'!$E$3 -> 3183.9536 | S114: ='CDD-energy curve fit'!$D$3*sCDD+'CDD-energy curve fit'!$E$3 -> 1279.822 | T114: 0.4019600034 | U114: 28.05726501 | V114: 0 | W114: 0.2029360967 | X114: 0.06465517241 | Y114: Full load hours from Illinois TRM. COP ranges based on professional judgement | Z114: Full Load Hours (Chicago) | AA114: 819 | AB114: Base COP | AC114: 3.2 | AD114: Upgrade COP | AE114: 4.4 | AF114: Capacity (kW) | AG114: 1
A115: Commercial | B115: HVAC | C115: ="Efficient Chiller AC COP = "&AC115&" to "&AE115 -> Efficient Chiller AC COP = 2.4 to 2.8 | D115: ="Chiller with coefficient of performance = "&$AE115 -> Chiller with coefficient of performance = 2.8 | E115: ="Chiller with coefficient of performance = "&$AC115 -> Chiller with coefficient of performance = 2.4 | F115: kW of cooling capacity | G115: 15 | H115: 0.005 | I115: 559.5833333 | J115: 479.6428571 | M115: 79.94047619 | N115: 0 | O115: Yes | P115: 3474 | Q115: 464 | R115: ='CDD-energy curve fit'!$D$3*Data!Q115+'CDD-energy curve fit'!$E$3 -> 3183.9536 | S115: ='CDD-energy curve fit'!$D$3*sCDD+'CDD-energy curve fit'!$E$3 -> 1279.822 | T115: 0.4019600034 | U115: 32.13287408 | V115: 0 | W115: 0.2029360967 | X115: 0.06465517241 | Y115: Full load hours from Illinois TRM. COP ranges based on professional judgement | Z115: Full Load Hours (Chicago) | AA115: 1343 | AB115: Base COP | AC115: 2.4 | AD115: Upgrade COP | AE115: 2.8 | AF115: Capacity (kW) | AG115: 1
A116: Commercial | B116: HVAC | C116: ="Efficient Chiller AC COP = "&AC116&" to "&AE116 -> Efficient Chiller AC COP = 2.4 to 3.2 | D116: ="Chiller with coefficient of performance = "&$AE116 -> Chiller with coefficient of performance = 3.2 | E116: ="Chiller with coefficient of performance = "&$AC116 -> Chiller with coefficient of performance = 2.4 | F116: kW of cooling capacity | G116: 15 | H116: 0.005 | I116: 559.5833333 | J116: 419.6875 | M116: 139.8958333 | N116: 0 | O116: Yes | P116: 3474 | Q116: 464 | R116: ='CDD-energy curve fit'!$D$3*Data!Q116+'CDD-energy curve fit'!$E$3 -> 3183.9536 | S116: ='CDD-energy curve fit'!$D$3*sCDD+'CDD-energy curve fit'!$E$3 -> 1279.822 | T116: 0.4019600034 | U116: 56.23252965 | V116: 0 | W116: 0.2029360967 | X116: 0.06465517241 | Y116: Full load hours from Illinois TRM. COP ranges based on professional judgement | Z116: Full Load Hours (Chicago) | AA116: 1343 | AB116: Base COP | AC116: 2.4 | AD116: Upgrade COP | AE116: 3.2 | AF116: Capacity (kW) | AG116: 1
A117: Commercial | B117: HVAC | C117: Efficient Chiller AC COP = 2.4 to 3.6 | D117: Chiller with coefficient of performance = 3.6 | E117: Chiller with coefficient of performance = 2.4 | F117: kW of cooling capacity | G117: 15 | H117: 0.005 | I117: 559.5833333 | J117: 373.0555556 | M117: 186.5277778 | N117: 0 | O117: Yes | P117: 3474 | Q117: 464 | R117: ='CDD-energy curve fit'!$D$3*Data!Q117+'CDD-energy curve fit'!$E$3 -> 3183.9536 | S117: ='CDD-energy curve fit'!$D$3*sCDD+'CDD-energy curve fit'!$E$3 -> 1279.822 | T117: 0.4019600034 | U117: 74.9767062 | V117: 0 | W117: 0.2029360967 | X117: 0.06465517241 | Y117: Full load hours from Illinois TRM. COP ranges based on professional judgement | Z117: Full Load Hours (Chicago) | AA117: 1343 | AB117: Base COP | AC117: 2.4 | AD117: Upgrade COP | AE117: 3.6 | AF117: Capacity (kW) | AG117: 1
A118: Commercial | B118: HVAC | C118: Efficient Chiller AC COP = 2.4 to 4 | D118: Chiller with coefficient of performance = 4 | E118: Chiller with coefficient of performance = 2.4 | F118: kW of cooling capacity | G118: 15 | H118: 0.005 | I118: 559.5833333 | J118: 335.75 | M118: 223.8333333 | N118: 0 | O118: Yes | P118: 3474 | Q118: 464 | R118: ='CDD-energy curve fit'!$D$3*Data!Q118+'CDD-energy curve fit'!$E$3 -> 3183.9536 | S118: ='CDD-energy curve fit'!$D$3*sCDD+'CDD-energy curve fit'!$E$3 -> 1279.822 | T118: 0.4019600034 | U118: 89.97204744 | V118: 0 | W118: 0.2029360967 | X118: 0.06465517241 | Y118: Full load hours from Illinois TRM. COP ranges based on professional judgement | Z118: Full Load Hours (Chicago) | AA118: 1343 | AB118: Base COP | AC118: 2.4 | AD118: Upgrade COP | AE118: 4 | AF118: Capacity (kW) | AG118: 1
A119: Commercial | B119: HVAC | C119: Efficient Chiller AC COP = 2.4 to 4.4 | D119: Chiller with coefficient of performance = 4.4 | E119: Chiller with coefficient of performance = 2.4 | F119: kW of cooling capacity | G119: 15 | H119: 0.005 | I119: 559.5833333 | J119: 305.2272727 | M119: 254.3560606 | N119: 0 | O119: Yes | P119: 3474 | Q119: 464 | R119: ='CDD-energy curve fit'!$D$3*Data!Q119+'CDD-energy curve fit'!$E$3 -> 3183.9536 | S119: ='CDD-energy curve fit'!$D$3*sCDD+'CDD-energy curve fit'!$E$3 -> 1279.822 | T119: 0.4019600034 | U119: 102.240963 | V119: 0 | W119: 0.2029360967 | X119: 0.06465517241 | Y119: Full load hours from Illinois TRM. COP ranges based on professional judgement | Z119: Full Load Hours (Chicago) | AA119: 1343 | AB119: Base COP | AC119: 2.4 | AD119: Upgrade COP | AE119: 4.4 | AF119: Capacity (kW) | AG119: 1
A120: Commercial | B120: HVAC | C120: Efficient Chiller AC COP = 2.8 to 3.2 | D120: Chiller with coefficient of performance = 3.2 | E120: Chiller with coefficient of performance = 2.8 | F120: kW of cooling capacity | G120: 15 | H120: 0.005 | I120: 479.6428571 | J120: 419.6875 | M120: 59.95535714 | N120: 0 | O120: Yes | P120: 3474 | Q120: 464 | R120: ='CDD-energy curve fit'!$D$3*Data!Q120+'CDD-energy curve fit'!$E$3 -> 3183.9536 | S120: ='CDD-energy curve fit'!$D$3*sCDD+'CDD-energy curve fit'!$E$3 -> 1279.822 | T120: 0.4019600034 | U120: 24.09965556 | V120: 0 | W120: 0.2029360967 | X120: 0.06465517241 | Y120: Full load hours from Illinois TRM. COP ranges based on professional judgement | Z120: Full Load Hours (Chicago) | AA120: 1343 | AB120: Base COP | AC120: 2.8 | AD120: Upgrade COP | AE120: 3.2 | AF120: Capacity (kW) | AG120: 1
A121: Commercial | B121: HVAC | C121: Efficient Chiller AC COP = 2.8 to 3.6 | D121: Chiller with coefficient of performance = 3.6 | E121: Chiller with coefficient of performance = 2.8 | F121: kW of cooling capacity | G121: 15 | H121: 0.005 | I121: =$AA121*$AG121/AC121 -> 479.6428571 | J121: =$AA121*$AG121/AE121 -> 373.0555556 | M121: 106.5873016 | N121: 0 | O121: Yes | P121: 3474 | Q121: 464 | R121: ='CDD-energy curve fit'!$D$3*Data!Q121+'CDD-energy curve fit'!$E$3 -> 3183.9536 | S121: ='CDD-energy curve fit'!$D$3*sCDD+'CDD-energy curve fit'!$E$3 -> 1279.822 | T121: 0.4019600034 | U121: 42.84383211 | V121: 0 | W121: 0.2029360967 | X121: 0.06465517241 | Y121: Full load hours from Illinois TRM. COP ranges based on professional judgement | Z121: Full Load Hours (Chicago) | AA121: 1343 | AB121: Base COP | AC121: 2.8 | AD121: Upgrade COP | AE121: 3.6 | AF121: Capacity (kW) | AG121: 1
A122: Commercial | B122: HVAC | C122: Efficient Chiller AC COP = 2.8 to 4 | D122: Chiller with coefficient of performance = 4 | E122: Chiller with coefficient of performance = 2.8 | F122: kW of cooling capacity | G122: 15 | H122: 0.005 | I122: 479.6428571 | J122: 335.75 | M122: 143.8928571 | N122: 0 | O122: Yes | P122: 3474 | Q122: 464 | R122: ='CDD-energy curve fit'!$D$3*Data!Q122+'CDD-energy curve fit'!$E$3 -> 3183.9536 | S122: ='CDD-energy curve fit'!$D$3*sCDD+'CDD-energy curve fit'!$E$3 -> 1279.822 | T122: 0.4019600034 | U122: 57.83917335 | V122: 0 | W122: 0.2029360967 | X122: 0.06465517241 | Y122: Full load hours from Illinois TRM. COP ranges based on professional judgement | Z122: Full Load Hours (Chicago) | AA122: 1343 | AB122: Base COP | AC122: 2.8 | AD122: Upgrade COP | AE122: 4 | AF122: Capacity (kW) | AG122: 1
A123: Commercial | B123: HVAC | C123: Efficient Chiller AC COP = 2.8 to 4.4 | D123: Chiller with coefficient of performance = 4.4 | E123: Chiller with coefficient of performance = 2.8 | F123: kW of cooling capacity | G123: 15 | H123: 0.005 | I123: =$AA123*$AG123/AC123 -> 479.6428571 | J123: =$AA123*$AG123/AE123 -> 305.2272727 | M123: 174.4155844 | N123: 0 | O123: Yes | P123: 3474 | Q123: 464 | R123: ='CDD-energy curve fit'!$D$3*Data!Q123+'CDD-energy curve fit'!$E$3 -> 3183.9536 | S123: ='CDD-energy curve fit'!$D$3*sCDD+'CDD-energy curve fit'!$E$3 -> 1279.822 | T123: 0.4019600034 | U123: 70.10808891 | V123: 0 | W123: 0.2029360967 | X123: 0.06465517241 | Y123: Full load hours from Illinois TRM. COP ranges based on professional judgement | Z123: Full Load Hours (Chicago) | AA123: 1343 | AB123: Base COP | AC123: 2.8 | AD123: Upgrade COP | AE123: 4.4 | AF123: Capacity (kW) | AG123: 1
A124: Commercial | B124: HVAC | C124: Efficient Chiller AC COP = 3 to 3.2 | D124: Chiller with coefficient of performance = 3.2 | E124: Chiller with coefficient of performance = 3 | F124: kW of cooling capacity | G124: 15 | H124: 0.005 | I124: =$AA124*$AG124/AC124 -> 447.6666667 | J124: =$AA124*$AG124/AE124 -> 419.6875 | M124: 27.97916667 | N124: 0 | O124: Yes | P124: 3474 | Q124: 464 | R124: ='CDD-energy curve fit'!$D$3*Data!Q124+'CDD-energy curve fit'!$E$3 -> 3183.9536 | S124: ='CDD-energy curve fit'!$D$3*sCDD+'CDD-energy curve fit'!$E$3 -> 1279.822 | T124: 0.4019600034 | U124: 11.24650593 | V124: 0 | W124: 0.2029360967 | X124: 0.06465517241 | Y124: Full load hours from Illinois TRM. COP ranges based on professional judgement | Z124: Full Load Hours (Chicago) | AA124: 1343 | AB124: Base COP | AC124: 3 | AD124: Upgrade COP | AE124: 3.2 | AF124: Capacity (kW) | AG124: 1
A125: Commercial | B125: HVAC | C125: Efficient Chiller AC COP = 3 to 3.6 | D125: Chiller with coefficient of performance = 3.6 | E125: Chiller with coefficient of performance = 3 | F125: kW of cooling capacity | G125: 15 | H125: 0.005 | I125: 447.6666667 | J125: 373.0555556 | M125: 74.61111111 | N125: 0 | O125: Yes | P125: 3474 | Q125: 464 | R125: ='CDD-energy curve fit'!$D$3*Data!Q125+'CDD-energy curve fit'!$E$3 -> 3183.9536 | S125: ='CDD-energy curve fit'!$D$3*sCDD+'CDD-energy curve fit'!$E$3 -> 1279.822 | T125: 0.4019600034 | U125: 29.99068248 | V125: 0 | W125: 0.2029360967 | X125: 0.06465517241 | Y125: Full load hours from Illinois TRM. COP ranges based on professional judgement | Z125: Full Load Hours (Chicago) | AA125: 1343 | AB125: Base COP | AC125: 3 | AD125: Upgrade COP | AE125: 3.6 | AF125: Capacity (kW) | AG125: 1
A126: Commercial | B126: HVAC | C126: Efficient Chiller AC COP = 3 to 4 | D126: Chiller with coefficient of performance = 4 | E126: Chiller with coefficient of performance = 3 | F126: kW of cooling capacity | G126: 15 | H126: 0.005 | I126: =$AA126*$AG126/AC126 -> 447.6666667 | J126: =$AA126*$AG126/AE126 -> 335.75 | M126: 111.9166667 | N126: 0 | O126: Yes | P126: 3474 | Q126: 464 | R126: ='CDD-energy curve fit'!$D$3*Data!Q126+'CDD-energy curve fit'!$E$3 -> 3183.9536 | S126: ='CDD-energy curve fit'!$D$3*sCDD+'CDD-energy curve fit'!$E$3 -> 1279.822 | T126: 0.4019600034 | U126: 44.98602372 | V126: 0 | W126: 0.2029360967 | X126: 0.06465517241 | Y126: Full load hours from Illinois TRM. COP ranges based on professional judgement | Z126: Full Load Hours (Chicago) | AA126: 1343 | AB126: Base COP | AC126: 3 | AD126: Upgrade COP | AE126: 4 | AF126: Capacity (kW) | AG126: 1
A127: Commercial | B127: HVAC | C127: Efficient Chiller AC COP = 3 to 4.4 | D127: Chiller with coefficient of performance = 4.4 | E127: Chiller with coefficient of performance = 3 | F127: kW of cooling capacity | G127: 15 | H127: 0.005 | I127: =$AA127*$AG127/AC127 -> 447.6666667 | J127: =$AA127*$AG127/AE127 -> 305.2272727 | M127: 142.4393939 | N127: 0 | O127: Yes | P127: 3474 | Q127: 464 | R127: ='CDD-energy curve fit'!$D$3*Data!Q127+'CDD-energy curve fit'!$E$3 -> 3183.9536 | S127: ='CDD-energy curve fit'!$D$3*sCDD+'CDD-energy curve fit'!$E$3 -> 1279.822 | T127: 0.4019600034 | U127: 57.25493928 | V127: 0 | W127: 0.2029360967 | X127: 0.06465517241 | Y127: Full load hours from Illinois TRM. COP ranges based on professional judgement | Z127: Full Load Hours (Chicago) | AA127: 1343 | AB127: Base COP | AC127: 3 | AD127: Upgrade COP | AE127: 4.4 | AF127: Capacity (kW) | AG127: 1
A128: Commercial | B128: HVAC | C128: Efficient Chiller AC COP = 3.2 to 3.6 | D128: Chiller with coefficient of performance = 3.6 | E128: Chiller with coefficient of performance = 3.2 | F128: kW of cooling capacity | G128: 15 | H128: 0.005 | I128: 419.6875 | J128: 373.0555556 | M128: 46.63194444 | N128: 0 | O128: Yes | P128: 3474 | Q128: 464 | R128: ='CDD-energy curve fit'!$D$3*Data!Q128+'CDD-energy curve fit'!$E$3 -> 3183.9536 | S128: ='CDD-energy curve fit'!$D$3*sCDD+'CDD-energy curve fit'!$E$3 -> 1279.822 | T128: 0.4019600034 | U128: 18.74417655 | V128: 0 | W128: 0.2029360967 | X128: 0.06465517241 | Y128: Full load hours from Illinois TRM. COP ranges based on professional judgement | Z128: Full Load Hours (Chicago) | AA128: 1343 | AB128: Base COP | AC128: 3.2 | AD128: Upgrade COP | AE128: 3.6 | AF128: Capacity (kW) | AG128: 1
A129: Commercial | B129: HVAC | C129: Efficient Chiller AC COP = 3.2 to 4 | D129: Chiller with coefficient of performance = 4 | E129: Chiller with coefficient of performance = 3.2 | F129: kW of cooling capacity | G129: 15 | H129: 0.005 | I129: 419.6875 | J129: 335.75 | M129: 83.9375 | N129: 0 | O129: Yes | P129: 3474 | Q129: 464 | R129: ='CDD-energy curve fit'!$D$3*Data!Q129+'CDD-energy curve fit'!$E$3 -> 3183.9536 | S129: ='CDD-energy curve fit'!$D$3*sCDD+'CDD-energy curve fit'!$E$3 -> 1279.822 | T129: 0.4019600034 | U129: 33.73951779 | V129: 0 | W129: 0.2029360967 | X129: 0.06465517241 | Y129: Full load hours from Illinois TRM. COP ranges based on professional judgement | Z129: Full Load Hours (Chicago) | AA129: 1343 | AB129: Base COP | AC129: 3.2 | AD129: Upgrade COP | AE129: 4 | AF129: Capacity (kW) | AG129: 1
A130: Commercial | B130: HVAC | C130: Efficient Chiller AC COP = 3.2 to 4.4 | D130: Chiller with coefficient of performance = 4.4 | E130: Chiller with coefficient of performance = 3.2 | F130: kW of cooling capacity | G130: 15 | H130: 0.005 | I130: =$AA130*$AG130/AC130 -> 419.6875 | J130: =$AA130*$AG130/AE130 -> 305.2272727 | M130: 114.4602273 | N130: 0 | O130: Yes | P130: 3474 | Q130: 464 | R130: ='CDD-energy curve fit'!$D$3*Data!Q130+'CDD-energy curve fit'!$E$3 -> 3183.9536 | S130: ='CDD-energy curve fit'!$D$3*sCDD+'CDD-energy curve fit'!$E$3 -> 1279.822 | T130: =S130/R130 -> 0.4019600034 | U130: 46.00843335 | V130: 0 | W130: 0.2029360967 | X130: 0.06465517241 | Y130: Full load hours from Illinois TRM. COP ranges based on professional judgement | Z130: Full Load Hours (Chicago) | AA130: 1343 | AB130: Base COP | AC130: 3.2 | AD130: Upgrade COP | AE130: 4.4 | AF130: Capacity (kW) | AG130: 1
W131: 1 | X131: 1
A132: Last Row | B132: Last Row | C132: Last Row | D132: Last Row | E132: Last Row | F132: Last Row | G132: Last Row | I132: Last Row | J132: Last Row | K132: Last Row | L132: Last Row | M132: Last Row | N132: Last Row | O132: Last Row | Y132: Last Row | Z132: Last Row | AA132: Last Row | AB132: Last Row | AC132: Last Row | AD132: Last Row | AE132: Last Row | AF132: Last Row | AG132: Last Row

Sheet CDD-energy curve fit (hidden)
B1: Sample Application: | L1: Reference Set - Small Office, 4.5 COP cooling curve, auto-sized heating/cooling system, randomly selected locations from the CLEER HDD/CDD list | Y1: "cut-in" HDD curve fit - exclude cities with under 1000 HDD
C2: CDD | D2: M | E2: b | F2: Total Reference Office Cooling Electricity | L2: Random Count | M2: Country | N2: City | O2: Weather File Name | P2: Heating Degree Days | Q2: Cooling Degree Days | R2: Heating Natural Gas (GJ) | S2: Cooling Electricity (GJ) | T2: Heating (Therms) | U2: Cooling (kWh) | Y2: Random Count | Z2: Country | AA2: City | AB2: Weather File Name | AC2: Heating Degree Days | AD2: Cooling Degree Days | AE2: Heating Natural Gas (GJ) | AF2: Cooling Electricity (GJ) | AG2: Heating (Therms) | AH2: Cooling (kWh)
B3: Reference | C3: 500 | D3: 4.3874 | E3: 1148.2 | F3: =C3*D3+E3 -> 3341.9 | L3: 143 | M3: CAN | N3: BC_Vancouver | O3: CAN_BC_Vancouver.718920_CWEC | P3: 3020 | Q3: 5 | R3: 46.1 | S3: 4.58 | T3: =R3*9.4782 -> 436.94502 | U3: =S3*277.778 -> 1272.22324 | Y3: 512 | Z3: ITA | AA3: Genova | AB3: ITA_Genova.161200_IWEC | AC3: 1348 | AD3: 653 | AE3: 11.51 | AF3: 14.42 | AG3: =AE3*9.4782 -> 109.094082 | AH3: =AF3*277.778 -> 4005.55876
B4: Selected | C4: 4000 | D4: 4.3874 | E4: 1148.2 | F4: =C4*D4+E4 -> 18697.8 | L4: 134 | M4: CAN | N4: BC_Comox | O4: CAN_BC_Comox.718930_CWEC | P4: 3177 | Q4: 31 | R4: 49.62 | S4: 4.5 | T4: =R4*9.4782 -> 470.308284 | U4: =S4*277.778 -> 1250.001 | Y4: 50 | Z4: AUS | AA4: VIC Cape Otway Lighthouse | AB4: AUS_VIC.Cape.Otway.Lighthouse.948420_RMY | AC4: 1625 | AD4: 152 | AE4: 2.47 | AF4: 3.96 | AG4: 23.411154 | AH4: 1100.00088
E5: Ratio | F5: =F4/F3 -> 5.59496095 | L5: 45 | M5: AUS | N5: TAS Hobart-Ellerslie Road | O5: AUS_TAS.Hobart-Ellerslie.Road.949700_RMY | P5: 2073 | Q5: 52 | R5: 7.54 | S5: 2.83 | T5: 71.465628 | U5: 786.11174 | Y5: 368 | Z5: FRA | AA5: Montpellier | AB5: FRA_Montpellier.076430_IWEC | AC5: 1693 | AD5: 531 | AE5: 17.22 | AF5: 12.62 | AG5: 163.214604 | AH5: 3505.55836
E6: Reference Savings | F6: 200 | G6: kWh | L6: 689 | M6: POL | N6: Lebork | O6: POL_Lebork.121250_IMGW | P6: 3739 | Q6: 65 | R6: 72.67 | S6: 4.17 | T6: 688.780794 | U6: 1158.33426 | Y6: 792 | Z6: USA | AA6: AL_Huntsville Intl AP-Jones Field | AB6: USA_AL_Huntsville.Intl.AP-Jones.Field.723230_TMY3 | AC6: 1846 | AD6: 948 | AE6: 25.83 | AF6: 19.37 | AG6: 244.821906 | AH6: 5380.55986
E7: Adjusted Savings | F7: =F5*F6 -> 1118.99219 | G7: kWh | L7: 131 | M7: CAN | N7: AB_Lethbridge | O7: CAN_AB_Lethbridge.712430_CWEC | P7: 4430 | Q7: 127 | R7: 82.44 | S7: 7.32 | T7: 781.382808 | U7: 2033.33496 | Y7: 45 | Z7: AUS | AA7: TAS Hobart-Ellerslie Road | AB7: AUS_TAS.Hobart-Ellerslie.Road.949700_RMY | AC7: 2073 | AD7: 52 | AE7: 7.54 | AF7: 2.83 | AG7: 71.465628 | AH7: 786.11174
E8: Ratio - prior method | F8: =C4/C3 -> 8 | L8: 50 | M8: AUS | N8: VIC Cape Otway Lighthouse | O8: AUS_VIC.Cape.Otway.Lighthouse.948420_RMY | P8: 1625 | Q8: 152 | R8: 2.47 | S8: 3.96 | T8: 23.411154 | U8: 1100.00088 | Y8: 519 | Z8: ITA | AA8: Milan | AB8: ITA_Milan.160660_IWEC | AC8: 2639 | AD8: 380 | AE8: 42.51 | AF8: 11.24 | AG8: 402.918282 | AH8: 3122.22472
E9: Prior method adj savings | F9: =F8*F6 -> 1600 | G9: kWh | L9: 186 | M9: CAN | N9: PQ_Montreal Intl AP | O9: CAN_PQ_Montreal.Intl.AP.716270_CWEC | P9: 4493 | Q9: 234 | R9: 108.52 | S9: 7.79 | T9: 1028.574264 | U9: 2163.89062 | Y9: 752 | Z9: ROU | AA9: Galati | AB9: ROU_Galati.153100_IWEC | AC9: 2962 | AD9: 408 | AE9: 53.57 | AF9: 11.74 | AG9: 507.747174 | AH9: 3261.11372
L10: 206 | M10: CHL | N10: Antofagasta | O10: CHL_Antofagasta.854420_IWEC | P10: 598 | Q10: 236 | R10: 0.53 | S10: 8.66 | T10: 5.023446 | U10: 2405.55748 | Y10: 143 | Z10: CAN | AA10: BC_Vancouver | AB10: CAN_BC_Vancouver.718920_CWEC | AC10: 3020 | AD10: 5 | AE10: 46.1 | AF10: 4.58 | AG10: 436.94502 | AH10: 1272.22324
L11: 884 | M11: USA | N11: NY_Buffalo | O11: USA_NY_Buffalo.725280_TMY2 | P11: 3609 | Q11: 323 | R11: 80.44 | S11: 9.08 | T11: 762.426408 | U11: 2522.22424 | Y11: 134 | Z11: CAN | AA11: BC_Comox | AB11: CAN_BC_Comox.718930_CWEC | AC11: 3177 | AD11: 31 | AE11: 49.62 | AF11: 4.5 | AG11: 470.308284 | AH11: 1250.001
L12: 519 | M12: ITA | N12: Milan | O12: ITA_Milan.160660_IWEC | P12: 2639 | Q12: 380 | R12: 42.51 | S12: 11.24 | T12: 402.918282 | U12: 3122.22472 | Y12: 874 | Z12: USA | AA12: NE_Kearney Muni AWOS | AB12: USA_NE_Kearney.Muni.AWOS.725526_TMY3 | AC12: 3488 | AD12: 487 | AE12: 61.66 | AF12: 12.58 | AG12: 584.425812 | AH12: 3494.44724
L13: 752 | M13: ROU | N13: Galati | O13: ROU_Galati.153100_IWEC | P13: 2962 | Q13: 408 | R13: 53.57 | S13: 11.74 | T13: 507.747174 | U13: 3261.11372 | Y13: 884 | Z13: USA | AA13: NY_Buffalo | AB13: USA_NY_Buffalo.725280_TMY2 | AC13: 3609 | AD13: 323 | AE13: 80.44 | AF13: 9.08 | AG13: 762.426408 | AH13: 2522.22424
L14: 874 | M14: USA | N14: NE_Kearney Muni AWOS | O14: USA_NE_Kearney.Muni.AWOS.725526_TMY3 | P14: 3488 | Q14: 487 | R14: 61.66 | S14: 12.58 | T14: 584.425812 | U14: 3494.44724 | Y14: 689 | Z14: POL | AA14: Lebork | AB14: POL_Lebork.121250_IMGW | AC14: 3739 | AD14: 65 | AE14: 72.67 | AF14: 4.17 | AG14: 688.780794 | AH14: 1158.33426
L15: 368 | M15: FRA | N15: Montpellier | O15: FRA_Montpellier.076430_IWEC | P15: 1693 | Q15: 531 | R15: 17.22 | S15: 12.62 | T15: 163.214604 | U15: 3505.55836 | Y15: 131 | Z15: CAN | AA15: AB_Lethbridge | AB15: CAN_AB_Lethbridge.712430_CWEC | AC15: 4430 | AD15: 127 | AE15: 82.44 | AF15: 7.32 | AG15: 781.382808 | AH15: 2033.33496
L16: 512 | M16: ITA | N16: Genova | O16: ITA_Genova.161200_IWEC | P16: 1348 | Q16: 653 | R16: 11.51 | S16: 14.42 | T16: 109.094082 | U16: 4005.55876 | Y16: 186 | Z16: CAN | AA16: PQ_Montreal Intl AP | AB16: CAN_PQ_Montreal.Intl.AP.716270_CWEC | AC16: 4493 | AD16: 234 | AE16: 108.52 | AF16: 7.79 | AG16: 1028.574264 | AH16: 2163.89062
L17: 792 | M17: USA | N17: AL_Huntsville Intl AP-Jones Field | O17: USA_AL_Huntsville.Intl.AP-Jones.Field.723230_TMY3 | P17: 1846 | Q17: 948 | R17: 25.83 | S17: 19.37 | T17: 244.821906 | U17: 5380.55986 | Y17: Last row
L18: 113 | M18: BRA | N18: Florianopolis | O18: BRA_Florianopolis.838990_SWERA | P18: 201 | Q18: 1196 | R18: 0.31 | S18: 22.65 | T18: 2.938242 | U18: 6291.6717
M19: CUB | N19: Havana | O19: CUB_Havana.782240_IWEC | P19: 10 | Q19: 2432 | R19: 0.11 | S19: 40.51 | T19: 1.042602 | U19: 11252.78678
L20: 292 | M20: EGY | N20: Luxor | O20: EGY_Luxor.624050_ETMY | P20: 252 | Q20: 2728 | R20: 0.69 | S20: 56.69 | T20: 6.539958 | U20: 15747.23482
L21: 78 | M21: AUS | N21: WA Port Hedland Airport | O21: AUS_WA.Port.Hedland.943120_IWEC | P21: 16 | Q21: 2764 | R21: 0.13 | S21: 43.45 | T21: 1.232166 | U21: 12069.4541
L22: 437 | M22: IND | N22: Kolkata | O22: IND_Kolkata.428090_ISHRAE | P22: 11 | Q22: 3021 | R22: 0.05 | S22: 52.84 | T22: 0.47391 | U22: 14677.78952
L23: 1 | M23: ARE | N23: Abu Dhabi | O23: ARE_Abu.Dhabi.412170_IWEC | P23: 24 | Q23: 3358 | R23: 0.21 | S23: 57.35 | T23: 1.990422 | U23: 15930.5683
L24: 616 | M24: MDV | N24: Male-Hulule Island | O24: MDV_Male-Hulule.Island.435550_SWERA | P24: 0 | Q24: 3708 | R24: 0 | S24: 59.12 | T24: 0 | U24: 16422.23536
L25: Last row
L52: Extra locations
L53: 520 | M53: ITA | N53: Milano-Linate | P53: 2454 | Q53: 414
L54: 324 | M54: ESP | N54: Murcia | P54: 1040 | Q54: 652
L55: 759 | M55: RUS | N55: Omsk | P55: 6099 | Q55: 196
L56: 34 | M56: AUS | N56: QLD Rockhampton Aero | P56: 135 | Q56: 1620
L57: 642 | M57: NZL | N57: Canterbury Christchurch | P57: 2441 | Q57: 58
L58: 609 | M58: LKA | N58: Puttalam | P58: 0 | Q58: 3424
L59: 907 | M59: USA | N59: TN_Chattanooga | P59: 1929 | Q59: 876
L60: 387 | M60: GTM | N60: Flores | P60: 1 | Q60: 2502
L61: 613 | M61: MAR | N61: Casablanca Nouasser | P61: 829 | Q61: 582
L62: 227 | M62: CHN | N62: Jiangsu Dongtai | P62: 2092 | Q62: 922
L63: 654 | M63: NZL | N63: Waikato-Hamilton HN | P63: 1710 | Q63: 64
L64: 246 | M64: CUB | N64: Camaguey | P64: 7 | Q64: 2463
L65: 238 | M65: CHN | N65: Sichuan Barkam | P65: 3442 | Q65: 13
L66: 698 | M66: POL | N66: Olsztyn | P66: 4106 | Q66: 72
L67: 515 | M67: ITA | N67: Lecce | P67: 1294 | Q67: 630
L68: 281 | M68: EGY | N68: Alexandria | P68: 416 | Q68: 1296
L69: 232 | M69: CHN | N69: Nei Mongol Abag Qi Hot | P69: 6110 | Q69: 248
L70: 808 | M70: USA | N70: CO_Boulder | P70: 3322 | Q70: 360
L71: 681 | M71: POL | N71: Kolo | P71: 3522 | Q71: 91
L72: 921 | M72: USA | N72: WI_Green Bay | P72: 4441 | Q72: 256
L73: 289 | M73: EGY | N73: Hurghada | P73: 88 | Q73: 2723
L74: 519 | M74: ITA | N74: Milan | P74: 2639 | Q74: 380
L75: 930 | M75: ZAF | N75: Johannesburg | P75: 1052 | Q75: 267
L76: 471 | M76: IRL | N76: Clones | P76: 3252 | Q76: 3
L77: 899 | M77: USA | N77: RI_Pawtucket AWOS | P77: 3474 | Q77: 296
L78: 625 | M78: MYS | N78: Kota Baharu | P78: 0 | Q78: 3284
L79: 838 | M79: USA | N79: IA_Sioux City | P79: 3664 | Q79: 512
L80: 186 | M80: CAN | N80: PQ_Montreal Intl AP | P80: 4493 | Q80: 234
L81: 498 | M81: ITA | N81: Brindisi | P81: 1151 | Q81: 834
L82: 184 | M82: CAN | N82: PQ_Lake Eon | P82: 7384 | Q82: 8
L83: 638 | M83: NZL | N83: Auckland-Auckland AK | P83: 1165 | Q83: 166
L84: 148 | M84: CAN | N84: MB_Winnipeg | P84: 5754 | Q84: 197
L85: 281 | M85: EGY | N85: Alexandria | P85: 416 | Q85: 1296
L86: 273 | M86: DEU | N86: Koln | P86: 3029 | Q86: 80
L87: 153 | M87: CAN | N87: NF_Gander | P87: 5099 | Q87: 25
L88: 897 | M88: USA | N88: PA_Lancaster AP | P88: 2641 | Q88: 543
L89: 716 | M89: POL | N89: Szczecinek | P89: 3742 | Q89: 62
L90: 865 | M90: USA | N90: MS_Columbus AFB | P90: 1829 | Q90: 1146
L91: 369 | M91: FRA | N91: Nancy | P91: 2978 | Q91: 117
L92: 246 | M92: CUB | N92: Camaguey | P92: 7 | Q92: 2463
L93: 505 | M93: ITA | N93: Cozzo Spadaro | P93: 838 | Q93: 874
L94: 152 | M94: CAN | N94: NF_Battle Harbour | O94: CAN_NF_Battle.Harbour.718170_CWEC | P94: 6463 | Q94: 0
L95: 245 | M95: CUB | N95: Bahia Honda | O95: CUB_Bahia.Honda.783180_SWERA | P95: 3 | Q95: 2575
L96: 92 | M96: BGD | N96: Ishurdi | O96: BGD_Ishurdi.419070_SWERA | P96: 44 | Q96: 2612
L97: 423 | M97: IND | N97: Gorakhpur | O97: IND_Gorakhpur.423790_ISHRAE | P97: 172 | Q97: 2732
L98: 578 | M98: KEN | N98: Lamu-Manda Island | O98: KEN_Lamu-Manda.Island.637720_SWERA | P98: 0 | Q98: 3322
L99: 484 | M99: ISR | N99: Jerusalem-Atarot AP | O99: ISR_Jerusalem-Atarot.AP.401840_MSI | P99: 1364 | Q99: 639
L100: 603 | M100: LKA | N100: Batticaloa | O100: LKA_Batticaloa.434360_SWERA | P100: 0 | Q100: 3651
L101: 608 | M101: LKA | N101: Nuwara Eliya | O101: LKA_Nuwara.Eliya.434730_SWERA | P101: 947 | Q101: 3
L102: 66 | M102: AUS | N102: WA Kalamunda-Bickley | O102: AUS_WA.Kalamunda-Bickley.956100_RMY | P102: 1171 | Q102: 468

Sheet WeatherData (hidden)
C1: HDD | D1: CDD | L1: Formula for list =IFERROR(INDEX(wCity, MATCH(MIN(IF((COUNTIF(L$6:L7, wCity)=0)*(wCountry=$L$6), 1, MAX((COUNTIF(wCity, "<"&wCity)+1)*2))*(COUNTIF(wCity, "<"&wCity)+1)), IF(wCountry=$L$6,COUNTIF(wCity, "<"&wCity)+1,""), 0)),"")
I2: Selected: | J2: 25 | K2: 1
B3: Selected City: | C3: =SUMPRODUCT(--($A$6:$A$1003=$J$3)*--($B$6:$B$1003=$K$3),C$6:C$1003) -> 705 | D3: =SUMPRODUCT(--($A$6:$A$1003=$J$3)*--($B$6:$B$1003=$K$3),D$6:D$1003) -> 30 | I3: Name: | J3: =INDEX(CountryList,J2) -> ETH | K3: =IF(K2=0,"None",INDEX(CityList,K2)) -> Addis Ababa-Bole | L3: =MATCH(L5,'Country Parameters'!$F$4:$F$198,0) -> 3 | M3: =MATCH(M5,'Country Parameters'!$F$4:$F$198,0) -> 7 | N3: =MATCH(N5,'Country Parameters'!$F$4:$F$198,0) -> 9 | O3: =MATCH(O5,'Country Parameters'!$F$4:$F$198,0) -> 10 | P3: =MATCH(P5,'Country Parameters'!$F$4:$F$198,0) -> 14 | Q3: =MATCH(Q5,'Country Parameters'!$F$4:$F$198,0) -> 16 | R3: =MATCH(R5,'Country Parameters'!$F$4:$F$198,0) -> 17 | S3: =MATCH(S5,'Country Parameters'!$F$4:$F$198,0) -> 18 | T3: =MATCH(T5,'Country Parameters'!$F$4:$F$198,0) -> 21 | U3: =MATCH(U5,'Country Parameters'!$F$4:$F$198,0) -> 22 | V3: =MATCH(V5,'Country Parameters'!$F$4:$F$198,0) -> 24 | W3: =MATCH(W5,'Country Parameters'!$F$4:$F$198,0) -> 25 | X3: =MATCH(X5,'Country Parameters'!$F$4:$F$198,0) -> 26 | Y3: =MATCH(Y5,'Country Parameters'!$F$4:$F$198,0) -> 32 | Z3: =MATCH(Z5,'Country Parameters'!$F$4:$F$198,0) -> 36 | AA3: =MATCH(AA5,'Country Parameters'!$F$4:$F$198,0) -> 37 | AB3: =MATCH(AB5,'Country Parameters'!$F$4:$F$198,0) -> 38 | AC3: =MATCH(AC5,'Country Parameters'!$F$4:$F$198,0) -> 45 | AD3: =MATCH(AD5,'Country Parameters'!$F$4:$F$198,0) -> 46 | AE3: =MATCH(AE5,'Country Parameters'!$F$4:$F$198,0) -> 47 | AF3: =MATCH(AF5,'Country Parameters'!$F$4:$F$198,0) -> 48 | AG3: =MATCH(AG5,'Country Parameters'!$F$4:$F$198,0) -> 52 | AH3: =MATCH(AH5,'Country Parameters'!$F$4:$F$198,0) -> 53 | AI3: =MATCH(AI5,'Country Parameters'!$F$4:$F$198,0) -> 54 | AJ3: =MATCH(AJ5,'Country Parameters'!$F$4:$F$198,0) -> 58 | AK3: =MATCH(AK5,'Country Parameters'!$F$4:$F$198,0) -> 59 | AL3: =MATCH(AL5,'Country Parameters'!$F$4:$F$198,0) -> 60 | AM3: =MATCH(AM5,'Country Parameters'!$F$4:$F$198,0) -> 61 | AN3: =MATCH(AN5,'Country Parameters'!$F$4:$F$198,0) -> 65 | AO3: =MATCH(AO5,'Country Parameters'!$F$4:$F$198,0) -> 66 | AP3: =MATCH(AP5,'Country Parameters'!$F$4:$F$198,0) -> 67 | AQ3: =MATCH(AQ5,'Country Parameters'!$F$4:$F$198,0) -> 69 | AR3: =MATCH(AR5,'Country Parameters'!$F$4:$F$198,0) -> 75 | AS3: =MATCH(AS5,'Country Parameters'!$F$4:$F$198,0) -> 76 | AT3: =MATCH(AT5,'Country Parameters'!$F$4:$F$198,0) -> 77 | AU3: =MATCH(AU5,'Country Parameters'!$F$4:$F$198,0) -> 78 | AV3: =MATCH(AV5,'Country Parameters'!$F$4:$F$198,0) -> 80 | AW3: =MATCH(AW5,'Country Parameters'!$F$4:$F$198,0) -> 82 | AX3: =MATCH(AX5,'Country Parameters'!$F$4:$F$198,0) -> 83 | AY3: =MATCH(AY5,'Country Parameters'!$F$4:$F$198,0) -> 84 | AZ3: =MATCH(AZ5,'Country Parameters'!$F$4:$F$198,0) -> 86 | BA3: =MATCH(BA5,'Country Parameters'!$F$4:$F$198,0) -> 88 | BB3: =MATCH(BB5,'Country Parameters'!$F$4:$F$198,0) -> 89 | BC3: =MATCH(BC5,'Country Parameters'!$F$4:$F$198,0) -> 91 | BD3: =MATCH(BD5,'Country Parameters'!$F$4:$F$198,0) -> 92 | BE3: =MATCH(BE5,'Country Parameters'!$F$4:$F$198,0) -> 94 | BF3: =MATCH(BF5,'Country Parameters'!$F$4:$F$198,0) -> 101 | BG3: =MATCH(BG5,'Country Parameters'!$F$4:$F$198,0) -> 103 | BH3: =MATCH(BH5,'Country Parameters'!$F$4:$F$198,0) -> 106 | BI3: =MATCH(BI5,'Country Parameters'!$F$4:$F$198,0) -> 108 | BJ3: =MATCH(BJ5,'Country Parameters'!$F$4:$F$198,0) -> 109 | BK3: =MATCH(BK5,'Country Parameters'!$F$4:$F$198,0) -> 112 | BL3: =MATCH(BL5,'Country Parameters'!$F$4:$F$198,0) -> 115 | BM3: =MATCH(BM5,'Country Parameters'!$F$4:$F$198,0) -> 119 | BN3: =MATCH(BN5,'Country Parameters'!$F$4:$F$198,0) -> 121 | BO3: =MATCH(BO5,'Country Parameters'!$F$4:$F$198,0) -> 125 | BP3: =MATCH(BP5,'Country Parameters'!$F$4:$F$198,0) -> 126 | BQ3: =MATCH(BQ5,'Country Parameters'!$F$4:$F$198,0) -> 127 | BR3: =MATCH(BR5,'Country Parameters'!$F$4:$F$198,0) -> 128 | BS3: =MATCH(BS5,'Country Parameters'!$F$4:$F$198,0) -> 131 | BT3: =MATCH(BT5,'Country Parameters'!$F$4:$F$198,0) -> 133 | BU3: =MATCH(BU5,'Country Parameters'!$F$4:$F$198,0) -> 134 | BV3: =MATCH(BV5,'Country Parameters'!$F$4:$F$198,0) -> 137 | BW3: =MATCH(BW5,'Country Parameters'!$F$4:$F$198,0) -> 138 | BX3: =MATCH(BX5,'Country Parameters'!$F$4:$F$198,0) -> 139 | BY3: =MATCH(BY5,'Country Parameters'!$F$4:$F$198,0) -> 140 | BZ3: =MATCH(BZ5,'Country Parameters'!$F$4:$F$198,0) -> 141 | CA3: =MATCH(CA5,'Country Parameters'!$F$4:$F$198,0) -> 143 | CB3: =MATCH(CB5,'Country Parameters'!$F$4:$F$198,0) -> 144 | CC3: =MATCH(CC5,'Country Parameters'!$F$4:$F$198,0) -> 152 | CD3: =MATCH(CD5,'Country Parameters'!$F$4:$F$198,0) -> 153 | CE3: =MATCH(CE5,'Country Parameters'!$F$4:$F$198,0) -> 154 | CF3: =MATCH(CF5,'Country Parameters'!$F$4:$F$198,0) -> 157 | CG3: =MATCH(CG5,'Country Parameters'!$F$4:$F$198,0) -> 158 | CH3: =MATCH(CH5,'Country Parameters'!$F$4:$F$198,0) -> 159 | CI3: =MATCH(CI5,'Country Parameters'!$F$4:$F$198,0) -> 162 | CJ3: =MATCH(CJ5,'Country Parameters'!$F$4:$F$198,0) -> 164 | CK3: =MATCH(CK5,'Country Parameters'!$F$4:$F$198,0) -> 165 | CL3: =MATCH(CL5,'Country Parameters'!$F$4:$F$198,0) -> 169 | CM3: =MATCH(CM5,'Country Parameters'!$F$4:$F$198,0) -> 170 | CN3: =MATCH(CN5,'Country Parameters'!$F$4:$F$198,0) -> 171 | CO3: =MATCH(CO5,'Country Parameters'!$F$4:$F$198,0) -> 174 | CP3: =MATCH(CP5,'Country Parameters'!$F$4:$F$198,0) -> 179 | CQ3: =MATCH(CQ5,'Country Parameters'!$F$4:$F$198,0) -> 180 | CR3: =MATCH(CR5,'Country Parameters'!$F$4:$F$198,0) -> 184 | CS3: =MATCH(CS5,'Country Parameters'!$F$4:$F$198,0) -> 185 | CT3: =MATCH(CT5,'Country Parameters'!$F$4:$F$198,0) -> 186 | CU3: =MATCH(CU5,'Country Parameters'!$F$4:$F$198,0) -> 187 | CV3: =MATCH(CV5,'Country Parameters'!$F$4:$F$198,0) -> 188 | CW3: =MATCH(CW5,'Country Parameters'!$F$4:$F$198,0) -> 189 | CX3: =MATCH(CX5,'Country Parameters'!$F$4:$F$198,0) -> 191 | CY3: =MATCH(CY5,'Country Parameters'!$F$4:$F$198,0) -> 192 | CZ3: =MATCH(CZ5,'Country Parameters'!$F$4:$F$198,0) -> 195
L4: Algeria | M4: Argentina | N4: Australia | O4: Austria | P4: Bangladesh | Q4: Belarus | R4: Belgium | S4: Belize | T4: Bolivia | U4: Bosnia and Herzegovina | V4: Brazil | W4: Brunei Darussalam | X4: Bulgaria | Y4: Canada | Z4: Chile | AA4: China | AB4: Colombia | AC4: Cuba | AD4: Cyprus | AE4: Czech Republic | AF4: Denmark | AG4: Ecuador | AH4: Egypt | AI4: El Salvador | AJ4: Ethiopia | AK4: Fiji | AL4: Finland | AM4: France | AN4: Germany | AO4: Ghana | AP4: Greece | AQ4: Guatemala | AR4: Honduras | AS4: Hungary | AT4: Iceland | AU4: India | AV4: Iran | AW4: Ireland | AX4: Israel | AY4: Italy | AZ4: Japan | BA4: Kazakhstan | BB4: Kenya | BC4: Korea, North | BD4: Korea, South | BE4: Kuwait | BF4: Libya | BG4: Lithuania | BH4: Madagascar | BI4: Malaysia | BJ4: Maldives | BK4: Marshall Islands | BL4: Mexico | BM4: Mongolia | BN4: Morocco | BO4: Nepal | BP4: Netherlands | BQ4: New Zealand | BR4: Nicaragua | BS4: Norway | BT4: Pakistan | BU4: Palau | BV4: Paraguay | BW4: Peru | BX4: Philippines | BY4: Poland | BZ4: Portugal | CA4: Romania | CB4: Russia | CC4: Saudi Arabia | CD4: Senegal | CE4: Serbia | CF4: Singapore | CG4: Slovakia | CH4: Slovenia | CI4: South Africa | CJ4: Spain | CK4: Sri Lanka | CL4: Sweden | CM4: Switzerland | CN4: Syria | CO4: Thailand | CP4: Tunisia | CQ4: Turkey | CR4: Ukraine | CS4: United Arab Emirates | CT4: United Kingdom | CU4: United States | CV4: Uruguay | CW4: Uzbekistan | CX4: Venezuela | CY4: Vietnam | CZ4: Zimbabwe | DA4: South Africa
A5: Country | B5: City | C5: Heating Degree Days | D5: Cooling Degree Days | E5: Base 18 deg C, from | L5: DZA | M5: ARG | N5: AUS | O5: AUT | P5: BGD | Q5: BLR | R5: BEL | S5: BLZ | T5: BOL | U5: BIH | V5: BRA | W5: BRN | X5: BGR | Y5: CAN | Z5: CHL | AA5: CHN | AB5: COL | AC5: CUB | AD5: CYP | AE5: CZE | AF5: DNK | AG5: ECU | AH5: EGY | AI5: SLV | AJ5: ETH | AK5: FJI | AL5: FIN | AM5: FRA | AN5: DEU | AO5: GHA | AP5: GRC | AQ5: GTM | AR5: HND | AS5: HUN | AT5: ISL | AU5: IND | AV5: IRN | AW5: IRL | AX5: ISR | AY5: ITA | AZ5: JPN | BA5: KAZ | BB5: KEN | BC5: PRK | BD5: KOR | BE5: KWT | BF5: LBY | BG5: LTU | BH5: MDG | BI5: MYS | BJ5: MDV | BK5: MHL | BL5: MEX | BM5: MNG | BN5: MAR | BO5: NPL | BP5: NLD | BQ5: NZL | BR5: NIC | BS5: NOR | BT5: PAK | BU5: PLW | BV5: PRY | BW5: PER | BX5: PHL | BY5: POL | BZ5: PRT | CA5: ROU | CB5: RUS | CC5: SAU | CD5: SEN | CE5: SRB | CF5: SGP | CG5: SVK | CH5: SVN | CI5: ZAF | CJ5: ESP | CK5: LKA | CL5: SWE | CM5: CHE | CN5: SYR | CO5: THA | CP5: TUN | CQ5: TUR | CR5: UKR | CS5: ARE | CT5: GBR | CU5: USA | CV5: URY | CW5: UZB | CX5: VEN | CY5: VNM | CZ5: ZWE | DA5: Zimbabwe
A6: ARE | B6: Abu Dhabi | C6: 24 | D6: 3358 | K6: =MATCH(J3,$L$5:$CZ$5,0) -> 25 | L6: Algiers | M6: Buenos Aires | N6: ACT Canberra | O6: Graz | P6: Bogra | Q6: Minsk | R6: Brussels | S6: Belize | T6: La Paz | U6: Banja Luka | V6: Belem | W6: Bandar Seri Begawan | X6: Plovdiv | Y6: AB_Edmonton | Z6: Antofagasta | AA6: Anhui Anqing | AB6: Bogota | AC6: Bahia Honda | AD6: Larnaca | AE6: Ostrava | AF6: Copenhagen | AG6: Quito | AH6: Al Minya | AI6: Acajutla | AJ6: Addis Ababa-Bole | AK6: Nadi | AL6: Helsinki | AM6: Bordeaux | AN6: Berlin | AO6: Accra | AP6: Andravida | AQ6: Flores | AR6: Amapala | AS6: Debrecen | AT6: Reykjavik | AU6: Ahmedabad | AV6: Bandar Abass | AW6: Belmullet | AX6: Beer Sheva | AY6: Alghero | AZ6: Kagoshima | BA6: Semipalatinsk | BB6: Eldoret | BC6: Chongjin | BD6: Inchon | BE6: KISR Coastal Station | BF6: Tripoli | BG6: Kaunas | BH6: Antananarivo | BI6: George Town | BJ6: Gan Island | BK6: Kwajalein Atoll | BL6: Acapulco | BM6: Ulaanbataar | BN6: Casablanca Nouasser | BO6: Kathmandu | BP6: Amsterdam | BQ6: Auckland Auckland | BR6: Chinandega | BS6: Bergen | BT6: Karachi | BU6: Koror Island | BV6: Asuncion | BW6: Arequipa | BX6: Manila | BY6: Bialystok | BZ6: Braganca | CA6: Bucharest | CB6: Arkhangelsk | CC6: Riyadh | CD6: Dakar | CE6: Belgrade | CF6: Singapore | CG6: Bratislava | CH6: Ljubljana | CI6: Cape Town | CJ6: Albacete | CK6: Anuradhapura | CL6: Goteborg Landvetter | CM6: Geneva | CN6: Damascus | CO6: Bangkok | CP6: Tunis | CQ6: Ankara | CR6: Kiev | CS6: Abu Dhabi | CT6: Aberdeen Dyce | CU6: AK_Anchorage | CV6: Montevideo | CW6: Tashkent | CX6: Caracas | CY6: Hanoi | CZ6: Harare
A7: ARG | B7: Buenos Aires | C7: 1189 | D7: 663 | N7: ACT Canberra Airport | O7: Innsbruck | P7: Chittagong-Patenga | R7: Oostende | V7: Belem-Val de Caes | X7: Sofia | Y7: AB_Fort McMurray | Z7: Concepcion | AA7: Beijing Beijing | AC7: Camaguey | AE7: Prague | AH7: Alexandria | AI7: San Salvador-Ilopango | AJ7: Awassa | AL7: Tampere | AM7: Brest | AN7: Bremen | AP7: Athens | AQ7: Guatemala-La Aurora | AR7: Catacamas | AS7: Szombathely | AU7: Akola | AV7: Esfahan | AW7: Birr | AX7: Eilat | AY7: Ancona | AZ7: Matsumoto | BB7: Embu | BC7: Haeju | BD7: Kangnung | BE7: Kuwait Intl AP | BI7: Kota Baharu | BJ7: Male-Hulule Island | BL7: Mexico City | BM7: Ulaangom | BO7: Surkhet | BP7: Beek | BQ7: Auckland-Auckland AK | BR7: Managua-Augusto CES | BS7: Oslo Fornebu | BW7: Cuzco | BY7: Bielsko Biala | BZ7: Coimbra | CA7: Cluj-Napoca | CB7: Chita | CE7: Podgorica | CG7: Kosice | CI7: Johannesburg | CJ7: Alicante | CK7: Batticaloa | CL7: Karlstad | CQ7: Istanbul | CR7: Odessa | CT7: Aughton | CU7: AK_Fairbanks
A8: AUS | B8: ACT Canberra | C8: 2120 | D8: 195 | N8: NSW Armidale Airport | O8: Linz | P8: Coxs Bazar | R8: Saint Hubert | V8: Belo Horizonte-Pampulha | X8: Varna | Y8: AB_Grande Prairie | Z8: Easter Island | AA8: Chongqing Chongqing Shapingba | AC8: Casa Blanca | AH8: Aswan | AJ8: Bahar Dar | AM8: Clermont-Ferrand | AN8: Dusseldorf | AP8: Thessaloniki | AQ8: Huehuetenango | AR8: Choluteca | AU8: Allahabad | AV8: Shiraz | AW8: Clones | AX8: Jerusalem | AY8: Ancona-Falconara | AZ8: Miho Civ JASDF | BB8: Garissa | BC8: Pyongyang | BD8: Kwangju | BI8: Kuala Lumpur | BL8: Veracruz | BP8: Groningen | BQ8: Bay of Plenty-Tauranga BP | BR8: Rivas | BW8: Lima | BY8: Bydgoszcz | BZ8: Evora | CA8: Constanta | CB8: Ekaterinburg | CJ8: Almeria | CK8: Colombo-Katunayake | CL8: Kiruna | CQ8: Izmir | CT8: Belfast | CU8: AL_Birmingham
A9: AUS | B9: ACT Canberra Airport | C9: 2129 | D9: 217 | H9: Last row -> | N9: NSW Cabramurra | O9: Salzburg | P9: Dhaka | V9: Boa Vista | Y9: AB_Lethbridge | Z9: Punta Arenas | AA9: Fujian Congwu | AC9: Cienfuegos | AH9: Asyut | AJ9: Combolcha | AM9: Dijon | AN9: Frankfurt am Main | AQ9: Puerto Barrios | AR9: La Ceiba-Goloson | AU9: Amritsar | AV9: Tabriz | AW9: Dublin | AX9: Jerusalem-Atarot AP | AY9: Aviano | AZ9: Nagoya | BB9: Kisii | BD9: Ulsan | BI9: Kuching | BQ9: Canterbury Christchurch | BY9: Chojnice | BZ9: Faro | CA9: Craiova | CB9: Irkutsk | CJ9: Avila | CK9: Colombo-Ratmalana | CL9: Ostersund Froson | CT9: Birmingham | CU9: AL_Huntsville Intl AP-Jones Field
A10: AUS | B10: NSW Armidale Airport | C10: 1889 | D10: 204 | N10: NSW Cobar | O10: Vienna Schwechat | P10: Ishurdi | V10: Bom Jesus da Lapa | Y10: AB_Medicine Hat | Z10: Santiago | AA10: Gansu Dunhuang | AC10: Guantanamo Bay NAS | AH10: Cairo | AJ10: Debre Marcos | AM10: Lyon | AN10: Hamburg | AQ10: San Jose | AR10: La Mesa-San Pedro Sula | AU10: Aurangabad | AV10: Tehran-Mehrabad | AW10: Kilkenny | AX10: Tel Aviv-Bet Dagan | AY10: Bari-Palese Macchie | AZ10: Osaka | BB10: Kisumu | BQ10: Canterbury-Christchurch CC | BY10: Czestochowa | BZ10: Funchal Madeira-Islands | CA10: Galati | CB10: Moscow | CJ10: Badajoz | CK10: Hambantota | CL10: Stockholm Arlanda | CT10: Hemsby | CU10: AL_Montgomery
A11: AUS | B11: NSW Cabramurra | C11: 3586 | D11: 49 | N11: NSW Coffs Harbour | P11: Jessore | V11: Brasilia | Y11: BC_Abbotsford | AA11: Guangdong Dianbai | AC11: Havana | AH11: Cairo Intl Airport | AJ11: Dire Dawa | AM11: Marseille | AN11: Koln | AR11: Puerto Lempira | AU11: Bangalore | AV11: Yazd | AW11: Valentia Observatory | AY11: Bergamo-Orio al Serio | AZ11: Sapporo | BB11: Kitale | BQ11: Central Otago-Lauder OC | BY11: Elblag | BZ11: Lajes | CA11: Timisoara | CB11: Omsk | CJ11: Barcelona | CK11: Kankasanturai | CT11: Jersey Channel Islands | CU11: AR_Bentonville AWOS
A12: AUS | B12: NSW Cobar | C12: 970 | D12: 1152 | N12: NSW Dubbo Airport | P12: Rangpur | V12: Campo Grande | Y12: BC_Comox | AA12: Guangdong Shenzhen | AC12: Havana-Jose Marti | AH12: El Arish | AJ12: Gondar | AM12: Montpellier | AN12: Mannheim | AR12: Santa Rosa de Copan | AU12: Barmer | AY12: Bologna-Borgo Panigale | AZ12: Shimonoseki | BB12: Lamu-Manda Island | BQ12: East Coast-Napier EC | BY12: Gdansk Port Polnocny | BZ12: Lisboa | CB12: Saint-Petersburg | CJ12: Bilbao | CK12: Nuwara Eliya | CT12: Leuchars | CU12: AR_Fayetteville-Drake Field
A13: AUS | B13: NSW Coffs Harbour | C13: 551 | D13: 721 | N13: NSW Mascot-Sydney Airport | P13: Sylhet | V13: Cuiaba-Marechal Ron | Y13: BC_Fort St John | AA13: Guangxi Zhuang Baise | AC13: La Bajada | AH13: Helwan | AJ13: Jimma | AM13: Nancy | AN13: Munich | AR13: Tela | AU13: Belgaum | AY13: Bolzano | AZ13: Tokyo Hyakuri | BB13: Lodwar | BQ13: Manawatu-Paraparaumu MW | BY13: Gorzow Wlkp | BZ13: Porto | CB13: Samara | CJ13: Burgos | CK13: Puttalam | CT13: London Gatwick | CU13: AR_Little Rock
A14: AUS | B14: NSW Dubbo Airport | C14: 1221 | D14: 603 | N14: NSW Moree Aero | V14: Curitiba-Afonso Pen | Y14: BC_Kamloops | AA14: Guizhou Bijie | AC14: La Fe | AH14: Hurghada | AJ14: Metehara | AM14: Nantes | AN14: Stuttgart | AU14: Bhagalpur | AY14: Bonifati | AZ14: Tosashimizu | BB14: Makindu | BQ14: Nelson Marlborough-Nelson NM | BY14: Hel | CB14: Yakutsk | CJ14: Caceres | CK14: Trincomalee | CT14: Oban | CU14: AZ_Flagstaff
A15: AUS | B15: NSW Mascot-Sydney Airport | C15: 728 | D15: 586 | N15: NSW Nowra RAN Air Station | V15: Florianopolis | Y15: BC_Port Hardy | AA15: Hainan Dongfang | AC15: Paso Real de San Diego | AH15: Ismailia | AM15: Nice | AU15: Bhopal | AY15: Brescia-Ghedi | BB15: Malindi | BQ15: Northland-Kaitaia NL | BY15: Jelenia Gora | CJ15: Castellon | CU15: AZ_Grand Canyon National Park AP
A16: AUS | B16: NSW Moree Aero | C16: 870 | D16: 1144 | N16: NSW Orange Airport | V16: Fortaleza-Pinto Mar | Y16: BC_Prince George | AA16: Hebei Fengning | AC16: Pinar del Rio | AH16: Kharga | AM16: Paris Orly | AU16: Bhubneshwar | AY16: Brindisi | BB16: Mandera | BQ16: Otago-Dunedin DN | BY16: Kalisz | CJ16: Ceuta | CU16: AZ_Tucson
A17: AUS | B17: NSW Nowra RAN Air Station | C17: 1121 | D17: 373 | N17: NSW Richmond RAAF | V17: Jacareacanga | Y17: BC_Prince Rupert | AA17: Heilongjiang Anda | AC17: Playa Giron | AH17: Luxor | AM17: Strasbourg | AU17: Bikaner | AY17: Cagliari-Elmas | BB17: Marsabit | BQ17: Queenstown Lakes-Queenstown QL | BY17: Kasprowy Wierch | CJ17: Ciudad Real | CU17: CA_Fresno
A18: AUS | B18: NSW Orange Airport | C18: 2601 | D18: 54 | N18: NSW Sydney | V18: Manaus | Y18: BC_Sandspit | AA18: Henan Anyang | AC18: Puerto Padre | AU18: Calcutta | AY18: Campobasso | BB18: Meru | BQ18: Rotorua-Rotorua RR | BY18: Katowice | CJ18: Cordoba | CU18: CA_Long Beach
A19: AUS | B19: NSW Richmond RAAF | C19: 1036 | D19: 563 | N19: NSW Thredbo Village | V19: Petrolina | Y19: BC_Smithers | AA19: Hong Kong SAR | AC19: Punta de Maisi | AU19: Chennai | AY19: Capo Bellavista | BB19: Mombasa-Moi | BQ19: Southland-Invercargill IN | BY19: Ketrzyn | CJ19: Cuenca | CU19: CA_Los Angeles Intl AP
A20: AUS | B20: NSW Sydney | C20: 687 | D20: 634 | N20: NSW Wagga Wagga | V20: Porto Nacional | Y20: BC_Summerland | AA20: Hubei Exi | AC20: Sancti Spiritus | AU20: Chennai-Madras | AY20: Capo Palinuro | BB20: Moyale | BQ20: Taranaki-New Plymouth NP | BY20: Kielce | CJ20: Gerona | CU20: CA_Monterey NAF
A21: AUS | B21: NSW Thredbo Village | C21: 3235 | D21: 30 | N21: NSW Williamtown RAAF | V21: Porto Velho | Y21: BC_Vancouver | AA21: Hunan Changde | AC21: Santiago de Cuba | AU21: Chirtadurg | AY21: Catania-Fontanarossa | BB21: Nairobi | BQ21: Taupo King Country-Turangi TP | BY21: Klodzko | CJ21: Granada | CU21: CA_Sacramento
A22: AUS | B22: NSW Wagga Wagga | C22: 1593 | D22: 541 | N22: NT Alice Springs Airport | V22: Recife | Y22: BC_Victoria | AA22: Jiangsu Dongtai | AC22: Saua la Grande | AU22: Dehradun | AY22: Catania-Sigonella | BB22: Nairobi-Dagoretti | BQ22: Waikato-Hamilton HN | BY22: Kolo | CJ22: Guadalajara | CU22: CA_San Diego
A23: AUS | B23: NSW Williamtown RAAF | C23: 827 | D23: 592 | N23: NT Darwin | V23: Recife-Guararapes | Y23: MB_Brandon | AA23: Jiangxi Ganzhou | AC23: Union de Reyes | AU23: Dibrugarh | AY23: Cozzo Spadaro | BB23: Nairobi-Kenyatta | BQ23: Wairarapa-Masterton WI | BY23: Kolobrzeg | CJ23: Huelva | CU23: CA_San Francisco
A24: AUS | B24: NT Alice Springs Airport | C24: 665 | D24: 1816 | N24: NT Darwin Airport | V24: Rio de Janeiro-Santos Dumont | Y24: MB_Churchill | AA24: Jilin Baicheng | AC24: Varadero | AU24: Gorakhpur | AY24: Crotone | BB24: Nairobi-Wilson | BQ24: Wellington Wellington | BY24: Koszalin | CJ24: Huesca | CU24: CA_Santa Barbara Muni AP
A25: AUS | B25: NT Darwin | C25: 0 | D25: 3355 | N25: NT Tennant Creek | V25: Salvador | Y25: MB_The Pas | AA25: Kinjiang Uygar Kashi | AU25: Guwahati | AY25: Enna | BB25: Nakuru | BQ25: Wellington-Wellington WN | BY25: Krakow | CJ25: Jaen | CU25: CO_Boulder
A26: AUS | B26: NT Darwin Airport | C26: 0 | D26: 3409 | N26: QLD Amberley | V26: Santa Maria | Y26: MB_Winnipeg | AA26: Liaoning Chaoyang | AU26: Gwalior | AY26: Firenze-Peretola | BB26: Narok | BQ26: West Coast-Hokitika WC | BY26: Krosno | CJ26: La Coruna | CU26: CO_Colorado Springs
A27: AUS | B27: NT Tennant Creek | C27: 53 | D27: 2957 | N27: QLD Brisbane | V27: Sao Paulo | Y27: NB_Fredericton | AA27: Nei Mongol Abag Qi Hot | AU27: Hissar | AY27: Foggia | BB27: Nyeri | BY27: Leba | CJ27: Las Palmas | CU27: CO_Denver-Stapleton
A28: AUS | B28: QLD Amberley | C28: 496 | D28: 1098 | N28: QLD Cairns Aero | V28: Sao Paulo-Congonhas | Y28: NB_Miramichi | AA28: Ningxia Hui Guyuan | AU28: Hyderabad | AY28: Gela | BB28: Voi | BY28: Lebork | CJ28: Leon | CU28: CT_Bridgeport
A29: AUS | B29: QLD Brisbane | C29: 329 | D29: 1061 | N29: QLD Charleville Aero | Y29: NB_Saint John | AA29: Qinghai Daqaidam | AU29: Imphal | AY29: Genova | BY29: Legnica | CJ29: Lerida | CU29: CT_Hartford
A30: AUS | B30: QLD Cairns Aero | C30: 0 | D30: 2379 | N30: QLD Gladstone Airport | Y30: NF_Battle Harbour | AA30: Shaanxi Ankang | AU30: Indore | AY30: Genova-Sestri | BY30: Lesko | CJ30: Logrono | CU30: CT_New Haven-Tweed AP
A31: AUS | B31: QLD Charleville Aero | C31: 622 | D31: 1627 | N31: QLD Longreach Aero | Y31: NF_Gander | AA31: Shandong Longkou | AU31: Jabalpur | AY31: Gioia del Colle | BY31: Leszno | CJ31: Lugo | CU31: DE_Dover AFB
A32: AUS | B32: QLD Gladstone Airport | C32: 78 | D32: 1579 | N32: QLD Mackay | Y32: NF_Goose | AA32: Shanxi Houma | AU32: Jagdelpur | AY32: Grosseto | BY32: Lodz | CJ32: Madrid | CU32: DE_Wilmington
A33: AUS | B33: QLD Longreach Aero | C33: 210 | D33: 2358 | N33: QLD Mount Isa Aero | Y33: NF_St Johns | AA33: Sichuan Barkam | AU33: Jaipur | AY33: Lecce | BY33: Lublin Radawiec | CJ33: Malaga | CU33: FL_Daytona Beach
A34: AUS | B34: QLD Mackay | C34: 63 | D34: 1812 | N34: QLD Oakey Aero | Y34: NF_Stephenville | AA34: Tianjin Tianjin | AU34: Jaisalmer | AY34: Marina di Ravenna | BY34: Mikolajki | CJ34: Melilla | CU34: FL_Fort Lauderdale Intl AP
A35: AUS | B35: QLD Mount Isa Aero | C35: 121 | D35: 2510 | N35: QLD Rockhampton Aero | Y35: NS_Greenwood | AA35: Tibet Lhasa | AU35: Jamnagar | AY35: Messina | BY35: Mlawa | CJ35: Murcia | CU35: FL_Gainesville Rgnl AP
A36: AUS | B36: QLD Oakey Aero | C36: 808 | D36: 795 | N36: QLD Townsville Aero | Y36: NS_Sable Island | AA36: Xinjiang Urgur Urumqi | AU36: Jodhpur | AY36: Milan | BY36: Nowy Sacz | CJ36: Orense | CU36: FL_Jacksonville
A37: AUS | B37: QLD Rockhampton Aero | C37: 135 | D37: 1620 | N37: QLD Weipa Aero | Y37: NS_Shearwater | AA37: Yunnan Deqen | AU37: Jorhat | AY37: Milano-Linate | BY37: Olsztyn | CJ37: Oviedo | CU37: FL_Key West
A38: AUS | B38: QLD Townsville Aero | C38: 27 | D38: 2239 | N38: QLD Willis Island | Y38: NS_Sydney | AA38: Zhejiang Dinghai | AU38: Kolkata | AY38: Milano-Malpensa | BY38: Opole | CJ38: Palencia | CU38: FL_Miami
A39: AUS | B39: QLD Weipa Aero | C39: 0 | D39: 3039 | N39: SA Adelaide | Y39: NS_Truro | AU39: Kota | AY39: Monte Cimone | BY39: Ostroleka | CJ39: Palma | CU39: FL_Orlando Intl AP
A40: AUS | B40: QLD Willis Island | C40: 0 | D40: 2961 | N40: SA Adelaide-Kent Town | Y40: NT_Inuvik | AU40: Kurnool | AY40: Monte Terminillo | BY40: Pila | CJ40: Pamplona | CU40: FL_Pensacola Rgnl AP
A41: AUS | B41: SA Adelaide-Kent Town | C41: 1056 | D41: 692 | N41: SA Ceduna | Y41: NT_Yellowknife | AU41: Lucknow | AY41: Naples | BY41: Poznan | CJ41: Pontevedra | CU41: FL_Tallahassee
A42: AUS | B42: SA Adelaide | C42: 1122 | D42: 479 | N42: SA Mount Gambier Aero | Y42: NU_Resolute | AU42: Mangalore | AY42: Napoli-Capodichino | BY42: Przemysl | CJ42: Salamanca | CU42: FL_West Palm Beach
A43: AUS | B43: SA Ceduna | C43: 985 | D43: 503 | N43: SA Mt Lofty | Y43: ON_Kingston | AU43: Mumbai | AY43: Novara-Cameri | BY43: Raciborz | CJ43: San Sebastian | CU43: GA_Athens
A44: AUS | B44: SA Mount Gambier Aero | C44: 1935 | D44: 120 | N44: SA Oodnadatta Airport | Y44: ON_London | AU44: Nagpur | AY44: Olbia-Costa Smeralda | BY44: Resko | CJ44: Santander | CU44: GA_Atlanta
A45: AUS | B45: SA Mt Lofty | C45: 2604 | D45: 162 | N45: SA Woomera Aerodrome | Y45: ON_Mount Forest | AU45: Nellore | AY45: Paganella | BY45: Rzeszow Jasionka | CJ45: Segovia | CU45: GA_Augusta
A46: AUS | B46: SA Oodnadatta Airport | C46: 531 | D46: 1964 | N46: TAS Hobart-Ellerslie Road | Y46: ON_Muskoka | AU46: New Delhi | AY46: Palermo | BY46: Sandomierz | CJ46: Sevilla | CU46: GA_Columbus
A47: AUS | B47: SA Woomera Aerodrome | C47: 795 | D47: 1245 | N47: TAS Launceston Airport | Y47: ON_North Bay | AU47: Panjim | AY47: Palermo-Boccadifalco | BY47: Siedlce | CJ47: Soria | CU47: GA_Macon
A48: AUS | B48: TAS Hobart-Ellerslie Road | C48: 2073 | D48: 52 | N48: TAS Launceston-Ti Tree Bend | Y48: ON_Ottawa | AU48: Patna | AY48: Palermo-Punta Raisi | BY48: Slubice | CJ48: Tarragona | CU48: GA_Savannah
A49: AUS | B49: TAS Launceston-Ti Tree Bend | C49: 2105 | D49: 68 | N49: TAS Low Head | Y49: ON_Sault Ste Marie | AU49: Pune | AY49: Parma | BY49: Sniezka | CJ49: Tenerife | CU49: HI_Hilo Intl AP
A50: AUS | B50: TAS Launceston Airport | C50: 2460 | D50: 29 | N50: VIC Ballarat Aerodrome | Y50: ON_Simcoe | AU50: Raipur | AY50: Patelleria | BY50: Sulejow | CJ50: Teruel | CU50: HI_Honolulu
A51: AUS | B51: TAS Low Head | C51: 1679 | D51: 40 | N51: VIC Cape Otway Lighthouse | Y51: ON_Thunder Bay | AU51: Rajkot | AY51: Perugia | BY51: Suwalki | CJ51: Toledo | CU51: IA_Burlington Muni AP
A52: AUS | B52: VIC Ballarat Aerodrome | C52: 2220 | D52: 184 | N52: VIC East Sale Airport | Y52: ON_Toronto | AU52: Ramagundam | AY52: Pescara | BY52: Swinoujscie | CJ52: Valencia | CU52: IA_Cedar Rapids Muni AP
A53: AUS | B53: VIC Cape Otway Lighthouse | C53: 1625 | D53: 152 | N53: VIC Melbourne | Y53: ON_Trenton | AU53: Ranchi | AY53: Piacenza | BY53: Szczecin | CJ53: Valladolid | CU53: IA_Des Moines
A54: AUS | B54: VIC East Sale Airport | C54: 1832 | D54: 133 | N54: VIC Mildura Airport | Y54: ON_Windsor | AU54: Ratnagiri | AY54: Pianosa | BY54: Szczecinek | CJ54: Vitoria | CU54: IA_Knoxville Muni AP
A55: AUS | B55: VIC Melbourne | C55: 1733 | D55: 210 | N55: VIC Moorabbin Airport | Y55: PE_Charlottetown | AU55: Raxaul | AY55: Pisa | BY55: Tarnow | CJ55: Zamora | CU55: IA_Sioux City
A56: AUS | B56: VIC Mildura Airport | C56: 1160 | D56: 769 | N56: VIC Tullamarine-Melbourne Airport | Y56: PQ_Bagotville | AU56: Saharanpur | AY56: Pisa-S Gusto | BY56: Terespol | CJ56: Zaragoza | CU56: IA_Waterloo
A57: AUS | B57: VIC Moorabbin Airport | C57: 1650 | D57: 195 | N57: VIC Warrnambool Airport | Y57: PQ_Baie Comeau | AU57: Shillong | AY57: Ponza | BY57: Torun | CU57: ID_Boise
A58: AUS | B58: VIC Tullamarine-Melbourne Airport | C58: 1749 | D58: 237 | N58: WA Albany Airport | Y58: PQ_Grindstone Island | AU58: Sholapur | AY58: Potenza | BY58: Ustka | CU58: ID_Idaho Falls-Fanning Field
A59: AUS | B59: VIC Warrnambool Airport | C59: 1974 | D59: 110 | N59: WA Broome Airport | Y59: PQ_Kuujjuarapik | AU59: Sundernagar | AY59: Pratica di Mare | BY59: Warsaw | CU59: IL_Chicago-OHare
A60: AUS | B60: WA Albany Airport | C60: 1337 | D60: 126 | N60: WA Carnarvon Airport | Y60: PQ_Kuujuaq | AU60: Surat | AY60: Rimini | BY60: Warszawa Okecie | CU60: IL_Springfield
A61: AUS | B61: WA Broome Airport | C61: 4 | D61: 3047 | N61: WA Esperance | Y61: PQ_La Grande Riviere | AU61: Tezpur | AY61: Roma-Ciampino | BY61: Wielun | CU61: IL_University of Illinois-Willard AP
A62: AUS | B62: WA Carnarvon Airport | C62: 154 | D62: 1445 | N62: WA Forrest | Y62: PQ_Lake Eon | AU62: Tiruchirapalli | AY62: Roma-Fiumicino | BY62: Wlodawa | CU62: IN_Evansville
A63: AUS | B63: WA Esperance | C63: 958 | D63: 279 | N63: WA Geraldton Airport | Y63: PQ_Mont Joli | AU63: Trivandram | AY63: Rome | BY63: Wroclaw | CU63: IN_Indianapolis
A64: AUS | B64: WA Forrest | C64: 914 | D64: 744 | N64: WA Giles | Y64: PQ_Montreal Intl AP | AU64: Trivandrum | AY64: S Maria di Leuca | BY64: Zakopane | CU64: KS_Topeka
A65: AUS | B65: WA Geraldton Airport | C65: 503 | D65: 932 | N65: WA Halls Creek Airport | Y65: PQ_Montreal Jean Brebeuf | AU65: Veraval | AY65: San Remo | BY65: Zamosc | CU65: KS_Wichita
A66: AUS | B66: WA Giles | C66: 459 | D66: 2216 | N66: WA Kalamunda-Bickley | Y66: PQ_Montreal Mirabel | AU66: Vishakhapatnam | AY66: Taranto | BY66: Zielona Gora | CU66: KY_Lexington
A67: AUS | B67: WA Halls Creek Airport | C67: 33 | D67: 3105 | N67: WA Kalgoorlie-Boulder Airport | Y67: PQ_Nitchequon CA | AY67: Tarvisio | CU67: KY_Louisville
A68: AUS | B68: WA Kalamunda-Bickley | C68: 1171 | D68: 468 | N68: WA Katanning | Y68: PQ_Quebec | AY68: Torino | CU68: LA_Lafayette RgnlAP
A69: AUS | B69: WA Kalgoorlie-Boulder Airport | C69: 886 | D69: 980 | N69: WA Learmonth | Y69: PQ_Riviere du Loup | AY69: Torino-Caselle | CU69: LA_New Orleans
A70: AUS | B70: WA Katanning | C70: 1291 | D70: 378 | N70: WA Learmonth Airport | Y70: PQ_Roberval | AY70: Trapani-Birgi | CU70: MA_Boston-Logan Intl AP
A71: AUS | B71: WA Learmonth | C71: 64 | D71: 2269 | N71: WA Mandurah | Y71: PQ_Schefferville | AY71: Treviso-Istrana | CU71: MA_Nantucket Mem AP
A72: AUS | B72: WA Learmonth Airport | C72: 40 | D72: 2185 | N72: WA Manjimup | Y72: PQ_Sept-Iles | AY72: Trieste | CU72: MD_Baltimore
A73: AUS | B73: WA Mandurah | C73: 723 | D73: 667 | N73: WA Meekatharra Airport | Y73: PQ_Sherbrooke | AY73: Udine-Campoformido | CU73: ME_Bangor Intl AP
A74: AUS | B74: WA Manjimup | C74: 1501 | D74: 193 | N74: WA Newman Airport | Y74: PQ_St Hubert | AY74: Ustica | CU74: ME_Portland
A75: AUS | B75: WA Meekatharra Airport | C75: 426 | D75: 1965 | N75: WA Perth | Y75: PQ_Ste Agathe des Monts | AY75: Venezia-Tessera | CU75: MI_Ann Arbor Muni AP
A76: AUS | B76: WA Newman Airport | C76: 303 | D76: 2539 | N76: WA Perth Airport | Y76: PQ_Val d Or | AY76: Venice | CU76: MI_Detroit-City AP
A77: AUS | B77: WA Perth | C77: 747 | D77: 757 | N77: WA Port Hedland | Y77: SK_Estevan | AY77: Verona-Villafranca | CU77: MN_Duluth
A78: AUS | B78: WA Perth Airport | C78: 759 | D78: 763 | N78: WA Port Hedland Airport | Y78: SK_North Battleford | AY78: Vicenza | CU78: MN_Minneapolis-St Paul
A79: AUS | B79: WA Port Hedland | C79: 27 | D79: 2789 | N79: WA Wyndham | Y79: SK_Regina | CU79: MN_St Cloud Muni AP
A80: AUS | B80: WA Port Hedland Airport | C80: 16 | D80: 2764 | Y80: SK_Saskatoon | CU80: MO_Kansas City
A81: AUS | B81: WA Wyndham | C81: 0 | D81: 4179 | Y81: SK_Swift Current | CU81: MO_St Louis
A82: AUT | B82: Graz | C82: 3260 | D82: 150 | Y82: YT_Whitehorse | CU82: MS_Columbus AFB
A83: AUT | B83: Innsbruck | C83: 3395 | D83: 112 | CU83: MS_Jackson
A84: AUT | B84: Linz | C84: 3361 | D84: 148 | CU84: MT_Bozeman-Gallatin Field
A85: AUT | B85: Salzburg | C85: 3335 | D85: 145 | CU85: NC_Asheville
A86: AUT | B86: Vienna Schwechat | C86: 3158 | D86: 223 | CU86: NC_Charlotte
A87: BEL | B87: Brussels | C87: 2912 | D87: 96 | CU87: NC_Greensboro
A88: BEL | B88: Oostende | C88: 2846 | D88: 21 | CU88: NC_Wilmington
A89: BEL | B89: Saint Hubert | C89: 3853 | D89: 13 | CU89: ND_Bismarck
A90: BGD | B90: Bogra | C90: 35 | D90: 2682 | CU90: ND_Fargo
A91: BGD | B91: Chittagong-Patenga | C91: 0 | D91: 2927 | CU91: NE_Kearney Muni AWOS
A92: BGD | B92: Coxs Bazar | C92: 0 | D92: 2930 | CU92: NE_Omaha
A93: BGD | B93: Dhaka | C93: 10 | D93: 2853 | CU93: NH_Concord
A94: BGD | B94: Ishurdi | C94: 44 | D94: 2612 | CU94: NJ_Atlantic City
A95: BGD | B95: Jessore | C95: 22 | D95: 2869 | CU95: NJ_Newark
A96: BGD | B96: Rangpur | C96: 71 | D96: 2410 | CU96: NM_Albuquerque
A97: BGD | B97: Sylhet | C97: 16 | D97: 2386 | CU97: NM_Los Alamos
A98: BGR | B98: Plovdiv | C98: 2471 | D98: 543 | CU98: NV_Las Vegas
A99: BGR | B99: Sofia | C99: 3073 | D99: 240 | CU99: NV_Reno
A100: BGR | B100: Varna | C100: 2518 | D100: 375 | CU100: NY_Albany
A101: BIH | B101: Banja Luka | C101: 2898 | D101: 265 | CU101: NY_Buffalo
A102: BLR | B102: Minsk | C102: 4329 | D102: 70 | CU102: NY_New York City-Central Park
A103: BLZ | B103: Belize | C103: 0 | D103: 3055 | CU103: NY_Niagara Falls Intl AP
A104: BOL | B104: La Paz | C104: 4015 | D104: 0 | CU104: NY_Syracuse
A105: BRA | B105: Belem-Val de Caes | C105: 0 | D105: 3090 | CU105: OH_Akron
A106: BRA | B106: Belem | C106: 0 | D106: 3115 | CU106: OH_Cleveland
A107: BRA | B107: Belo Horizonte-Pampulha | C107: 21 | D107: 1487 | CU107: OH_Toledo
A108: BRA | B108: Boa Vista | C108: 0 | D108: 3839 | CU108: OK_Oklahoma City
A109: BRA | B109: Bom Jesus da Lapa | C109: 9 | D109: 2963 | CU109: OK_Tulsa
A110: BRA | B110: Brasilia | C110: 8 | D110: 1295 | CU110: OR_Portland
A111: BRA | B111: Campo Grande | C111: 32 | D111: 2236 | CU111: OR_Redmond
A112: BRA | B112: Cuiaba-Marechal Ron | C112: 20 | D112: 3206 | CU112: PA_Allentown
A113: BRA | B113: Curitiba-Afonso Pen | C113: 730 | D113: 427 | CU113: PA_Harrisburg
A114: BRA | B114: Florianopolis | C114: 201 | D114: 1196 | CU114: PA_Lancaster AP
A115: BRA | B115: Fortaleza-Pinto Mar | C115: 0 | D115: 3371 | CU115: PA_Philadelphia
A116: BRA | B116: Jacareacanga | C116: 0 | D116: 2890 | CU116: RI_Pawtucket AWOS
A117: BRA | B117: Manaus | C117: 0 | D117: 3213 | CU117: RI_Providence
A118: BRA | B118: Petrolina | C118: 0 | D118: 3202 | CU118: SC_Charleston
A119: BRA | B119: Porto Nacional | C119: 0 | D119: 3304 | CU119: SC_Columbia
A120: BRA | B120: Porto Velho | C120: 0 | D120: 3035 | CU120: SC_Myrtle Beach AFB
A121: BRA | B121: Recife-Guararapes | C121: 0 | D121: 3338 | CU121: SD_Brookings AWOS
A122: BRA | B122: Recife | C122: 0 | D122: 3478 | CU122: SD_Huron
A123: BRA | B123: Rio de Janeiro-Santos Dumont | C123: 4 | D123: 2184 | CU123: SD_Sioux Falls
A124: BRA | B124: Salvador | C124: 0 | D124: 2901 | CU124: TN_Chattanooga
A125: BRA | B125: Santa Maria | C125: 579 | D125: 1144 | CU125: TN_Knoxville
A126: BRA | B126: Sao Paulo-Congonhas | C126: 293 | D126: 854 | CU126: TN_Memphis
A127: BRA | B127: Sao Paulo | C127: 252 | D127: 939 | CU127: TN_Nashville
A128: BRN | B128: Bandar Seri Begawan | C128: 0 | D128: 3340 | CU128: TX_Austin
A129: CAN | B129: AB_Edmonton | C129: 5583 | D129: 22 | CU129: TX_Dallas-Fort Worth Intl AP
A130: CAN | B130: AB_Fort McMurray | C130: 6190 | D130: 65 | CU130: TX_Houston-Intercontinental
A131: CAN | B131: AB_Grande Prairie | C131: 5897 | D131: 25 | CU131: UT_Salt Lake City
A132: CAN | B132: AB_Lethbridge | C132: 4430 | D132: 127 | CU132: VA_Lynchburg
A133: CAN | B133: AB_Medicine Hat | C133: 4677 | D133: 198 | CU133: VA_Norfolk
A134: CAN | B134: BC_Abbotsford | C134: 3135 | D134: 33 | CU134: VA_Richmond
A135: CAN | B135: BC_Comox | C135: 3177 | D135: 31 | CU135: VA_Roanoke
A136: CAN | B136: BC_Fort St John | C136: 5862 | D136: 26 | CU136: VT_Burlington
A137: CAN | B137: BC_Kamloops | C137: 3630 | D137: 286 | CU137: WA_Seattle-Tacoma
A138: CAN | B138: BC_Port Hardy | C138: 3712 | D138: 0 | CU138: WI_Green Bay
A139: CAN | B139: BC_Prince George | C139: 5071 | D139: 15 | CU139: WV_Charleston
A140: CAN | B140: BC_Prince Rupert | C140: 4152 | D140: 0 | CU140: WY_Cheyenne
A141: CAN | B141: BC_Sandspit | C141: 3642 | D141: 0 | CU141: WY_Rock Springs
A142: CAN | B142: BC_Smithers | C142: 5266 | D142: 21 | K142: <-Last row
A143: CAN | B143: BC_Summerland | C143: 3386 | D143: 200 | CU143: =IFERROR(INDEX(wCity, MATCH(MIN(IF((COUNTIF(CU$5:CU141, wCity)=0)*(wCountry=CU$5), 1, MAX((COUNTIF(wCity, "<"&wCity)+1)*2))*(COUNTIF(wCity, "<"&wCity)+1)), IF(wCountry=CU$5,COUNTIF(wCity, "<"&wCity)+1,""), 0)),"") -> 
A144: CAN | B144: BC_Vancouver | C144: 3020 | D144: 5 | CU144: =IFERROR(INDEX(wCity, MATCH(MIN(IF((COUNTIF(CU$5:CU143, wCity)=0)*(wCountry=CU$5), 1, MAX((COUNTIF(wCity, "<"&wCity)+1)*2))*(COUNTIF(wCity, "<"&wCity)+1)), IF(wCountry=CU$5,COUNTIF(wCity, "<"&wCity)+1,""), 0)),"") -> 
A145: CAN | B145: BC_Victoria | C145: 3076 | D145: 8 | CU145: =IFERROR(INDEX(wCity, MATCH(MIN(IF((COUNTIF(CU$5:CU144, wCity)=0)*(wCountry=CU$5), 1, MAX((COUNTIF(wCity, "<"&wCity)+1)*2))*(COUNTIF(wCity, "<"&wCity)+1)), IF(wCountry=CU$5,COUNTIF(wCity, "<"&wCity)+1,""), 0)),"") -> 
A146: CAN | B146: MB_Brandon | C146: 5911 | D146: 95 | CU146: =IFERROR(INDEX(wCity, MATCH(MIN(IF((COUNTIF(CU$5:CU145, wCity)=0)*(wCountry=CU$5), 1, MAX((COUNTIF(wCity, "<"&wCity)+1)*2))*(COUNTIF(wCity, "<"&wCity)+1)), IF(wCountry=CU$5,COUNTIF(wCity, "<"&wCity)+1,""), 0)),"") -> 
A147: CAN | B147: MB_Churchill | C147: 9115 | D147: 3 | CU147: =IFERROR(INDEX(wCity, MATCH(MIN(IF((COUNTIF(CU$5:CU146, wCity)=0)*(wCountry=CU$5), 1, MAX((COUNTIF(wCity, "<"&wCity)+1)*2))*(COUNTIF(wCity, "<"&wCity)+1)), IF(wCountry=CU$5,COUNTIF(wCity, "<"&wCity)+1,""), 0)),"") -> 
A148: CAN | B148: MB_The Pas | C148: 6443 | D148: 105 | CU148: =IFERROR(INDEX(wCity, MATCH(MIN(IF((COUNTIF(CU$5:CU147, wCity)=0)*(wCountry=CU$5), 1, MAX((COUNTIF(wCity, "<"&wCity)+1)*2))*(COUNTIF(wCity, "<"&wCity)+1)), IF(wCountry=CU$5,COUNTIF(wCity, "<"&wCity)+1,""), 0)),"") -> 
A149: CAN | B149: MB_Winnipeg | C149: 5754 | D149: 197 | CU149: =IFERROR(INDEX(wCity, MATCH(MIN(IF((COUNTIF(CU$5:CU148, wCity)=0)*(wCountry=CU$5), 1, MAX((COUNTIF(wCity, "<"&wCity)+1)*2))*(COUNTIF(wCity, "<"&wCity)+1)), IF(wCountry=CU$5,COUNTIF(wCity, "<"&wCity)+1,""), 0)),"") -> 
A150: CAN | B150: NB_Fredericton | C150: 4734 | D150: 131 | CU150: =IFERROR(INDEX(wCity, MATCH(MIN(IF((COUNTIF(CU$5:CU149, wCity)=0)*(wCountry=CU$5), 1, MAX((COUNTIF(wCity, "<"&wCity)+1)*2))*(COUNTIF(wCity, "<"&wCity)+1)), IF(wCountry=CU$5,COUNTIF(wCity, "<"&wCity)+1,""), 0)),"") -> 
A151: CAN | B151: NB_Miramichi | C151: 4920 | D151: 141 | CU151: =IFERROR(INDEX(wCity, MATCH(MIN(IF((COUNTIF(CU$5:CU150, wCity)=0)*(wCountry=CU$5), 1, MAX((COUNTIF(wCity, "<"&wCity)+1)*2))*(COUNTIF(wCity, "<"&wCity)+1)), IF(wCountry=CU$5,COUNTIF(wCity, "<"&wCity)+1,""), 0)),"") -> 
A152: CAN | B152: NB_Saint John | C152: 4695 | D152: 11
A153: CAN | B153: NF_Battle Harbour | C153: 6463 | D153: 0
A154: CAN | B154: NF_Gander | C154: 5099 | D154: 25
A155: CAN | B155: NF_Goose | C155: 6558 | D155: 38
A156: CAN | B156: NF_St Johns | C156: 4886 | D156: 24
A157: CAN | B157: NF_Stephenville | C157: 4723 | D157: 9
A158: CAN | B158: NS_Greenwood | C158: 4130 | D158: 128
A159: CAN | B159: NS_Sable Island | C159: 3860 | D159: 13
A160: CAN | B160: NS_Shearwater | C160: 4199 | D160: 57
A161: CAN | B161: NS_Sydney | C161: 4634 | D161: 52
A162: CAN | B162: NS_Truro | C162: 4536 | D162: 36
A163: CAN | B163: NT_Inuvik | C163: 9951 | D163: 17
A164: CAN | B164: NT_Yellowknife | C164: 8257 | D164: 27
A165: CAN | B165: NU_Resolute | C165: 12571 | D165: 0
A166: CAN | B166: ON_Kingston | C166: 4287 | D166: 188
A167: CAN | B167: ON_London | C167: 4111 | D167: 211
A168: CAN | B168: ON_Mount Forest | C168: 4580 | D168: 121
A169: CAN | B169: ON_Muskoka | C169: 4773 | D169: 97
A170: CAN | B170: ON_North Bay | C170: 5340 | D170: 103
A171: CAN | B171: ON_Ottawa | C171: 4664 | D171: 189
A172: CAN | B172: ON_Sault Ste Marie | C172: 4992 | D172: 75
A173: CAN | B173: ON_Simcoe | C173: 4066 | D173: 189
A174: CAN | B174: ON_Thunder Bay | C174: 5623 | D174: 60
A175: CAN | B175: ON_Toronto | C175: 4089 | D175: 232
A176: CAN | B176: ON_Trenton | C176: 4175 | D176: 206
A177: CAN | B177: ON_Windsor | C177: 3569 | D177: 367
A178: CAN | B178: PE_Charlottetown | C178: 4646 | D178: 72
A179: CAN | B179: PQ_Bagotville | C179: 5780 | D179: 50
A180: CAN | B180: PQ_Baie Comeau | C180: 5889 | D180: 3
A181: CAN | B181: PQ_Grindstone Island | C181: 4940 | D181: 18
A182: CAN | B182: PQ_Kuujjuarapik | C182: 7987 | D182: 12
A183: CAN | B183: PQ_Kuujuaq | C183: 8491 | D183: 1
A184: CAN | B184: PQ_La Grande Riviere | C184: 7616 | D184: 10
A185: CAN | B185: PQ_Lake Eon | C185: 7384 | D185: 8
A186: CAN | B186: PQ_Mont Joli | C186: 5521 | D186: 65
A187: CAN | B187: PQ_Montreal Intl AP | C187: 4493 | D187: 234
A188: CAN | B188: PQ_Montreal Jean Brebeuf | C188: 4615 | D188: 209
A189: CAN | B189: PQ_Montreal Mirabel | C189: 4862 | D189: 102
A190: CAN | B190: PQ_Nitchequon CA | C190: 7922 | D190: 6
A191: CAN | B191: PQ_Quebec | C191: 4966 | D191: 111
A192: CAN | B192: PQ_Riviere du Loup | C192: 5423 | D192: 82
A193: CAN | B193: PQ_Roberval | C193: 5757 | D193: 97
A194: CAN | B194: PQ_Schefferville | C194: 8056 | D194: 7
A195: CAN | B195: PQ_Sept-Iles | C195: 6135 | D195: 4
A196: CAN | B196: PQ_Sherbrooke | C196: 5067 | D196: 93
A197: CAN | B197: PQ_St Hubert | C197: 4566 | D197: 251
A198: CAN | B198: PQ_Ste Agathe des Monts | C198: 5351 | D198: 44
A199: CAN | B199: PQ_Val d Or | C199: 6129 | D199: 79
A200: CAN | B200: SK_Estevan | C200: 5368 | D200: 190
... 717 more rows

Sheet Dropdowns (hidden)
A3: Sector Dropdown | C3: Category Dropdowns
A4: Residential | C4: Residential | D4: Commercial
A5: Commercial | C5: HVAC | D5: HVAC
C6: Lighting Upgrade | D6: Lighting Upgrade
C7: Water Heating | D7: Refrigeration
A10: Measure Dropdown Chooser | C10: Conc. Lookup | D10: Sector Start | E10: Sector Count | F10: Category Start | G10: Category Count | H10: DD Range
A11: Residential | B11: HVAC | C11: =A11&B11 -> ResidentialHVAC | D11: =MATCH(Dropdowns!A11,Data!A:A,0) -> 2 | E11: =COUNTIF(Data!A:A,Dropdowns!A11) -> 44 | F11: =MATCH(B11,OFFSET(Data!$A$1,MATCH(Dropdowns!A11,Data!A:A,0)-1,1,COUNTIF(Data!A:A,Dropdowns!A11),1),0)+D11-1 -> 14 | G11: =COUNTIF(OFFSET(Data!$A$1,MATCH(Dropdowns!A11,Data!A:A,0)-1,1,COUNTIF(Data!A:A,Dropdowns!A11),1),B11) -> 32 | H11: ="Data!C"&F11&":C"&F11+G11-1 -> Data!C14:C45
A12: Residential | B12: Lighting Upgrade | C12: =A12&B12 -> ResidentialLighting Upgrade | D12: =MATCH(Dropdowns!A12,Data!A:A,0) -> 2 | E12: =COUNTIF(Data!A:A,Dropdowns!A12) -> 44 | F12: =MATCH(B12,OFFSET(Data!$A$1,MATCH(Dropdowns!A12,Data!A:A,0)-1,1,COUNTIF(Data!A:A,Dropdowns!A12),1),0)+D12-1 -> 2 | G12: =COUNTIF(OFFSET(Data!$A$1,MATCH(Dropdowns!A12,Data!A:A,0)-1,1,COUNTIF(Data!A:A,Dropdowns!A12),1),B12) -> 3 | H12: ="Data!C"&F12&":C"&F12+G12-1 -> Data!C2:C4
A13: Residential | B13: Water Heating | C13: ResidentialWater Heating | D13: =MATCH(Dropdowns!A13,Data!A:A,0) -> 2 | E13: =COUNTIF(Data!A:A,Dropdowns!A13) -> 44 | F13: =MATCH(B13,OFFSET(Data!$A$1,MATCH(Dropdowns!A13,Data!A:A,0)-1,1,COUNTIF(Data!A:A,Dropdowns!A13),1),0)+D13-1 -> 5 | G13: =COUNTIF(OFFSET(Data!$A$1,MATCH(Dropdowns!A13,Data!A:A,0)-1,1,COUNTIF(Data!A:A,Dropdowns!A13),1),B13) -> 9 | H13: Data!C5:C13
A14: Commercial | B14: HVAC | C14: CommercialHVAC | D14: =MATCH(Dropdowns!A14,Data!A:A,0) -> 46 | E14: =COUNTIF(Data!A:A,Dropdowns!A14) -> 85 | F14: =MATCH(B14,OFFSET(Data!$A$1,MATCH(Dropdowns!A14,Data!A:A,0)-1,1,COUNTIF(Data!A:A,Dropdowns!A14),1),0)+D14-1 -> 83 | G14: =COUNTIF(OFFSET(Data!$A$1,MATCH(Dropdowns!A14,Data!A:A,0)-1,1,COUNTIF(Data!A:A,Dropdowns!A14),1),B14) -> 48 | H14: Data!C83:C130
A15: Commercial | B15: Lighting Upgrade | C15: CommercialLighting Upgrade | D15: =MATCH(Dropdowns!A15,Data!A:A,0) -> 46 | E15: =COUNTIF(Data!A:A,Dropdowns!A15) -> 85 | F15: =MATCH(B15,OFFSET(Data!$A$1,MATCH(Dropdowns!A15,Data!A:A,0)-1,1,COUNTIF(Data!A:A,Dropdowns!A15),1),0)+D15-1 -> 46 | G15: =COUNTIF(OFFSET(Data!$A$1,MATCH(Dropdowns!A15,Data!A:A,0)-1,1,COUNTIF(Data!A:A,Dropdowns!A15),1),B15) -> 26 | H15: Data!C46:C71
A16: Commercial | B16: Refrigeration | C16: CommercialRefrigeration | D16: =MATCH(Dropdowns!A16,Data!A:A,0) -> 46 | E16: =COUNTIF(Data!A:A,Dropdowns!A16) -> 85 | F16: =MATCH(B16,OFFSET(Data!$A$1,MATCH(Dropdowns!A16,Data!A:A,0)-1,1,COUNTIF(Data!A:A,Dropdowns!A16),1),0)+D16-1 -> 72 | G16: =COUNTIF(OFFSET(Data!$A$1,MATCH(Dropdowns!A16,Data!A:A,0)-1,1,COUNTIF(Data!A:A,Dropdowns!A16),1),B16) -> 11 | H16: Data!C72:C82

Sheet Lifetime&PlotData (hidden)
A1: Don't delete this row | C1: =ROW(Calculations!C26) -> 26 | D1: =C1+1 -> 27 | E1: =D1+1 -> 28 | F1: 29 | G1: 30 | H1: 31 | I1: 32 | J1: 33 | K1: 34 | L1: 35 | P1: =ROW(Calculations!C26) -> 26 | Q1: =P1+1 -> 27 | R1: =Q1+1 -> 28 | S1: 29 | T1: 30 | U1: 31 | V1: 32 | W1: 33 | X1: 34 | Y1: 35
B2: Total Electricity Savings (kWh) | O2: Total Fossil Fuel Savings (Therms) | AB2: Total Energy Savings (GJ)
B3: Multiplication Factor | C3: =IF(C4-INT(C4)=0,1,C4-INT(C4)) -> 1 | D3: =IF(D4-INT(D4)=0,1,D4-INT(D4)) -> 1 | E3: 1 | F3: 1 | G3: 1 | H3: 1 | I3: 1 | J3: 1 | K3: 1 | L3: 1 | O3: Multiplication Factor | P3: =IF(P4-INT(P4)=0,1,P4-INT(P4)) -> 1 | Q3: =IF(Q4-INT(Q4)=0,1,Q4-INT(Q4)) -> 1 | R3: 1 | S3: 1 | T3: 1 | U3: 1 | V3: 1 | W3: 1 | X3: 1 | Y3: 1 | AB3: Multiplication Factor | AC3: =IF(AC4-INT(AC4)=0,1,AC4-INT(AC4)) -> 1 | AD3: =IF(AD4-INT(AD4)=0,1,AD4-INT(AD4)) -> 1 | AE3: 1 | AF3: 1 | AG3: 1 | AH3: 1 | AI3: 1 | AJ3: 1 | AK3: 1 | AL3: 1
B4: Lifetime | C4: =IF(INDIRECT("Calculations!r"&C$1)="",0,INDIRECT("Calculations!r"&C$1)) -> 0 | D4: =IF(INDIRECT("Calculations!r"&D$1)="",0,INDIRECT("Calculations!r"&D$1)) -> 0 | E4: 0 | F4: 0 | G4: 0 | H4: 0 | I4: 0 | J4: 0 | K4: 0 | L4: 0 | O4: Lifetime | P4: =C4 -> 0 | Q4: 0 | R4: 0 | S4: 0 | T4: 0 | U4: 0 | V4: 0 | W4: 0 | X4: 0 | Y4: =L4 -> 0 | AB4: Lifetime | AC4: =P4 -> 0 | AD4: =Q4 -> 0 | AE4: =R4 -> 0 | AF4: =S4 -> 0 | AG4: =T4 -> 0 | AH4: =U4 -> 0 | AI4: =V4 -> 0 | AJ4: =W4 -> 0 | AK4: =X4 -> 0 | AL4: =Y4 -> 0
B5: Degradation | C5: =IF(INDIRECT("Calculations!s"&C$1)="",0,INDIRECT("Calculations!s"&C$1)) -> 0 | D5: =IF(INDIRECT("Calculations!s"&D$1)="",0,INDIRECT("Calculations!s"&D$1)) -> 0 | E5: 0 | F5: 0 | G5: 0 | H5: 0 | I5: 0 | J5: 0 | K5: 0 | L5: 0 | O5: Degradation | P5: 0 | Q5: 0 | R5: 0 | S5: 0 | T5: 0 | U5: 0 | V5: 0 | W5: 0 | X5: 0 | Y5: =L5 -> 0 | AB5: Degradation | AC5: =P5 -> 0 | AD5: 0 | AE5: 0 | AF5: 0 | AG5: 0 | AH5: 0 | AI5: 0 | AJ5: 0 | AK5: 0 | AL5: 0
B6: Measure # | C6: 1 | D6: =C6+1 -> 2 | E6: =D6+1 -> 3 | F6: 4 | G6: 5 | H6: 6 | I6: 7 | J6: 8 | K6: 9 | L6: 10 | M6: Total | O6: Measure # | P6: 1 | Q6: =P6+1 -> 2 | R6: =Q6+1 -> 3 | S6: 4 | T6: 5 | U6: 6 | V6: 7 | W6: 8 | X6: 9 | Y6: 10 | Z6: Total | AB6: Measure # | AC6: 1 | AD6: =AC6+1 -> 2 | AE6: =AD6+1 -> 3 | AF6: 4 | AG6: 5 | AH6: 6 | AI6: 7 | AJ6: 8 | AK6: 9 | AL6: 10 | AM6: Total
B7: 1 | C7: =IF(INDIRECT("Calculations!p"&C$1)="",0,IF(INDIRECT("Calculations!F"&C1)="kWh per Unit",INDIRECT("Calculations!p"&C$1),0)) -> 0 | D7: =IF(INDIRECT("Calculations!p"&D$1)="",0,IF(INDIRECT("Calculations!F"&D1)="kWh per Unit",INDIRECT("Calculations!p"&D$1),0)) -> 0 | E7: 0 | F7: 0 | G7: 0 | H7: 0 | I7: 0 | J7: 0 | K7: 0 | L7: 0 | M7: =SUM(C7:L7) -> 0 | O7: 1 | P7: =IF(INDIRECT("Calculations!p"&P$1)="",0,IF(INDIRECT("Calculations!F"&P1)="Therms per Unit",INDIRECT("Calculations!p"&P$1),0)) -> 0 | Q7: =IF(INDIRECT("Calculations!p"&Q$1)="",0,IF(INDIRECT("Calculations!F"&Q1)="Therms per Unit",INDIRECT("Calculations!p"&Q$1),0)) -> 0 | R7: 0 | S7: 0 | T7: 0 | U7: 0 | V7: 0 | W7: 0 | X7: 0 | Y7: 0 | Z7: =SUM(P7:Y7) -> 0 | AB7: 1 | AC7: =C7*Conversions!$K$50+P7*Conversions!$K$59 -> 0 | AD7: =D7*Conversions!$K$50+Q7*Conversions!$K$59 -> 0 | AE7: =E7*Conversions!$K$50+R7*Conversions!$K$59 -> 0 | AF7: =F7*Conversions!$K$50+S7*Conversions!$K$59 -> 0 | AG7: =G7*Conversions!$K$50+T7*Conversions!$K$59 -> 0 | AH7: =H7*Conversions!$K$50+U7*Conversions!$K$59 -> 0 | AI7: =I7*Conversions!$K$50+V7*Conversions!$K$59 -> 0 | AJ7: =J7*Conversions!$K$50+W7*Conversions!$K$59 -> 0 | AK7: =K7*Conversions!$K$50+X7*Conversions!$K$59 -> 0 | AL7: =L7*Conversions!$K$50+Y7*Conversions!$K$59 -> 0 | AM7: =SUM(AC7:AL7) -> 0 | AN7: =IF(SUM(AC7:AL7)=0,FALSE,TRUE) -> FALSE
B8: 2 | C8: =IF(AND($B8>=C$4,$B8<C$4+1),C7*(1-C$5)*C$3,IF($B8<C$4,C7*(1-C$5),0)) -> 0 | D8: =IF(AND($B8>=D$4,$B8<D$4+1),D7*(1-D$5)*D$3,IF($B8<D$4,D7*(1-D$5),0)) -> 0 | E8: =IF(AND($B8>=E$4,$B8<E$4+1),E7*(1-E$5)*E$3,IF($B8<E$4,E7*(1-E$5),0)) -> 0 | F8: =IF(AND($B8>=F$4,$B8<F$4+1),F7*(1-F$5)*F$3,IF($B8<F$4,F7*(1-F$5),0)) -> 0 | G8: =IF(AND($B8>=G$4,$B8<G$4+1),G7*(1-G$5)*G$3,IF($B8<G$4,G7*(1-G$5),0)) -> 0 | H8: 0 | I8: 0 | J8: 0 | K8: =IF(AND($B8>=K$4,$B8<K$4+1),K7*(1-K$5)*K$3,IF($B8<K$4,K7*(1-K$5),0)) -> 0 | L8: =IF(AND($B8>=L$4,$B8<L$4+1),L7*(1-L$5)*L$3,IF($B8<L$4,L7*(1-L$5),0)) -> 0 | M8: 0 | O8: 2 | P8: =IF(AND($B8>=P$4,$B8<P$4+1),P7*(1-P$5)*P$3,IF($B8<P$4,P7*(1-P$5),0)) -> 0 | Q8: =IF(AND($B8>=Q$4,$B8<Q$4+1),Q7*(1-Q$5)*Q$3,IF($B8<Q$4,Q7*(1-Q$5),0)) -> 0 | R8: =IF(AND($B8>=R$4,$B8<R$4+1),R7*(1-R$5)*R$3,IF($B8<R$4,R7*(1-R$5),0)) -> 0 | S8: =IF(AND($B8>=S$4,$B8<S$4+1),S7*(1-S$5)*S$3,IF($B8<S$4,S7*(1-S$5),0)) -> 0 | T8: =IF(AND($B8>=T$4,$B8<T$4+1),T7*(1-T$5)*T$3,IF($B8<T$4,T7*(1-T$5),0)) -> 0 | U8: 0 | V8: 0 | W8: 0 | X8: =IF(AND($B8>=X$4,$B8<X$4+1),X7*(1-X$5)*X$3,IF($B8<X$4,X7*(1-X$5),0)) -> 0 | Y8: =IF(AND($B8>=Y$4,$B8<Y$4+1),Y7*(1-Y$5)*Y$3,IF($B8<Y$4,Y7*(1-Y$5),0)) -> 0 | Z8: =SUM(P8:Y8) -> 0 | AB8: 2 | AC8: =C8*Conversions!$K$50+P8*Conversions!$K$59 -> 0 | AD8: =D8*Conversions!$K$50+Q8*Conversions!$K$59 -> 0 | AE8: =E8*Conversions!$K$50+R8*Conversions!$K$59 -> 0 | AF8: =F8*Conversions!$K$50+S8*Conversions!$K$59 -> 0 | AG8: =G8*Conversions!$K$50+T8*Conversions!$K$59 -> 0 | AH8: =H8*Conversions!$K$50+U8*Conversions!$K$59 -> 0 | AI8: =I8*Conversions!$K$50+V8*Conversions!$K$59 -> 0 | AJ8: =J8*Conversions!$K$50+W8*Conversions!$K$59 -> 0 | AK8: =K8*Conversions!$K$50+X8*Conversions!$K$59 -> 0 | AL8: =L8*Conversions!$K$50+Y8*Conversions!$K$59 -> 0 | AM8: =SUM(AC8:AL8) -> 0 | AN8: =IF(SUM(AC8:AL8)=0,FALSE,TRUE) -> FALSE
B9: 3 | C9: 0 | D9: 0 | E9: 0 | F9: 0 | G9: 0 | H9: 0 | I9: 0 | J9: 0 | K9: =IF(AND($B9>=K$4,$B9<K$4+1),K8*(1-K$5)*K$3,IF($B9<K$4,K8*(1-K$5),0)) -> 0 | L9: 0 | M9: 0 | O9: 3 | P9: 0 | Q9: 0 | R9: 0 | S9: 0 | T9: 0 | U9: 0 | V9: 0 | W9: 0 | X9: =IF(AND($B9>=X$4,$B9<X$4+1),X8*(1-X$5)*X$3,IF($B9<X$4,X8*(1-X$5),0)) -> 0 | Y9: 0 | Z9: 0 | AB9: 3 | AC9: =C9*Conversions!$K$50+P9*Conversions!$K$59 -> 0 | AD9: =D9*Conversions!$K$50+Q9*Conversions!$K$59 -> 0 | AE9: =E9*Conversions!$K$50+R9*Conversions!$K$59 -> 0 | AF9: =F9*Conversions!$K$50+S9*Conversions!$K$59 -> 0 | AG9: =G9*Conversions!$K$50+T9*Conversions!$K$59 -> 0 | AH9: =H9*Conversions!$K$50+U9*Conversions!$K$59 -> 0 | AI9: =I9*Conversions!$K$50+V9*Conversions!$K$59 -> 0 | AJ9: =J9*Conversions!$K$50+W9*Conversions!$K$59 -> 0 | AK9: =K9*Conversions!$K$50+X9*Conversions!$K$59 -> 0 | AL9: =L9*Conversions!$K$50+Y9*Conversions!$K$59 -> 0 | AM9: 0 | AN9: FALSE
B10: 4 | C10: 0 | D10: 0 | E10: 0 | F10: 0 | G10: 0 | H10: 0 | I10: 0 | J10: 0 | K10: =IF(AND($B10>=K$4,$B10<K$4+1),K9*(1-K$5)*K$3,IF($B10<K$4,K9*(1-K$5),0)) -> 0 | L10: 0 | M10: 0 | O10: 4 | P10: 0 | Q10: 0 | R10: 0 | S10: 0 | T10: 0 | U10: 0 | V10: 0 | W10: 0 | X10: =IF(AND($B10>=X$4,$B10<X$4+1),X9*(1-X$5)*X$3,IF($B10<X$4,X9*(1-X$5),0)) -> 0 | Y10: 0 | Z10: 0 | AB10: 4 | AC10: =C10*Conversions!$K$50+P10*Conversions!$K$59 -> 0 | AD10: =D10*Conversions!$K$50+Q10*Conversions!$K$59 -> 0 | AE10: =E10*Conversions!$K$50+R10*Conversions!$K$59 -> 0 | AF10: =F10*Conversions!$K$50+S10*Conversions!$K$59 -> 0 | AG10: =G10*Conversions!$K$50+T10*Conversions!$K$59 -> 0 | AH10: =H10*Conversions!$K$50+U10*Conversions!$K$59 -> 0 | AI10: =I10*Conversions!$K$50+V10*Conversions!$K$59 -> 0 | AJ10: =J10*Conversions!$K$50+W10*Conversions!$K$59 -> 0 | AK10: =K10*Conversions!$K$50+X10*Conversions!$K$59 -> 0 | AL10: =L10*Conversions!$K$50+Y10*Conversions!$K$59 -> 0 | AM10: 0 | AN10: FALSE
B11: 5 | C11: 0 | D11: 0 | E11: 0 | F11: 0 | G11: 0 | H11: 0 | I11: 0 | J11: 0 | K11: =IF(AND($B11>=K$4,$B11<K$4+1),K10*(1-K$5)*K$3,IF($B11<K$4,K10*(1-K$5),0)) -> 0 | L11: 0 | M11: 0 | O11: 5 | P11: 0 | Q11: 0 | R11: 0 | S11: 0 | T11: 0 | U11: 0 | V11: 0 | W11: 0 | X11: =IF(AND($B11>=X$4,$B11<X$4+1),X10*(1-X$5)*X$3,IF($B11<X$4,X10*(1-X$5),0)) -> 0 | Y11: 0 | Z11: 0 | AB11: 5 | AC11: =C11*Conversions!$K$50+P11*Conversions!$K$59 -> 0 | AD11: =D11*Conversions!$K$50+Q11*Conversions!$K$59 -> 0 | AE11: =E11*Conversions!$K$50+R11*Conversions!$K$59 -> 0 | AF11: =F11*Conversions!$K$50+S11*Conversions!$K$59 -> 0 | AG11: =G11*Conversions!$K$50+T11*Conversions!$K$59 -> 0 | AH11: =H11*Conversions!$K$50+U11*Conversions!$K$59 -> 0 | AI11: =I11*Conversions!$K$50+V11*Conversions!$K$59 -> 0 | AJ11: =J11*Conversions!$K$50+W11*Conversions!$K$59 -> 0 | AK11: =K11*Conversions!$K$50+X11*Conversions!$K$59 -> 0 | AL11: =L11*Conversions!$K$50+Y11*Conversions!$K$59 -> 0 | AM11: 0 | AN11: FALSE
B12: 6 | C12: 0 | D12: 0 | E12: 0 | F12: 0 | G12: 0 | H12: 0 | I12: 0 | J12: 0 | K12: =IF(AND($B12>=K$4,$B12<K$4+1),K11*(1-K$5)*K$3,IF($B12<K$4,K11*(1-K$5),0)) -> 0 | L12: 0 | M12: 0 | O12: 6 | P12: 0 | Q12: 0 | R12: 0 | S12: 0 | T12: 0 | U12: 0 | V12: 0 | W12: 0 | X12: =IF(AND($B12>=X$4,$B12<X$4+1),X11*(1-X$5)*X$3,IF($B12<X$4,X11*(1-X$5),0)) -> 0 | Y12: 0 | Z12: 0 | AB12: 6 | AC12: =C12*Conversions!$K$50+P12*Conversions!$K$59 -> 0 | AD12: =D12*Conversions!$K$50+Q12*Conversions!$K$59 -> 0 | AE12: =E12*Conversions!$K$50+R12*Conversions!$K$59 -> 0 | AF12: =F12*Conversions!$K$50+S12*Conversions!$K$59 -> 0 | AG12: =G12*Conversions!$K$50+T12*Conversions!$K$59 -> 0 | AH12: =H12*Conversions!$K$50+U12*Conversions!$K$59 -> 0 | AI12: =I12*Conversions!$K$50+V12*Conversions!$K$59 -> 0 | AJ12: =J12*Conversions!$K$50+W12*Conversions!$K$59 -> 0 | AK12: =K12*Conversions!$K$50+X12*Conversions!$K$59 -> 0 | AL12: =L12*Conversions!$K$50+Y12*Conversions!$K$59 -> 0 | AM12: 0 | AN12: FALSE
B13: 7 | C13: 0 | D13: 0 | E13: 0 | F13: 0 | G13: 0 | H13: 0 | I13: 0 | J13: 0 | K13: =IF(AND($B13>=K$4,$B13<K$4+1),K12*(1-K$5)*K$3,IF($B13<K$4,K12*(1-K$5),0)) -> 0 | L13: 0 | M13: 0 | O13: 7 | P13: 0 | Q13: 0 | R13: 0 | S13: 0 | T13: 0 | U13: 0 | V13: 0 | W13: 0 | X13: =IF(AND($B13>=X$4,$B13<X$4+1),X12*(1-X$5)*X$3,IF($B13<X$4,X12*(1-X$5),0)) -> 0 | Y13: 0 | Z13: 0 | AB13: 7 | AC13: =C13*Conversions!$K$50+P13*Conversions!$K$59 -> 0 | AD13: =D13*Conversions!$K$50+Q13*Conversions!$K$59 -> 0 | AE13: =E13*Conversions!$K$50+R13*Conversions!$K$59 -> 0 | AF13: =F13*Conversions!$K$50+S13*Conversions!$K$59 -> 0 | AG13: =G13*Conversions!$K$50+T13*Conversions!$K$59 -> 0 | AH13: =H13*Conversions!$K$50+U13*Conversions!$K$59 -> 0 | AI13: =I13*Conversions!$K$50+V13*Conversions!$K$59 -> 0 | AJ13: =J13*Conversions!$K$50+W13*Conversions!$K$59 -> 0 | AK13: =K13*Conversions!$K$50+X13*Conversions!$K$59 -> 0 | AL13: =L13*Conversions!$K$50+Y13*Conversions!$K$59 -> 0 | AM13: 0 | AN13: FALSE
B14: 8 | C14: 0 | D14: 0 | E14: 0 | F14: 0 | G14: 0 | H14: 0 | I14: 0 | J14: 0 | K14: =IF(AND($B14>=K$4,$B14<K$4+1),K13*(1-K$5)*K$3,IF($B14<K$4,K13*(1-K$5),0)) -> 0 | L14: 0 | M14: 0 | O14: 8 | P14: 0 | Q14: 0 | R14: 0 | S14: 0 | T14: 0 | U14: 0 | V14: 0 | W14: 0 | X14: =IF(AND($B14>=X$4,$B14<X$4+1),X13*(1-X$5)*X$3,IF($B14<X$4,X13*(1-X$5),0)) -> 0 | Y14: 0 | Z14: 0 | AB14: 8 | AC14: =C14*Conversions!$K$50+P14*Conversions!$K$59 -> 0 | AD14: =D14*Conversions!$K$50+Q14*Conversions!$K$59 -> 0 | AE14: =E14*Conversions!$K$50+R14*Conversions!$K$59 -> 0 | AF14: =F14*Conversions!$K$50+S14*Conversions!$K$59 -> 0 | AG14: =G14*Conversions!$K$50+T14*Conversions!$K$59 -> 0 | AH14: =H14*Conversions!$K$50+U14*Conversions!$K$59 -> 0 | AI14: =I14*Conversions!$K$50+V14*Conversions!$K$59 -> 0 | AJ14: =J14*Conversions!$K$50+W14*Conversions!$K$59 -> 0 | AK14: =K14*Conversions!$K$50+X14*Conversions!$K$59 -> 0 | AL14: =L14*Conversions!$K$50+Y14*Conversions!$K$59 -> 0 | AM14: 0 | AN14: FALSE
B15: 9 | C15: 0 | D15: 0 | E15: 0 | F15: 0 | G15: 0 | H15: 0 | I15: 0 | J15: 0 | K15: =IF(AND($B15>=K$4,$B15<K$4+1),K14*(1-K$5)*K$3,IF($B15<K$4,K14*(1-K$5),0)) -> 0 | L15: 0 | M15: 0 | O15: 9 | P15: 0 | Q15: 0 | R15: 0 | S15: 0 | T15: 0 | U15: 0 | V15: 0 | W15: 0 | X15: =IF(AND($B15>=X$4,$B15<X$4+1),X14*(1-X$5)*X$3,IF($B15<X$4,X14*(1-X$5),0)) -> 0 | Y15: 0 | Z15: 0 | AB15: 9 | AC15: =C15*Conversions!$K$50+P15*Conversions!$K$59 -> 0 | AD15: =D15*Conversions!$K$50+Q15*Conversions!$K$59 -> 0 | AE15: =E15*Conversions!$K$50+R15*Conversions!$K$59 -> 0 | AF15: =F15*Conversions!$K$50+S15*Conversions!$K$59 -> 0 | AG15: =G15*Conversions!$K$50+T15*Conversions!$K$59 -> 0 | AH15: =H15*Conversions!$K$50+U15*Conversions!$K$59 -> 0 | AI15: =I15*Conversions!$K$50+V15*Conversions!$K$59 -> 0 | AJ15: =J15*Conversions!$K$50+W15*Conversions!$K$59 -> 0 | AK15: =K15*Conversions!$K$50+X15*Conversions!$K$59 -> 0 | AL15: =L15*Conversions!$K$50+Y15*Conversions!$K$59 -> 0 | AM15: 0 | AN15: FALSE
B16: 10 | C16: 0 | D16: 0 | E16: 0 | F16: 0 | G16: 0 | H16: 0 | I16: 0 | J16: 0 | K16: =IF(AND($B16>=K$4,$B16<K$4+1),K15*(1-K$5)*K$3,IF($B16<K$4,K15*(1-K$5),0)) -> 0 | L16: 0 | M16: 0 | O16: 10 | P16: 0 | Q16: 0 | R16: 0 | S16: 0 | T16: 0 | U16: 0 | V16: 0 | W16: 0 | X16: =IF(AND($B16>=X$4,$B16<X$4+1),X15*(1-X$5)*X$3,IF($B16<X$4,X15*(1-X$5),0)) -> 0 | Y16: 0 | Z16: 0 | AB16: 10 | AC16: =C16*Conversions!$K$50+P16*Conversions!$K$59 -> 0 | AD16: =D16*Conversions!$K$50+Q16*Conversions!$K$59 -> 0 | AE16: =E16*Conversions!$K$50+R16*Conversions!$K$59 -> 0 | AF16: =F16*Conversions!$K$50+S16*Conversions!$K$59 -> 0 | AG16: =G16*Conversions!$K$50+T16*Conversions!$K$59 -> 0 | AH16: =H16*Conversions!$K$50+U16*Conversions!$K$59 -> 0 | AI16: =I16*Conversions!$K$50+V16*Conversions!$K$59 -> 0 | AJ16: =J16*Conversions!$K$50+W16*Conversions!$K$59 -> 0 | AK16: =K16*Conversions!$K$50+X16*Conversions!$K$59 -> 0 | AL16: =L16*Conversions!$K$50+Y16*Conversions!$K$59 -> 0 | AM16: 0 | AN16: FALSE
B17: 11 | C17: 0 | D17: 0 | E17: 0 | F17: 0 | G17: 0 | H17: 0 | I17: 0 | J17: 0 | K17: =IF(AND($B17>=K$4,$B17<K$4+1),K16*(1-K$5)*K$3,IF($B17<K$4,K16*(1-K$5),0)) -> 0 | L17: 0 | M17: 0 | O17: 11 | P17: 0 | Q17: 0 | R17: 0 | S17: 0 | T17: 0 | U17: 0 | V17: 0 | W17: 0 | X17: =IF(AND($B17>=X$4,$B17<X$4+1),X16*(1-X$5)*X$3,IF($B17<X$4,X16*(1-X$5),0)) -> 0 | Y17: 0 | Z17: 0 | AB17: 11 | AC17: =C17*Conversions!$K$50+P17*Conversions!$K$59 -> 0 | AD17: =D17*Conversions!$K$50+Q17*Conversions!$K$59 -> 0 | AE17: =E17*Conversions!$K$50+R17*Conversions!$K$59 -> 0 | AF17: =F17*Conversions!$K$50+S17*Conversions!$K$59 -> 0 | AG17: =G17*Conversions!$K$50+T17*Conversions!$K$59 -> 0 | AH17: =H17*Conversions!$K$50+U17*Conversions!$K$59 -> 0 | AI17: =I17*Conversions!$K$50+V17*Conversions!$K$59 -> 0 | AJ17: =J17*Conversions!$K$50+W17*Conversions!$K$59 -> 0 | AK17: =K17*Conversions!$K$50+X17*Conversions!$K$59 -> 0 | AL17: =L17*Conversions!$K$50+Y17*Conversions!$K$59 -> 0 | AM17: 0 | AN17: FALSE
B18: 12 | C18: 0 | D18: 0 | E18: 0 | F18: 0 | G18: 0 | H18: 0 | I18: 0 | J18: 0 | K18: =IF(AND($B18>=K$4,$B18<K$4+1),K17*(1-K$5)*K$3,IF($B18<K$4,K17*(1-K$5),0)) -> 0 | L18: 0 | M18: 0 | O18: 12 | P18: 0 | Q18: 0 | R18: 0 | S18: 0 | T18: 0 | U18: 0 | V18: 0 | W18: 0 | X18: =IF(AND($B18>=X$4,$B18<X$4+1),X17*(1-X$5)*X$3,IF($B18<X$4,X17*(1-X$5),0)) -> 0 | Y18: 0 | Z18: 0 | AB18: 12 | AC18: =C18*Conversions!$K$50+P18*Conversions!$K$59 -> 0 | AD18: =D18*Conversions!$K$50+Q18*Conversions!$K$59 -> 0 | AE18: =E18*Conversions!$K$50+R18*Conversions!$K$59 -> 0 | AF18: =F18*Conversions!$K$50+S18*Conversions!$K$59 -> 0 | AG18: =G18*Conversions!$K$50+T18*Conversions!$K$59 -> 0 | AH18: =H18*Conversions!$K$50+U18*Conversions!$K$59 -> 0 | AI18: =I18*Conversions!$K$50+V18*Conversions!$K$59 -> 0 | AJ18: =J18*Conversions!$K$50+W18*Conversions!$K$59 -> 0 | AK18: =K18*Conversions!$K$50+X18*Conversions!$K$59 -> 0 | AL18: =L18*Conversions!$K$50+Y18*Conversions!$K$59 -> 0 | AM18: 0 | AN18: FALSE
B19: 13 | C19: 0 | D19: 0 | E19: 0 | F19: 0 | G19: 0 | H19: 0 | I19: 0 | J19: 0 | K19: =IF(AND($B19>=K$4,$B19<K$4+1),K18*(1-K$5)*K$3,IF($B19<K$4,K18*(1-K$5),0)) -> 0 | L19: 0 | M19: 0 | O19: 13 | P19: 0 | Q19: 0 | R19: 0 | S19: 0 | T19: 0 | U19: 0 | V19: 0 | W19: 0 | X19: =IF(AND($B19>=X$4,$B19<X$4+1),X18*(1-X$5)*X$3,IF($B19<X$4,X18*(1-X$5),0)) -> 0 | Y19: 0 | Z19: 0 | AB19: 13 | AC19: =C19*Conversions!$K$50+P19*Conversions!$K$59 -> 0 | AD19: =D19*Conversions!$K$50+Q19*Conversions!$K$59 -> 0 | AE19: =E19*Conversions!$K$50+R19*Conversions!$K$59 -> 0 | AF19: =F19*Conversions!$K$50+S19*Conversions!$K$59 -> 0 | AG19: =G19*Conversions!$K$50+T19*Conversions!$K$59 -> 0 | AH19: =H19*Conversions!$K$50+U19*Conversions!$K$59 -> 0 | AI19: =I19*Conversions!$K$50+V19*Conversions!$K$59 -> 0 | AJ19: =J19*Conversions!$K$50+W19*Conversions!$K$59 -> 0 | AK19: =K19*Conversions!$K$50+X19*Conversions!$K$59 -> 0 | AL19: =L19*Conversions!$K$50+Y19*Conversions!$K$59 -> 0 | AM19: 0 | AN19: FALSE
B20: 14 | C20: 0 | D20: 0 | E20: 0 | F20: 0 | G20: 0 | H20: 0 | I20: 0 | J20: 0 | K20: =IF(AND($B20>=K$4,$B20<K$4+1),K19*(1-K$5)*K$3,IF($B20<K$4,K19*(1-K$5),0)) -> 0 | L20: 0 | M20: 0 | O20: 14 | P20: 0 | Q20: 0 | R20: 0 | S20: 0 | T20: 0 | U20: 0 | V20: 0 | W20: 0 | X20: =IF(AND($B20>=X$4,$B20<X$4+1),X19*(1-X$5)*X$3,IF($B20<X$4,X19*(1-X$5),0)) -> 0 | Y20: 0 | Z20: 0 | AB20: 14 | AC20: =C20*Conversions!$K$50+P20*Conversions!$K$59 -> 0 | AD20: =D20*Conversions!$K$50+Q20*Conversions!$K$59 -> 0 | AE20: =E20*Conversions!$K$50+R20*Conversions!$K$59 -> 0 | AF20: =F20*Conversions!$K$50+S20*Conversions!$K$59 -> 0 | AG20: =G20*Conversions!$K$50+T20*Conversions!$K$59 -> 0 | AH20: =H20*Conversions!$K$50+U20*Conversions!$K$59 -> 0 | AI20: =I20*Conversions!$K$50+V20*Conversions!$K$59 -> 0 | AJ20: =J20*Conversions!$K$50+W20*Conversions!$K$59 -> 0 | AK20: =K20*Conversions!$K$50+X20*Conversions!$K$59 -> 0 | AL20: =L20*Conversions!$K$50+Y20*Conversions!$K$59 -> 0 | AM20: 0 | AN20: FALSE
B21: 15 | C21: 0 | D21: 0 | E21: 0 | F21: 0 | G21: 0 | H21: 0 | I21: 0 | J21: 0 | K21: =IF(AND($B21>=K$4,$B21<K$4+1),K20*(1-K$5)*K$3,IF($B21<K$4,K20*(1-K$5),0)) -> 0 | L21: 0 | M21: 0 | O21: 15 | P21: 0 | Q21: 0 | R21: 0 | S21: 0 | T21: 0 | U21: 0 | V21: 0 | W21: 0 | X21: =IF(AND($B21>=X$4,$B21<X$4+1),X20*(1-X$5)*X$3,IF($B21<X$4,X20*(1-X$5),0)) -> 0 | Y21: 0 | Z21: 0 | AB21: 15 | AC21: =C21*Conversions!$K$50+P21*Conversions!$K$59 -> 0 | AD21: =D21*Conversions!$K$50+Q21*Conversions!$K$59 -> 0 | AE21: =E21*Conversions!$K$50+R21*Conversions!$K$59 -> 0 | AF21: =F21*Conversions!$K$50+S21*Conversions!$K$59 -> 0 | AG21: =G21*Conversions!$K$50+T21*Conversions!$K$59 -> 0 | AH21: =H21*Conversions!$K$50+U21*Conversions!$K$59 -> 0 | AI21: =I21*Conversions!$K$50+V21*Conversions!$K$59 -> 0 | AJ21: =J21*Conversions!$K$50+W21*Conversions!$K$59 -> 0 | AK21: =K21*Conversions!$K$50+X21*Conversions!$K$59 -> 0 | AL21: =L21*Conversions!$K$50+Y21*Conversions!$K$59 -> 0 | AM21: 0 | AN21: FALSE
B22: 16 | C22: 0 | D22: 0 | E22: 0 | F22: 0 | G22: 0 | H22: 0 | I22: 0 | J22: 0 | K22: =IF(AND($B22>=K$4,$B22<K$4+1),K21*(1-K$5)*K$3,IF($B22<K$4,K21*(1-K$5),0)) -> 0 | L22: 0 | M22: 0 | O22: 16 | P22: 0 | Q22: 0 | R22: 0 | S22: 0 | T22: 0 | U22: 0 | V22: 0 | W22: 0 | X22: =IF(AND($B22>=X$4,$B22<X$4+1),X21*(1-X$5)*X$3,IF($B22<X$4,X21*(1-X$5),0)) -> 0 | Y22: 0 | Z22: 0 | AB22: 16 | AC22: =C22*Conversions!$K$50+P22*Conversions!$K$59 -> 0 | AD22: =D22*Conversions!$K$50+Q22*Conversions!$K$59 -> 0 | AE22: =E22*Conversions!$K$50+R22*Conversions!$K$59 -> 0 | AF22: =F22*Conversions!$K$50+S22*Conversions!$K$59 -> 0 | AG22: =G22*Conversions!$K$50+T22*Conversions!$K$59 -> 0 | AH22: =H22*Conversions!$K$50+U22*Conversions!$K$59 -> 0 | AI22: =I22*Conversions!$K$50+V22*Conversions!$K$59 -> 0 | AJ22: =J22*Conversions!$K$50+W22*Conversions!$K$59 -> 0 | AK22: =K22*Conversions!$K$50+X22*Conversions!$K$59 -> 0 | AL22: =L22*Conversions!$K$50+Y22*Conversions!$K$59 -> 0 | AM22: 0 | AN22: FALSE
B23: 17 | C23: 0 | D23: 0 | E23: 0 | F23: 0 | G23: 0 | H23: 0 | I23: 0 | J23: 0 | K23: =IF(AND($B23>=K$4,$B23<K$4+1),K22*(1-K$5)*K$3,IF($B23<K$4,K22*(1-K$5),0)) -> 0 | L23: 0 | M23: 0 | O23: 17 | P23: 0 | Q23: 0 | R23: 0 | S23: 0 | T23: 0 | U23: 0 | V23: 0 | W23: 0 | X23: =IF(AND($B23>=X$4,$B23<X$4+1),X22*(1-X$5)*X$3,IF($B23<X$4,X22*(1-X$5),0)) -> 0 | Y23: 0 | Z23: 0 | AB23: 17 | AC23: =C23*Conversions!$K$50+P23*Conversions!$K$59 -> 0 | AD23: =D23*Conversions!$K$50+Q23*Conversions!$K$59 -> 0 | AE23: =E23*Conversions!$K$50+R23*Conversions!$K$59 -> 0 | AF23: =F23*Conversions!$K$50+S23*Conversions!$K$59 -> 0 | AG23: =G23*Conversions!$K$50+T23*Conversions!$K$59 -> 0 | AH23: =H23*Conversions!$K$50+U23*Conversions!$K$59 -> 0 | AI23: =I23*Conversions!$K$50+V23*Conversions!$K$59 -> 0 | AJ23: =J23*Conversions!$K$50+W23*Conversions!$K$59 -> 0 | AK23: =K23*Conversions!$K$50+X23*Conversions!$K$59 -> 0 | AL23: =L23*Conversions!$K$50+Y23*Conversions!$K$59 -> 0 | AM23: 0 | AN23: FALSE
B24: 18 | C24: 0 | D24: 0 | E24: 0 | F24: 0 | G24: 0 | H24: 0 | I24: 0 | J24: 0 | K24: =IF(AND($B24>=K$4,$B24<K$4+1),K23*(1-K$5)*K$3,IF($B24<K$4,K23*(1-K$5),0)) -> 0 | L24: 0 | M24: 0 | O24: 18 | P24: 0 | Q24: 0 | R24: 0 | S24: 0 | T24: 0 | U24: 0 | V24: 0 | W24: 0 | X24: =IF(AND($B24>=X$4,$B24<X$4+1),X23*(1-X$5)*X$3,IF($B24<X$4,X23*(1-X$5),0)) -> 0 | Y24: 0 | Z24: 0 | AB24: 18 | AC24: =C24*Conversions!$K$50+P24*Conversions!$K$59 -> 0 | AD24: =D24*Conversions!$K$50+Q24*Conversions!$K$59 -> 0 | AE24: =E24*Conversions!$K$50+R24*Conversions!$K$59 -> 0 | AF24: =F24*Conversions!$K$50+S24*Conversions!$K$59 -> 0 | AG24: =G24*Conversions!$K$50+T24*Conversions!$K$59 -> 0 | AH24: =H24*Conversions!$K$50+U24*Conversions!$K$59 -> 0 | AI24: =I24*Conversions!$K$50+V24*Conversions!$K$59 -> 0 | AJ24: =J24*Conversions!$K$50+W24*Conversions!$K$59 -> 0 | AK24: =K24*Conversions!$K$50+X24*Conversions!$K$59 -> 0 | AL24: =L24*Conversions!$K$50+Y24*Conversions!$K$59 -> 0 | AM24: 0 | AN24: FALSE
B25: 19 | C25: 0 | D25: 0 | E25: 0 | F25: 0 | G25: 0 | H25: 0 | I25: 0 | J25: 0 | K25: =IF(AND($B25>=K$4,$B25<K$4+1),K24*(1-K$5)*K$3,IF($B25<K$4,K24*(1-K$5),0)) -> 0 | L25: 0 | M25: 0 | O25: 19 | P25: 0 | Q25: 0 | R25: 0 | S25: 0 | T25: 0 | U25: 0 | V25: 0 | W25: 0 | X25: =IF(AND($B25>=X$4,$B25<X$4+1),X24*(1-X$5)*X$3,IF($B25<X$4,X24*(1-X$5),0)) -> 0 | Y25: 0 | Z25: 0 | AB25: 19 | AC25: =C25*Conversions!$K$50+P25*Conversions!$K$59 -> 0 | AD25: =D25*Conversions!$K$50+Q25*Conversions!$K$59 -> 0 | AE25: =E25*Conversions!$K$50+R25*Conversions!$K$59 -> 0 | AF25: =F25*Conversions!$K$50+S25*Conversions!$K$59 -> 0 | AG25: =G25*Conversions!$K$50+T25*Conversions!$K$59 -> 0 | AH25: =H25*Conversions!$K$50+U25*Conversions!$K$59 -> 0 | AI25: =I25*Conversions!$K$50+V25*Conversions!$K$59 -> 0 | AJ25: =J25*Conversions!$K$50+W25*Conversions!$K$59 -> 0 | AK25: =K25*Conversions!$K$50+X25*Conversions!$K$59 -> 0 | AL25: =L25*Conversions!$K$50+Y25*Conversions!$K$59 -> 0 | AM25: 0 | AN25: FALSE
B26: 20 | C26: 0 | D26: 0 | E26: 0 | F26: 0 | G26: 0 | H26: 0 | I26: 0 | J26: 0 | K26: =IF(AND($B26>=K$4,$B26<K$4+1),K25*(1-K$5)*K$3,IF($B26<K$4,K25*(1-K$5),0)) -> 0 | L26: 0 | M26: 0 | O26: 20 | P26: 0 | Q26: 0 | R26: 0 | S26: 0 | T26: 0 | U26: 0 | V26: 0 | W26: 0 | X26: =IF(AND($B26>=X$4,$B26<X$4+1),X25*(1-X$5)*X$3,IF($B26<X$4,X25*(1-X$5),0)) -> 0 | Y26: 0 | Z26: 0 | AB26: 20 | AC26: =C26*Conversions!$K$50+P26*Conversions!$K$59 -> 0 | AD26: =D26*Conversions!$K$50+Q26*Conversions!$K$59 -> 0 | AE26: =E26*Conversions!$K$50+R26*Conversions!$K$59 -> 0 | AF26: =F26*Conversions!$K$50+S26*Conversions!$K$59 -> 0 | AG26: =G26*Conversions!$K$50+T26*Conversions!$K$59 -> 0 | AH26: =H26*Conversions!$K$50+U26*Conversions!$K$59 -> 0 | AI26: =I26*Conversions!$K$50+V26*Conversions!$K$59 -> 0 | AJ26: =J26*Conversions!$K$50+W26*Conversions!$K$59 -> 0 | AK26: =K26*Conversions!$K$50+X26*Conversions!$K$59 -> 0 | AL26: =L26*Conversions!$K$50+Y26*Conversions!$K$59 -> 0 | AM26: 0 | AN26: FALSE
B27: Total | C27: =SUM(C7:C26) -> 0 | D27: 0 | E27: 0 | F27: 0 | G27: 0 | H27: =SUM(H7:H26) -> 0 | I27: 0 | J27: 0 | K27: 0 | L27: 0 | M27: 0 | P27: =SUM(P7:P26) -> 0 | Q27: 0 | R27: 0 | S27: 0 | T27: 0 | U27: =SUM(U7:U26) -> 0 | V27: 0 | W27: 0 | X27: 0 | Y27: 0 | Z27: =SUM(P27:Y27) -> 0 | AC27: =SUM(AC7:AC26) -> 0 | AD27: 0 | AE27: 0 | AF27: 0 | AG27: 0 | AH27: =SUM(AH7:AH26) -> 0 | AI27: 0 | AJ27: 0 | AK27: 0 | AL27: 0 | AM27: =SUM(AC27:AL27) -> 0
L28: GJ | M28: =M27*Conversions!K50 -> 0 | Y28: GJ | Z28: =Z27*Conversions!K59 -> 0
B31: Emissions Savings from Electricity (tCO2e) | O31: Emissions Savings from Fossil Fuel (tCO2e) | AB31: Total Emissions Savings (tCO2e) | AO31: Years
B32: Measure # | C32: 1 | D32: =C32+1 -> 2 | E32: =D32+1 -> 3 | F32: 4 | G32: 5 | H32: 6 | I32: 7 | J32: 8 | K32: 9 | L32: 10 | M32: Total | O32: Measure # | P32: 1 | Q32: =P32+1 -> 2 | R32: =Q32+1 -> 3 | S32: 4 | T32: 5 | U32: 6 | V32: 7 | W32: 8 | X32: 9 | Y32: 10 | Z32: Total | AB32: Measure # | AC32: 1 | AD32: =AC32+1 -> 2 | AE32: =AD32+1 -> 3 | AF32: 4 | AG32: 5 | AH32: 6 | AI32: 7 | AJ32: 8 | AK32: 9 | AL32: 10 | AM32: Total
B33: 1 | C33: =C7*IF(Calculations!$F$16="",Calculations!$D$16,Calculations!$F$16)/(1-IF(Calculations!$F$17="",Calculations!$D$17,Calculations!$F$17))/Conversions!$D$81 ->  | D33: =D7*IF(Calculations!$F$16="",Calculations!$D$16,Calculations!$F$16)/(1-IF(Calculations!$F$17="",Calculations!$D$17,Calculations!$F$17))/Conversions!$D$81 ->  | E33: =E7*IF(Calculations!$F$16="",Calculations!$D$16,Calculations!$F$16)/(1-IF(Calculations!$F$17="",Calculations!$D$17,Calculations!$F$17))/Conversions!$D$81 ->  | F33: =F7*IF(Calculations!$F$16="",Calculations!$D$16,Calculations!$F$16)/(1-IF(Calculations!$F$17="",Calculations!$D$17,Calculations!$F$17))/Conversions!$D$81 ->  | G33: =G7*IF(Calculations!$F$16="",Calculations!$D$16,Calculations!$F$16)/(1-IF(Calculations!$F$17="",Calculations!$D$17,Calculations!$F$17))/Conversions!$D$81 ->  | H33: =H7*IF(Calculations!$F$16="",Calculations!$D$16,Calculations!$F$16)/(1-IF(Calculations!$F$17="",Calculations!$D$17,Calculations!$F$17))/Conversions!$D$81 ->  | I33: =I7*IF(Calculations!$F$16="",Calculations!$D$16,Calculations!$F$16)/(1-IF(Calculations!$F$17="",Calculations!$D$17,Calculations!$F$17))/Conversions!$D$81 ->  | J33: =J7*IF(Calculations!$F$16="",Calculations!$D$16,Calculations!$F$16)/(1-IF(Calculations!$F$17="",Calculations!$D$17,Calculations!$F$17))/Conversions!$D$81 ->  | K33: =K7*IF(Calculations!$F$16="",Calculations!$D$16,Calculations!$F$16)/(1-IF(Calculations!$F$17="",Calculations!$D$17,Calculations!$F$17))/Conversions!$D$81 ->  | L33: =L7*IF(Calculations!$F$16="",Calculations!$D$16,Calculations!$F$16)/(1-IF(Calculations!$F$17="",Calculations!$D$17,Calculations!$F$17))/Conversions!$D$81 ->  | M33: =SUM(C33:L33) ->  | O33: 1 | P33: =P7*Conversions!$K$59*IF(Calculations!$F$18="",Calculations!$D$18,Calculations!$F$18)/Conversions!$D$81 ->  | Q33: =Q7*Conversions!$K$59*IF(Calculations!$F$18="",Calculations!$D$18,Calculations!$F$18)/Conversions!$D$81 ->  | R33: =R7*Conversions!$K$59*IF(Calculations!$F$18="",Calculations!$D$18,Calculations!$F$18)/Conversions!$D$81 ->  | S33: =S7*Conversions!$K$59*IF(Calculations!$F$18="",Calculations!$D$18,Calculations!$F$18)/Conversions!$D$81 ->  | T33: =T7*Conversions!$K$59*IF(Calculations!$F$18="",Calculations!$D$18,Calculations!$F$18)/Conversions!$D$81 ->  | U33: =U7*Conversions!$K$59*IF(Calculations!$F$18="",Calculations!$D$18,Calculations!$F$18)/Conversions!$D$81 ->  | V33: =V7*Conversions!$K$59*IF(Calculations!$F$18="",Calculations!$D$18,Calculations!$F$18)/Conversions!$D$81 ->  | W33: =W7*Conversions!$K$59*IF(Calculations!$F$18="",Calculations!$D$18,Calculations!$F$18)/Conversions!$D$81 ->  | X33: =X7*Conversions!$K$59*IF(Calculations!$F$18="",Calculations!$D$18,Calculations!$F$18)/Conversions!$D$81 ->  | Y33: =Y7*Conversions!$K$59*IF(Calculations!$F$18="",Calculations!$D$18,Calculations!$F$18)/Conversions!$D$81 ->  | Z33: =SUM(P33:Y33) ->  | AB33: 1 | AC33: =C33+P33 ->  | AD33: =D33+Q33 ->  | AE33: =E33+R33 ->  | AF33: =F33+S33 ->  | AG33: =G33+T33 ->  | AH33: =H33+U33 ->  | AI33: =I33+V33 ->  | AJ33: =J33+W33 ->  | AK33: =K33+X33 ->  | AL33: =L33+Y33 ->  | AM33: =SUM(AC33:AL33) ->  | AO33: =2013 -> 2013
B34: 2 | C34: =C8*IF(Calculations!$F$16="",Calculations!$D$16,Calculations!$F$16)/(1-IF(Calculations!$F$17="",Calculations!$D$17,Calculations!$F$17))/Conversions!$D$81 ->  | D34: =D8*IF(Calculations!$F$16="",Calculations!$D$16,Calculations!$F$16)/(1-IF(Calculations!$F$17="",Calculations!$D$17,Calculations!$F$17))/Conversions!$D$81 ->  | E34: =E8*IF(Calculations!$F$16="",Calculations!$D$16,Calculations!$F$16)/(1-IF(Calculations!$F$17="",Calculations!$D$17,Calculations!$F$17))/Conversions!$D$81 ->  | F34: =F8*IF(Calculations!$F$16="",Calculations!$D$16,Calculations!$F$16)/(1-IF(Calculations!$F$17="",Calculations!$D$17,Calculations!$F$17))/Conversions!$D$81 ->  | G34: =G8*IF(Calculations!$F$16="",Calculations!$D$16,Calculations!$F$16)/(1-IF(Calculations!$F$17="",Calculations!$D$17,Calculations!$F$17))/Conversions!$D$81 ->  | H34: =H8*IF(Calculations!$F$16="",Calculations!$D$16,Calculations!$F$16)/(1-IF(Calculations!$F$17="",Calculations!$D$17,Calculations!$F$17))/Conversions!$D$81 ->  | I34: =I8*IF(Calculations!$F$16="",Calculations!$D$16,Calculations!$F$16)/(1-IF(Calculations!$F$17="",Calculations!$D$17,Calculations!$F$17))/Conversions!$D$81 ->  | J34: =J8*IF(Calculations!$F$16="",Calculations!$D$16,Calculations!$F$16)/(1-IF(Calculations!$F$17="",Calculations!$D$17,Calculations!$F$17))/Conversions!$D$81 ->  | K34: =K8*IF(Calculations!$F$16="",Calculations!$D$16,Calculations!$F$16)/(1-IF(Calculations!$F$17="",Calculations!$D$17,Calculations!$F$17))/Conversions!$D$81 ->  | L34: =L8*IF(Calculations!$F$16="",Calculations!$D$16,Calculations!$F$16)/(1-IF(Calculations!$F$17="",Calculations!$D$17,Calculations!$F$17))/Conversions!$D$81 ->  | O34: 2 | P34: =P8*Conversions!$K$59*IF(Calculations!$F$18="",Calculations!$D$18,Calculations!$F$18)/Conversions!$D$81 ->  | Q34: =Q8*Conversions!$K$59*IF(Calculations!$F$18="",Calculations!$D$18,Calculations!$F$18)/Conversions!$D$81 ->  | R34: =R8*Conversions!$K$59*IF(Calculations!$F$18="",Calculations!$D$18,Calculations!$F$18)/Conversions!$D$81 ->  | S34: =S8*Conversions!$K$59*IF(Calculations!$F$18="",Calculations!$D$18,Calculations!$F$18)/Conversions!$D$81 ->  | T34: =T8*Conversions!$K$59*IF(Calculations!$F$18="",Calculations!$D$18,Calculations!$F$18)/Conversions!$D$81 ->  | U34: =U8*Conversions!$K$59*IF(Calculations!$F$18="",Calculations!$D$18,Calculations!$F$18)/Conversions!$D$81 ->  | V34: =V8*Conversions!$K$59*IF(Calculations!$F$18="",Calculations!$D$18,Calculations!$F$18)/Conversions!$D$81 ->  | W34: =W8*Conversions!$K$59*IF(Calculations!$F$18="",Calculations!$D$18,Calculations!$F$18)/Conversions!$D$81 ->  | X34: =X8*Conversions!$K$59*IF(Calculations!$F$18="",Calculations!$D$18,Calculations!$F$18)/Conversions!$D$81 ->  | Y34: =Y8*Conversions!$K$59*IF(Calculations!$F$18="",Calculations!$D$18,Calculations!$F$18)/Conversions!$D$81 ->  | Z34: =SUM(P34:Y34) ->  | AB34: 2 | AL34: =L34+Y34 ->  | AM34: =SUM(AC34:AL34) ->  | AO34: =AO33+1 -> 2014
B35: 3 | C35: =C9*IF(Calculations!$F$16="",Calculations!$D$16,Calculations!$F$16)/(1-IF(Calculations!$F$17="",Calculations!$D$17,Calculations!$F$17))/Conversions!$D$81 ->  | D35: =D9*IF(Calculations!$F$16="",Calculations!$D$16,Calculations!$F$16)/(1-IF(Calculations!$F$17="",Calculations!$D$17,Calculations!$F$17))/Conversions!$D$81 ->  | E35: =E9*IF(Calculations!$F$16="",Calculations!$D$16,Calculations!$F$16)/(1-IF(Calculations!$F$17="",Calculations!$D$17,Calculations!$F$17))/Conversions!$D$81 ->  | F35: =F9*IF(Calculations!$F$16="",Calculations!$D$16,Calculations!$F$16)/(1-IF(Calculations!$F$17="",Calculations!$D$17,Calculations!$F$17))/Conversions!$D$81 ->  | G35: =G9*IF(Calculations!$F$16="",Calculations!$D$16,Calculations!$F$16)/(1-IF(Calculations!$F$17="",Calculations!$D$17,Calculations!$F$17))/Conversions!$D$81 ->  | H35: =H9*IF(Calculations!$F$16="",Calculations!$D$16,Calculations!$F$16)/(1-IF(Calculations!$F$17="",Calculations!$D$17,Calculations!$F$17))/Conversions!$D$81 ->  | I35: =I9*IF(Calculations!$F$16="",Calculations!$D$16,Calculations!$F$16)/(1-IF(Calculations!$F$17="",Calculations!$D$17,Calculations!$F$17))/Conversions!$D$81 ->  | J35: =J9*IF(Calculations!$F$16="",Calculations!$D$16,Calculations!$F$16)/(1-IF(Calculations!$F$17="",Calculations!$D$17,Calculations!$F$17))/Conversions!$D$81 ->  | K35: =K9*IF(Calculations!$F$16="",Calculations!$D$16,Calculations!$F$16)/(1-IF(Calculations!$F$17="",Calculations!$D$17,Calculations!$F$17))/Conversions!$D$81 ->  | L35: =L9*IF(Calculations!$F$16="",Calculations!$D$16,Calculations!$F$16)/(1-IF(Calculations!$F$17="",Calculations!$D$17,Calculations!$F$17))/Conversions!$D$81 ->  | O35: 3 | P35: =P9*Conversions!$K$59*IF(Calculations!$F$18="",Calculations!$D$18,Calculations!$F$18)/Conversions!$D$81 ->  | Q35: =Q9*Conversions!$K$59*IF(Calculations!$F$18="",Calculations!$D$18,Calculations!$F$18)/Conversions!$D$81 ->  | R35: =R9*Conversions!$K$59*IF(Calculations!$F$18="",Calculations!$D$18,Calculations!$F$18)/Conversions!$D$81 ->  | S35: =S9*Conversions!$K$59*IF(Calculations!$F$18="",Calculations!$D$18,Calculations!$F$18)/Conversions!$D$81 ->  | T35: =T9*Conversions!$K$59*IF(Calculations!$F$18="",Calculations!$D$18,Calculations!$F$18)/Conversions!$D$81 ->  | U35: =U9*Conversions!$K$59*IF(Calculations!$F$18="",Calculations!$D$18,Calculations!$F$18)/Conversions!$D$81 ->  | V35: =V9*Conversions!$K$59*IF(Calculations!$F$18="",Calculations!$D$18,Calculations!$F$18)/Conversions!$D$81 ->  | W35: =W9*Conversions!$K$59*IF(Calculations!$F$18="",Calculations!$D$18,Calculations!$F$18)/Conversions!$D$81 ->  | X35: =X9*Conversions!$K$59*IF(Calculations!$F$18="",Calculations!$D$18,Calculations!$F$18)/Conversions!$D$81 ->  | Y35: =Y9*Conversions!$K$59*IF(Calculations!$F$18="",Calculations!$D$18,Calculations!$F$18)/Conversions!$D$81 ->  | AB35: 3 | AO35: =AO34+1 -> 2015
B36: 4 | C36: =C10*IF(Calculations!$F$16="",Calculations!$D$16,Calculations!$F$16)/(1-IF(Calculations!$F$17="",Calculations!$D$17,Calculations!$F$17))/Conversions!$D$81 ->  | D36: =D10*IF(Calculations!$F$16="",Calculations!$D$16,Calculations!$F$16)/(1-IF(Calculations!$F$17="",Calculations!$D$17,Calculations!$F$17))/Conversions!$D$81 ->  | E36: =E10*IF(Calculations!$F$16="",Calculations!$D$16,Calculations!$F$16)/(1-IF(Calculations!$F$17="",Calculations!$D$17,Calculations!$F$17))/Conversions!$D$81 ->  | F36: =F10*IF(Calculations!$F$16="",Calculations!$D$16,Calculations!$F$16)/(1-IF(Calculations!$F$17="",Calculations!$D$17,Calculations!$F$17))/Conversions!$D$81 ->  | G36: =G10*IF(Calculations!$F$16="",Calculations!$D$16,Calculations!$F$16)/(1-IF(Calculations!$F$17="",Calculations!$D$17,Calculations!$F$17))/Conversions!$D$81 ->  | H36: =H10*IF(Calculations!$F$16="",Calculations!$D$16,Calculations!$F$16)/(1-IF(Calculations!$F$17="",Calculations!$D$17,Calculations!$F$17))/Conversions!$D$81 ->  | I36: =I10*IF(Calculations!$F$16="",Calculations!$D$16,Calculations!$F$16)/(1-IF(Calculations!$F$17="",Calculations!$D$17,Calculations!$F$17))/Conversions!$D$81 ->  | J36: =J10*IF(Calculations!$F$16="",Calculations!$D$16,Calculations!$F$16)/(1-IF(Calculations!$F$17="",Calculations!$D$17,Calculations!$F$17))/Conversions!$D$81 ->  | K36: =K10*IF(Calculations!$F$16="",Calculations!$D$16,Calculations!$F$16)/(1-IF(Calculations!$F$17="",Calculations!$D$17,Calculations!$F$17))/Conversions!$D$81 ->  | L36: =L10*IF(Calculations!$F$16="",Calculations!$D$16,Calculations!$F$16)/(1-IF(Calculations!$F$17="",Calculations!$D$17,Calculations!$F$17))/Conversions!$D$81 ->  | O36: 4 | P36: =P10*Conversions!$K$59*IF(Calculations!$F$18="",Calculations!$D$18,Calculations!$F$18)/Conversions!$D$81 ->  | Q36: =Q10*Conversions!$K$59*IF(Calculations!$F$18="",Calculations!$D$18,Calculations!$F$18)/Conversions!$D$81 ->  | R36: =R10*Conversions!$K$59*IF(Calculations!$F$18="",Calculations!$D$18,Calculations!$F$18)/Conversions!$D$81 ->  | S36: =S10*Conversions!$K$59*IF(Calculations!$F$18="",Calculations!$D$18,Calculations!$F$18)/Conversions!$D$81 ->  | T36: =T10*Conversions!$K$59*IF(Calculations!$F$18="",Calculations!$D$18,Calculations!$F$18)/Conversions!$D$81 ->  | U36: =U10*Conversions!$K$59*IF(Calculations!$F$18="",Calculations!$D$18,Calculations!$F$18)/Conversions!$D$81 ->  | V36: =V10*Conversions!$K$59*IF(Calculations!$F$18="",Calculations!$D$18,Calculations!$F$18)/Conversions!$D$81 ->  | W36: =W10*Conversions!$K$59*IF(Calculations!$F$18="",Calculations!$D$18,Calculations!$F$18)/Conversions!$D$81 ->  | X36: =X10*Conversions!$K$59*IF(Calculations!$F$18="",Calculations!$D$18,Calculations!$F$18)/Conversions!$D$81 ->  | Y36: =Y10*Conversions!$K$59*IF(Calculations!$F$18="",Calculations!$D$18,Calculations!$F$18)/Conversions!$D$81 ->  | AB36: 4 | AO36: 2016
B37: 5 | C37: =C11*IF(Calculations!$F$16="",Calculations!$D$16,Calculations!$F$16)/(1-IF(Calculations!$F$17="",Calculations!$D$17,Calculations!$F$17))/Conversions!$D$81 ->  | D37: =D11*IF(Calculations!$F$16="",Calculations!$D$16,Calculations!$F$16)/(1-IF(Calculations!$F$17="",Calculations!$D$17,Calculations!$F$17))/Conversions!$D$81 ->  | E37: =E11*IF(Calculations!$F$16="",Calculations!$D$16,Calculations!$F$16)/(1-IF(Calculations!$F$17="",Calculations!$D$17,Calculations!$F$17))/Conversions!$D$81 ->  | F37: =F11*IF(Calculations!$F$16="",Calculations!$D$16,Calculations!$F$16)/(1-IF(Calculations!$F$17="",Calculations!$D$17,Calculations!$F$17))/Conversions!$D$81 ->  | G37: =G11*IF(Calculations!$F$16="",Calculations!$D$16,Calculations!$F$16)/(1-IF(Calculations!$F$17="",Calculations!$D$17,Calculations!$F$17))/Conversions!$D$81 ->  | H37: =H11*IF(Calculations!$F$16="",Calculations!$D$16,Calculations!$F$16)/(1-IF(Calculations!$F$17="",Calculations!$D$17,Calculations!$F$17))/Conversions!$D$81 ->  | I37: =I11*IF(Calculations!$F$16="",Calculations!$D$16,Calculations!$F$16)/(1-IF(Calculations!$F$17="",Calculations!$D$17,Calculations!$F$17))/Conversions!$D$81 ->  | J37: =J11*IF(Calculations!$F$16="",Calculations!$D$16,Calculations!$F$16)/(1-IF(Calculations!$F$17="",Calculations!$D$17,Calculations!$F$17))/Conversions!$D$81 ->  | K37: =K11*IF(Calculations!$F$16="",Calculations!$D$16,Calculations!$F$16)/(1-IF(Calculations!$F$17="",Calculations!$D$17,Calculations!$F$17))/Conversions!$D$81 ->  | L37: =L11*IF(Calculations!$F$16="",Calculations!$D$16,Calculations!$F$16)/(1-IF(Calculations!$F$17="",Calculations!$D$17,Calculations!$F$17))/Conversions!$D$81 ->  | O37: 5 | P37: =P11*Conversions!$K$59*IF(Calculations!$F$18="",Calculations!$D$18,Calculations!$F$18)/Conversions!$D$81 ->  | Q37: =Q11*Conversions!$K$59*IF(Calculations!$F$18="",Calculations!$D$18,Calculations!$F$18)/Conversions!$D$81 ->  | R37: =R11*Conversions!$K$59*IF(Calculations!$F$18="",Calculations!$D$18,Calculations!$F$18)/Conversions!$D$81 ->  | S37: =S11*Conversions!$K$59*IF(Calculations!$F$18="",Calculations!$D$18,Calculations!$F$18)/Conversions!$D$81 ->  | T37: =T11*Conversions!$K$59*IF(Calculations!$F$18="",Calculations!$D$18,Calculations!$F$18)/Conversions!$D$81 ->  | U37: =U11*Conversions!$K$59*IF(Calculations!$F$18="",Calculations!$D$18,Calculations!$F$18)/Conversions!$D$81 ->  | V37: =V11*Conversions!$K$59*IF(Calculations!$F$18="",Calculations!$D$18,Calculations!$F$18)/Conversions!$D$81 ->  | W37: =W11*Conversions!$K$59*IF(Calculations!$F$18="",Calculations!$D$18,Calculations!$F$18)/Conversions!$D$81 ->  | X37: =X11*Conversions!$K$59*IF(Calculations!$F$18="",Calculations!$D$18,Calculations!$F$18)/Conversions!$D$81 ->  | Y37: =Y11*Conversions!$K$59*IF(Calculations!$F$18="",Calculations!$D$18,Calculations!$F$18)/Conversions!$D$81 ->  | AB37: 5 | AO37: 2017
B38: 6 | C38: =C12*IF(Calculations!$F$16="",Calculations!$D$16,Calculations!$F$16)/(1-IF(Calculations!$F$17="",Calculations!$D$17,Calculations!$F$17))/Conversions!$D$81 ->  | D38: =D12*IF(Calculations!$F$16="",Calculations!$D$16,Calculations!$F$16)/(1-IF(Calculations!$F$17="",Calculations!$D$17,Calculations!$F$17))/Conversions!$D$81 ->  | E38: =E12*IF(Calculations!$F$16="",Calculations!$D$16,Calculations!$F$16)/(1-IF(Calculations!$F$17="",Calculations!$D$17,Calculations!$F$17))/Conversions!$D$81 ->  | F38: =F12*IF(Calculations!$F$16="",Calculations!$D$16,Calculations!$F$16)/(1-IF(Calculations!$F$17="",Calculations!$D$17,Calculations!$F$17))/Conversions!$D$81 ->  | G38: =G12*IF(Calculations!$F$16="",Calculations!$D$16,Calculations!$F$16)/(1-IF(Calculations!$F$17="",Calculations!$D$17,Calculations!$F$17))/Conversions!$D$81 ->  | H38: =H12*IF(Calculations!$F$16="",Calculations!$D$16,Calculations!$F$16)/(1-IF(Calculations!$F$17="",Calculations!$D$17,Calculations!$F$17))/Conversions!$D$81 ->  | I38: =I12*IF(Calculations!$F$16="",Calculations!$D$16,Calculations!$F$16)/(1-IF(Calculations!$F$17="",Calculations!$D$17,Calculations!$F$17))/Conversions!$D$81 ->  | J38: =J12*IF(Calculations!$F$16="",Calculations!$D$16,Calculations!$F$16)/(1-IF(Calculations!$F$17="",Calculations!$D$17,Calculations!$F$17))/Conversions!$D$81 ->  | K38: =K12*IF(Calculations!$F$16="",Calculations!$D$16,Calculations!$F$16)/(1-IF(Calculations!$F$17="",Calculations!$D$17,Calculations!$F$17))/Conversions!$D$81 ->  | L38: =L12*IF(Calculations!$F$16="",Calculations!$D$16,Calculations!$F$16)/(1-IF(Calculations!$F$17="",Calculations!$D$17,Calculations!$F$17))/Conversions!$D$81 ->  | O38: 6 | P38: =P12*Conversions!$K$59*IF(Calculations!$F$18="",Calculations!$D$18,Calculations!$F$18)/Conversions!$D$81 ->  | Q38: =Q12*Conversions!$K$59*IF(Calculations!$F$18="",Calculations!$D$18,Calculations!$F$18)/Conversions!$D$81 ->  | R38: =R12*Conversions!$K$59*IF(Calculations!$F$18="",Calculations!$D$18,Calculations!$F$18)/Conversions!$D$81 ->  | S38: =S12*Conversions!$K$59*IF(Calculations!$F$18="",Calculations!$D$18,Calculations!$F$18)/Conversions!$D$81 ->  | T38: =T12*Conversions!$K$59*IF(Calculations!$F$18="",Calculations!$D$18,Calculations!$F$18)/Conversions!$D$81 ->  | U38: =U12*Conversions!$K$59*IF(Calculations!$F$18="",Calculations!$D$18,Calculations!$F$18)/Conversions!$D$81 ->  | V38: =V12*Conversions!$K$59*IF(Calculations!$F$18="",Calculations!$D$18,Calculations!$F$18)/Conversions!$D$81 ->  | W38: =W12*Conversions!$K$59*IF(Calculations!$F$18="",Calculations!$D$18,Calculations!$F$18)/Conversions!$D$81 ->  | X38: =X12*Conversions!$K$59*IF(Calculations!$F$18="",Calculations!$D$18,Calculations!$F$18)/Conversions!$D$81 ->  | Y38: =Y12*Conversions!$K$59*IF(Calculations!$F$18="",Calculations!$D$18,Calculations!$F$18)/Conversions!$D$81 ->  | AB38: 6 | AO38: 2018
B39: 7 | C39: =C13*IF(Calculations!$F$16="",Calculations!$D$16,Calculations!$F$16)/(1-IF(Calculations!$F$17="",Calculations!$D$17,Calculations!$F$17))/Conversions!$D$81 ->  | D39: =D13*IF(Calculations!$F$16="",Calculations!$D$16,Calculations!$F$16)/(1-IF(Calculations!$F$17="",Calculations!$D$17,Calculations!$F$17))/Conversions!$D$81 ->  | E39: =E13*IF(Calculations!$F$16="",Calculations!$D$16,Calculations!$F$16)/(1-IF(Calculations!$F$17="",Calculations!$D$17,Calculations!$F$17))/Conversions!$D$81 ->  | F39: =F13*IF(Calculations!$F$16="",Calculations!$D$16,Calculations!$F$16)/(1-IF(Calculations!$F$17="",Calculations!$D$17,Calculations!$F$17))/Conversions!$D$81 ->  | G39: =G13*IF(Calculations!$F$16="",Calculations!$D$16,Calculations!$F$16)/(1-IF(Calculations!$F$17="",Calculations!$D$17,Calculations!$F$17))/Conversions!$D$81 ->  | H39: =H13*IF(Calculations!$F$16="",Calculations!$D$16,Calculations!$F$16)/(1-IF(Calculations!$F$17="",Calculations!$D$17,Calculations!$F$17))/Conversions!$D$81 ->  | I39: =I13*IF(Calculations!$F$16="",Calculations!$D$16,Calculations!$F$16)/(1-IF(Calculations!$F$17="",Calculations!$D$17,Calculations!$F$17))/Conversions!$D$81 ->  | J39: =J13*IF(Calculations!$F$16="",Calculations!$D$16,Calculations!$F$16)/(1-IF(Calculations!$F$17="",Calculations!$D$17,Calculations!$F$17))/Conversions!$D$81 ->  | K39: =K13*IF(Calculations!$F$16="",Calculations!$D$16,Calculations!$F$16)/(1-IF(Calculations!$F$17="",Calculations!$D$17,Calculations!$F$17))/Conversions!$D$81 ->  | L39: =L13*IF(Calculations!$F$16="",Calculations!$D$16,Calculations!$F$16)/(1-IF(Calculations!$F$17="",Calculations!$D$17,Calculations!$F$17))/Conversions!$D$81 ->  | O39: 7 | P39: =P13*Conversions!$K$59*IF(Calculations!$F$18="",Calculations!$D$18,Calculations!$F$18)/Conversions!$D$81 ->  | Q39: =Q13*Conversions!$K$59*IF(Calculations!$F$18="",Calculations!$D$18,Calculations!$F$18)/Conversions!$D$81 ->  | R39: =R13*Conversions!$K$59*IF(Calculations!$F$18="",Calculations!$D$18,Calculations!$F$18)/Conversions!$D$81 ->  | S39: =S13*Conversions!$K$59*IF(Calculations!$F$18="",Calculations!$D$18,Calculations!$F$18)/Conversions!$D$81 ->  | T39: =T13*Conversions!$K$59*IF(Calculations!$F$18="",Calculations!$D$18,Calculations!$F$18)/Conversions!$D$81 ->  | U39: =U13*Conversions!$K$59*IF(Calculations!$F$18="",Calculations!$D$18,Calculations!$F$18)/Conversions!$D$81 ->  | V39: =V13*Conversions!$K$59*IF(Calculations!$F$18="",Calculations!$D$18,Calculations!$F$18)/Conversions!$D$81 ->  | W39: =W13*Conversions!$K$59*IF(Calculations!$F$18="",Calculations!$D$18,Calculations!$F$18)/Conversions!$D$81 ->  | X39: =X13*Conversions!$K$59*IF(Calculations!$F$18="",Calculations!$D$18,Calculations!$F$18)/Conversions!$D$81 ->  | Y39: =Y13*Conversions!$K$59*IF(Calculations!$F$18="",Calculations!$D$18,Calculations!$F$18)/Conversions!$D$81 ->  | AB39: 7 | AO39: 2019
B40: 8 | C40: =C14*IF(Calculations!$F$16="",Calculations!$D$16,Calculations!$F$16)/(1-IF(Calculations!$F$17="",Calculations!$D$17,Calculations!$F$17))/Conversions!$D$81 ->  | D40: =D14*IF(Calculations!$F$16="",Calculations!$D$16,Calculations!$F$16)/(1-IF(Calculations!$F$17="",Calculations!$D$17,Calculations!$F$17))/Conversions!$D$81 ->  | E40: =E14*IF(Calculations!$F$16="",Calculations!$D$16,Calculations!$F$16)/(1-IF(Calculations!$F$17="",Calculations!$D$17,Calculations!$F$17))/Conversions!$D$81 ->  | F40: =F14*IF(Calculations!$F$16="",Calculations!$D$16,Calculations!$F$16)/(1-IF(Calculations!$F$17="",Calculations!$D$17,Calculations!$F$17))/Conversions!$D$81 ->  | G40: =G14*IF(Calculations!$F$16="",Calculations!$D$16,Calculations!$F$16)/(1-IF(Calculations!$F$17="",Calculations!$D$17,Calculations!$F$17))/Conversions!$D$81 ->  | H40: =H14*IF(Calculations!$F$16="",Calculations!$D$16,Calculations!$F$16)/(1-IF(Calculations!$F$17="",Calculations!$D$17,Calculations!$F$17))/Conversions!$D$81 ->  | I40: =I14*IF(Calculations!$F$16="",Calculations!$D$16,Calculations!$F$16)/(1-IF(Calculations!$F$17="",Calculations!$D$17,Calculations!$F$17))/Conversions!$D$81 ->  | J40: =J14*IF(Calculations!$F$16="",Calculations!$D$16,Calculations!$F$16)/(1-IF(Calculations!$F$17="",Calculations!$D$17,Calculations!$F$17))/Conversions!$D$81 ->  | K40: =K14*IF(Calculations!$F$16="",Calculations!$D$16,Calculations!$F$16)/(1-IF(Calculations!$F$17="",Calculations!$D$17,Calculations!$F$17))/Conversions!$D$81 ->  | L40: =L14*IF(Calculations!$F$16="",Calculations!$D$16,Calculations!$F$16)/(1-IF(Calculations!$F$17="",Calculations!$D$17,Calculations!$F$17))/Conversions!$D$81 ->  | O40: 8 | P40: =P14*Conversions!$K$59*IF(Calculations!$F$18="",Calculations!$D$18,Calculations!$F$18)/Conversions!$D$81 ->  | Q40: =Q14*Conversions!$K$59*IF(Calculations!$F$18="",Calculations!$D$18,Calculations!$F$18)/Conversions!$D$81 ->  | R40: =R14*Conversions!$K$59*IF(Calculations!$F$18="",Calculations!$D$18,Calculations!$F$18)/Conversions!$D$81 ->  | S40: =S14*Conversions!$K$59*IF(Calculations!$F$18="",Calculations!$D$18,Calculations!$F$18)/Conversions!$D$81 ->  | T40: =T14*Conversions!$K$59*IF(Calculations!$F$18="",Calculations!$D$18,Calculations!$F$18)/Conversions!$D$81 ->  | U40: =U14*Conversions!$K$59*IF(Calculations!$F$18="",Calculations!$D$18,Calculations!$F$18)/Conversions!$D$81 ->  | V40: =V14*Conversions!$K$59*IF(Calculations!$F$18="",Calculations!$D$18,Calculations!$F$18)/Conversions!$D$81 ->  | W40: =W14*Conversions!$K$59*IF(Calculations!$F$18="",Calculations!$D$18,Calculations!$F$18)/Conversions!$D$81 ->  | X40: =X14*Conversions!$K$59*IF(Calculations!$F$18="",Calculations!$D$18,Calculations!$F$18)/Conversions!$D$81 ->  | Y40: =Y14*Conversions!$K$59*IF(Calculations!$F$18="",Calculations!$D$18,Calculations!$F$18)/Conversions!$D$81 ->  | AB40: 8 | AO40: 2020
B41: 9 | C41: =C15*IF(Calculations!$F$16="",Calculations!$D$16,Calculations!$F$16)/(1-IF(Calculations!$F$17="",Calculations!$D$17,Calculations!$F$17))/Conversions!$D$81 ->  | D41: =D15*IF(Calculations!$F$16="",Calculations!$D$16,Calculations!$F$16)/(1-IF(Calculations!$F$17="",Calculations!$D$17,Calculations!$F$17))/Conversions!$D$81 ->  | E41: =E15*IF(Calculations!$F$16="",Calculations!$D$16,Calculations!$F$16)/(1-IF(Calculations!$F$17="",Calculations!$D$17,Calculations!$F$17))/Conversions!$D$81 ->  | F41: =F15*IF(Calculations!$F$16="",Calculations!$D$16,Calculations!$F$16)/(1-IF(Calculations!$F$17="",Calculations!$D$17,Calculations!$F$17))/Conversions!$D$81 ->  | G41: =G15*IF(Calculations!$F$16="",Calculations!$D$16,Calculations!$F$16)/(1-IF(Calculations!$F$17="",Calculations!$D$17,Calculations!$F$17))/Conversions!$D$81 ->  | H41: =H15*IF(Calculations!$F$16="",Calculations!$D$16,Calculations!$F$16)/(1-IF(Calculations!$F$17="",Calculations!$D$17,Calculations!$F$17))/Conversions!$D$81 ->  | I41: =I15*IF(Calculations!$F$16="",Calculations!$D$16,Calculations!$F$16)/(1-IF(Calculations!$F$17="",Calculations!$D$17,Calculations!$F$17))/Conversions!$D$81 ->  | J41: =J15*IF(Calculations!$F$16="",Calculations!$D$16,Calculations!$F$16)/(1-IF(Calculations!$F$17="",Calculations!$D$17,Calculations!$F$17))/Conversions!$D$81 ->  | K41: =K15*IF(Calculations!$F$16="",Calculations!$D$16,Calculations!$F$16)/(1-IF(Calculations!$F$17="",Calculations!$D$17,Calculations!$F$17))/Conversions!$D$81 ->  | L41: =L15*IF(Calculations!$F$16="",Calculations!$D$16,Calculations!$F$16)/(1-IF(Calculations!$F$17="",Calculations!$D$17,Calculations!$F$17))/Conversions!$D$81 ->  | O41: 9 | P41: =P15*Conversions!$K$59*IF(Calculations!$F$18="",Calculations!$D$18,Calculations!$F$18)/Conversions!$D$81 ->  | Q41: =Q15*Conversions!$K$59*IF(Calculations!$F$18="",Calculations!$D$18,Calculations!$F$18)/Conversions!$D$81 ->  | R41: =R15*Conversions!$K$59*IF(Calculations!$F$18="",Calculations!$D$18,Calculations!$F$18)/Conversions!$D$81 ->  | S41: =S15*Conversions!$K$59*IF(Calculations!$F$18="",Calculations!$D$18,Calculations!$F$18)/Conversions!$D$81 ->  | T41: =T15*Conversions!$K$59*IF(Calculations!$F$18="",Calculations!$D$18,Calculations!$F$18)/Conversions!$D$81 ->  | U41: =U15*Conversions!$K$59*IF(Calculations!$F$18="",Calculations!$D$18,Calculations!$F$18)/Conversions!$D$81 ->  | V41: =V15*Conversions!$K$59*IF(Calculations!$F$18="",Calculations!$D$18,Calculations!$F$18)/Conversions!$D$81 ->  | W41: =W15*Conversions!$K$59*IF(Calculations!$F$18="",Calculations!$D$18,Calculations!$F$18)/Conversions!$D$81 ->  | X41: =X15*Conversions!$K$59*IF(Calculations!$F$18="",Calculations!$D$18,Calculations!$F$18)/Conversions!$D$81 ->  | Y41: =Y15*Conversions!$K$59*IF(Calculations!$F$18="",Calculations!$D$18,Calculations!$F$18)/Conversions!$D$81 ->  | AB41: 9 | AO41: 2021
B42: 10 | C42: =C16*IF(Calculations!$F$16="",Calculations!$D$16,Calculations!$F$16)/(1-IF(Calculations!$F$17="",Calculations!$D$17,Calculations!$F$17))/Conversions!$D$81 ->  | D42: =D16*IF(Calculations!$F$16="",Calculations!$D$16,Calculations!$F$16)/(1-IF(Calculations!$F$17="",Calculations!$D$17,Calculations!$F$17))/Conversions!$D$81 ->  | E42: =E16*IF(Calculations!$F$16="",Calculations!$D$16,Calculations!$F$16)/(1-IF(Calculations!$F$17="",Calculations!$D$17,Calculations!$F$17))/Conversions!$D$81 ->  | F42: =F16*IF(Calculations!$F$16="",Calculations!$D$16,Calculations!$F$16)/(1-IF(Calculations!$F$17="",Calculations!$D$17,Calculations!$F$17))/Conversions!$D$81 ->  | G42: =G16*IF(Calculations!$F$16="",Calculations!$D$16,Calculations!$F$16)/(1-IF(Calculations!$F$17="",Calculations!$D$17,Calculations!$F$17))/Conversions!$D$81 ->  | H42: =H16*IF(Calculations!$F$16="",Calculations!$D$16,Calculations!$F$16)/(1-IF(Calculations!$F$17="",Calculations!$D$17,Calculations!$F$17))/Conversions!$D$81 ->  | I42: =I16*IF(Calculations!$F$16="",Calculations!$D$16,Calculations!$F$16)/(1-IF(Calculations!$F$17="",Calculations!$D$17,Calculations!$F$17))/Conversions!$D$81 ->  | J42: =J16*IF(Calculations!$F$16="",Calculations!$D$16,Calculations!$F$16)/(1-IF(Calculations!$F$17="",Calculations!$D$17,Calculations!$F$17))/Conversions!$D$81 ->  | K42: =K16*IF(Calculations!$F$16="",Calculations!$D$16,Calculations!$F$16)/(1-IF(Calculations!$F$17="",Calculations!$D$17,Calculations!$F$17))/Conversions!$D$81 ->  | L42: =L16*IF(Calculations!$F$16="",Calculations!$D$16,Calculations!$F$16)/(1-IF(Calculations!$F$17="",Calculations!$D$17,Calculations!$F$17))/Conversions!$D$81 ->  | O42: 10 | P42: =P16*Conversions!$K$59*IF(Calculations!$F$18="",Calculations!$D$18,Calculations!$F$18)/Conversions!$D$81 ->  | Q42: =Q16*Conversions!$K$59*IF(Calculations!$F$18="",Calculations!$D$18,Calculations!$F$18)/Conversions!$D$81 ->  | R42: =R16*Conversions!$K$59*IF(Calculations!$F$18="",Calculations!$D$18,Calculations!$F$18)/Conversions!$D$81 ->  | S42: =S16*Conversions!$K$59*IF(Calculations!$F$18="",Calculations!$D$18,Calculations!$F$18)/Conversions!$D$81 ->  | T42: =T16*Conversions!$K$59*IF(Calculations!$F$18="",Calculations!$D$18,Calculations!$F$18)/Conversions!$D$81 ->  | U42: =U16*Conversions!$K$59*IF(Calculations!$F$18="",Calculations!$D$18,Calculations!$F$18)/Conversions!$D$81 ->  | V42: =V16*Conversions!$K$59*IF(Calculations!$F$18="",Calculations!$D$18,Calculations!$F$18)/Conversions!$D$81 ->  | W42: =W16*Conversions!$K$59*IF(Calculations!$F$18="",Calculations!$D$18,Calculations!$F$18)/Conversions!$D$81 ->  | X42: =X16*Conversions!$K$59*IF(Calculations!$F$18="",Calculations!$D$18,Calculations!$F$18)/Conversions!$D$81 ->  | Y42: =Y16*Conversions!$K$59*IF(Calculations!$F$18="",Calculations!$D$18,Calculations!$F$18)/Conversions!$D$81 ->  | AB42: 10 | AO42: 2022
B43: 11 | C43: =C17*IF(Calculations!$F$16="",Calculations!$D$16,Calculations!$F$16)/(1-IF(Calculations!$F$17="",Calculations!$D$17,Calculations!$F$17))/Conversions!$D$81 ->  | D43: =D17*IF(Calculations!$F$16="",Calculations!$D$16,Calculations!$F$16)/(1-IF(Calculations!$F$17="",Calculations!$D$17,Calculations!$F$17))/Conversions!$D$81 ->  | E43: =E17*IF(Calculations!$F$16="",Calculations!$D$16,Calculations!$F$16)/(1-IF(Calculations!$F$17="",Calculations!$D$17,Calculations!$F$17))/Conversions!$D$81 ->  | F43: =F17*IF(Calculations!$F$16="",Calculations!$D$16,Calculations!$F$16)/(1-IF(Calculations!$F$17="",Calculations!$D$17,Calculations!$F$17))/Conversions!$D$81 ->  | G43: =G17*IF(Calculations!$F$16="",Calculations!$D$16,Calculations!$F$16)/(1-IF(Calculations!$F$17="",Calculations!$D$17,Calculations!$F$17))/Conversions!$D$81 ->  | H43: =H17*IF(Calculations!$F$16="",Calculations!$D$16,Calculations!$F$16)/(1-IF(Calculations!$F$17="",Calculations!$D$17,Calculations!$F$17))/Conversions!$D$81 ->  | I43: =I17*IF(Calculations!$F$16="",Calculations!$D$16,Calculations!$F$16)/(1-IF(Calculations!$F$17="",Calculations!$D$17,Calculations!$F$17))/Conversions!$D$81 ->  | J43: =J17*IF(Calculations!$F$16="",Calculations!$D$16,Calculations!$F$16)/(1-IF(Calculations!$F$17="",Calculations!$D$17,Calculations!$F$17))/Conversions!$D$81 ->  | K43: =K17*IF(Calculations!$F$16="",Calculations!$D$16,Calculations!$F$16)/(1-IF(Calculations!$F$17="",Calculations!$D$17,Calculations!$F$17))/Conversions!$D$81 ->  | L43: =L17*IF(Calculations!$F$16="",Calculations!$D$16,Calculations!$F$16)/(1-IF(Calculations!$F$17="",Calculations!$D$17,Calculations!$F$17))/Conversions!$D$81 ->  | O43: 11 | P43: =P17*Conversions!$K$59*IF(Calculations!$F$18="",Calculations!$D$18,Calculations!$F$18)/Conversions!$D$81 ->  | Q43: =Q17*Conversions!$K$59*IF(Calculations!$F$18="",Calculations!$D$18,Calculations!$F$18)/Conversions!$D$81 ->  | R43: =R17*Conversions!$K$59*IF(Calculations!$F$18="",Calculations!$D$18,Calculations!$F$18)/Conversions!$D$81 ->  | S43: =S17*Conversions!$K$59*IF(Calculations!$F$18="",Calculations!$D$18,Calculations!$F$18)/Conversions!$D$81 ->  | T43: =T17*Conversions!$K$59*IF(Calculations!$F$18="",Calculations!$D$18,Calculations!$F$18)/Conversions!$D$81 ->  | U43: =U17*Conversions!$K$59*IF(Calculations!$F$18="",Calculations!$D$18,Calculations!$F$18)/Conversions!$D$81 ->  | V43: =V17*Conversions!$K$59*IF(Calculations!$F$18="",Calculations!$D$18,Calculations!$F$18)/Conversions!$D$81 ->  | W43: =W17*Conversions!$K$59*IF(Calculations!$F$18="",Calculations!$D$18,Calculations!$F$18)/Conversions!$D$81 ->  | X43: =X17*Conversions!$K$59*IF(Calculations!$F$18="",Calculations!$D$18,Calculations!$F$18)/Conversions!$D$81 ->  | Y43: =Y17*Conversions!$K$59*IF(Calculations!$F$18="",Calculations!$D$18,Calculations!$F$18)/Conversions!$D$81 ->  | AB43: 11 | AO43: 2023
B44: 12 | C44: =C18*IF(Calculations!$F$16="",Calculations!$D$16,Calculations!$F$16)/(1-IF(Calculations!$F$17="",Calculations!$D$17,Calculations!$F$17))/Conversions!$D$81 ->  | D44: =D18*IF(Calculations!$F$16="",Calculations!$D$16,Calculations!$F$16)/(1-IF(Calculations!$F$17="",Calculations!$D$17,Calculations!$F$17))/Conversions!$D$81 ->  | E44: =E18*IF(Calculations!$F$16="",Calculations!$D$16,Calculations!$F$16)/(1-IF(Calculations!$F$17="",Calculations!$D$17,Calculations!$F$17))/Conversions!$D$81 ->  | F44: =F18*IF(Calculations!$F$16="",Calculations!$D$16,Calculations!$F$16)/(1-IF(Calculations!$F$17="",Calculations!$D$17,Calculations!$F$17))/Conversions!$D$81 ->  | G44: =G18*IF(Calculations!$F$16="",Calculations!$D$16,Calculations!$F$16)/(1-IF(Calculations!$F$17="",Calculations!$D$17,Calculations!$F$17))/Conversions!$D$81 ->  | H44: =H18*IF(Calculations!$F$16="",Calculations!$D$16,Calculations!$F$16)/(1-IF(Calculations!$F$17="",Calculations!$D$17,Calculations!$F$17))/Conversions!$D$81 ->  | I44: =I18*IF(Calculations!$F$16="",Calculations!$D$16,Calculations!$F$16)/(1-IF(Calculations!$F$17="",Calculations!$D$17,Calculations!$F$17))/Conversions!$D$81 ->  | J44: =J18*IF(Calculations!$F$16="",Calculations!$D$16,Calculations!$F$16)/(1-IF(Calculations!$F$17="",Calculations!$D$17,Calculations!$F$17))/Conversions!$D$81 ->  | K44: =K18*IF(Calculations!$F$16="",Calculations!$D$16,Calculations!$F$16)/(1-IF(Calculations!$F$17="",Calculations!$D$17,Calculations!$F$17))/Conversions!$D$81 ->  | L44: =L18*IF(Calculations!$F$16="",Calculations!$D$16,Calculations!$F$16)/(1-IF(Calculations!$F$17="",Calculations!$D$17,Calculations!$F$17))/Conversions!$D$81 ->  | O44: 12 | P44: =P18*Conversions!$K$59*IF(Calculations!$F$18="",Calculations!$D$18,Calculations!$F$18)/Conversions!$D$81 ->  | Q44: =Q18*Conversions!$K$59*IF(Calculations!$F$18="",Calculations!$D$18,Calculations!$F$18)/Conversions!$D$81 ->  | R44: =R18*Conversions!$K$59*IF(Calculations!$F$18="",Calculations!$D$18,Calculations!$F$18)/Conversions!$D$81 ->  | S44: =S18*Conversions!$K$59*IF(Calculations!$F$18="",Calculations!$D$18,Calculations!$F$18)/Conversions!$D$81 ->  | T44: =T18*Conversions!$K$59*IF(Calculations!$F$18="",Calculations!$D$18,Calculations!$F$18)/Conversions!$D$81 ->  | U44: =U18*Conversions!$K$59*IF(Calculations!$F$18="",Calculations!$D$18,Calculations!$F$18)/Conversions!$D$81 ->  | V44: =V18*Conversions!$K$59*IF(Calculations!$F$18="",Calculations!$D$18,Calculations!$F$18)/Conversions!$D$81 ->  | W44: =W18*Conversions!$K$59*IF(Calculations!$F$18="",Calculations!$D$18,Calculations!$F$18)/Conversions!$D$81 ->  | X44: =X18*Conversions!$K$59*IF(Calculations!$F$18="",Calculations!$D$18,Calculations!$F$18)/Conversions!$D$81 ->  | Y44: =Y18*Conversions!$K$59*IF(Calculations!$F$18="",Calculations!$D$18,Calculations!$F$18)/Conversions!$D$81 ->  | AB44: 12 | AO44: 2024
B45: 13 | C45: =C19*IF(Calculations!$F$16="",Calculations!$D$16,Calculations!$F$16)/(1-IF(Calculations!$F$17="",Calculations!$D$17,Calculations!$F$17))/Conversions!$D$81 ->  | D45: =D19*IF(Calculations!$F$16="",Calculations!$D$16,Calculations!$F$16)/(1-IF(Calculations!$F$17="",Calculations!$D$17,Calculations!$F$17))/Conversions!$D$81 ->  | E45: =E19*IF(Calculations!$F$16="",Calculations!$D$16,Calculations!$F$16)/(1-IF(Calculations!$F$17="",Calculations!$D$17,Calculations!$F$17))/Conversions!$D$81 ->  | F45: =F19*IF(Calculations!$F$16="",Calculations!$D$16,Calculations!$F$16)/(1-IF(Calculations!$F$17="",Calculations!$D$17,Calculations!$F$17))/Conversions!$D$81 ->  | G45: =G19*IF(Calculations!$F$16="",Calculations!$D$16,Calculations!$F$16)/(1-IF(Calculations!$F$17="",Calculations!$D$17,Calculations!$F$17))/Conversions!$D$81 ->  | H45: =H19*IF(Calculations!$F$16="",Calculations!$D$16,Calculations!$F$16)/(1-IF(Calculations!$F$17="",Calculations!$D$17,Calculations!$F$17))/Conversions!$D$81 ->  | I45: =I19*IF(Calculations!$F$16="",Calculations!$D$16,Calculations!$F$16)/(1-IF(Calculations!$F$17="",Calculations!$D$17,Calculations!$F$17))/Conversions!$D$81 ->  | J45: =J19*IF(Calculations!$F$16="",Calculations!$D$16,Calculations!$F$16)/(1-IF(Calculations!$F$17="",Calculations!$D$17,Calculations!$F$17))/Conversions!$D$81 ->  | K45: =K19*IF(Calculations!$F$16="",Calculations!$D$16,Calculations!$F$16)/(1-IF(Calculations!$F$17="",Calculations!$D$17,Calculations!$F$17))/Conversions!$D$81 ->  | L45: =L19*IF(Calculations!$F$16="",Calculations!$D$16,Calculations!$F$16)/(1-IF(Calculations!$F$17="",Calculations!$D$17,Calculations!$F$17))/Conversions!$D$81 ->  | O45: 13 | P45: =P19*Conversions!$K$59*IF(Calculations!$F$18="",Calculations!$D$18,Calculations!$F$18)/Conversions!$D$81 ->  | Q45: =Q19*Conversions!$K$59*IF(Calculations!$F$18="",Calculations!$D$18,Calculations!$F$18)/Conversions!$D$81 ->  | R45: =R19*Conversions!$K$59*IF(Calculations!$F$18="",Calculations!$D$18,Calculations!$F$18)/Conversions!$D$81 ->  | S45: =S19*Conversions!$K$59*IF(Calculations!$F$18="",Calculations!$D$18,Calculations!$F$18)/Conversions!$D$81 ->  | T45: =T19*Conversions!$K$59*IF(Calculations!$F$18="",Calculations!$D$18,Calculations!$F$18)/Conversions!$D$81 ->  | U45: =U19*Conversions!$K$59*IF(Calculations!$F$18="",Calculations!$D$18,Calculations!$F$18)/Conversions!$D$81 ->  | V45: =V19*Conversions!$K$59*IF(Calculations!$F$18="",Calculations!$D$18,Calculations!$F$18)/Conversions!$D$81 ->  | W45: =W19*Conversions!$K$59*IF(Calculations!$F$18="",Calculations!$D$18,Calculations!$F$18)/Conversions!$D$81 ->  | X45: =X19*Conversions!$K$59*IF(Calculations!$F$18="",Calculations!$D$18,Calculations!$F$18)/Conversions!$D$81 ->  | Y45: =Y19*Conversions!$K$59*IF(Calculations!$F$18="",Calculations!$D$18,Calculations!$F$18)/Conversions!$D$81 ->  | AB45: 13 | AO45: 2025
B46: 14 | C46: =C20*IF(Calculations!$F$16="",Calculations!$D$16,Calculations!$F$16)/(1-IF(Calculations!$F$17="",Calculations!$D$17,Calculations!$F$17))/Conversions!$D$81 ->  | D46: =D20*IF(Calculations!$F$16="",Calculations!$D$16,Calculations!$F$16)/(1-IF(Calculations!$F$17="",Calculations!$D$17,Calculations!$F$17))/Conversions!$D$81 ->  | E46: =E20*IF(Calculations!$F$16="",Calculations!$D$16,Calculations!$F$16)/(1-IF(Calculations!$F$17="",Calculations!$D$17,Calculations!$F$17))/Conversions!$D$81 ->  | F46: =F20*IF(Calculations!$F$16="",Calculations!$D$16,Calculations!$F$16)/(1-IF(Calculations!$F$17="",Calculations!$D$17,Calculations!$F$17))/Conversions!$D$81 ->  | G46: =G20*IF(Calculations!$F$16="",Calculations!$D$16,Calculations!$F$16)/(1-IF(Calculations!$F$17="",Calculations!$D$17,Calculations!$F$17))/Conversions!$D$81 ->  | H46: =H20*IF(Calculations!$F$16="",Calculations!$D$16,Calculations!$F$16)/(1-IF(Calculations!$F$17="",Calculations!$D$17,Calculations!$F$17))/Conversions!$D$81 ->  | I46: =I20*IF(Calculations!$F$16="",Calculations!$D$16,Calculations!$F$16)/(1-IF(Calculations!$F$17="",Calculations!$D$17,Calculations!$F$17))/Conversions!$D$81 ->  | J46: =J20*IF(Calculations!$F$16="",Calculations!$D$16,Calculations!$F$16)/(1-IF(Calculations!$F$17="",Calculations!$D$17,Calculations!$F$17))/Conversions!$D$81 ->  | K46: =K20*IF(Calculations!$F$16="",Calculations!$D$16,Calculations!$F$16)/(1-IF(Calculations!$F$17="",Calculations!$D$17,Calculations!$F$17))/Conversions!$D$81 ->  | L46: =L20*IF(Calculations!$F$16="",Calculations!$D$16,Calculations!$F$16)/(1-IF(Calculations!$F$17="",Calculations!$D$17,Calculations!$F$17))/Conversions!$D$81 ->  | O46: 14 | P46: =P20*Conversions!$K$59*IF(Calculations!$F$18="",Calculations!$D$18,Calculations!$F$18)/Conversions!$D$81 ->  | Q46: =Q20*Conversions!$K$59*IF(Calculations!$F$18="",Calculations!$D$18,Calculations!$F$18)/Conversions!$D$81 ->  | R46: =R20*Conversions!$K$59*IF(Calculations!$F$18="",Calculations!$D$18,Calculations!$F$18)/Conversions!$D$81 ->  | S46: =S20*Conversions!$K$59*IF(Calculations!$F$18="",Calculations!$D$18,Calculations!$F$18)/Conversions!$D$81 ->  | T46: =T20*Conversions!$K$59*IF(Calculations!$F$18="",Calculations!$D$18,Calculations!$F$18)/Conversions!$D$81 ->  | U46: =U20*Conversions!$K$59*IF(Calculations!$F$18="",Calculations!$D$18,Calculations!$F$18)/Conversions!$D$81 ->  | V46: =V20*Conversions!$K$59*IF(Calculations!$F$18="",Calculations!$D$18,Calculations!$F$18)/Conversions!$D$81 ->  | W46: =W20*Conversions!$K$59*IF(Calculations!$F$18="",Calculations!$D$18,Calculations!$F$18)/Conversions!$D$81 ->  | X46: =X20*Conversions!$K$59*IF(Calculations!$F$18="",Calculations!$D$18,Calculations!$F$18)/Conversions!$D$81 ->  | Y46: =Y20*Conversions!$K$59*IF(Calculations!$F$18="",Calculations!$D$18,Calculations!$F$18)/Conversions!$D$81 ->  | AB46: 14 | AO46: 2026
B47: 15 | C47: =C21*IF(Calculations!$F$16="",Calculations!$D$16,Calculations!$F$16)/(1-IF(Calculations!$F$17="",Calculations!$D$17,Calculations!$F$17))/Conversions!$D$81 ->  | D47: =D21*IF(Calculations!$F$16="",Calculations!$D$16,Calculations!$F$16)/(1-IF(Calculations!$F$17="",Calculations!$D$17,Calculations!$F$17))/Conversions!$D$81 ->  | E47: =E21*IF(Calculations!$F$16="",Calculations!$D$16,Calculations!$F$16)/(1-IF(Calculations!$F$17="",Calculations!$D$17,Calculations!$F$17))/Conversions!$D$81 ->  | F47: =F21*IF(Calculations!$F$16="",Calculations!$D$16,Calculations!$F$16)/(1-IF(Calculations!$F$17="",Calculations!$D$17,Calculations!$F$17))/Conversions!$D$81 ->  | G47: =G21*IF(Calculations!$F$16="",Calculations!$D$16,Calculations!$F$16)/(1-IF(Calculations!$F$17="",Calculations!$D$17,Calculations!$F$17))/Conversions!$D$81 ->  | H47: =H21*IF(Calculations!$F$16="",Calculations!$D$16,Calculations!$F$16)/(1-IF(Calculations!$F$17="",Calculations!$D$17,Calculations!$F$17))/Conversions!$D$81 ->  | I47: =I21*IF(Calculations!$F$16="",Calculations!$D$16,Calculations!$F$16)/(1-IF(Calculations!$F$17="",Calculations!$D$17,Calculations!$F$17))/Conversions!$D$81 ->  | J47: =J21*IF(Calculations!$F$16="",Calculations!$D$16,Calculations!$F$16)/(1-IF(Calculations!$F$17="",Calculations!$D$17,Calculations!$F$17))/Conversions!$D$81 ->  | K47: =K21*IF(Calculations!$F$16="",Calculations!$D$16,Calculations!$F$16)/(1-IF(Calculations!$F$17="",Calculations!$D$17,Calculations!$F$17))/Conversions!$D$81 ->  | L47: =L21*IF(Calculations!$F$16="",Calculations!$D$16,Calculations!$F$16)/(1-IF(Calculations!$F$17="",Calculations!$D$17,Calculations!$F$17))/Conversions!$D$81 ->  | O47: 15 | P47: =P21*Conversions!$K$59*IF(Calculations!$F$18="",Calculations!$D$18,Calculations!$F$18)/Conversions!$D$81 ->  | Q47: =Q21*Conversions!$K$59*IF(Calculations!$F$18="",Calculations!$D$18,Calculations!$F$18)/Conversions!$D$81 ->  | R47: =R21*Conversions!$K$59*IF(Calculations!$F$18="",Calculations!$D$18,Calculations!$F$18)/Conversions!$D$81 ->  | S47: =S21*Conversions!$K$59*IF(Calculations!$F$18="",Calculations!$D$18,Calculations!$F$18)/Conversions!$D$81 ->  | T47: =T21*Conversions!$K$59*IF(Calculations!$F$18="",Calculations!$D$18,Calculations!$F$18)/Conversions!$D$81 ->  | U47: =U21*Conversions!$K$59*IF(Calculations!$F$18="",Calculations!$D$18,Calculations!$F$18)/Conversions!$D$81 ->  | V47: =V21*Conversions!$K$59*IF(Calculations!$F$18="",Calculations!$D$18,Calculations!$F$18)/Conversions!$D$81 ->  | W47: =W21*Conversions!$K$59*IF(Calculations!$F$18="",Calculations!$D$18,Calculations!$F$18)/Conversions!$D$81 ->  | X47: =X21*Conversions!$K$59*IF(Calculations!$F$18="",Calculations!$D$18,Calculations!$F$18)/Conversions!$D$81 ->  | Y47: =Y21*Conversions!$K$59*IF(Calculations!$F$18="",Calculations!$D$18,Calculations!$F$18)/Conversions!$D$81 ->  | AB47: 15 | AO47: 2027
B48: 16 | C48: =C22*IF(Calculations!$F$16="",Calculations!$D$16,Calculations!$F$16)/(1-IF(Calculations!$F$17="",Calculations!$D$17,Calculations!$F$17))/Conversions!$D$81 ->  | D48: =D22*IF(Calculations!$F$16="",Calculations!$D$16,Calculations!$F$16)/(1-IF(Calculations!$F$17="",Calculations!$D$17,Calculations!$F$17))/Conversions!$D$81 ->  | E48: =E22*IF(Calculations!$F$16="",Calculations!$D$16,Calculations!$F$16)/(1-IF(Calculations!$F$17="",Calculations!$D$17,Calculations!$F$17))/Conversions!$D$81 ->  | F48: =F22*IF(Calculations!$F$16="",Calculations!$D$16,Calculations!$F$16)/(1-IF(Calculations!$F$17="",Calculations!$D$17,Calculations!$F$17))/Conversions!$D$81 ->  | G48: =G22*IF(Calculations!$F$16="",Calculations!$D$16,Calculations!$F$16)/(1-IF(Calculations!$F$17="",Calculations!$D$17,Calculations!$F$17))/Conversions!$D$81 ->  | H48: =H22*IF(Calculations!$F$16="",Calculations!$D$16,Calculations!$F$16)/(1-IF(Calculations!$F$17="",Calculations!$D$17,Calculations!$F$17))/Conversions!$D$81 ->  | I48: =I22*IF(Calculations!$F$16="",Calculations!$D$16,Calculations!$F$16)/(1-IF(Calculations!$F$17="",Calculations!$D$17,Calculations!$F$17))/Conversions!$D$81 ->  | J48: =J22*IF(Calculations!$F$16="",Calculations!$D$16,Calculations!$F$16)/(1-IF(Calculations!$F$17="",Calculations!$D$17,Calculations!$F$17))/Conversions!$D$81 ->  | K48: =K22*IF(Calculations!$F$16="",Calculations!$D$16,Calculations!$F$16)/(1-IF(Calculations!$F$17="",Calculations!$D$17,Calculations!$F$17))/Conversions!$D$81 ->  | L48: =L22*IF(Calculations!$F$16="",Calculations!$D$16,Calculations!$F$16)/(1-IF(Calculations!$F$17="",Calculations!$D$17,Calculations!$F$17))/Conversions!$D$81 ->  | O48: 16 | P48: =P22*Conversions!$K$59*IF(Calculations!$F$18="",Calculations!$D$18,Calculations!$F$18)/Conversions!$D$81 ->  | Q48: =Q22*Conversions!$K$59*IF(Calculations!$F$18="",Calculations!$D$18,Calculations!$F$18)/Conversions!$D$81 ->  | R48: =R22*Conversions!$K$59*IF(Calculations!$F$18="",Calculations!$D$18,Calculations!$F$18)/Conversions!$D$81 ->  | S48: =S22*Conversions!$K$59*IF(Calculations!$F$18="",Calculations!$D$18,Calculations!$F$18)/Conversions!$D$81 ->  | T48: =T22*Conversions!$K$59*IF(Calculations!$F$18="",Calculations!$D$18,Calculations!$F$18)/Conversions!$D$81 ->  | U48: =U22*Conversions!$K$59*IF(Calculations!$F$18="",Calculations!$D$18,Calculations!$F$18)/Conversions!$D$81 ->  | V48: =V22*Conversions!$K$59*IF(Calculations!$F$18="",Calculations!$D$18,Calculations!$F$18)/Conversions!$D$81 ->  | W48: =W22*Conversions!$K$59*IF(Calculations!$F$18="",Calculations!$D$18,Calculations!$F$18)/Conversions!$D$81 ->  | X48: =X22*Conversions!$K$59*IF(Calculations!$F$18="",Calculations!$D$18,Calculations!$F$18)/Conversions!$D$81 ->  | Y48: =Y22*Conversions!$K$59*IF(Calculations!$F$18="",Calculations!$D$18,Calculations!$F$18)/Conversions!$D$81 ->  | AB48: 16 | AO48: 2028
B49: 17 | C49: =C23*IF(Calculations!$F$16="",Calculations!$D$16,Calculations!$F$16)/(1-IF(Calculations!$F$17="",Calculations!$D$17,Calculations!$F$17))/Conversions!$D$81 ->  | D49: =D23*IF(Calculations!$F$16="",Calculations!$D$16,Calculations!$F$16)/(1-IF(Calculations!$F$17="",Calculations!$D$17,Calculations!$F$17))/Conversions!$D$81 ->  | E49: =E23*IF(Calculations!$F$16="",Calculations!$D$16,Calculations!$F$16)/(1-IF(Calculations!$F$17="",Calculations!$D$17,Calculations!$F$17))/Conversions!$D$81 ->  | F49: =F23*IF(Calculations!$F$16="",Calculations!$D$16,Calculations!$F$16)/(1-IF(Calculations!$F$17="",Calculations!$D$17,Calculations!$F$17))/Conversions!$D$81 ->  | G49: =G23*IF(Calculations!$F$16="",Calculations!$D$16,Calculations!$F$16)/(1-IF(Calculations!$F$17="",Calculations!$D$17,Calculations!$F$17))/Conversions!$D$81 ->  | H49: =H23*IF(Calculations!$F$16="",Calculations!$D$16,Calculations!$F$16)/(1-IF(Calculations!$F$17="",Calculations!$D$17,Calculations!$F$17))/Conversions!$D$81 ->  | I49: =I23*IF(Calculations!$F$16="",Calculations!$D$16,Calculations!$F$16)/(1-IF(Calculations!$F$17="",Calculations!$D$17,Calculations!$F$17))/Conversions!$D$81 ->  | J49: =J23*IF(Calculations!$F$16="",Calculations!$D$16,Calculations!$F$16)/(1-IF(Calculations!$F$17="",Calculations!$D$17,Calculations!$F$17))/Conversions!$D$81 ->  | K49: =K23*IF(Calculations!$F$16="",Calculations!$D$16,Calculations!$F$16)/(1-IF(Calculations!$F$17="",Calculations!$D$17,Calculations!$F$17))/Conversions!$D$81 ->  | L49: =L23*IF(Calculations!$F$16="",Calculations!$D$16,Calculations!$F$16)/(1-IF(Calculations!$F$17="",Calculations!$D$17,Calculations!$F$17))/Conversions!$D$81 ->  | O49: 17 | P49: =P23*Conversions!$K$59*IF(Calculations!$F$18="",Calculations!$D$18,Calculations!$F$18)/Conversions!$D$81 ->  | Q49: =Q23*Conversions!$K$59*IF(Calculations!$F$18="",Calculations!$D$18,Calculations!$F$18)/Conversions!$D$81 ->  | R49: =R23*Conversions!$K$59*IF(Calculations!$F$18="",Calculations!$D$18,Calculations!$F$18)/Conversions!$D$81 ->  | S49: =S23*Conversions!$K$59*IF(Calculations!$F$18="",Calculations!$D$18,Calculations!$F$18)/Conversions!$D$81 ->  | T49: =T23*Conversions!$K$59*IF(Calculations!$F$18="",Calculations!$D$18,Calculations!$F$18)/Conversions!$D$81 ->  | U49: =U23*Conversions!$K$59*IF(Calculations!$F$18="",Calculations!$D$18,Calculations!$F$18)/Conversions!$D$81 ->  | V49: =V23*Conversions!$K$59*IF(Calculations!$F$18="",Calculations!$D$18,Calculations!$F$18)/Conversions!$D$81 ->  | W49: =W23*Conversions!$K$59*IF(Calculations!$F$18="",Calculations!$D$18,Calculations!$F$18)/Conversions!$D$81 ->  | X49: =X23*Conversions!$K$59*IF(Calculations!$F$18="",Calculations!$D$18,Calculations!$F$18)/Conversions!$D$81 ->  | Y49: =Y23*Conversions!$K$59*IF(Calculations!$F$18="",Calculations!$D$18,Calculations!$F$18)/Conversions!$D$81 ->  | AB49: 17 | AO49: 2029
B50: 18 | C50: =C24*IF(Calculations!$F$16="",Calculations!$D$16,Calculations!$F$16)/(1-IF(Calculations!$F$17="",Calculations!$D$17,Calculations!$F$17))/Conversions!$D$81 ->  | D50: =D24*IF(Calculations!$F$16="",Calculations!$D$16,Calculations!$F$16)/(1-IF(Calculations!$F$17="",Calculations!$D$17,Calculations!$F$17))/Conversions!$D$81 ->  | E50: =E24*IF(Calculations!$F$16="",Calculations!$D$16,Calculations!$F$16)/(1-IF(Calculations!$F$17="",Calculations!$D$17,Calculations!$F$17))/Conversions!$D$81 ->  | F50: =F24*IF(Calculations!$F$16="",Calculations!$D$16,Calculations!$F$16)/(1-IF(Calculations!$F$17="",Calculations!$D$17,Calculations!$F$17))/Conversions!$D$81 ->  | G50: =G24*IF(Calculations!$F$16="",Calculations!$D$16,Calculations!$F$16)/(1-IF(Calculations!$F$17="",Calculations!$D$17,Calculations!$F$17))/Conversions!$D$81 ->  | H50: =H24*IF(Calculations!$F$16="",Calculations!$D$16,Calculations!$F$16)/(1-IF(Calculations!$F$17="",Calculations!$D$17,Calculations!$F$17))/Conversions!$D$81 ->  | I50: =I24*IF(Calculations!$F$16="",Calculations!$D$16,Calculations!$F$16)/(1-IF(Calculations!$F$17="",Calculations!$D$17,Calculations!$F$17))/Conversions!$D$81 ->  | J50: =J24*IF(Calculations!$F$16="",Calculations!$D$16,Calculations!$F$16)/(1-IF(Calculations!$F$17="",Calculations!$D$17,Calculations!$F$17))/Conversions!$D$81 ->  | K50: =K24*IF(Calculations!$F$16="",Calculations!$D$16,Calculations!$F$16)/(1-IF(Calculations!$F$17="",Calculations!$D$17,Calculations!$F$17))/Conversions!$D$81 ->  | L50: =L24*IF(Calculations!$F$16="",Calculations!$D$16,Calculations!$F$16)/(1-IF(Calculations!$F$17="",Calculations!$D$17,Calculations!$F$17))/Conversions!$D$81 ->  | O50: 18 | P50: =P24*Conversions!$K$59*IF(Calculations!$F$18="",Calculations!$D$18,Calculations!$F$18)/Conversions!$D$81 ->  | Q50: =Q24*Conversions!$K$59*IF(Calculations!$F$18="",Calculations!$D$18,Calculations!$F$18)/Conversions!$D$81 ->  | R50: =R24*Conversions!$K$59*IF(Calculations!$F$18="",Calculations!$D$18,Calculations!$F$18)/Conversions!$D$81 ->  | S50: =S24*Conversions!$K$59*IF(Calculations!$F$18="",Calculations!$D$18,Calculations!$F$18)/Conversions!$D$81 ->  | T50: =T24*Conversions!$K$59*IF(Calculations!$F$18="",Calculations!$D$18,Calculations!$F$18)/Conversions!$D$81 ->  | U50: =U24*Conversions!$K$59*IF(Calculations!$F$18="",Calculations!$D$18,Calculations!$F$18)/Conversions!$D$81 ->  | V50: =V24*Conversions!$K$59*IF(Calculations!$F$18="",Calculations!$D$18,Calculations!$F$18)/Conversions!$D$81 ->  | W50: =W24*Conversions!$K$59*IF(Calculations!$F$18="",Calculations!$D$18,Calculations!$F$18)/Conversions!$D$81 ->  | X50: =X24*Conversions!$K$59*IF(Calculations!$F$18="",Calculations!$D$18,Calculations!$F$18)/Conversions!$D$81 ->  | Y50: =Y24*Conversions!$K$59*IF(Calculations!$F$18="",Calculations!$D$18,Calculations!$F$18)/Conversions!$D$81 ->  | AB50: 18 | AO50: 2030
B51: 19 | C51: =C25*IF(Calculations!$F$16="",Calculations!$D$16,Calculations!$F$16)/(1-IF(Calculations!$F$17="",Calculations!$D$17,Calculations!$F$17))/Conversions!$D$81 ->  | D51: =D25*IF(Calculations!$F$16="",Calculations!$D$16,Calculations!$F$16)/(1-IF(Calculations!$F$17="",Calculations!$D$17,Calculations!$F$17))/Conversions!$D$81 ->  | E51: =E25*IF(Calculations!$F$16="",Calculations!$D$16,Calculations!$F$16)/(1-IF(Calculations!$F$17="",Calculations!$D$17,Calculations!$F$17))/Conversions!$D$81 ->  | F51: =F25*IF(Calculations!$F$16="",Calculations!$D$16,Calculations!$F$16)/(1-IF(Calculations!$F$17="",Calculations!$D$17,Calculations!$F$17))/Conversions!$D$81 ->  | G51: =G25*IF(Calculations!$F$16="",Calculations!$D$16,Calculations!$F$16)/(1-IF(Calculations!$F$17="",Calculations!$D$17,Calculations!$F$17))/Conversions!$D$81 ->  | H51: =H25*IF(Calculations!$F$16="",Calculations!$D$16,Calculations!$F$16)/(1-IF(Calculations!$F$17="",Calculations!$D$17,Calculations!$F$17))/Conversions!$D$81 ->  | I51: =I25*IF(Calculations!$F$16="",Calculations!$D$16,Calculations!$F$16)/(1-IF(Calculations!$F$17="",Calculations!$D$17,Calculations!$F$17))/Conversions!$D$81 ->  | J51: =J25*IF(Calculations!$F$16="",Calculations!$D$16,Calculations!$F$16)/(1-IF(Calculations!$F$17="",Calculations!$D$17,Calculations!$F$17))/Conversions!$D$81 ->  | K51: =K25*IF(Calculations!$F$16="",Calculations!$D$16,Calculations!$F$16)/(1-IF(Calculations!$F$17="",Calculations!$D$17,Calculations!$F$17))/Conversions!$D$81 ->  | L51: =L25*IF(Calculations!$F$16="",Calculations!$D$16,Calculations!$F$16)/(1-IF(Calculations!$F$17="",Calculations!$D$17,Calculations!$F$17))/Conversions!$D$81 ->  | O51: 19 | P51: =P25*Conversions!$K$59*IF(Calculations!$F$18="",Calculations!$D$18,Calculations!$F$18)/Conversions!$D$81 ->  | Q51: =Q25*Conversions!$K$59*IF(Calculations!$F$18="",Calculations!$D$18,Calculations!$F$18)/Conversions!$D$81 ->  | R51: =R25*Conversions!$K$59*IF(Calculations!$F$18="",Calculations!$D$18,Calculations!$F$18)/Conversions!$D$81 ->  | S51: =S25*Conversions!$K$59*IF(Calculations!$F$18="",Calculations!$D$18,Calculations!$F$18)/Conversions!$D$81 ->  | T51: =T25*Conversions!$K$59*IF(Calculations!$F$18="",Calculations!$D$18,Calculations!$F$18)/Conversions!$D$81 ->  | U51: =U25*Conversions!$K$59*IF(Calculations!$F$18="",Calculations!$D$18,Calculations!$F$18)/Conversions!$D$81 ->  | V51: =V25*Conversions!$K$59*IF(Calculations!$F$18="",Calculations!$D$18,Calculations!$F$18)/Conversions!$D$81 ->  | W51: =W25*Conversions!$K$59*IF(Calculations!$F$18="",Calculations!$D$18,Calculations!$F$18)/Conversions!$D$81 ->  | X51: =X25*Conversions!$K$59*IF(Calculations!$F$18="",Calculations!$D$18,Calculations!$F$18)/Conversions!$D$81 ->  | Y51: =Y25*Conversions!$K$59*IF(Calculations!$F$18="",Calculations!$D$18,Calculations!$F$18)/Conversions!$D$81 ->  | AB51: 19 | AO51: 2031
B52: 20 | C52: =C26*IF(Calculations!$F$16="",Calculations!$D$16,Calculations!$F$16)/(1-IF(Calculations!$F$17="",Calculations!$D$17,Calculations!$F$17))/Conversions!$D$81 ->  | D52: =D26*IF(Calculations!$F$16="",Calculations!$D$16,Calculations!$F$16)/(1-IF(Calculations!$F$17="",Calculations!$D$17,Calculations!$F$17))/Conversions!$D$81 ->  | E52: =E26*IF(Calculations!$F$16="",Calculations!$D$16,Calculations!$F$16)/(1-IF(Calculations!$F$17="",Calculations!$D$17,Calculations!$F$17))/Conversions!$D$81 ->  | F52: =F26*IF(Calculations!$F$16="",Calculations!$D$16,Calculations!$F$16)/(1-IF(Calculations!$F$17="",Calculations!$D$17,Calculations!$F$17))/Conversions!$D$81 ->  | G52: =G26*IF(Calculations!$F$16="",Calculations!$D$16,Calculations!$F$16)/(1-IF(Calculations!$F$17="",Calculations!$D$17,Calculations!$F$17))/Conversions!$D$81 ->  | H52: =H26*IF(Calculations!$F$16="",Calculations!$D$16,Calculations!$F$16)/(1-IF(Calculations!$F$17="",Calculations!$D$17,Calculations!$F$17))/Conversions!$D$81 ->  | I52: =I26*IF(Calculations!$F$16="",Calculations!$D$16,Calculations!$F$16)/(1-IF(Calculations!$F$17="",Calculations!$D$17,Calculations!$F$17))/Conversions!$D$81 ->  | J52: =J26*IF(Calculations!$F$16="",Calculations!$D$16,Calculations!$F$16)/(1-IF(Calculations!$F$17="",Calculations!$D$17,Calculations!$F$17))/Conversions!$D$81 ->  | K52: =K26*IF(Calculations!$F$16="",Calculations!$D$16,Calculations!$F$16)/(1-IF(Calculations!$F$17="",Calculations!$D$17,Calculations!$F$17))/Conversions!$D$81 ->  | L52: =L26*IF(Calculations!$F$16="",Calculations!$D$16,Calculations!$F$16)/(1-IF(Calculations!$F$17="",Calculations!$D$17,Calculations!$F$17))/Conversions!$D$81 ->  | O52: 20 | P52: =P26*Conversions!$K$59*IF(Calculations!$F$18="",Calculations!$D$18,Calculations!$F$18)/Conversions!$D$81 ->  | Q52: =Q26*Conversions!$K$59*IF(Calculations!$F$18="",Calculations!$D$18,Calculations!$F$18)/Conversions!$D$81 ->  | R52: =R26*Conversions!$K$59*IF(Calculations!$F$18="",Calculations!$D$18,Calculations!$F$18)/Conversions!$D$81 ->  | S52: =S26*Conversions!$K$59*IF(Calculations!$F$18="",Calculations!$D$18,Calculations!$F$18)/Conversions!$D$81 ->  | T52: =T26*Conversions!$K$59*IF(Calculations!$F$18="",Calculations!$D$18,Calculations!$F$18)/Conversions!$D$81 ->  | U52: =U26*Conversions!$K$59*IF(Calculations!$F$18="",Calculations!$D$18,Calculations!$F$18)/Conversions!$D$81 ->  | V52: =V26*Conversions!$K$59*IF(Calculations!$F$18="",Calculations!$D$18,Calculations!$F$18)/Conversions!$D$81 ->  | W52: =W26*Conversions!$K$59*IF(Calculations!$F$18="",Calculations!$D$18,Calculations!$F$18)/Conversions!$D$81 ->  | X52: =X26*Conversions!$K$59*IF(Calculations!$F$18="",Calculations!$D$18,Calculations!$F$18)/Conversions!$D$81 ->  | Y52: =Y26*Conversions!$K$59*IF(Calculations!$F$18="",Calculations!$D$18,Calculations!$F$18)/Conversions!$D$81 ->  | AB52: 20 | AO52: 2032
B53: Total | C53: =SUM(C33:C52) ->  | H53: =SUM(H33:H52) ->  | P53: =SUM(P33:P52) ->  | U53: =SUM(U33:U52) ->  | Z53: =SUM(P53:Y53) ->  | AC53: =SUM(AC33:AC52) ->  | AH53: =SUM(AH33:AH52) ->  | AM53: =SUM(AC53:AL53) -> 
B58: For Bar Plot
B59: Baseline Emissions | E59: =Results!D23 ->  | I59: =Results!H23 -> 
B60: Activity Emissions | E60: =Results!F23 ->  | I60: =Results!J23 -> 0
B61: Emission Reductions | E61: =Results!H23 ->  | I61: =Results!L23 -> 0
B63: For Line Plot
B64: Coordinates | C64: Activity | D64: Baseline | H64: Baseline
B65: 0.75 | C65: =E60+E61/100 ->  | D65: =E59+E61/100 ->  | H65: =I59+I61/100 -> 
B66: 1.25 | C66: =E60+E61/100 ->  | D66: =E59+E61/100 ->  | H66: =I59+I61/100 -> 

Sheet Country Pick (hidden)
A1: Manually Typed
A2: Country names | B2: All Countries: | C2: Cities from selected country | H2: Count | I2: =COUNTIF(E3:E131,1) -> 9
A3: =INDEX(Countries,MATCH(B3,'Country Parameters'!$F$4:$F$198,0)) -> Algeria | B3: DZA | C3: =IF(OFFSET(WeatherData!L6,0,WeatherData!$J$2-1)="","",OFFSET(WeatherData!L6,0,WeatherData!$J$2-1)) -> Addis Ababa-Bole | E3: =IF(C3<>"",1,0) -> 1 | F3: =MATCH(B3,'Country Parameters'!$F$4:$F$198,0) -> 3 | I3: =MATCH(A3,Countries,0) -> 3
A4: =INDEX(Countries,MATCH(B4,'Country Parameters'!$F$4:$F$198,0)) -> Argentina | B4: ARG | C4: =IF(OFFSET(WeatherData!L7,0,WeatherData!$J$2-1)="","",OFFSET(WeatherData!L7,0,WeatherData!$J$2-1)) -> Awassa | E4: =IF(C4<>"",1,0) -> 1 | F4: =MATCH(B4,'Country Parameters'!$F$4:$F$198,0) -> 7 | I4: 7
A5: =INDEX(Countries,MATCH(B5,'Country Parameters'!$F$4:$F$198,0)) -> Australia | B5: AUS | C5: =IF(OFFSET(WeatherData!L8,0,WeatherData!$J$2-1)="","",OFFSET(WeatherData!L8,0,WeatherData!$J$2-1)) -> Bahar Dar | E5: 1 | F5: =MATCH(B5,'Country Parameters'!$F$4:$F$198,0) -> 9 | I5: 9
A6: =INDEX(Countries,MATCH(B6,'Country Parameters'!$F$4:$F$198,0)) -> Austria | B6: AUT | C6: =IF(OFFSET(WeatherData!L9,0,WeatherData!$J$2-1)="","",OFFSET(WeatherData!L9,0,WeatherData!$J$2-1)) -> Combolcha | E6: 1 | F6: =MATCH(B6,'Country Parameters'!$F$4:$F$198,0) -> 10 | I6: 10
A7: =INDEX(Countries,MATCH(B7,'Country Parameters'!$F$4:$F$198,0)) -> Bangladesh | B7: BGD | C7: =IF(OFFSET(WeatherData!L10,0,WeatherData!$J$2-1)="","",OFFSET(WeatherData!L10,0,WeatherData!$J$2-1)) -> Debre Marcos | E7: 1 | F7: =MATCH(B7,'Country Parameters'!$F$4:$F$198,0) -> 14 | I7: 14
A8: =INDEX(Countries,MATCH(B8,'Country Parameters'!$F$4:$F$198,0)) -> Belarus | B8: BLR | C8: =IF(OFFSET(WeatherData!L11,0,WeatherData!$J$2-1)="","",OFFSET(WeatherData!L11,0,WeatherData!$J$2-1)) -> Dire Dawa | E8: 1 | F8: =MATCH(B8,'Country Parameters'!$F$4:$F$198,0) -> 16 | I8: 16
A9: =INDEX(Countries,MATCH(B9,'Country Parameters'!$F$4:$F$198,0)) -> Belgium | B9: BEL | C9: =IF(OFFSET(WeatherData!L12,0,WeatherData!$J$2-1)="","",OFFSET(WeatherData!L12,0,WeatherData!$J$2-1)) -> Gondar | E9: 1 | F9: =MATCH(B9,'Country Parameters'!$F$4:$F$198,0) -> 17 | I9: 17
A10: =INDEX(Countries,MATCH(B10,'Country Parameters'!$F$4:$F$198,0)) -> Belize | B10: BLZ | C10: =IF(OFFSET(WeatherData!L13,0,WeatherData!$J$2-1)="","",OFFSET(WeatherData!L13,0,WeatherData!$J$2-1)) -> Jimma | E10: 1 | F10: =MATCH(B10,'Country Parameters'!$F$4:$F$198,0) -> 18 | I10: 18
A11: =INDEX(Countries,MATCH(B11,'Country Parameters'!$F$4:$F$198,0)) -> Bolivia | B11: BOL | C11: =IF(OFFSET(WeatherData!L14,0,WeatherData!$J$2-1)="","",OFFSET(WeatherData!L14,0,WeatherData!$J$2-1)) -> Metehara | E11: 1 | F11: =MATCH(B11,'Country Parameters'!$F$4:$F$198,0) -> 21 | I11: 21
A12: =INDEX(Countries,MATCH(B12,'Country Parameters'!$F$4:$F$198,0)) -> Bosnia and Herzegovina | B12: BIH | C12: =IF(OFFSET(WeatherData!L15,0,WeatherData!$J$2-1)="","",OFFSET(WeatherData!L15,0,WeatherData!$J$2-1)) ->  | E12: 0 | F12: =MATCH(B12,'Country Parameters'!$F$4:$F$198,0) -> 22 | I12: 22
A13: =INDEX(Countries,MATCH(B13,'Country Parameters'!$F$4:$F$198,0)) -> Brazil | B13: BRA | C13: =IF(OFFSET(WeatherData!L16,0,WeatherData!$J$2-1)="","",OFFSET(WeatherData!L16,0,WeatherData!$J$2-1)) ->  | E13: 0 | F13: =MATCH(B13,'Country Parameters'!$F$4:$F$198,0) -> 24 | I13: 24
A14: =INDEX(Countries,MATCH(B14,'Country Parameters'!$F$4:$F$198,0)) -> Brunei Darussalam | B14: BRN | C14: =IF(OFFSET(WeatherData!L17,0,WeatherData!$J$2-1)="","",OFFSET(WeatherData!L17,0,WeatherData!$J$2-1)) ->  | E14: 0 | F14: =MATCH(B14,'Country Parameters'!$F$4:$F$198,0) -> 25 | I14: 25
A15: =INDEX(Countries,MATCH(B15,'Country Parameters'!$F$4:$F$198,0)) -> Bulgaria | B15: BGR | C15: =IF(OFFSET(WeatherData!L18,0,WeatherData!$J$2-1)="","",OFFSET(WeatherData!L18,0,WeatherData!$J$2-1)) ->  | E15: 0 | F15: =MATCH(B15,'Country Parameters'!$F$4:$F$198,0) -> 26 | I15: 26
A16: =INDEX(Countries,MATCH(B16,'Country Parameters'!$F$4:$F$198,0)) -> Canada | B16: CAN | C16: =IF(OFFSET(WeatherData!L19,0,WeatherData!$J$2-1)="","",OFFSET(WeatherData!L19,0,WeatherData!$J$2-1)) ->  | E16: 0 | F16: =MATCH(B16,'Country Parameters'!$F$4:$F$198,0) -> 32 | I16: 32
A17: =INDEX(Countries,MATCH(B17,'Country Parameters'!$F$4:$F$198,0)) -> Chile | B17: CHL | C17: =IF(OFFSET(WeatherData!L20,0,WeatherData!$J$2-1)="","",OFFSET(WeatherData!L20,0,WeatherData!$J$2-1)) ->  | E17: 0 | F17: =MATCH(B17,'Country Parameters'!$F$4:$F$198,0) -> 36 | I17: 36
A18: =INDEX(Countries,MATCH(B18,'Country Parameters'!$F$4:$F$198,0)) -> China | B18: CHN | C18: =IF(OFFSET(WeatherData!L21,0,WeatherData!$J$2-1)="","",OFFSET(WeatherData!L21,0,WeatherData!$J$2-1)) ->  | E18: 0 | F18: =MATCH(B18,'Country Parameters'!$F$4:$F$198,0) -> 37 | I18: 37
A19: =INDEX(Countries,MATCH(B19,'Country Parameters'!$F$4:$F$198,0)) -> Colombia | B19: COL | C19: =IF(OFFSET(WeatherData!L22,0,WeatherData!$J$2-1)="","",OFFSET(WeatherData!L22,0,WeatherData!$J$2-1)) ->  | E19: 0 | F19: =MATCH(B19,'Country Parameters'!$F$4:$F$198,0) -> 38 | I19: 38
A20: =INDEX(Countries,MATCH(B20,'Country Parameters'!$F$4:$F$198,0)) -> Cuba | B20: CUB | C20: =IF(OFFSET(WeatherData!L23,0,WeatherData!$J$2-1)="","",OFFSET(WeatherData!L23,0,WeatherData!$J$2-1)) ->  | E20: 0 | F20: =MATCH(B20,'Country Parameters'!$F$4:$F$198,0) -> 45 | I20: 45
A21: =INDEX(Countries,MATCH(B21,'Country Parameters'!$F$4:$F$198,0)) -> Cyprus | B21: CYP | C21: =IF(OFFSET(WeatherData!L24,0,WeatherData!$J$2-1)="","",OFFSET(WeatherData!L24,0,WeatherData!$J$2-1)) ->  | E21: 0 | F21: =MATCH(B21,'Country Parameters'!$F$4:$F$198,0) -> 46 | I21: 46
A22: =INDEX(Countries,MATCH(B22,'Country Parameters'!$F$4:$F$198,0)) -> Czech Republic | B22: CZE | C22: =IF(OFFSET(WeatherData!L25,0,WeatherData!$J$2-1)="","",OFFSET(WeatherData!L25,0,WeatherData!$J$2-1)) ->  | E22: 0 | F22: =MATCH(B22,'Country Parameters'!$F$4:$F$198,0) -> 47 | I22: 47
A23: =INDEX(Countries,MATCH(B23,'Country Parameters'!$F$4:$F$198,0)) -> Denmark | B23: DNK | C23: =IF(OFFSET(WeatherData!L26,0,WeatherData!$J$2-1)="","",OFFSET(WeatherData!L26,0,WeatherData!$J$2-1)) ->  | E23: 0 | F23: =MATCH(B23,'Country Parameters'!$F$4:$F$198,0) -> 48 | I23: 48
A24: =INDEX(Countries,MATCH(B24,'Country Parameters'!$F$4:$F$198,0)) -> Ecuador | B24: ECU | C24: =IF(OFFSET(WeatherData!L27,0,WeatherData!$J$2-1)="","",OFFSET(WeatherData!L27,0,WeatherData!$J$2-1)) ->  | E24: 0 | F24: =MATCH(B24,'Country Parameters'!$F$4:$F$198,0) -> 52 | I24: 52
A25: =INDEX(Countries,MATCH(B25,'Country Parameters'!$F$4:$F$198,0)) -> Egypt | B25: EGY | C25: =IF(OFFSET(WeatherData!L28,0,WeatherData!$J$2-1)="","",OFFSET(WeatherData!L28,0,WeatherData!$J$2-1)) ->  | E25: 0 | F25: =MATCH(B25,'Country Parameters'!$F$4:$F$198,0) -> 53 | I25: 53
A26: =INDEX(Countries,MATCH(B26,'Country Parameters'!$F$4:$F$198,0)) -> El Salvador | B26: SLV | C26: =IF(OFFSET(WeatherData!L29,0,WeatherData!$J$2-1)="","",OFFSET(WeatherData!L29,0,WeatherData!$J$2-1)) ->  | E26: 0 | F26: =MATCH(B26,'Country Parameters'!$F$4:$F$198,0) -> 54 | I26: 54
A27: =INDEX(Countries,MATCH(B27,'Country Parameters'!$F$4:$F$198,0)) -> Ethiopia | B27: ETH | C27: =IF(OFFSET(WeatherData!L30,0,WeatherData!$J$2-1)="","",OFFSET(WeatherData!L30,0,WeatherData!$J$2-1)) ->  | E27: 0 | F27: =MATCH(B27,'Country Parameters'!$F$4:$F$198,0) -> 58 | I27: 58
A28: =INDEX(Countries,MATCH(B28,'Country Parameters'!$F$4:$F$198,0)) -> Fiji | B28: FJI | C28: =IF(OFFSET(WeatherData!L31,0,WeatherData!$J$2-1)="","",OFFSET(WeatherData!L31,0,WeatherData!$J$2-1)) ->  | E28: 0 | F28: =MATCH(B28,'Country Parameters'!$F$4:$F$198,0) -> 59 | I28: 59
A29: =INDEX(Countries,MATCH(B29,'Country Parameters'!$F$4:$F$198,0)) -> Finland | B29: FIN | C29: =IF(OFFSET(WeatherData!L32,0,WeatherData!$J$2-1)="","",OFFSET(WeatherData!L32,0,WeatherData!$J$2-1)) ->  | E29: 0 | F29: =MATCH(B29,'Country Parameters'!$F$4:$F$198,0) -> 60 | I29: 60
A30: =INDEX(Countries,MATCH(B30,'Country Parameters'!$F$4:$F$198,0)) -> France | B30: FRA | C30: =IF(OFFSET(WeatherData!L33,0,WeatherData!$J$2-1)="","",OFFSET(WeatherData!L33,0,WeatherData!$J$2-1)) ->  | E30: 0 | F30: =MATCH(B30,'Country Parameters'!$F$4:$F$198,0) -> 61 | I30: 61
A31: =INDEX(Countries,MATCH(B31,'Country Parameters'!$F$4:$F$198,0)) -> Germany | B31: DEU | C31: =IF(OFFSET(WeatherData!L34,0,WeatherData!$J$2-1)="","",OFFSET(WeatherData!L34,0,WeatherData!$J$2-1)) ->  | E31: 0 | F31: =MATCH(B31,'Country Parameters'!$F$4:$F$198,0) -> 65 | I31: 65
A32: =INDEX(Countries,MATCH(B32,'Country Parameters'!$F$4:$F$198,0)) -> Ghana | B32: GHA | C32: =IF(OFFSET(WeatherData!L35,0,WeatherData!$J$2-1)="","",OFFSET(WeatherData!L35,0,WeatherData!$J$2-1)) ->  | E32: 0 | F32: =MATCH(B32,'Country Parameters'!$F$4:$F$198,0) -> 66 | I32: 66
A33: =INDEX(Countries,MATCH(B33,'Country Parameters'!$F$4:$F$198,0)) -> Greece | B33: GRC | C33: =IF(OFFSET(WeatherData!L36,0,WeatherData!$J$2-1)="","",OFFSET(WeatherData!L36,0,WeatherData!$J$2-1)) ->  | E33: 0 | F33: =MATCH(B33,'Country Parameters'!$F$4:$F$198,0) -> 67 | I33: 67
A34: =INDEX(Countries,MATCH(B34,'Country Parameters'!$F$4:$F$198,0)) -> Guatemala | B34: GTM | C34: =IF(OFFSET(WeatherData!L38,0,WeatherData!$J$2-1)="","",OFFSET(WeatherData!L38,0,WeatherData!$J$2-1)) ->  | E34: 0 | F34: =MATCH(B34,'Country Parameters'!$F$4:$F$198,0) -> 69 | I34: 69
A35: =INDEX(Countries,MATCH(B35,'Country Parameters'!$F$4:$F$198,0)) -> Honduras | B35: HND | C35: =IF(OFFSET(WeatherData!L39,0,WeatherData!$J$2-1)="","",OFFSET(WeatherData!L39,0,WeatherData!$J$2-1)) ->  | E35: 0 | F35: =MATCH(B35,'Country Parameters'!$F$4:$F$198,0) -> 75 | I35: =MATCH(A35,Countries,0) -> 75
A36: =INDEX(Countries,MATCH(B36,'Country Parameters'!$F$4:$F$198,0)) -> Hungary | B36: HUN | C36: =IF(OFFSET(WeatherData!L40,0,WeatherData!$J$2-1)="","",OFFSET(WeatherData!L40,0,WeatherData!$J$2-1)) ->  | E36: 0 | F36: =MATCH(B36,'Country Parameters'!$F$4:$F$198,0) -> 76 | I36: 76
A37: =INDEX(Countries,MATCH(B37,'Country Parameters'!$F$4:$F$198,0)) -> Iceland | B37: ISL | C37: =IF(OFFSET(WeatherData!L41,0,WeatherData!$J$2-1)="","",OFFSET(WeatherData!L41,0,WeatherData!$J$2-1)) ->  | E37: 0 | F37: =MATCH(B37,'Country Parameters'!$F$4:$F$198,0) -> 77 | I37: 77
A38: =INDEX(Countries,MATCH(B38,'Country Parameters'!$F$4:$F$198,0)) -> India | B38: IND | C38: =IF(OFFSET(WeatherData!L42,0,WeatherData!$J$2-1)="","",OFFSET(WeatherData!L42,0,WeatherData!$J$2-1)) ->  | E38: 0 | F38: =MATCH(B38,'Country Parameters'!$F$4:$F$198,0) -> 78 | I38: 78
A39: =INDEX(Countries,MATCH(B39,'Country Parameters'!$F$4:$F$198,0)) -> Iran | B39: IRN | C39: =IF(OFFSET(WeatherData!L43,0,WeatherData!$J$2-1)="","",OFFSET(WeatherData!L43,0,WeatherData!$J$2-1)) ->  | E39: 0 | F39: =MATCH(B39,'Country Parameters'!$F$4:$F$198,0) -> 80 | I39: 80
A40: =INDEX(Countries,MATCH(B40,'Country Parameters'!$F$4:$F$198,0)) -> Ireland | B40: IRL | C40: =IF(OFFSET(WeatherData!L44,0,WeatherData!$J$2-1)="","",OFFSET(WeatherData!L44,0,WeatherData!$J$2-1)) ->  | E40: 0 | F40: =MATCH(B40,'Country Parameters'!$F$4:$F$198,0) -> 82 | I40: 82
A41: =INDEX(Countries,MATCH(B41,'Country Parameters'!$F$4:$F$198,0)) -> Israel | B41: ISR | C41: =IF(OFFSET(WeatherData!L45,0,WeatherData!$J$2-1)="","",OFFSET(WeatherData!L45,0,WeatherData!$J$2-1)) ->  | E41: 0 | F41: =MATCH(B41,'Country Parameters'!$F$4:$F$198,0) -> 83 | I41: 83
A42: =INDEX(Countries,MATCH(B42,'Country Parameters'!$F$4:$F$198,0)) -> Italy | B42: ITA | C42: =IF(OFFSET(WeatherData!L46,0,WeatherData!$J$2-1)="","",OFFSET(WeatherData!L46,0,WeatherData!$J$2-1)) ->  | E42: 0 | F42: =MATCH(B42,'Country Parameters'!$F$4:$F$198,0) -> 84 | I42: 84
A43: =INDEX(Countries,MATCH(B43,'Country Parameters'!$F$4:$F$198,0)) -> Japan | B43: JPN | C43: =IF(OFFSET(WeatherData!L47,0,WeatherData!$J$2-1)="","",OFFSET(WeatherData!L47,0,WeatherData!$J$2-1)) ->  | E43: 0 | F43: =MATCH(B43,'Country Parameters'!$F$4:$F$198,0) -> 86 | I43: 86
A44: =INDEX(Countries,MATCH(B44,'Country Parameters'!$F$4:$F$198,0)) -> Kazakhstan | B44: KAZ | C44: =IF(OFFSET(WeatherData!L48,0,WeatherData!$J$2-1)="","",OFFSET(WeatherData!L48,0,WeatherData!$J$2-1)) ->  | E44: 0 | F44: =MATCH(B44,'Country Parameters'!$F$4:$F$198,0) -> 88 | I44: 88
A45: =INDEX(Countries,MATCH(B45,'Country Parameters'!$F$4:$F$198,0)) -> Kenya | B45: KEN | C45: =IF(OFFSET(WeatherData!L49,0,WeatherData!$J$2-1)="","",OFFSET(WeatherData!L49,0,WeatherData!$J$2-1)) ->  | E45: 0 | F45: =MATCH(B45,'Country Parameters'!$F$4:$F$198,0) -> 89 | I45: 89
A46: =INDEX(Countries,MATCH(B46,'Country Parameters'!$F$4:$F$198,0)) -> Korea, North | B46: PRK | C46: =IF(OFFSET(WeatherData!L50,0,WeatherData!$J$2-1)="","",OFFSET(WeatherData!L50,0,WeatherData!$J$2-1)) ->  | E46: 0 | F46: =MATCH(B46,'Country Parameters'!$F$4:$F$198,0) -> 91 | I46: 91
A47: =INDEX(Countries,MATCH(B47,'Country Parameters'!$F$4:$F$198,0)) -> Korea, South | B47: KOR | C47: =IF(OFFSET(WeatherData!L51,0,WeatherData!$J$2-1)="","",OFFSET(WeatherData!L51,0,WeatherData!$J$2-1)) ->  | E47: 0 | F47: =MATCH(B47,'Country Parameters'!$F$4:$F$198,0) -> 92 | I47: 92
A48: =INDEX(Countries,MATCH(B48,'Country Parameters'!$F$4:$F$198,0)) -> Kuwait | B48: KWT | C48: =IF(OFFSET(WeatherData!L52,0,WeatherData!$J$2-1)="","",OFFSET(WeatherData!L52,0,WeatherData!$J$2-1)) ->  | E48: 0 | F48: =MATCH(B48,'Country Parameters'!$F$4:$F$198,0) -> 94 | I48: 94
A49: =INDEX(Countries,MATCH(B49,'Country Parameters'!$F$4:$F$198,0)) -> Libya | B49: LBY | C49: =IF(OFFSET(WeatherData!L53,0,WeatherData!$J$2-1)="","",OFFSET(WeatherData!L53,0,WeatherData!$J$2-1)) ->  | E49: 0 | F49: =MATCH(B49,'Country Parameters'!$F$4:$F$198,0) -> 101 | I49: 101
A50: =INDEX(Countries,MATCH(B50,'Country Parameters'!$F$4:$F$198,0)) -> Lithuania | B50: LTU | C50: =IF(OFFSET(WeatherData!L54,0,WeatherData!$J$2-1)="","",OFFSET(WeatherData!L54,0,WeatherData!$J$2-1)) ->  | E50: 0 | F50: =MATCH(B50,'Country Parameters'!$F$4:$F$198,0) -> 103 | I50: 103
A51: =INDEX(Countries,MATCH(B51,'Country Parameters'!$F$4:$F$198,0)) -> Madagascar | B51: MDG | C51: =IF(OFFSET(WeatherData!L56,0,WeatherData!$J$2-1)="","",OFFSET(WeatherData!L56,0,WeatherData!$J$2-1)) ->  | E51: 0 | F51: =MATCH(B51,'Country Parameters'!$F$4:$F$198,0) -> 106 | I51: 106
A52: =INDEX(Countries,MATCH(B52,'Country Parameters'!$F$4:$F$198,0)) -> Malaysia | B52: MYS | C52: =IF(OFFSET(WeatherData!L57,0,WeatherData!$J$2-1)="","",OFFSET(WeatherData!L57,0,WeatherData!$J$2-1)) ->  | E52: 0 | F52: =MATCH(B52,'Country Parameters'!$F$4:$F$198,0) -> 108 | I52: 108
A53: =INDEX(Countries,MATCH(B53,'Country Parameters'!$F$4:$F$198,0)) -> Maldives | B53: MDV | C53: =IF(OFFSET(WeatherData!L58,0,WeatherData!$J$2-1)="","",OFFSET(WeatherData!L58,0,WeatherData!$J$2-1)) ->  | E53: 0 | F53: =MATCH(B53,'Country Parameters'!$F$4:$F$198,0) -> 109 | I53: 109
A54: =INDEX(Countries,MATCH(B54,'Country Parameters'!$F$4:$F$198,0)) -> Marshall Islands | B54: MHL | C54: =IF(OFFSET(WeatherData!L59,0,WeatherData!$J$2-1)="","",OFFSET(WeatherData!L59,0,WeatherData!$J$2-1)) ->  | E54: 0 | F54: =MATCH(B54,'Country Parameters'!$F$4:$F$198,0) -> 112 | I54: 112
A55: =INDEX(Countries,MATCH(B55,'Country Parameters'!$F$4:$F$198,0)) -> Mexico | B55: MEX | C55: =IF(OFFSET(WeatherData!L61,0,WeatherData!$J$2-1)="","",OFFSET(WeatherData!L61,0,WeatherData!$J$2-1)) ->  | E55: 0 | F55: =MATCH(B55,'Country Parameters'!$F$4:$F$198,0) -> 115 | I55: 115
A56: =INDEX(Countries,MATCH(B56,'Country Parameters'!$F$4:$F$198,0)) -> Mongolia | B56: MNG | C56: =IF(OFFSET(WeatherData!L63,0,WeatherData!$J$2-1)="","",OFFSET(WeatherData!L63,0,WeatherData!$J$2-1)) ->  | E56: 0 | F56: =MATCH(B56,'Country Parameters'!$F$4:$F$198,0) -> 119 | I56: 119
A57: =INDEX(Countries,MATCH(B57,'Country Parameters'!$F$4:$F$198,0)) -> Morocco | B57: MAR | C57: =IF(OFFSET(WeatherData!L64,0,WeatherData!$J$2-1)="","",OFFSET(WeatherData!L64,0,WeatherData!$J$2-1)) ->  | E57: 0 | F57: =MATCH(B57,'Country Parameters'!$F$4:$F$198,0) -> 121 | I57: 121
A58: =INDEX(Countries,MATCH(B58,'Country Parameters'!$F$4:$F$198,0)) -> Nepal | B58: NPL | C58: =IF(OFFSET(WeatherData!L65,0,WeatherData!$J$2-1)="","",OFFSET(WeatherData!L65,0,WeatherData!$J$2-1)) ->  | E58: 0 | F58: =MATCH(B58,'Country Parameters'!$F$4:$F$198,0) -> 125 | I58: 125
A59: =INDEX(Countries,MATCH(B59,'Country Parameters'!$F$4:$F$198,0)) -> Netherlands | B59: NLD | C59: =IF(OFFSET(WeatherData!L66,0,WeatherData!$J$2-1)="","",OFFSET(WeatherData!L66,0,WeatherData!$J$2-1)) ->  | E59: 0 | F59: =MATCH(B59,'Country Parameters'!$F$4:$F$198,0) -> 126 | I59: 126
A60: =INDEX(Countries,MATCH(B60,'Country Parameters'!$F$4:$F$198,0)) -> New Zealand | B60: NZL | C60: =IF(OFFSET(WeatherData!L67,0,WeatherData!$J$2-1)="","",OFFSET(WeatherData!L67,0,WeatherData!$J$2-1)) ->  | E60: 0 | F60: =MATCH(B60,'Country Parameters'!$F$4:$F$198,0) -> 127 | I60: 127
A61: =INDEX(Countries,MATCH(B61,'Country Parameters'!$F$4:$F$198,0)) -> Nicaragua | B61: NIC | C61: =IF(OFFSET(WeatherData!L68,0,WeatherData!$J$2-1)="","",OFFSET(WeatherData!L68,0,WeatherData!$J$2-1)) ->  | E61: 0 | F61: =MATCH(B61,'Country Parameters'!$F$4:$F$198,0) -> 128 | I61: 128
A62: =INDEX(Countries,MATCH(B62,'Country Parameters'!$F$4:$F$198,0)) -> Norway | B62: NOR | C62: =IF(OFFSET(WeatherData!L69,0,WeatherData!$J$2-1)="","",OFFSET(WeatherData!L69,0,WeatherData!$J$2-1)) ->  | E62: 0 | F62: =MATCH(B62,'Country Parameters'!$F$4:$F$198,0) -> 131 | I62: 131
A63: =INDEX(Countries,MATCH(B63,'Country Parameters'!$F$4:$F$198,0)) -> Pakistan | B63: PAK | C63: =IF(OFFSET(WeatherData!L70,0,WeatherData!$J$2-1)="","",OFFSET(WeatherData!L70,0,WeatherData!$J$2-1)) ->  | E63: 0 | F63: =MATCH(B63,'Country Parameters'!$F$4:$F$198,0) -> 133 | I63: 133
A64: =INDEX(Countries,MATCH(B64,'Country Parameters'!$F$4:$F$198,0)) -> Palau | B64: PLW | C64: =IF(OFFSET(WeatherData!L71,0,WeatherData!$J$2-1)="","",OFFSET(WeatherData!L71,0,WeatherData!$J$2-1)) ->  | E64: =IF(C64<>"",1,0) -> 0 | F64: =MATCH(B64,'Country Parameters'!$F$4:$F$198,0) -> 134 | I64: 134
A65: =INDEX(Countries,MATCH(B65,'Country Parameters'!$F$4:$F$198,0)) -> Paraguay | B65: PRY | C65: =IF(OFFSET(WeatherData!L72,0,WeatherData!$J$2-1)="","",OFFSET(WeatherData!L72,0,WeatherData!$J$2-1)) ->  | E65: 0 | F65: =MATCH(B65,'Country Parameters'!$F$4:$F$198,0) -> 137 | I65: 137
A66: =INDEX(Countries,MATCH(B66,'Country Parameters'!$F$4:$F$198,0)) -> Peru | B66: PER | C66: =IF(OFFSET(WeatherData!L73,0,WeatherData!$J$2-1)="","",OFFSET(WeatherData!L73,0,WeatherData!$J$2-1)) ->  | E66: 0 | F66: =MATCH(B66,'Country Parameters'!$F$4:$F$198,0) -> 138 | I66: 138
A67: =INDEX(Countries,MATCH(B67,'Country Parameters'!$F$4:$F$198,0)) -> Philippines | B67: PHL | C67: =IF(OFFSET(WeatherData!L74,0,WeatherData!$J$2-1)="","",OFFSET(WeatherData!L74,0,WeatherData!$J$2-1)) ->  | E67: 0 | F67: =MATCH(B67,'Country Parameters'!$F$4:$F$198,0) -> 139 | I67: =MATCH(A67,Countries,0) -> 139
A68: =INDEX(Countries,MATCH(B68,'Country Parameters'!$F$4:$F$198,0)) -> Poland | B68: POL | C68: =IF(OFFSET(WeatherData!L75,0,WeatherData!$J$2-1)="","",OFFSET(WeatherData!L75,0,WeatherData!$J$2-1)) ->  | E68: 0 | F68: =MATCH(B68,'Country Parameters'!$F$4:$F$198,0) -> 140 | I68: 140
A69: =INDEX(Countries,MATCH(B69,'Country Parameters'!$F$4:$F$198,0)) -> Portugal | B69: PRT | C69: =IF(OFFSET(WeatherData!L76,0,WeatherData!$J$2-1)="","",OFFSET(WeatherData!L76,0,WeatherData!$J$2-1)) ->  | E69: 0 | F69: =MATCH(B69,'Country Parameters'!$F$4:$F$198,0) -> 141 | I69: 141
A70: =INDEX(Countries,MATCH(B70,'Country Parameters'!$F$4:$F$198,0)) -> Romania | B70: ROU | C70: =IF(OFFSET(WeatherData!L78,0,WeatherData!$J$2-1)="","",OFFSET(WeatherData!L78,0,WeatherData!$J$2-1)) ->  | E70: 0 | F70: =MATCH(B70,'Country Parameters'!$F$4:$F$198,0) -> 143 | I70: 143
A71: =INDEX(Countries,MATCH(B71,'Country Parameters'!$F$4:$F$198,0)) -> Russia | B71: RUS | C71: =IF(OFFSET(WeatherData!L79,0,WeatherData!$J$2-1)="","",OFFSET(WeatherData!L79,0,WeatherData!$J$2-1)) ->  | E71: 0 | F71: =MATCH(B71,'Country Parameters'!$F$4:$F$198,0) -> 144 | I71: 144
A72: =INDEX(Countries,MATCH(B72,'Country Parameters'!$F$4:$F$198,0)) -> Saudi Arabia | B72: SAU | C72: =IF(OFFSET(WeatherData!L80,0,WeatherData!$J$2-1)="","",OFFSET(WeatherData!L80,0,WeatherData!$J$2-1)) ->  | E72: 0 | F72: =MATCH(B72,'Country Parameters'!$F$4:$F$198,0) -> 152 | I72: 152
A73: =INDEX(Countries,MATCH(B73,'Country Parameters'!$F$4:$F$198,0)) -> Senegal | B73: SEN | C73: =IF(OFFSET(WeatherData!L81,0,WeatherData!$J$2-1)="","",OFFSET(WeatherData!L81,0,WeatherData!$J$2-1)) ->  | E73: 0 | F73: =MATCH(B73,'Country Parameters'!$F$4:$F$198,0) -> 153 | I73: 153
A74: =INDEX(Countries,MATCH(B74,'Country Parameters'!$F$4:$F$198,0)) -> Serbia | B74: SRB | C74: =IF(OFFSET(WeatherData!L82,0,WeatherData!$J$2-1)="","",OFFSET(WeatherData!L82,0,WeatherData!$J$2-1)) ->  | E74: 0 | F74: =MATCH(B74,'Country Parameters'!$F$4:$F$198,0) -> 154 | I74: 154
A75: =INDEX(Countries,MATCH(B75,'Country Parameters'!$F$4:$F$198,0)) -> Singapore | B75: SGP | C75: =IF(OFFSET(WeatherData!L83,0,WeatherData!$J$2-1)="","",OFFSET(WeatherData!L83,0,WeatherData!$J$2-1)) ->  | E75: 0 | F75: =MATCH(B75,'Country Parameters'!$F$4:$F$198,0) -> 157 | I75: 157
A76: =INDEX(Countries,MATCH(B76,'Country Parameters'!$F$4:$F$198,0)) -> Slovakia | B76: SVK | C76: =IF(OFFSET(WeatherData!L84,0,WeatherData!$J$2-1)="","",OFFSET(WeatherData!L84,0,WeatherData!$J$2-1)) ->  | E76: 0 | F76: =MATCH(B76,'Country Parameters'!$F$4:$F$198,0) -> 158 | I76: 158
A77: =INDEX(Countries,MATCH(B77,'Country Parameters'!$F$4:$F$198,0)) -> Slovenia | B77: SVN | C77: =IF(OFFSET(WeatherData!L85,0,WeatherData!$J$2-1)="","",OFFSET(WeatherData!L85,0,WeatherData!$J$2-1)) ->  | E77: 0 | F77: =MATCH(B77,'Country Parameters'!$F$4:$F$198,0) -> 159 | I77: 159
A78: =INDEX(Countries,MATCH(B78,'Country Parameters'!$F$4:$F$198,0)) -> South Africa | B78: ZAF | C78: =IF(OFFSET(WeatherData!L86,0,WeatherData!$J$2-1)="","",OFFSET(WeatherData!L86,0,WeatherData!$J$2-1)) ->  | E78: 0 | F78: =MATCH(B78,'Country Parameters'!$F$4:$F$198,0) -> 162 | I78: 162
A79: =INDEX(Countries,MATCH(B79,'Country Parameters'!$F$4:$F$198,0)) -> Spain | B79: ESP | C79: =IF(OFFSET(WeatherData!L87,0,WeatherData!$J$2-1)="","",OFFSET(WeatherData!L87,0,WeatherData!$J$2-1)) ->  | E79: 0 | F79: =MATCH(B79,'Country Parameters'!$F$4:$F$198,0) -> 164 | I79: 164
A80: =INDEX(Countries,MATCH(B80,'Country Parameters'!$F$4:$F$198,0)) -> Sri Lanka | B80: LKA | C80: =IF(OFFSET(WeatherData!L88,0,WeatherData!$J$2-1)="","",OFFSET(WeatherData!L88,0,WeatherData!$J$2-1)) ->  | E80: 0 | F80: =MATCH(B80,'Country Parameters'!$F$4:$F$198,0) -> 165 | I80: 165
A81: =INDEX(Countries,MATCH(B81,'Country Parameters'!$F$4:$F$198,0)) -> Sweden | B81: SWE | C81: =IF(OFFSET(WeatherData!L89,0,WeatherData!$J$2-1)="","",OFFSET(WeatherData!L89,0,WeatherData!$J$2-1)) ->  | E81: 0 | F81: =MATCH(B81,'Country Parameters'!$F$4:$F$198,0) -> 169 | I81: 169
A82: =INDEX(Countries,MATCH(B82,'Country Parameters'!$F$4:$F$198,0)) -> Switzerland | B82: CHE | C82: =IF(OFFSET(WeatherData!L90,0,WeatherData!$J$2-1)="","",OFFSET(WeatherData!L90,0,WeatherData!$J$2-1)) ->  | E82: 0 | F82: =MATCH(B82,'Country Parameters'!$F$4:$F$198,0) -> 170 | I82: 170
A83: =INDEX(Countries,MATCH(B83,'Country Parameters'!$F$4:$F$198,0)) -> Syria | B83: SYR | C83: =IF(OFFSET(WeatherData!L91,0,WeatherData!$J$2-1)="","",OFFSET(WeatherData!L91,0,WeatherData!$J$2-1)) ->  | E83: 0 | F83: =MATCH(B83,'Country Parameters'!$F$4:$F$198,0) -> 171 | I83: 171
A84: =INDEX(Countries,MATCH(B84,'Country Parameters'!$F$4:$F$198,0)) -> Thailand | B84: THA | C84: =IF(OFFSET(WeatherData!L93,0,WeatherData!$J$2-1)="","",OFFSET(WeatherData!L93,0,WeatherData!$J$2-1)) ->  | E84: 0 | F84: =MATCH(B84,'Country Parameters'!$F$4:$F$198,0) -> 174 | I84: 174
A85: =INDEX(Countries,MATCH(B85,'Country Parameters'!$F$4:$F$198,0)) -> Tunisia | B85: TUN | C85: =IF(OFFSET(WeatherData!L94,0,WeatherData!$J$2-1)="","",OFFSET(WeatherData!L94,0,WeatherData!$J$2-1)) ->  | E85: 0 | F85: =MATCH(B85,'Country Parameters'!$F$4:$F$198,0) -> 179 | I85: 179
A86: =INDEX(Countries,MATCH(B86,'Country Parameters'!$F$4:$F$198,0)) -> Turkey | B86: TUR | C86: =IF(OFFSET(WeatherData!L95,0,WeatherData!$J$2-1)="","",OFFSET(WeatherData!L95,0,WeatherData!$J$2-1)) ->  | E86: 0 | F86: =MATCH(B86,'Country Parameters'!$F$4:$F$198,0) -> 180 | I86: 180
A87: =INDEX(Countries,MATCH(B87,'Country Parameters'!$F$4:$F$198,0)) -> Ukraine | B87: UKR | C87: =IF(OFFSET(WeatherData!L96,0,WeatherData!$J$2-1)="","",OFFSET(WeatherData!L96,0,WeatherData!$J$2-1)) ->  | E87: 0 | F87: =MATCH(B87,'Country Parameters'!$F$4:$F$198,0) -> 184 | I87: 184
A88: =INDEX(Countries,MATCH(B88,'Country Parameters'!$F$4:$F$198,0)) -> United Arab Emirates | B88: ARE | C88: =IF(OFFSET(WeatherData!L97,0,WeatherData!$J$2-1)="","",OFFSET(WeatherData!L97,0,WeatherData!$J$2-1)) ->  | E88: 0 | F88: =MATCH(B88,'Country Parameters'!$F$4:$F$198,0) -> 185 | I88: 185
A89: =INDEX(Countries,MATCH(B89,'Country Parameters'!$F$4:$F$198,0)) -> United Kingdom | B89: GBR | C89: =IF(OFFSET(WeatherData!L98,0,WeatherData!$J$2-1)="","",OFFSET(WeatherData!L98,0,WeatherData!$J$2-1)) ->  | E89: 0 | F89: =MATCH(B89,'Country Parameters'!$F$4:$F$198,0) -> 186 | I89: 186
A90: =INDEX(Countries,MATCH(B90,'Country Parameters'!$F$4:$F$198,0)) -> United States | B90: USA | C90: =IF(OFFSET(WeatherData!L99,0,WeatherData!$J$2-1)="","",OFFSET(WeatherData!L99,0,WeatherData!$J$2-1)) ->  | E90: 0 | F90: =MATCH(B90,'Country Parameters'!$F$4:$F$198,0) -> 187 | I90: 187
A91: =INDEX(Countries,MATCH(B91,'Country Parameters'!$F$4:$F$198,0)) -> Uruguay | B91: URY | C91: =IF(OFFSET(WeatherData!L100,0,WeatherData!$J$2-1)="","",OFFSET(WeatherData!L100,0,WeatherData!$J$2-1)) ->  | E91: 0 | F91: =MATCH(B91,'Country Parameters'!$F$4:$F$198,0) -> 188 | I91: 188
A92: =INDEX(Countries,MATCH(B92,'Country Parameters'!$F$4:$F$198,0)) -> Uzbekistan | B92: UZB | C92: =IF(OFFSET(WeatherData!L101,0,WeatherData!$J$2-1)="","",OFFSET(WeatherData!L101,0,WeatherData!$J$2-1)) ->  | E92: 0 | F92: =MATCH(B92,'Country Parameters'!$F$4:$F$198,0) -> 189 | I92: 189
A93: =INDEX(Countries,MATCH(B93,'Country Parameters'!$F$4:$F$198,0)) -> Venezuela | B93: VEN | C93: =IF(OFFSET(WeatherData!L102,0,WeatherData!$J$2-1)="","",OFFSET(WeatherData!L102,0,WeatherData!$J$2-1)) ->  | E93: 0 | F93: =MATCH(B93,'Country Parameters'!$F$4:$F$198,0) -> 191 | I93: 191
A94: =INDEX(Countries,MATCH(B94,'Country Parameters'!$F$4:$F$198,0)) -> Vietnam | B94: VNM | C94: =IF(OFFSET(WeatherData!L103,0,WeatherData!$J$2-1)="","",OFFSET(WeatherData!L103,0,WeatherData!$J$2-1)) ->  | E94: 0 | F94: =MATCH(B94,'Country Parameters'!$F$4:$F$198,0) -> 192 | I94: 192
A95: =INDEX(Countries,MATCH(B95,'Country Parameters'!$F$4:$F$198,0)) -> Zimbabwe | B95: ZWE | C95: =IF(OFFSET(WeatherData!L105,0,WeatherData!$J$2-1)="","",OFFSET(WeatherData!L105,0,WeatherData!$J$2-1)) ->  | E95: 0 | F95: =MATCH(B95,'Country Parameters'!$F$4:$F$198,0) -> 195 | I95: 195
C96: =IF(OFFSET(WeatherData!L106,0,WeatherData!$J$2-1)="","",OFFSET(WeatherData!L106,0,WeatherData!$J$2-1)) ->  | E96: 0
C97: =IF(OFFSET(WeatherData!L107,0,WeatherData!$J$2-1)="","",OFFSET(WeatherData!L107,0,WeatherData!$J$2-1)) ->  | E97: 0
C98: =IF(OFFSET(WeatherData!L108,0,WeatherData!$J$2-1)="","",OFFSET(WeatherData!L108,0,WeatherData!$J$2-1)) ->  | E98: 0
B99: - | C99: =IF(OFFSET(WeatherData!L109,0,WeatherData!$J$2-1)="","",OFFSET(WeatherData!L109,0,WeatherData!$J$2-1)) ->  | E99: 0
C100: =IF(OFFSET(WeatherData!L110,0,WeatherData!$J$2-1)="","",OFFSET(WeatherData!L110,0,WeatherData!$J$2-1)) ->  | E100: 0
C101: =IF(OFFSET(WeatherData!L111,0,WeatherData!$J$2-1)="","",OFFSET(WeatherData!L111,0,WeatherData!$J$2-1)) ->  | E101: 0
C102: =IF(OFFSET(WeatherData!L112,0,WeatherData!$J$2-1)="","",OFFSET(WeatherData!L112,0,WeatherData!$J$2-1)) ->  | E102: 0
C103: =IF(OFFSET(WeatherData!L113,0,WeatherData!$J$2-1)="","",OFFSET(WeatherData!L113,0,WeatherData!$J$2-1)) ->  | E103: 0
C104: =IF(OFFSET(WeatherData!L114,0,WeatherData!$J$2-1)="","",OFFSET(WeatherData!L114,0,WeatherData!$J$2-1)) ->  | E104: 0
C105: =IF(OFFSET(WeatherData!L115,0,WeatherData!$J$2-1)="","",OFFSET(WeatherData!L115,0,WeatherData!$J$2-1)) ->  | E105: 0
C106: =IF(OFFSET(WeatherData!L116,0,WeatherData!$J$2-1)="","",OFFSET(WeatherData!L116,0,WeatherData!$J$2-1)) ->  | E106: 0
C107: =IF(OFFSET(WeatherData!L117,0,WeatherData!$J$2-1)="","",OFFSET(WeatherData!L117,0,WeatherData!$J$2-1)) ->  | E107: 0
C108: =IF(OFFSET(WeatherData!L118,0,WeatherData!$J$2-1)="","",OFFSET(WeatherData!L118,0,WeatherData!$J$2-1)) ->  | E108: 0
C109: =IF(OFFSET(WeatherData!L119,0,WeatherData!$J$2-1)="","",OFFSET(WeatherData!L119,0,WeatherData!$J$2-1)) ->  | E109: 0
C110: =IF(OFFSET(WeatherData!L120,0,WeatherData!$J$2-1)="","",OFFSET(WeatherData!L120,0,WeatherData!$J$2-1)) ->  | E110: 0
C111: =IF(OFFSET(WeatherData!L121,0,WeatherData!$J$2-1)="","",OFFSET(WeatherData!L121,0,WeatherData!$J$2-1)) ->  | E111: 0
C112: =IF(OFFSET(WeatherData!L122,0,WeatherData!$J$2-1)="","",OFFSET(WeatherData!L122,0,WeatherData!$J$2-1)) ->  | E112: 0
C113: =IF(OFFSET(WeatherData!L123,0,WeatherData!$J$2-1)="","",OFFSET(WeatherData!L123,0,WeatherData!$J$2-1)) ->  | E113: 0
C114: =IF(OFFSET(WeatherData!L124,0,WeatherData!$J$2-1)="","",OFFSET(WeatherData!L124,0,WeatherData!$J$2-1)) ->  | E114: 0
C115: =IF(OFFSET(WeatherData!L125,0,WeatherData!$J$2-1)="","",OFFSET(WeatherData!L125,0,WeatherData!$J$2-1)) ->  | E115: 0
C116: =IF(OFFSET(WeatherData!L126,0,WeatherData!$J$2-1)="","",OFFSET(WeatherData!L126,0,WeatherData!$J$2-1)) ->  | E116: 0
C117: =IF(OFFSET(WeatherData!L127,0,WeatherData!$J$2-1)="","",OFFSET(WeatherData!L127,0,WeatherData!$J$2-1)) ->  | E117: 0
C118: =IF(OFFSET(WeatherData!L128,0,WeatherData!$J$2-1)="","",OFFSET(WeatherData!L128,0,WeatherData!$J$2-1)) ->  | E118: 0
C119: =IF(OFFSET(WeatherData!L129,0,WeatherData!$J$2-1)="","",OFFSET(WeatherData!L129,0,WeatherData!$J$2-1)) ->  | E119: 0
C120: =IF(OFFSET(WeatherData!L130,0,WeatherData!$J$2-1)="","",OFFSET(WeatherData!L130,0,WeatherData!$J$2-1)) ->  | E120: 0
C121: =IF(OFFSET(WeatherData!L131,0,WeatherData!$J$2-1)="","",OFFSET(WeatherData!L131,0,WeatherData!$J$2-1)) ->  | E121: 0
C122: =IF(OFFSET(WeatherData!L132,0,WeatherData!$J$2-1)="","",OFFSET(WeatherData!L132,0,WeatherData!$J$2-1)) ->  | E122: 0
C123: =IF(OFFSET(WeatherData!L133,0,WeatherData!$J$2-1)="","",OFFSET(WeatherData!L133,0,WeatherData!$J$2-1)) ->  | E123: 0
C124: =IF(OFFSET(WeatherData!L134,0,WeatherData!$J$2-1)="","",OFFSET(WeatherData!L134,0,WeatherData!$J$2-1)) ->  | E124: 0
C125: =IF(OFFSET(WeatherData!L135,0,WeatherData!$J$2-1)="","",OFFSET(WeatherData!L135,0,WeatherData!$J$2-1)) ->  | E125: =IF(C125<>"",1,0) -> 0
C126: =IF(OFFSET(WeatherData!L136,0,WeatherData!$J$2-1)="","",OFFSET(WeatherData!L136,0,WeatherData!$J$2-1)) ->  | E126: 0
C127: =IF(OFFSET(WeatherData!L137,0,WeatherData!$J$2-1)="","",OFFSET(WeatherData!L137,0,WeatherData!$J$2-1)) ->  | E127: 0
C128: =IF(OFFSET(WeatherData!L138,0,WeatherData!$J$2-1)="","",OFFSET(WeatherData!L138,0,WeatherData!$J$2-1)) ->  | E128: 0
C129: =IF(OFFSET(WeatherData!L139,0,WeatherData!$J$2-1)="","",OFFSET(WeatherData!L139,0,WeatherData!$J$2-1)) ->  | E129: 0
C130: =IF(OFFSET(WeatherData!L140,0,WeatherData!$J$2-1)="","",OFFSET(WeatherData!L140,0,WeatherData!$J$2-1)) ->  | E130: 0
C131: =IF(OFFSET(WeatherData!L141,0,WeatherData!$J$2-1)="","",OFFSET(WeatherData!L141,0,WeatherData!$J$2-1)) ->  | E131: 0

Sheet Country Parameters (hidden)
B1: 1 | C1: 2 | D1: 3 | E1: 4 | F1: 5 | G1: 6 | H1: 7 | I1: 8 | J1: 9 | K1: 10 | L1: 11 | M1: 12 | N1: 13 | Q1: 14 | R1: 15 | S1: 16
B2: Country Parameters
B3: Short-form name | C3: Long-form name | D3: US FIPS | E3: Alpha-2 | F3: Alpha-3 | G3: Numeric Code | H3: Latitude Average | I3: Longitude Average | J3: Region | K3: Grid Average Utilized (Grams CO2/kWh) | L3: Grams CO2/kWh (Coal/Peat) | M3: Grams CO2/kWh (Oil) | N3: Grams CO2/kWh (Natural Gas) | O3: Grid Average (IEA) (Grams CO2/kWh) | P3: CDM Avearge Combined Marginal (IGES) | Q3: Average Solar Insolation (kWh/m^2/day) and Average-Day Insolation (hr) | R3: Average Grid Line Loss Rate (%) | S3: Regional Emission Factor utilized
B4: Afghanistan | C4: Islamic Republic of Afghanistan | D4: AF | E4: AF | F4: AFG | G4: 4 | H4: 33 | I4: 65 | J4: Asia | K4: =IF(P4="N/A",O4,P4) -> 846.5339208 | L4: 919.0507 | M4: 785.5197 | N4: 527.4198 | O4: 451.1306 | P4: 846.5339208 | Q4: 5.3 | R4: 0.05730004629 | S4: =IF(ISNUMBER(MATCH(B4,'Grid EFs'!$B$4:$B$157,0)),"","*") -> 
B5: Albania | C5: Republic of Albania | D5: AL | E5: AL | F5: ALB | G5: 8 | H5: 41 | I5: 20 | J5: Europe | K5: =IF(P5="N/A",O5,P5) -> 312.0333333 | L5: 919.0507 | M5: 785.5197 | N5: 527.4198 | O5: 6.9824 | P5: 312.0333333 | Q5: 4.14 | R5: 0.1012017018 | S5: =IF(ISNUMBER(MATCH(B5,'Grid EFs'!$B$4:$B$157,0)),"","*") -> 
B6: Algeria | C6: People's Democratic Republic of Algeria | D6: AG | E6: DZ | F6: DZA | G6: 12 | H6: 28 | I6: 3 | J6: Africa | K6: 720.023585 | L6: 974.5395 | M6: 935.3821 | N6: 528.5084 | O6: 549.2008 | P6: 720.023585 | Q6: 5.61 | R6: 0.09492160819 | S6: =IF(ISNUMBER(MATCH(B6,'Grid EFs'!$B$4:$B$157,0)),"","*") -> 
B7: Andorra | C7: Principality of Andorra | D7: AN | E7: AD | F7: AND | G7: 20 | H7: 42.5 | I7: 1.6 | J7: Europe | K7: 331.064 | L7: 917.4832 | M7: 690.5793 | N7: 359.0744 | O7: 331.064 | P7: N/A | Q7: 3.7 | R7: 0.05810932301 | S7: =IF(ISNUMBER(MATCH(B7,'Grid EFs'!$B$4:$B$157,0)),"","*") -> 
B8: Angola | C8: Republic of Angola | D8: AO | E8: AO | F8: AGO | G8: 24 | H8: -12.5 | I8: 18.5 | J8: Africa | K8: 840.8 | L8: 974.5395 | M8: 1343.4219 | N8: 456.774 | O8: 390.8441 | P8: 840.8 | Q8: 5.58 | R8: 0.07427444358 | S8: =IF(ISNUMBER(MATCH(B8,'Grid EFs'!$B$4:$B$157,0)),"","*") -> 
B9: Antigua and Barbuda | C9: Antigua and Barbuda | D9: AC | E9: AG | F9: ATG | G9: 28 | H9: 17.05 | I9: -61.8 | J9: North America | K9: 472.4409815 | L9: 1240.488 | M9: 671.3559 | N9: 502.8366 | O9: 200.8047 | P9: 472.4409815 | Q9: 6.16 | R9: 0.05767936475 | S9: =IF(ISNUMBER(MATCH(B9,'Grid EFs'!$B$4:$B$157,0)),"","*") -> *
B10: Argentina | C10: Argentine Republic | D10: AR | E10: AR | F10: ARG | G10: 32 | H10: -34 | I10: -64 | J10: South America | K10: 504.7211429 | L10: 1165.1775 | M10: 731.7614 | N10: 476.0554 | O10: 397.1744 | P10: 504.7211429 | Q10: 4.8 | R10: 0.0848395274 | S10: =IF(ISNUMBER(MATCH(B10,'Grid EFs'!$B$4:$B$157,0)),"","*") -> *
B11: Armenia | C11: Republic of Armenia | D11: AM | E11: AM | F11: ARM | G11: 51 | H11: 40 | I11: 45 | J11: Asia | K11: 435.9666667 | L11: 919.0507 | M11: 785.5197 | N11: 417.3284 | O11: 176.5181 | P11: 435.9666667 | Q11: 3.96 | R11: 0.08111783648 | S11: =IF(ISNUMBER(MATCH(B11,'Grid EFs'!$B$4:$B$157,0)),"","*") -> 
B12: Australia | C12: Commonwealth of Australia | D12: AS | E12: AU | F12: AUS | G12: 36 | H12: -27 | I12: 133 | J12: Oceania | K12: 798.9019 | L12: 993.7538 | M12: 679.1895 | N12: 522.1739 | O12: 798.9019 | P12: N/A | Q12: 5.9 | R12: 0.0510883071 | S12: =IF(ISNUMBER(MATCH(B12,'Grid EFs'!$B$4:$B$157,0)),"","*") -> 
B13: Austria | C13: Republic of Austria | D13: AU | E13: AT | F13: AUT | G13: 40 | H13: 47.3333 | I13: 13.3333 | J13: Europe | K13: 164.791 | L13: 1057.8384 | M13: 578.3732 | N13: 320.4583 | O13: 164.791 | P13: N/A | Q13: 3.25 | R13: 0.04466872075 | S13: =IF(ISNUMBER(MATCH(B13,'Grid EFs'!$B$4:$B$157,0)),"","*") -> 
B14: Azerbaijan | C14: Republic of Azerbaijan | D14: AJ | E14: AZ | F14: AZE | G14: 31 | H14: 40.5 | I14: 47.5 | J14: Asia | K14: 589.76 | L14: 919.0507 | M14: 627.9523 | N14: 533.8971 | O14: 493.6623 | P14: 589.76 | Q14: 3.48 | R14: 0.0921910289 | S14: =IF(ISNUMBER(MATCH(B14,'Grid EFs'!$B$4:$B$157,0)),"","*") -> 
B15: Bahamas, The | C15: Commonwealth of The Bahamas | D15: BF | E15: BS | F15: BHS | G15: 44 | H15: 24.25 | I15: -76 | J15: North America | K15: 723 | L15: 1240.488 | M15: 671.3559 | N15: 502.8366 | O15: 200.8047 | P15: 723 | Q15: 5.74 | R15: 0.05767936475 | S15: =IF(ISNUMBER(MATCH(B15,'Grid EFs'!$B$4:$B$157,0)),"","*") -> *
B16: Bahrain | C16: Kingdom of Bahrain | D16: BA | E16: BH | F16: BHR | G16: 48 | H16: 26 | I16: 50.55 | J16: Asia | K16: 679.1801887 | L16: 1144.2709 | M16: 915.4122 | N16: 754.7189 | O16: 754.7189 | P16: 679.1801887 | Q16: 6.01 | R16: 0.05652999654 | S16: =IF(ISNUMBER(MATCH(B16,'Grid EFs'!$B$4:$B$157,0)),"","*") -> *
B17: Bangladesh | C17: People's Republic of Bangladesh | D17: BG | E17: BD | F17: BGD | G17: 50 | H17: 24 | I17: 90 | J17: Asia | K17: 640.685 | L17: 1037.0159 | M17: 598.7265 | N17: 572.8531 | O17: 575.1163 | P17: 640.685 | Q17: 4.65 | R17: 0.0756347503 | S17: =IF(ISNUMBER(MATCH(B17,'Grid EFs'!$B$4:$B$157,0)),"","*") -> 
B18: Barbados | C18: Barbados | D18: BB | E18: BB | F18: BRB | G18: 52 | H18: 13.1667 | I18: -59.5333 | J18: North America | K18: 472.4409815 | L18: 1240.488 | M18: 671.3559 | N18: 502.8366 | O18: 200.8047 | P18: 472.4409815 | Q18: 6.1 | R18: 0.05767936475 | S18: =IF(ISNUMBER(MATCH(B18,'Grid EFs'!$B$4:$B$157,0)),"","*") -> *
B19: Belarus | C19: Republic of Belarus | D19: BO | E19: BY | F19: BLR | G19: 112 | H19: 53 | I19: 28 | J19: Europe | K19: 425.1181 | L19: 1487.011 | M19: 583.2028 | N19: 422.5169 | O19: 425.1181 | P19: N/A | Q19: 2.82 | R19: 0.07364560087 | S19: =IF(ISNUMBER(MATCH(B19,'Grid EFs'!$B$4:$B$157,0)),"","*") -> 
B20: Belgium | C20: Kingdom of Belgium | D20: BE | E20: BE | F20: BEL | G20: 56 | H20: 50.8333 | I20: 4 | J20: Europe | K20: 212.018 | L20: 1318.2679 | M20: 507.5213 | N20: 313.3031 | O20: 212.018 | P20: N/A | Q20: 2.81 | R20: 0.04266864083 | S20: =IF(ISNUMBER(MATCH(B20,'Grid EFs'!$B$4:$B$157,0)),"","*") -> 
B21: Belize | C21: Belize | D21: BH | E21: BZ | F21: BLZ | G21: 84 | H21: 17.25 | I21: -88.75 | J21: North America | K21: 151.9 | L21: 1240.488 | M21: 671.3559 | N21: 502.8366 | O21: 200.8047 | P21: 151.9 | Q21: 4.85 | R21: 0.05767936475 | S21: =IF(ISNUMBER(MATCH(B21,'Grid EFs'!$B$4:$B$157,0)),"","*") -> *
B22: Benin | C22: Republic of Benin | D22: BN | E22: BJ | F22: BEN | G22: 204 | H22: 9.5 | I22: 2.25 | J22: Africa | K22: 720.023585 | L22: 974.5395 | M22: 725.1481 | N22: 456.774 | O22: 720.6994 | P22: 720.023585 | Q22: 5.59 | R22: 0.07571494693 | S22: =IF(ISNUMBER(MATCH(B22,'Grid EFs'!$B$4:$B$157,0)),"","*") -> 
B23: Bhutan | C23: Kingdom of Bhutan | D23: BT | E23: BT | F23: BTN | G23: 64 | H23: 27.5 | I23: 90.5 | J23: Asia | K23: 830.45 | L23: 1144.2709 | M23: 843.0648 | N23: 451.9748 | O23: 736.1338 | P23: 830.45 | Q23: 5.31 | R23: 0.05730004629 | S23: =IF(ISNUMBER(MATCH(B23,'Grid EFs'!$B$4:$B$157,0)),"","*") -> 
B24: Bolivia | C24: Plurinational State of Bolivia | D24: BL | E24: BO | F24: BOL | G24: 68 | H24: -17 | I24: -65 | J24: South America | K24: 588.75 | L24: 1240.488 | M24: 942.2581 | N24: 634.0785 | O24: 426.278 | P24: 588.75 | Q24: 4.61 | R24: 0.07374593312 | S24: =IF(ISNUMBER(MATCH(B24,'Grid EFs'!$B$4:$B$157,0)),"","*") -> *
B25: Bosnia and Herzegovina | C25: Bosnia and Herzegovina | D25: BK | E25: BA | F25: BIH | G25: 70 | H25: 44 | I25: 18 | J25: Europe | K25: 973.15 | L25: 1395.2871 | M25: 765.8214 | N25: 694.4231 | O25: 973.8126 | P25: 973.15 | Q25: 3.43 | R25: 0.0703046414 | S25: =IF(ISNUMBER(MATCH(B25,'Grid EFs'!$B$4:$B$157,0)),"","*") -> 
B26: Botswana | C26: Republic of Botswana | D26: BC | E26: BW | F26: BWA | G26: 72 | H26: -22 | I26: 24 | J26: Africa | K26: 720.023585 | L26: 1478.836 | M26: 833.9727 | N26: 456.774 | O26: 1478.836 | P26: 720.023585 | Q26: 5.87 | R26: 0.07571494693 | S26: =IF(ISNUMBER(MATCH(B26,'Grid EFs'!$B$4:$B$157,0)),"","*") -> 
B27: Brazil | C27: Federative Republic of Brazil | D27: BR | E27: BR | F27: BRA | G27: 76 | H27: -10 | I27: -55 | J27: South America | K27: 292.377932 | L27: 1409.4494 | M27: 726.969 | N27: 428.3065 | O27: 98.1739 | P27: 292.377932 | Q27: 4.87 | R27: 0.08950058604 | S27: =IF(ISNUMBER(MATCH(B27,'Grid EFs'!$B$4:$B$157,0)),"","*") -> *
